Workbook

Sheet Dati Generali CER 1 Sem. 2025
A1: Scheda n. 1 - Produzione di Rifiuti Urbani e Raccolta Differenziata 1° Semestre 2025.
A2: =COUNTA(E3:E110) -> 108 | B2: ID COMUNE | C2: COMUNE | D2: ABITANTI al 30/06/2025 | E2: R.S.U. + R.S.A. (Kg/1°Sem.) 200301 | F2: R.S.U. COVID (A+A1) 200301* | G2: Altri oli per motori, ingranaggi e lubrificazione 130208* | H2: Legno da demolizione 170201 | I2: Miscele bituminose (diverse da quelle 170301*) 170302 | J2: Alluminio 170402 | K2: Ferro e acciaio 170405 | L2: Materiali da costruzione contenenti amianto 170605* | M2: Percolato di discarica,(diverso dalla voce 190702) 190703 | N2: Residui di vagliatura 190801 | O2: FANGHI DI DEPURAZIONE (Kg/anno) prodotti dal trattamento delle acque reflue urbane 190805 | P2: altri rifiuti (compresi materiali misti) prodotti dal trattamento meccanico dei rifiuti,(diversi dalla voce 191211) 191212 | Q2: Rifiuti della pulizia delle fognature 200306 | R2: Residui della pulizia stradale 200303 Smaltimento | S2: Ingombranti - 200307 Smaltimento | T2: Rifiuti urbani non specificati altrimenti 200399 | U2: RACCOL. DIFFEREN. (Kg/1°Sem.) | V2: R.S.U. + R.S.A. + RACC. DIFF. (Kg/1°Sem.) | W2: % RACC. DIFF. (1°Sem.) | X2: Compostaggio Domestico | Y2: Toner per stampa esauriti,(diversi dalla voce 080317) 080318 | Z2: Imballaggi Carta e Cartone (Raccolta Selettiva) 150101 | AA2: Imballaggi in Plastica 150102 | AB2: Imballaggi in Legno 150103 | AC2: Imballaaggi in metallo 150104 | AD2: Imballaggi Materiali compositi 150105 | AE2: Imball. in materiali misti 150106 | AF2: Imballaggi in Vetro 150107 | AG2: Imballaggi in Materiale tessile 150109 | AH2: Imballaggi contenenti residui di sostanze pericolose o contaminati da tali sostanze 150110* | AI2: Imballaggi metallici contenenti matrici solide porose pericolose (ad esempio amianto) 150111* | AJ2: Pneumatici usati 160103 | AK2: Filtri dell'olio 160107* | AL2: Apparecchiature fuori uso contenenti PCB o da essi contaminate(diverse dalla voce 160209) 160210* | AM2: Apparecchiature fuori uso, contenenti clorofluorocarburi, HCFC, HFC 160211* | AN2: Apparecchiature fuori uso contenenti amianto in fibre libere 160212* | AO2: App.fuori uso contenete comp.pericolosi(diversi dalle voci da 160209 a 160212) 160213* | AP2: Apparecchiature fuori uso(diverse dalle voci da 160209 a 160213*) 160214* | AQ2: Componenti pericolosi rimossi da apparecchiature fuori uso 160215* | AR2: Componenti rimossi da apparecchiature fuori uso,(diversi dalla voce 160215) 160216 | AS2: Gas in contenitori a pressione limitatamente ad estintori ed aerosol ad uso domenstico 160504* | AT2: Gas in contenitori a pressione (diversi dalla voce 160504*) limitatamente ad estintori ed aerosol ad uso domenstico 160505 | AU2: Miscugli o frazioni separate di cemento, mattoni, mattonelle e ceramiche(diverse dalla voce 170106) 170107 | AV2: Rifiuti misti dell'attività di costruzione e demolizione, (diversi dalle voci 170901, 170902 e 170903) 170904 | AW2: Carta e Cartone (Raccolta Congiunta) 200101 | AX2: Vetro 200102 | AY2: Rifiuti biodegradabili di cucine e mense 200108 | AZ2: Abbigliamento 200110 | BA2: Prodotti tessili 200111 | BB2: Solventi 200113* | BC2: Acidi 200114* | BD2: Sostanze Alcaline 200115* | BE2: Prodotti Fotochimici 200117* | BF2: Pesticidi 200119* | BG2: Tubi fluorescenti ed altri rifiuti contenenti Mercurio 200121* | BH2: Apparec. Fuori uso conten. CFC e mat. peric. 200123* | BI2: Oli e Grassi commestibili 200125 | BJ2: Oli e grassi (diversi dalla voce 200125) 200126* | BK2: Vernici,Inchiostri,Adesivi e Resine contenenti sostanze pericolose 200127* | BL2: Vernici,Inchiostri,Adesivi e Resine (diversi dalla voce 200127*) 200128 | BM2: Detergento contenente sostanze pericolose 200129* | BN2: Detergenti (diversi della voce 200129*) 200130 | BO2: Medicinali citotossici e citostatici 200131* | BP2: Medicinali (diversi dlla voce 200131*) 200132 | BQ2: Batterie ed Accumulatori (diversi dalle voci 160601, 160602 e 160603) 200133* | BR2: Batterie ed accumulatori (diversi dlla voce 200133*) 200134 | BS2: Apparecc. elettr. ed elettroniche fuori uso contenenti Mat. Peric. 200135* | BT2: Apparecc. eletr. ed elettroniche fuori uso(diverse da 200121, 200123 e 200135 200136 | BU2: Legno contenente sostanze pericolose 200137* | BV2: Legno 200138 | BW2: Plastica 200139 | BX2: Metallo 200140 | BY2: Rifiuti prodotti dalla pulizia dei camini provenienti da utenze domestiche 200141 | BZ2: Rifiuti biodegradabili 200201 | CA2: Altri rifiuti non biodegradabili 200203 | CB2: Rifiuti dei Mercati 200302 | CC2: Residui della pulizia stradale - 200303 Recupero | CD2: Ingombranti - 200307 Recupero | CE2: TOTALE RD (Kg/1°Sem.) | CF2: R.S.U. + R.S.A.+ R.D. - (R.T. Kg. pro capite/g) | CG2: R.S.U. + R.S.A. 200301 - (R.I. Kg. pro capite/g) | CH2: R.D. - (Kg. pro capite/g)
A3: 1 | B3: M211 | C3: ACQUEDOLCI | D3: 5514 | E3: 170760 | U3: =IF(CE3=0,"",CE3) -> 775149 | V3: =IF(E3=0,"",SUM(U3,E3,R3,S3,T3)) -> 945909 | W3: =IFERROR(IF(E3<>0,IF(U3=0,0,(U3/V3*100)/100),IF(U3=0,"","")),0) -> 0.8194752349 | Z3: 25060 | AA3: 105940 | AF3: 118040 | AJ3: 6660 | AW3: 91080 | AY3: 334076 | AZ3: 7093 | BH3: 3040 | BI3: 920 | BS3: 1400 | BT3: 400 | BV3: 21320 | BZ3: 8200 | CD3: 51920 | CE3: =IF(SUM(X3:CD3)=0,"",SUM(X3:CD3)) -> 775149 | CF3: =IF(SUM(E3)=0,"",V3/D3/181) -> 0.9477723204 | CG3: =IF(E3=0,"",E3/D3/181) -> 0.1710963755 | CH3: =IF(SUM(Y3:CD3)=0,"",CE3/D3/181) -> 0.7766759449 | CJ3: 2025-08-18T12:04:03
A4: 2 | B4: A177 | C4: ALCARA LI FUSI | D4: 1616 | E4: 38870 | U4: =IF(CE4=0,"",CE4) -> 143540 | V4: 182410 | W4: 0.7869086125 | AA4: 16880 | AF4: 29890 | AW4: 18090 | AY4: 65370 | AZ4: 3810 | BH4: 260 | BS4: 300 | BT4: 250 | CD4: 8690 | CE4: =IF(SUM(X4:CD4)=0,"",SUM(X4:CD4)) -> 143540 | CF4: 0.6236324599 | CG4: =IF(E4=0,"",E4/D4/181) -> 0.1328907062 | CH4: 0.4907417537 | CJ4: 2025-10-02T10:18:21
A5: 3 | B5: A194 | C5: ALI' | D5: 614 | E5: 21620 | U5: 41922 | V5: 63542 | W5: 0.6597526046 | Y5: 5 | AE5: 6970 | AF5: 6900 | AW5: 4340 | AY5: 16910 | AZ5: 1347 | BO5: 10 | BZ5: 560 | CD5: 4880 | CE5: 41922 | CF5: 0.5717602174 | CG5: 0.1945399248 | CH5: 0.3772202926 | CJ5: 2025-08-18T12:07:46
A6: 4 | B6: A201 | C6: ALI' TERME | D6: 2302 | E6: 103260 | U6: 349980 | V6: 453240 | W6: 0.7721736828 | Y6: 60 | AE6: 53220 | AF6: 33270 | AW6: 70970 | AY6: 136950 | AZ6: 2490 | BI6: 190 | BT6: 1030 | BZ6: 28270 | CC6: 13100 | CD6: 10430 | CE6: 349980 | CF6: 1.087788183 | CG6: 0.2478267757 | CH6: 0.8399614076 | CJ6: 2025-09-08T08:11:23
A7: 5 | B7: A313 | C7: ANTILLO | D7: 781 | E7: 13160 | U7: 78536 | V7: 91696 | W7: 0.8564822893 | X7: 3671 | AE7: 16460 | AF7: 8130 | AW7: 11200 | AY7: 31900 | BA7: 3265 | CD7: 3910 | CE7: 78536 | CF7: 0.6486654735 | CG7: 0.09309498376 | CH7: 0.5555704897 | CJ7: 2025-08-18T12:12:28
A8: 6 | B8: A638 | C8: BARCELLONA P.G. | D8: 39778 | E8: 2546560 | U8: 5814685 | V8: 8361245 | W8: 0.695432917 | X8: 176125 | Z8: 538680 | AA8: 682230 | AC8: 12940 | AF8: 560620 | AI8: 440 | AJ8: 9360 | AR8: 500 | AW8: 566310 | AY8: 2109800 | AZ8: 9600 | BA8: 30680 | BG8: 460 | BH8: 18100 | BI8: 2330 | BP8: 920 | BQ8: 1000 | BR8: 560 | BS8: 17220 | BT8: 56580 | BV8: 198100 | BW8: 32330 | BX8: 61340 | BZ8: 310580 | CC8: 254600 | CD8: 163280 | CE8: 5814685 | CF8: 1.161313383 | CG8: 0.3536978296 | CH8: 0.8076155536 | CJ8: 2025-08-19T07:43:11
A9: 7 | B9: A698 | C9: BASICO' | D9: 655 | E9: 60660 | U9: 58270 | V9: 118930 | W9: 0.4899520726 | X9: 12090 | AE9: 11120 | AF9: 11800 | AW9: 11360 | AY9: 11900 | CE9: 58270 | CF9: 1.003163089 | CG9: 0.5116612543 | CH9: 0.4915018346 | CJ9: 2025-08-19T07:47:31
A10: 8 | B10: B198 | C10: BROLO | D10: 5735 | E10: 358660 | U10: 924720 | V10: 1283380 | W10: 0.7205348377 | X10: 45570 | Z10: 96050 | AE10: 115700 | AF10: 99800 | AR10: 270 | AW10: 76780 | AY10: 310970 | AZ10: 21900 | BH10: 5400 | BI10: 760 | BP10: 80 | BR10: 90 | BS10: 5640 | BT10: 12200 | BV10: 34650 | BW10: 4450 | BX10: 12140 | BZ10: 38160 | CC10: 18420 | CD10: 25690 | CE10: 924720 | CF10: 1.236355229 | CG10: 0.3455182147 | CH10: 0.8908370142 | CJ10: 2025-08-19T07:49:54
A11: 9 | B11: B660 | C11: CAPIZZI | D11: 2768 | E11: 131430 | U11: 222280 | V11: 353710 | W11: 0.6284244155 | Z11: 11460 | AA11: 22140 | AF11: 30420 | AW11: 30560 | AY11: 111660 | BH11: 1160 | BS11: 700 | BT11: 300 | BW11: 3540 | CD11: 10340 | CE11: 222280 | CF11: 0.7059967106 | CG11: 0.2623311404 | CH11: 0.4436655702 | CJ11: 2025-08-19T08:25:56
A12: 10 | B12: B666 | C12: CAPO D'ORLANDO | D12: 13061 | E12: 451640 | U12: 2667863 | V12: 3119503 | W12: 0.8552205271 | X12: 22212 | Y12: 610 | Z12: 263580 | AA12: 355180 | AB12: 11080 | AF12: 345340 | AJ12: 380 | AW12: 403540 | AY12: 1014760 | AZ12: 18060 | BG12: 240 | BH12: 10220 | BI12: 2300 | BP12: 620 | BR12: 246 | BS12: 14000 | BT12: 7460 | BX12: 44420 | BZ12: 153500 | CD12: 115 | CE12: 2667863 | CF12: 1.319563832 | CG12: 0.191045756 | CH12: 1.128518076 | CJ12: 2025-08-19T08:39:01
A13: 11 | B13: B695 | C13: CAPRILEONE | D13: 4388 | E13: 143760 | U13: 627680 | V13: 771440 | W13: 0.8136472052 | Z13: 23220 | AA13: 88960 | AB13: 6240 | AF13: 96520 | AW13: 86480 | AY13: 285120 | BV13: 36780 | BZ13: 4360 | CE13: 627680 | CF13: 0.9713079871 | CG13: 0.181005958 | CH13: 0.7903020291 | CJ13: 2025-09-25T11:19:27
A14: 12 | B14: B804 | C14: CARONIA | D14: 2937 | E14: 245660 | U14: 385304 | V14: 630964 | W14: 0.6106592452 | X14: 2032 | Z14: 30220 | AA14: 18960 | AE14: 28440 | AF14: 91720 | AY14: 170280 | AZ14: 2508 | BH14: 1440 | BI14: 280 | BP14: 9 | BR14: 5 | BS14: 1690 | BZ14: 1360 | CD14: 36360 | CE14: 385304 | CF14: 1.186921672 | CG14: 0.4621169796 | CH14: 0.7248046923 | CJ14: 2025-09-09T12:59:12
A15: 13 | B15: B918 | C15: CASALVECCHIO SICULO | D15: 701 | E15: 18120 | K15: 300 | U15: 63320 | V15: 81440 | W15: 0.7775049116 | AE15: 11440 | AF15: 7620 | AW15: 9200 | AY15: 31780 | BX15: 1200 | CD15: 2080 | CE15: 63320 | CF15: 0.6418612716 | CG15: 0.1428109804 | CH15: 0.4990502912 | CJ15: 2025-08-19T09:03:09
A16: 14 | B16: C094 | C16: CASTEL DI LUCIO | D16: 1400 | E16: 13800 | K16: 3800 | U16: 129618 | V16: 143418 | W16: 0.9037777685 | Y16: 60 | Z16: 4620 | AE16: 18940 | AF16: 14080 | AW16: 10650 | AY16: 67560 | AZ16: 4048 | BI16: 200 | BP16: 100 | BR16: 30 | BW16: 1920 | BX16: 4730 | CD16: 2680 | CE16: 129618 | CF16: 0.5659747435 | CG16: 0.0544593528 | CH16: 0.5115153907 | CJ16: 2025-09-30T09:18:28
A17: 15 | B17: C051 | C17: CASTELL'UMBERTO | D17: 2776 | E17: 91120 | U17: 278985 | V17: 370105 | W17: 0.7537995974 | AA17: 35300 | AF17: 52320 | AW17: 32180 | AY17: 128080 | AZ17: 8320 | BP17: 45 | BT17: 1370 | BW17: 3580 | CD17: 17790 | CE17: 278985 | CF17: 0.7365918608 | CG17: 0.1813492127 | CH17: 0.5552426481 | CJ17: 2025-10-14T11:30:15
A18: 16 | B18: C210 | C18: CASTELMOLA | D18: 1073 | E18: 49530 | U18: 141570 | V18: 191100 | W18: 0.7408163265 | AE18: 27100 | AF18: 24840 | AW18: 22150 | AY18: 45700 | CD18: 21780 | CE18: 141570 | CF18: 0.9839712069 | CG18: 0.255029272 | CH18: 0.7289419349 | CJ18: 2025-10-17T08:00:42
A19: 17 | B19: C347 | C19: CASTROREALE | D19: 2258 | E19: 63330 | U19: 204114 | V19: 267444 | W19: 0.7632027639 | X19: 21438 | Z19: 8660 | AE19: 26600 | AF19: 23370 | AW19: 15970 | AY19: 84820 | AZ19: 8796 | BH19: 760 | BI19: 200 | BS19: 530 | BT19: 1380 | BZ19: 9560 | CD19: 2030 | CE19: 204114 | CF19: 0.6543804961 | CG19: 0.1549554928 | CH19: 0.4994250033 | CJ19: 2025-10-02T10:36:39
A20: 18 | B20: C568 | C20: CESARO' | D20: 2083 | E20: 112060 | U20: 181809 | V20: 293869 | W20: 0.6186736267 | AA20: 31320 | AF20: 27320 | AW20: 32860 | AY20: 80360 | AZ20: 4629 | CD20: 5320 | CE20: 181809 | CF20: 0.7794458163 | CG20: 0.2972232463 | CH20: 0.48222257 | CJ20: 2025-10-30T08:58:50
A21: 19 | B21: C956 | C21: CONDRO' | D21: 493 | E21: 27760 | U21: 40410 | V21: 68170 | W21: 0.592782749 | X21: 2560 | AE21: 6740 | AF21: 5660 | AW21: 4400 | AY21: 15300 | BH21: 710 | BS21: 150 | BT21: 1010 | CD21: 3880 | CE21: 40410 | CF21: 0.7639550391 | CG21: 0.3110956709 | CH21: 0.4528593682 | CJ21: 2025-08-19T09:08:12
A22: 20 | B22: D474 | C22: FALCONE | D22: 2803 | E22: 190920 | U22: =IF(CE22=0,"",CE22) -> 443042 | V22: 633962 | W22: 0.6988463031 | X22: 21522 | Z22: 13260 | AE22: 44520 | AF22: 39140 | AW22: 46840 | AY22: 168680 | BI22: 500 | BV22: 16460 | BZ22: 72920 | CD22: 19200 | CE22: 443042 | CF22: 1.249572774 | CG22: 0.3763134605 | CH22: 0.8732593137 | CJ22: 2025-08-19T09:11:56
A23: 21 | B23: D569 | C23: FICARRA | D23: 1273 | E23: 43080 | U23: 175336 | V23: 218416 | W23: 0.8027617024 | X23: 14400 | Z23: 1100 | AA23: 15900 | AF23: 36040 | AW23: 25420 | AY23: 52740 | AZ23: 4066 | BH23: 400 | BI23: 200 | BS23: 350 | BV23: 8240 | CD23: 16480 | CE23: 175336 | CF23: 0.9479326253 | CG23: 0.1869686172 | CH23: 0.7609640081 | CJ23: 2025-10-14T11:33:48
A24: 22 | B24: D622 | C24: FIUMEDINISI | D24: 1352 | E24: 38069 | U24: 89857 | V24: 127926 | W24: 0.7024138955 | AE24: 17540 | AF24: 1330 | AW24: 12740 | AY24: 45990 | AZ24: 5477 | BP24: 510 | BZ24: 1450 | CD24: 4820 | CE24: 89857 | CF24: 0.5227614502 | CG24: 0.1555665435 | CH24: 0.3671949067 | CJ24: 2025-09-16T09:29:39
A25: 23 | B25: D635 | C25: FLORESTA | D25: 460 | E25: 22980 | U25: 47300 | V25: 70280 | W25: 0.6730221969 | AA25: 7840 | AF25: 8300 | AW25: 5920 | AY25: 23440 | CD25: 1800 | CE25: 47300 | CF25: 0.8441028105 | CG25: 0.2760028825 | CH25: 0.5680999279 | CJ25: 2025-08-19T09:19:32
A26: 24 | B26: D661 | C26: FONDACHELLI FANTINA | D26: 1150 | E26: 71700 | U26: 93799 | V26: 165499 | W26: 0.5667647539 | AE26: 10640 | AF26: 6300 | AW26: 11360 | AY26: 53599 | CD26: 11900 | CE26: 93799 | CF26: 0.7950948835 | CG26: 0.3444631276 | CH26: 0.4506317559 | CJ26: 2025-08-19T09:22:59
A27: 25 | B27: D733 | C27: FORZA D'AGRO' | D27: 931 | E27: 51960 | U27: 167246 | V27: 219206 | W27: 0.7629626926 | AE27: 20900 | AF27: 24230 | AW27: 20880 | AY27: 89516 | CD27: 11720 | CE27: 167246 | CF27: 1.300840895 | CG27: 0.308347823 | CH27: 0.9924930717 | CJ27: 2025-09-16T09:36:33
A28: 26 | B28: D765 | C28: FRANCAVILLA DI SICILIA | D28: 3524 | E28: 20500 | U28: 120670 | V28: 141170 | W28: 0.854785011 | X28: 27500 | AC28: 1000 | AE28: 13560 | AF28: 9660 | AW28: 22060 | AY28: 32440 | AZ28: 4410 | BV28: 8560 | CD28: 1480 | CE28: 120670 | CF28: 0.2213237092 | CG28: 0.03213952001 | CH28: 0.1891841892 | CJ28: 2025-10-23T08:00:37
A29: 27 | B29: D793 | C29: FRAZZANO' | D29: 536 | E29: 20040 | U29: 42830 | V29: 62870 | W29: 0.6812470177 | AA29: 4660 | AF29: 13830 | AW29: 4690 | AY29: 18070 | CD29: 1580 | CE29: 42830 | CF29: 0.6480374371 | CG29: 0.2065638658 | CH29: 0.4414735714 | CJ29: 2025-08-22T08:48:49
A30: 28 | B30: D824 | C30: FURCI SICULO | D30: 3252 | E30: 155490 | U30: 535850 | V30: 691340 | W30: 0.7750889577 | X30: 4800 | Y30: 20 | AA30: 400 | AE30: 74050 | AF30: 43000 | AW30: 87220 | AY30: 185280 | BI30: 200 | BP30: 20 | BV30: 69720 | BZ30: 4940 | CD30: 66200 | CE30: 535850 | CF30: 1.174525834 | CG30: 0.2641638295 | CH30: 0.9103620042 | CJ30: 2025-08-19T09:24:59
A31: 29 | B31: D825 | C31: FURNARI | D31: 4171 | E31: 210090 | U31: 864420 | V31: 1074510 | W31: 0.8044783204 | Z31: 39260 | AE31: 115260 | AF31: 88100 | AW31: 48220 | AY31: 276260 | BI31: 9900 | BT31: 17820 | BV31: 53480 | BZ31: 149920 | CD31: 66200 | CE31: 864420 | CF31: 1.423284425 | CG31: 0.2782829614 | CH31: 1.145001464 | CJ31: 2025-09-30T09:28:27
A32: 30 | B32: D844 | C32: GAGGI | D32: 3087 | E32: 149640 | U32: 310659 | V32: 460299 | W32: 0.6749069626 | AE32: 50630 | AF32: 44640 | AW32: 50910 | AY32: 144670 | AZ32: 1149 | BI32: 260 | CD32: 18400 | CE32: 310659 | CF32: 0.8238057654 | CG32: 0.2678135185 | CH32: 0.5559922469 | CJ32: 2025-08-19T10:32:35
A33: 31 | B33: D861 | C33: GALATI MAMERTINO | D33: 2151 | E33: 61500 | U33: 232590 | V33: 294090 | W33: 0.7908803428 | AA33: 31860 | AF33: 42370 | AW33: 29800 | AY33: 112500 | AZ33: 8180 | BT33: 2260 | CD33: 5620 | CE33: 232590 | CF33: 0.7553726777 | CG33: 0.1579632755 | CH33: 0.5974094023 | CJ33: 2025-08-19T10:35:58
A34: 32 | B34: D885 | C34: GALLODORO | D34: 323 | E34: 15660 | U34: 41750 | V34: 57410 | W34: 0.7272252221 | AE34: 7600 | AF34: 6580 | AW34: 6760 | AY34: 17310 | AZ34: 400 | CD34: 3100 | CE34: 41750 | CF34: 0.9819886082 | CG34: 0.2678617245 | CH34: 0.7141268837 | CJ34: 2025-08-19T10:38:35
A35: 33 | B35: E014 | C35: GIARDINI NAXOS | D35: 9377 | E35: 700720 | K35: 160 | U35: 2564416 | V35: =IF(E35=0,"",SUM(U35,E35,R35,S35,T35)) -> 3265136 | W35: =IFERROR(IF(E35<>0,IF(U35=0,0,(U35/V35*100)/100),IF(U35=0,"","")),0) -> 0.785393319 | Z35: 230450 | AA35: 304160 | AF35: 283960 | AW35: 197686 | AY35: 932800 | BH35: 1080 | BS35: 220 | BT35: 620 | BV35: 125100 | BZ35: 110340 | CC35: 129780 | CD35: 248220 | CE35: 2564416 | CF35: =IF(SUM(E35)=0,"",V35/D35/181) -> 1.923794968 | CG35: =IF(E35=0,"",E35/D35/181) -> 0.412859253 | CH35: =IF(SUM(Y35:CD35)=0,"",CE35/D35/181) -> 1.510935715 | CJ35: 2025-10-03T08:49:29
A36: 34 | B36: E043 | C36: GIOIOSA MAREA | D36: 6715 | E36: 403420 | U36: 865250 | V36: 1268670 | W36: 0.6820134472 | Z36: 50900 | AE36: 114200 | AF36: 114100 | AW36: 66820 | AY36: 407460 | AZ36: 8070 | BI36: 200 | BT36: 2840 | BV36: 4540 | BZ36: 53720 | CC36: 17260 | CD36: 25140 | CE36: 865250 | CF36: 1.04381631 | CG36: 0.3319195501 | CH36: 0.7118967595 | CJ36: 2025-08-19T10:40:47
A37: 35 | B37: E142 | C37: GRANITI | D37: 1463 | E37: 73100 | S37: 4595 | U37: 143040 | V37: 220735 | W37: 0.6480168528 | Z37: 19200 | AE37: 28100 | AF37: 25560 | AY37: 61120 | AZ37: 5815 | CD37: 3245 | CE37: 143040 | CF37: 0.8335819458 | CG37: 0.2760542743 | CH37: 0.5401751491 | CJ37: 2025-08-19T10:44:58
A38: 36 | B38: E233 | C38: GUALTIERI SICAMINO | D38: 1538 | E38: 52080 | U38: 198064 | V38: 250144 | W38: 0.7917999232 | X38: 10518 | AE38: 25800 | AF38: 20420 | AW38: 25350 | AY38: 97830 | BI38: 300 | BP38: 120 | BV38: 3760 | BW38: 1111 | BX38: 595 | BZ38: 6320 | CD38: 5940 | CE38: 198064 | CF38: 0.8985767553 | CG38: 0.1870837494 | CH38: 0.7114930059 | CJ38: 2025-09-22T12:32:57
A39: 37 | B39: E374 | C39: ITALA | D39: 1509 | E39: 64190 | U39: 178494 | V39: 242684 | W39: 0.7354996621 | AE39: 25030 | AF39: 36400 | AW39: 23330 | AY39: 68910 | AZ39: 6204 | BH39: 430 | BS39: 2400 | BT39: 4350 | BV39: 6210 | CD39: 5230 | CE39: 178494 | CF39: 0.8885325249 | CG39: 0.2350171531 | CH39: 0.6535153719 | CJ39: 2025-10-30T11:19:18
A40: 38 | B40: E523 | C40: LENI | D40: 678 | E40: 45280 | U40: 64200 | V40: 109480 | W40: 0.5864084764 | AA40: 10160 | AF40: 20940 | AW40: 15800 | BH40: 1740 | BS40: 740 | BT40: 2220 | CD40: 12600 | CE40: 64200 | CF40: 0.8921266644 | CG40: 0.3689760263 | CH40: 0.523150638 | CJ40: 2025-08-19T10:47:59
A41: 39 | B41: E555 | C41: LETOJANNI | D41: 2928 | E41: 399590 | U41: 505114 | V41: 904704 | W41: 0.5583196272 | X41: 1386 | AE41: 57580 | AF41: 74510 | AW41: 63290 | AY41: 240680 | AZ41: 1268 | BZ41: 25560 | CD41: 40840 | CE41: 505114 | CF41: 1.707091749 | CG41: 0.7539889201 | CH41: 0.9531028289 | CJ41: 2025-08-19T10:53:38
A42: 40 | B42: E571 | C42: LIBRIZZI | D42: 1547 | E42: 59180 | U42: 177890 | V42: 237070 | W42: 0.7503690893 | X42: 18920 | AE42: 25820 | AF42: 30140 | AW42: 23880 | AY42: 65900 | AZ42: 1170 | BR42: 60 | BT42: 660 | CC42: 5480 | CD42: 5860 | CE42: 177890 | CF42: 0.846657405 | CG42: 0.2113518591 | CH42: 0.6353055459 | CJ42: 2025-08-19T10:56:23
A43: 41 | B43: E594 | C43: LIMINA | D43: 721 | E43: 22780 | U43: 61500 | V43: 84280 | W43: 0.7297104888 | AA43: 10580 | AW43: 8000 | AX43: 9040 | AY43: 22160 | CD43: 11720 | CE43: 61500 | CF43: 0.645818806 | CG43: 0.1745580494 | CH43: 0.4712607566 | CJ43: 2025-10-27T08:14:27
A44: 42 | B44: E606 | C44: LIPARI | D44: 12793 | E44: 1682620 | U44: 1755650 | V44: 3438270 | W44: 0.5106201665 | Z44: 240420 | AA44: 283850 | AF44: 341300 | AJ44: 9160 | AW44: 144760 | AY44: 432880 | BH44: 30720 | BP44: 220 | BS44: 16520 | BT44: 31800 | BV44: 81600 | BW44: 12080 | BX44: 39100 | BZ44: 43960 | CD44: 47280 | CE44: 1755650 | CF44: 1.48487195 | CG44: 0.7266663874 | CH44: 0.7582055622 | CJ44: 2025-08-19T11:03:46
A45: 43 | B45: E674 | C45: LONGI | D45: 1273 | E45: 15650 | U45: 156643 | V45: 172293 | W45: 0.909166362 | AA45: 19320 | AF45: 33660 | AW45: 23210 | AY45: 67250 | AZ45: 4303 | BH45: 790 | BP45: 350 | BS45: 500 | BT45: 2630 | CD45: 4630 | CE45: 156643 | CF45: 0.747757288 | CG45: 0.06792151485 | CH45: 0.6798357732 | CJ45: 2025-08-19T11:20:13
A46: 44 | B46: E855 | C46: MALFA | D46: 984 | E46: 96640 | U46: 134760 | V46: 231400 | W46: 0.5823681936 | Z46: 21860 | AA46: 15620 | AC46: 1340 | AF46: 44000 | AJ46: 520 | AW46: 5340 | AY46: 15680 | BH46: 1560 | BS46: 1300 | BT46: 2780 | BV46: 10160 | BW46: 8720 | BX46: 3840 | CD46: 2040 | CE46: 134760 | CF46: 1.299240893 | CG46: 0.5426043211 | CH46: 0.7566365719 | CJ46: 2025-09-23T10:51:48
A47: 45 | B47: E869 | C47: MALVAGNA | D47: 598 | E47: 52420 | U47: 51530 | V47: 103950 | W47: 0.4957190957 | AA47: 7970 | AF47: 8220 | AW47: 8520 | AY47: 26820 | CE47: 51530 | CF47: 0.9603835991 | CG47: 0.4843031098 | CH47: 0.4760804893 | CJ47: 2025-08-19T11:21:52
A48: 46 | B48: E876 | C48: MANDANICI | D48: 485 | E48: 15120 | U48: 57719 | V48: 72839 | W48: 0.7924188965 | AE48: 8370 | AF48: 6150 | AW48: 5908 | AY48: 29850 | AZ48: 1661 | BZ48: 1120 | CD48: 4660 | CE48: 57719 | CF48: 0.8297431224 | CG48: 0.172238993 | CH48: 0.6575041294 | CJ48: 2025-08-19T11:25:42
A49: 47 | B49: F066 | C49: MAZZARRA' S. ANDREA | D49: 1418 | E49: 40060 | U49: 138579 | V49: 178639 | W49: 0.7757488566 | X49: 8329 | AA49: 8300 | AE49: 3240 | AF49: 22560 | AW49: 12500 | AX49: 3260 | AY49: 68340 | AZ49: 2810 | CC49: 1840 | CD49: 7400 | CE49: 138579 | CF49: 0.6960196059 | CG49: 0.1560831924 | CH49: 0.5399364134 | CJ49: 2025-08-19T11:29:04
A50: 48 | B50: F147 | C50: MERI' | D50: 2354 | E50: 107480 | S50: 4930 | U50: 235072 | V50: 347482 | W50: 0.6765012288 | AE50: 38380 | AF50: 25980 | AW50: 33960 | AY50: 132880 | AZ50: 1312 | BH50: 1080 | BS50: 240 | BT50: 1240 | CE50: 235072 | CF50: 0.8155437788 | CG50: 0.2522566503 | CH50: 0.5517163685 | CJ50: 2025-10-02T10:45:27
A51: 49 | B51: F158 | C51: MESSINA | D51: 216918 | E51: 20042980 | U51: 30689136 | V51: 50732116 | W51: 0.6049252115 | Y51: 1409 | Z51: 2949980 | AA51: 32540 | AC51: 820 | AE51: 3179600 | AF51: 3238140 | AH51: 650 | AJ51: 8400 | AV51: 355690 | AW51: 2996790 | AX51: 19400 | AY51: 13263497 | AZ51: 148272 | BG51: 1555 | BH51: 232090 | BI51: 4475 | BJ51: 990 | BK51: 20030 | BP51: 8940 | BQ51: 11948 | BR51: 1000 | BS51: 86180 | BT51: 732170 | BV51: 1224790 | BX51: 160920 | BZ51: 1133600 | CC51: 88460 | CD51: 786800 | CE51: 30689136 | CF51: 1.292137737 | CG51: 0.5104910433 | CH51: 0.781646694 | CJ51: 2025-10-31T11:44:38
A52: 50 | B52: F206 | C52: MILAZZO | D52: 29830 | E52: 2238440 | H52: 480 | U52: 5435184 | V52: 7673624 | W52: 0.7082942818 | Y52: 400 | Z52: 344520 | AA52: 3000 | AE52: 614790 | AF52: 523620 | AJ52: 4780 | AV52: 48300 | AW52: 554080 | AY52: 2373500 | AZ52: 147344 | BH52: 13560 | BI52: 3900 | BK52: 6220 | BP52: 1320 | BQ52: 380 | BR52: 200 | BS52: 16800 | BT52: 24180 | BV52: 118480 | BW52: 530 | BX52: 29480 | BZ52: 176540 | CC52: 288300 | CD52: 140960 | CE52: 5435184 | CF52: 1.42124414 | CG52: 0.4145850427 | CH52: 1.006659098 | CJ52: 2025-09-30T12:59:29
A53: 51 | B53: F210 | C53: MILITELLO ROSMARINO | D53: 1178 | E53: 46570 | U53: 90862 | V53: 137432 | W53: 0.66114151 | AA53: 13020 | AF53: 20050 | AW53: 9930 | AY53: 42960 | AZ53: 3472 | BH53: 290 | BS53: 230 | BT53: 320 | CD53: 590 | CE53: 90862 | CF53: 0.6445609658 | CG53: 0.2184149556 | CH53: 0.4261460102 | CJ53: 2025-08-19T11:34:16
A54: 52 | B54: F242 | C54: MIRTO | D54: 862 | E54: 15840 | U54: 134534 | V54: 150374 | W54: 0.8946626411 | AA54: 19400 | AF54: 23520 | AW54: 22440 | AY54: 61440 | AZ54: 3424 | BH54: 400 | BS54: 360 | BT54: 590 | CD54: 2960 | CE54: 134534 | CF54: 0.9637999769 | CG54: 0.101524144 | CH54: 0.8622758329 | CJ54: 2025-08-19T12:42:38
A55: 53 | B55: F251 | C55: MISTRETTA | D55: 4228 | E55: 204640 | R55: 6070 | U55: 530374 | V55: 741084 | W55: 0.715673257 | Z55: 37060 | AA55: 54040 | AF55: 83520 | AW55: 44920 | AY55: 228430 | AZ55: 14194 | BH55: 3500 | BS55: 3180 | BZ55: 7330 | CD55: 54200 | CE55: 530374 | CF55: 0.9683979991 | CG55: 0.2674095872 | CH55: 0.6930565501 | CJ55: 2025-08-19T12:45:13
A56: 54 | B56: F277 | C56: MOJO ALCANTARA | D56: 687 | E56: 42320 | U56: 46620 | V56: 88940 | W56: 0.5241736002 | AA56: 8100 | AF56: 9720 | AW56: 6040 | AY56: 22760 | CE56: 46620 | CF56: 0.7152565 | CG56: 0.3403379253 | CH56: 0.3749185746 | CJ56: 2025-10-07T13:21:38
A57: 55 | B57: F359 | C57: MONFORTE S. GIORGIO | D57: 2434 | E57: 137820 | U57: 288802 | V57: 426622 | W57: 0.6769505558 | X57: 9402 | AE57: 42140 | AF57: 37720 | AW57: 42960 | AY57: 140920 | AZ57: 4270 | BH57: 820 | BS57: 580 | BT57: 1740 | CD57: 8250 | CE57: 288802 | CF57: 0.9683761809 | CG57: 0.3128333871 | CH57: 0.6555427938 | CJ57: 2025-10-02T10:51:42
A58: 56 | B58: F368 | C58: MONGIUFFI MELIA | D58: 513 | E58: 23640 | U58: 45400 | V58: 69040 | W58: 0.657589803 | AE58: 9070 | AF58: 7520 | AW58: 7350 | AY58: 21460 | CE58: 45400 | CF58: 0.7435408657 | CG58: 0.2545959743 | CH58: 0.4889448914 | CJ58: 2025-10-17T14:28:24
A59: 57 | B59: F395 | C59: MONTAGNAREALE | D59: 1352 | E59: 27080 | U59: 122970 | V59: 150050 | W59: 0.8195268244 | AE59: 21380 | AF59: 21280 | AW59: 18020 | AY59: 42970 | AZ59: 1260 | BV59: 2760 | BX59: 2800 | CC59: 3280 | CD59: 9220 | CE59: 122970 | CF59: 0.6131697669 | CG59: 0.110660695 | CH59: 0.5025090719 | CJ59: 2025-10-02T11:06:32
A60: 58 | B60: F400 | C60: MONTALBANO ELICONA | D60: 2117 | E60: 96200 | U60: 200221 | V60: 296421 | W60: 0.6754615901 | X60: 18000 | AE60: 34080 | AF60: 30860 | AW60: 20840 | AY60: 81760 | AZ60: 4981 | BH60: 400 | BP60: 100 | BR60: 20 | CD60: 9180 | CE60: 200221 | CF60: 0.7735876631 | CG60: 0.2510589101 | CH60: 0.522528753 | CJ60: 2025-08-19T12:47:48
A61: 59 | B61: F772 | C61: MOTTA CAMASTRA | D61: 768 | E61: 37780 | U61: 96500 | V61: 134280 | W61: 0.718647602 | Z61: 11400 | AE61: 21740 | AF61: 20580 | AY61: 37560 | CD61: 5220 | CE61: 96500 | CF61: 0.9659875691 | CG61: 0.271782919 | CH61: 0.6942046501 | CJ61: 2025-10-14T11:50:00
A62: 60 | B62: F773 | C62: MOTTA D'AFFERMO | D62: 646 | E62: 0.1 | U62: 61934 | V62: 61934.1 | W62: 0.9999983854 | X62: 3065 | Y62: 30 | Z62: 1500 | AE62: 12720 | AF62: 11380 | AW62: 6050 | AY62: 20840 | AZ62: 2029 | BH62: 360 | BP62: 20 | BR62: 10 | BS62: 250 | BV62: 1920 | BW62: 1760 | CE62: 61934 | CF62: 0.5296862973 | CG62: 8.552417769e-07 | CH62: 0.5296854421 | CJ62: 2025-08-19T12:52:00
A63: 61 | B63: F848 | C63: NASO | D63: 3377 | E63: 104750 | N63: 159 | O63: 11400 | Q63: 2700 | U63: 416421 | V63: 521171 | W63: 0.7990103056 | X63: 33500 | Y63: 30 | AA63: 57330 | AF63: 68630 | AV63: 650 | AW63: 61510 | AY63: 149608 | AZ63: 9272 | BP63: 131 | BT63: 8220 | BV63: 430 | BW63: 7420 | CD63: 19690 | CE63: 416421 | CF63: 0.8526496269 | CG63: 0.1713737879 | CH63: 0.681275839 | CJ63: 2025-08-19T12:58:28
A64: 62 | B64: F901 | C64: NIZZA DI SICILIA | D64: 3483 | E64: 167380 | U64: 423975 | V64: 591355 | W64: 0.7169551285 | Y64: 355 | AE64: 55910 | AF64: 48740 | AW64: 51650 | AY64: 210650 | BP64: 30 | BT64: 150 | BZ64: 25820 | CC64: 3620 | CD64: 27050 | CE64: 423975 | CF64: 0.9380289107 | CG64: 0.2655042725 | CH64: 0.6725246382 | CJ64: 2025-10-30T09:58:51
A65: 63 | B65: F951 | C65: NOVARA DI SICILIA | D65: 1074 | E65: 59860 | U65: 163270 | V65: 223130 | W65: 0.7317258997 | X65: 8040 | AE65: 15860 | AF65: 17100 | AW65: 20980 | AY65: 71540 | AZ65: 4550 | BZ65: 12000 | CD65: 13200 | CE65: 163270 | CF65: 1.147823492 | CG65: 0.3079313148 | CH65: 0.8398921777 | CJ65: 2025-08-20T07:45:16
A66: 64 | B66: G036 | C66: OLIVERI | D66: 2204 | E66: 120660 | U66: 543528 | V66: 664188 | W66: 0.8183345679 | X66: 12708 | Z66: 19440 | AE66: 58700 | AF66: 47360 | AV66: 134860 | AW66: 26660 | AY66: 144660 | BV66: 13320 | BZ66: 17120 | CC66: 13500 | CD66: 55200 | CE66: 543528 | CF66: 1.664948712 | CG66: 0.3024636272 | CH66: 1.362485085 | CJ66: 2025-08-20T07:47:02
A67: 65 | B67: G209 | C67: PACE DEL MELA | D67: 5969 | E67: 399900 | U67: 810162 | V67: =IF(E67=0,"",SUM(U67,E67,R67,S67,T67)) -> 1210062 | W67: =IFERROR(IF(E67<>0,IF(U67=0,0,(U67/V67*100)/100),IF(U67=0,"","")),0) -> 0.6695210659 | X67: 31560 | AE67: 109440 | AF67: 77280 | AW67: 119400 | AY67: 336850 | BH67: 5060 | BP67: 260 | BS67: 6000 | BT67: 11640 | BV67: 29420 | BW67: 5087 | BX67: 2165 | BZ67: 28560 | CD67: 47440 | CE67: 810162 | CF67: =IF(SUM(E67)=0,"",V67/D67/181) -> 1.120024362 | CG67: 0.3701444572 | CH67: =IF(SUM(Y67:CD67)=0,"",CE67/D67/181) -> 0.7498799044 | CJ67: 2025-11-04T07:48:13
A68: 66 | B68: G234 | C68: PAGLIARA | D68: 1117 | E68: 30840 | U68: =IF(CE68=0,"",CE68) -> 105300 | V68: 136140 | W68: 0.7734684883 | AE68: 17920 | AF68: 12360 | AW68: 12620 | AY68: 55140 | BZ68: 2760 | CD68: 4500 | CE68: =IF(SUM(X68:CD68)=0,"",SUM(X68:CD68)) -> 105300 | CF68: 0.6733703636 | CG68: =IF(E68=0,"",E68/D68/181) -> 0.1525396064 | CH68: 0.5208307572 | CJ68: 2025-08-20T08:01:17
A69: 67 | B69: G377 | C69: PATTI | D69: 12674 | E69: 1009060 | K69: 26040 | U69: 1854887 | V69: 2863947 | W69: 0.6476680609 | X69: 62807 | Z69: 120440 | AB69: 2780 | AE69: 267700 | AF69: 157320 | AV69: 9320 | AW69: 160440 | AY69: 876580 | AZ69: 21960 | BV69: 24260 | BX69: 7380 | BZ69: 21900 | CC69: 35320 | CD69: 86680 | CE69: 1854887 | CF69: 1.248454442 | CG69: 0.4398703746 | CH69: 0.8085840678 | CJ69: 2025-08-26T08:00:20
A70: 68 | B70: G522 | C70: PETTINEO | D70: 1238 | E70: 0.1 | K70: 1940 | U70: 133122 | V70: 133122.1 | W70: 0.9999992488 | Y70: 100 | Z70: 3680 | AE70: 17260 | AF70: 16160 | AW70: 12460 | AY70: 64480 | AZ70: 4212 | BH70: 1260 | BP70: 30 | BR70: 10 | BS70: 210 | BX70: 6920 | CD70: 6340 | CE70: 133122 | CF70: 0.5940882193 | CG70: 4.462731727e-07 | CH70: 0.594087773 | CJ70: 2025-08-20T07:53:09
A71: 69 | B71: G699 | C71: PIRAINO | D71: 3745 | E71: 167980 | U71: 511369 | V71: 679349 | W71: 0.7527338673 | X71: 25405 | Z71: 17100 | AA71: 65600 | AF71: 69990 | AW71: 68730 | AY71: 224820 | AZ71: 11964 | BH71: 30 | BI71: 380 | BP71: 160 | BS71: 270 | BT71: 960 | BV71: 6450 | BW71: 550 | BZ71: 1200 | CD71: 17760 | CE71: 511369 | CF71: 1.002218796 | CG71: 0.2478147659 | CH71: 0.7544040304 | CJ71: 2025-08-20T08:05:52
A72: 70 | B72: H151 | C72: RACCUJA | D72: 836 | E72: 31500 | U72: 80754 | V72: 112254 | W72: 0.7193863916 | Z72: 8220 | AA72: 9460 | AF72: 15020 | AY72: 39180 | AZ72: 2594 | CD72: 6280 | CE72: 80754 | CF72: 0.7418514896 | CG72: 0.2081736234 | CH72: 0.5336778662 | CJ72: 2025-08-20T08:10:53
A73: 71 | B73: H228 | C73: REITANO | D73: 715 | E73: 61020 | U73: 209820 | V73: 270840 | W73: 0.7747009304 | Z73: 16180 | AA73: 6440 | AE73: 31520 | AF73: 38700 | AY73: 85980 | BH73: 2030 | BS73: 570 | CD73: 28400 | CE73: 209820 | CF73: 2.092802225 | CG73: 0.4715063942 | CH73: 1.621295831 | CJ73: 2025-09-16T10:04:27
A74: 72 | B74: H405 | C74: ROCCAFIORITA | D74: 160 | E74: 3000 | U74: 13899 | V74: 16899 | W74: 0.8224747026 | AA74: 1940 | AW74: 1390 | AX74: 3280 | AY74: 3750 | AZ74: 1429 | BZ74: 1350 | CD74: 760 | CE74: 13899 | CF74: 0.5835290055 | CG74: 0.1035911602 | CH74: 0.4799378453 | CJ74: 2025-08-20T08:12:51
A75: 73 | B75: H418 | C75: ROCCALUMERA | D75: 4150 | E75: 200650 | U75: 698475 | V75: 899125 | W75: 0.7768385931 | X75: 80 | AA75: 610 | AE75: 85200 | AF75: 69360 | AJ75: 820 | AW75: 132340 | AY75: 240720 | AZ75: 2955 | BI75: 270 | BK75: 5340 | BP75: 180 | BV75: 58220 | BZ75: 25480 | CC75: 1580 | CD75: 75320 | CE75: 698475 | CF75: 1.196997936 | CG75: 0.2671237436 | CH75: 0.9298741929 | CJ75: 2025-10-14T11:54:24
A76: 74 | B76: H380 | C76: ROCCAVALDINA | D76: 991 | E76: 78400 | U76: 70560 | V76: 148960 | W76: 0.4736842105 | AE76: 10400 | AF76: 14140 | AW76: 11380 | AY76: 29520 | BH76: 380 | BI76: 120 | BS76: 220 | BT76: 1080 | CD76: 3320 | CE76: 70560 | CF76: 0.8304575433 | CG76: 0.4370829175 | CH76: 0.3933746258 | CJ76: 2025-08-20T10:36:35
A77: 75 | B77: H455 | C77: ROCCELLA VALDEMONE | D77: 538 | E77: 42740 | U77: 38911 | V77: 81651 | W77: 0.4765526448 | AA77: 5970 | AF77: 8640 | AW77: 2820 | AY77: 17300 | AZ77: 4181 | CE77: 38911 | CF77: 0.838495348 | CG77: 0.4389081723 | CH77: 0.3995871757 | CJ77: 2025-10-03T10:49:40
A78: 76 | B78: H479 | C78: RODI' MILICI | D78: 1952 | E78: 75600 | U78: 220250 | V78: 295850 | W78: 0.7444651006 | X78: 28020 | Z78: 3520 | AA78: 28190 | AF78: 29110 | AW78: 28850 | AY78: 91320 | AZ78: 8240 | BH78: 660 | BP78: 150 | BS78: 180 | BT78: 300 | CD78: 1710 | CE78: 220250 | CF78: 0.8373618785 | CG78: 0.2139751834 | CH78: 0.623386695 | CJ78: 2025-08-20T10:40:34
A79: 77 | B79: H519 | C79: ROMETTA | D79: 6544 | E79: 202260 | U79: 846132 | V79: 1048392 | W79: 0.8070759792 | X79: 83220 | AA79: 92770 | AC79: 8790 | AF79: 77100 | AW79: 108760 | AY79: 381320 | AZ79: 652 | BH79: 2760 | BI79: 160 | BZ79: 40480 | CD79: 50120 | CE79: 846132 | CF79: 0.8851193451 | CG79: 0.1707607829 | CH79: 0.7143585622 | CJ79: 2025-10-03T09:39:04
A80: 78 | B80: I184 | C80: S. DOMENICA VITTORIA | D80: 855 | E80: 62620 | U80: 78730 | V80: 141350 | W80: 0.5569862045 | Z80: 10680 | AE80: 15010 | AF80: 13140 | AY80: 39900 | CE80: 78730 | CF80: 0.9133792123 | CG80: 0.4046395916 | CH80: 0.5087396207 | CJ80: 2025-10-27T08:16:28
A81: 79 | B81: I370 | C81: S. STEF. DI CAMASTRA | D81: 4356 | E81: 245220 | U81: 723230 | V81: 968450 | W81: 0.7467912644 | X81: 2700 | Z81: 96700 | AA81: 31920 | AE81: 95380 | AF81: 96900 | AV81: 38320 | AW81: 10730 | AY81: 263700 | AZ81: 1130 | BH81: 5750 | BI81: 620 | BS81: 1120 | BZ81: 27960 | CD81: 50300 | CE81: 723230 | CF81: 1.228317834 | CG81: 0.3110208057 | CH81: 0.9172970285 | CJ81: 2025-08-22T10:12:52
A82: 80 | B82: I199 | C82: S. AGATA DI MILITELLO | D82: 12036 | E82: 782760 | U82: 1902354 | V82: 2685114 | W82: 0.7084816511 | X82: 56825 | Z82: 63380 | AA82: 218720 | AB82: 17420 | AF82: 237940 | AW82: 292820 | AY82: 711700 | AZ82: 5839 | BH82: 11860 | BI82: 870 | BS82: 10080 | BT82: 6680 | BV82: 177800 | BZ82: 52560 | CD82: 37860 | CE82: 1902354 | CF82: 1.232542703 | CG82: 0.3593088139 | CH82: 0.8732338895 | CJ82: 2025-08-20T10:44:32
A83: 81 | B83: I220 | C83: SANTA LUCIA DEL MELA | D83: 4378 | E83: 214900 | U83: 525975 | V83: 740875 | W83: 0.7099375738 | X83: 66078 | Z83: 34190 | AE83: 72180 | AF83: 53260 | AW83: 35100 | AY83: 209270 | AZ83: 3127 | BG83: 60 | BH83: 3880 | BI83: 150 | BS83: 2240 | BT83: 7320 | BZ83: 1200 | CD83: 37920 | CE83: 525975 | CF83: 0.934954784 | CG83: 0.271195253 | CH83: 0.663759531 | CJ83: 2025-08-21T08:12:18
A84: 82 | B84: I311 | C84: S. TERESA DI RIVA | D84: 9200 | E84: 341300 | U84: 1314027 | V84: 1655327 | W84: 0.7938171733 | X84: 37401 | Y84: 220 | Z84: 66100 | AE84: 215950 | AF84: 114770 | AW84: 213060 | AY84: 536460 | AZ84: 8646 | BG84: 180 | BH84: 1380 | BI84: 340 | BK84: 960 | BP84: 80 | BR84: 340 | BS84: 1240 | BT84: 2000 | BV84: 17600 | BW84: 13460 | BX84: 4940 | BZ84: 27120 | CC84: 12860 | CD84: 38920 | CE84: 1314027 | CF84: 0.9940709825 | CG84: 0.2049603651 | CH84: 0.7891106173 | CJ84: 2025-09-09T14:36:36
A85: 83 | B85: H842 | C85: S. FILIPPO DEL MELA | D85: 6657 | E85: 239560 | U85: 973021 | V85: 1212581 | W85: 0.8024379402 | X85: 12000 | Z85: 21350 | AE85: 153020 | AF85: 85840 | AR85: 60 | AW85: 168250 | AY85: 465680 | AZ85: 15011 | BH85: 1260 | BP85: 60 | BR85: 220 | BS85: 1710 | BT85: 4130 | BZ85: 17280 | CD85: 27150 | CE85: 973021 | CF85: 1.006360604 | CG85: 0.1988186738 | CH85: 0.8075419303 | CJ85: 2025-09-08T08:41:46
A86: 84 | B86: H850 | C86: SAN FRATELLO | D86: 3189 | E86: 114780 | U86: 288792 | V86: 403572 | W86: 0.7155897832 | AA86: 41370 | AF86: 51290 | AW86: 37930 | AY86: 136640 | AZ86: 3822 | BH86: 620 | BS86: 310 | BT86: 170 | CD86: 16640 | CE86: 288792 | CF86: 0.6991782872 | CG86: 0.1988534482 | CH86: 0.500324839 | CJ86: 2025-08-22T08:50:45
A87: 85 | B87: H982 | C87: SAN MARCO D'ALUNZIO | D87: 1793 | E87: 61090 | U87: 205264 | V87: 266354 | W87: 0.7706435796 | AA87: 24140 | AE87: 1820 | AF87: 32380 | AW87: 33480 | AY87: 78140 | AZ87: 4041 | BP87: 3 | BT87: 2000 | BX87: 17160 | CD87: 12100 | CE87: 205264 | CF87: 0.8207300952 | CG87: 0.1882397168 | CH87: 0.6324903785 | CJ87: 2025-08-21T09:26:27
A88: 86 | B88: I084 | C88: SAN PIER NICETO | D88: 2544 | E88: 174240 | U88: 273707 | V88: 447947 | W88: 0.6110254115 | X88: 62802 | AE88: 42880 | AF88: 31920 | AW88: 39320 | AY88: 84840 | AZ88: 3695 | BH88: 1350 | BI88: 200 | BS88: 550 | BT88: 1550 | CD88: 4600 | CE88: 273707 | CF88: 0.9728165503 | CG88: 0.3784009173 | CH88: 0.5944156329 | CJ88: 2025-08-21T09:47:00
A89: 87 | B89: I086 | C89: SAN PIERO PATTI | D89: 2586 | E89: 125800 | U89: 428178 | V89: 553978 | W89: 0.7729151699 | X89: 156178 | Z89: 9760 | AE89: 37620 | AF89: 36660 | AW89: 33500 | AY89: 99780 | BV89: 15300 | CC89: 10240 | CD89: 29140 | CE89: 428178 | CF89: 1.183546765 | CG89: 0.268765516 | CH89: 0.9147812488 | CJ89: 2025-08-21T09:52:39
A90: 88 | B90: I147 | C90: S. SALVAT. DI FITALIA | D90: 1112 | E90: 28150 | J90: 100 | K90: 800 | U90: 109668 | V90: 137818 | W90: 0.7957451131 | AA90: 14420 | AF90: 16860 | AW90: 13980 | AY90: 52260 | AZ90: 3258 | BS90: 420 | BZ90: 3600 | CD90: 4870 | CE90: 109668 | CF90: 0.6847350849 | CG90: 0.1398604873 | CH90: 0.5448745976 | CJ90: 2025-08-22T08:59:16
A91: 89 | B91: I328 | C91: SAN TEODORO | D91: 1210 | E91: 33640 | U91: 102455 | V91: 136095 | W91: 0.7528197215 | AA91: 3380 | AF91: 20860 | AW91: 17280 | AY91: 53860 | AZ91: 1215 | CD91: 5860 | CE91: 102455 | CF91: 0.6214099813 | CG91: 0.1536002922 | CH91: 0.4678096891 | CJ91: 2025-08-22T10:17:04
A92: 90 | B92: I283 | C92: S. ANGELO DI BROLO | D92: 2680 | E92: 71260 | U92: 365879 | V92: 437139 | W92: 0.8369854897 | X92: 98400 | Z92: 7250 | AA92: 41690 | AF92: 49790 | AW92: 40800 | AY92: 89860 | AZ92: 8349 | BH92: 1620 | BI92: 350 | BP92: 80 | BR92: 110 | BS92: 620 | BT92: 1870 | CD92: 25090 | CE92: 365879 | CF92: 0.9011688794 | CG92: 0.1469036035 | CH92: 0.7542652758 | CJ92: 2025-08-20T12:14:52
A93: 91 | B93: I215 | C93: S. ALESSIO SICULO | D93: 1549 | E93: 181620 | U93: 230474 | V93: 412094 | W93: 0.559275311 | AE93: 36500 | AF93: 27870 | AW93: 45480 | AY93: 110544 | BZ93: 1560 | CD93: 8520 | CE93: 230474 | CF93: 1.469827263 | CG93: 0.6477891636 | CH93: 0.8220380998 | CJ93: 2025-08-20T12:11:49
A94: 92 | B94: I254 | C94: SANTA MARINA SALINA | D94: 852 | E94: 102880 | U94: 133400 | V94: 236280 | W94: 0.5645843914 | AA94: 14500 | AF94: 37720 | AW94: 40180 | BH94: 1900 | BS94: 1200 | BT94: 4140 | BV94: 480 | BX94: 1040 | CD94: 32240 | CE94: 133400 | CF94: 1.532176484 | CG94: 0.6671335564 | CH94: 0.8650429279 | CJ94: 2025-08-21T09:45:42
A95: 93 | B95: I420 | C95: SAPONARA | D95: 3658 | E95: 136120 | U95: 535045 | V95: 671165 | W95: 0.7971884708 | AA95: 65330 | AC95: 5170 | AF95: 48960 | AW95: 101500 | AY95: 212940 | AZ95: 785 | BH95: 560 | BP95: 220 | BV95: 19840 | BZ95: 67460 | CD95: 12280 | CE95: 535045 | CF95: 1.013694347 | CG95: 0.2055889007 | CH95: 0.8081054466 | CJ95: 2025-08-22T10:19:42
A96: 94 | B96: I477 | C96: SAVOCA | D96: 1751 | E96: 89480 | U96: 178310 | V96: 267790 | W96: 0.665857575 | AE96: 30620 | AF96: 25890 | AW96: 26500 | AY96: 82560 | CD96: 12740 | CE96: 178310 | CF96: 0.8449473229 | CG96: 0.2823327475 | CH96: 0.5626145754 | CJ96: 2025-10-27T08:17:36
A97: 95 | B97: I492 | C97: SCALETTA ZANCLEA | D97: 1842 | E97: 107800 | U97: 213852 | V97: 321652 | W97: 0.6648551851 | AE97: 31480 | AF97: 30210 | AJ97: 200 | AW97: 39010 | AY97: 94000 | AZ97: 6092 | BH97: 180 | BI97: 100 | BK97: 160 | CD97: 12420 | CE97: 213852 | CF97: 0.96475726 | CG97: 0.3233333933 | CH97: 0.6414238667 | CJ97: 2025-08-22T10:23:19
A98: 96 | B98: I747 | C98: SINAGRA | D98: 2442 | E98: 17900 | U98: 396130 | V98: 414030 | W98: 0.9567664179 | Y98: 80 | AA98: 48180 | AB98: 9440 | AF98: 60480 | AW98: 47740 | AY98: 172900 | AZ98: 12690 | BI98: 100 | BP98: 80 | BR98: 80 | CC98: 500 | CD98: 43860 | CE98: 396130 | CF98: 0.9367152185 | CG98: 0.04049755431 | CH98: 0.8962176642 | CJ98: 2025-08-22T10:30:59
A99: 97 | B99: I881 | C99: SPADAFORA | D99: 4637 | E99: 288340 | S99: 7965 | U99: 587967 | V99: =IF(E99=0,"",SUM(U99,E99,R99,S99,T99)) -> 884272 | W99: =IFERROR(IF(E99<>0,IF(U99=0,0,(U99/V99*100)/100),IF(U99=0,"","")),0) -> 0.664916451 | Z99: 13690 | AA99: 73200 | AC99: 10030 | AF99: 73430 | AJ99: 2940 | AW99: 90380 | AY99: 257360 | AZ99: 9862 | BH99: 1820 | BV99: 3860 | BW99: 9580 | CD99: 41815 | CE99: 587967 | CF99: =IF(SUM(E99)=0,"",V99/D99/181) -> 1.053586513 | CG99: 0.3435494229 | CH99: =IF(SUM(Y99:CD99)=0,"",CE99/D99/181) -> 0.7005470054 | CJ99: 2025-09-08T08:57:37
A100: 98 | B100: L042 | C100: TAORMINA | D100: 10433 | E100: 1186420 | I100: 6850 | R100: 136520 | U100: 3154050 | V100: 4476990 | W100: 0.7045023554 | Z100: 241670 | AA100: 4440 | AE100: 418730 | AF100: 629680 | AJ100: 500 | AW100: 303000 | AY100: 1313040 | BH100: 3880 | BI100: 150 | BP100: 171 | BR100: 37 | BS100: 3100 | BT100: 1340 | BV100: 9842 | BW100: 2010 | BZ100: 71620 | CD100: 150840 | CE100: 3154050 | CF100: 2.370818689 | CG100: 0.6282762992 | CH100: 1.67024735 | CJ100: 2025-08-27T12:42:24
A101: 99 | B101: M210 | C101: TERME VIGLIATORE | D101: 7308 | E101: 402520 | U101: 925184 | V101: 1327704 | W101: 0.6968300163 | X101: 25800 | Z101: 90470 | AE101: 141690 | AF101: 101464 | AH101: 320 | AW101: 87680 | AY101: 421060 | AZ101: 880 | BG101: 10 | BH101: 2540 | BS101: 640 | BT101: 1380 | BV101: 3140 | BX101: 1010 | BZ101: 31300 | CC101: 6900 | CD101: 8900 | CE101: 925184 | CF101: 1.003746745 | CG101: 0.3043058844 | CH101: 0.699440861 | CJ101: 2025-08-22T10:33:54
A102: 100 | B102: L271 | C102: TORREGROTTA | D102: 7243 | E102: 514720 | R102: 11420 | U102: 837118 | V102: 1363258 | W102: 0.6140569137 | X102: 27478 | Z102: 64460 | AE102: 123540 | AF102: 86760 | AW102: 123380 | AY102: 367080 | AZ102: 1920 | BH102: 1160 | BI102: 220 | BS102: 280 | BT102: 1300 | BW102: 160 | BZ102: 27660 | CD102: 11720 | CE102: 837118 | CF102: 1.039874659 | CG102: 0.3926214146 | CH102: 0.6385422237 | CJ102: 2025-10-07T11:27:12
A103: 101 | B103: M286 | C103: TORRENOVA | D103: 4486 | E103: 169940 | U103: 831630 | V103: 1001570 | W103: 0.8303263876 | Z103: 75420 | AA103: 126080 | AB103: 4400 | AE103: 48120 | AF103: 83240 | AW103: 118140 | AY103: 298210 | AZ103: 800 | BV103: 28400 | CD103: 48820 | CE103: 831630 | CF103: 1.233512241 | CG103: 0.2092944778 | CH103: 1.024217763 | CJ103: 2025-08-22T10:38:51
A104: 102 | B104: L308 | C104: TORTORICI | D104: 5523 | E104: 163680 | U104: 412106 | V104: 575786 | W104: 0.7157277183 | AA104: 79860 | AF104: 85920 | AW104: 76570 | AY104: 146610 | AZ104: 12696 | BP104: 100 | BT104: 4400 | CD104: 5950 | CE104: 412106 | CF104: 0.5759801053 | CG104: 0.1637351788 | CH104: 0.4122449265 | CJ104: 2025-08-22T10:41:54
A105: 103 | B105: L431 | C105: TRIPI | D105: 717 | E105: 20460 | U105: 104849 | V105: 125309 | W105: 0.8367236192 | X105: 25089 | AE105: 10240 | AF105: 11800 | AW105: 8780 | AY105: 46320 | AZ105: 1940 | CD105: 680 | CE105: 104849 | CF105: 0.9655717115 | CG105: 0.1576550544 | CH105: 0.807916657 | CJ105: 2025-09-18T08:46:30
A106: 104 | B106: L478 | C106: TUSA | D106: 2480 | E106: 146880 | U106: 323266 | V106: 470146 | W106: 0.6875864093 | X106: 12026 | AA106: 29860 | AF106: 61480 | AW106: 42720 | AY106: 140120 | BI106: 860 | CD106: 36200 | CE106: 323266 | CF106: 1.047375691 | CG106: 0.3272144003 | CH106: 0.7201612903 | CJ106: 2025-09-30T09:31:33
A107: 105 | B107: L482 | C107: UCRIA | D107: 859 | E107: 22880 | U107: 114526 | V107: 137406 | W107: 0.8334861651 | X107: 33800 | AA107: 10080 | AF107: 15570 | AW107: 10800 | AY107: 35030 | AZ107: 2890 | BP107: 46 | BT107: 1300 | BV107: 150 | BW107: 1170 | BZ107: 330 | CD107: 3360 | CE107: 114526 | CF107: 0.8837592215 | CG107: 0.1471581371 | CH107: 0.7366010844 | CJ107: 2025-08-22T10:47:31
A108: 106 | B108: L561 | C108: VALDINA | D108: 1234 | E108: 107000 | U108: 105880 | V108: 212880 | W108: 0.49736941 | AE108: 13820 | AF108: 18860 | AW108: 17680 | AY108: 50500 | BH108: 220 | BS108: 320 | BT108: 800 | CD108: 3680 | CE108: 105880 | CF108: 0.953105832 | CG108: 0.4790601467 | CH108: 0.4740456853 | CJ108: 2025-08-22T11:22:36
A109: 107 | B109: L735 | C109: VENETICO | D109: 3922 | E109: 325080 | U109: 450238 | V109: 775318 | W109: 0.580713978 | X109: 7398 | Z109: 7980 | AA109: 65520 | AE109: 2620 | AF109: 54980 | AW109: 80020 | AY109: 208900 | BH109: 560 | BS109: 40 | BT109: 100 | CD109: 22120 | CE109: 450238 | CF109: 1.0921787 | CG109: 0.4579352625 | CH109: 0.6342434376 | CJ109: 2025-08-18T10:23:23
A110: 108 | B110: L950 | C110: VILLAFRANCA TIRRENA | D110: 7789 | E110: 500000 | U110: 1318897 | V110: 1818897 | W110: 0.7251081287 | X110: 9360 | Z110: 150520 | AA110: 136870 | AF110: 120060 | AW110: 135020 | AY110: 471680 | AZ110: 3280 | BH110: 3920 | BI110: 1840 | BR110: 27 | BS110: 2380 | BT110: 1660 | BV110: 80960 | BZ110: 127020 | CC110: 28040 | CD110: 46260 | CE110: 1318897 | CF110: 1.29017264 | CG110: 0.3546579714 | CH110: 0.935514669 | CJ110: 2025-08-22T11:33:37
C111: T O T A L I | D111: =SUM(D3:D110) -> 595948 | E111: =SUM(E3:E110) -> 42191669.2 | F111: 0 | G111: 0 | H111: 480 | I111: 6850 | J111: 100 | K111: 33040 | L111: 0 | M111: =SUM(M3:M110) -> 0 | N111: 159 | O111: 11400 | P111: =SUM(P3:P110) -> 0 | Q111: =SUM(Q3:Q110) -> 2700 | R111: =SUM(R3:R110) -> 154010 | S111: =SUM(S3:S110) -> 17490 | T111: =SUM(T3:T110) -> 0 | U111: 86610599 | V111: =SUM(V3:V110) -> 128973768.2 | W111: =IF(CE111=0,"",(U111/V111*100)/100) -> 0.6715365474 | X111: =SUM(X3:X110) -> 1342215 | Y111: =SUM(Y3:Y110) -> 3379 | Z111: 6104660 | AA111: 3505500 | AB111: 51360 | AC111: 40090 | AD111: 0 | AE111: 7100600 | AF111: 10249984 | AG111: 0 | AH111: 970 | AI111: 440 | AJ111: 43720 | AK111: 0 | AL111: 0 | AM111: 0 | AN111: 0 | AO111: 0 | AP111: 0 | AQ111: 0 | AR111: 830 | AS111: 0 | AT111: 0 | AU111: 0 | AV111: 587140 | AW111: 9409534 | AX111: 34980 | AY111: 35556810 | AZ111: 662119 | BA111: 33945 | BB111: 0 | BC111: 0 | BD111: 0 | BE111: 0 | BF111: 0 | BG111: 2505 | BH111: 386950 | BI111: 33845 | BJ111: 990 | BK111: 32710 | BL111: 0 | BM111: 0 | BN111: 0 | BO111: 10 | BP111: 15155 | BQ111: 13328 | BR111: 3045 | BS111: 205180 | BT111: 974690 | BU111: 0 | BV111: 2516102 | BW111: 109458 | BX111: 401180 | BY111: 0 | BZ111: 2975610 | CA111: 0 | CB111: 0 | CC111: 933080 | CD111: 3278485 | CE111: =SUM(CE3:CE110) -> 86610599

Sheet Riep. Dati RSU e RD 1 Sem. 2025
B3: CITTA' METROPOLITANA DI MESSINA
B4: DATI RIFIUTI SOLIDI URBANI E RACCOLTA DIFFERENZIATA
B5: PRIMO SEMESTRE ANNO 2025
A6: ='Dati Generali CER 1 Sem. 2025'!A2 -> 108 | B6: COMUNE | C6: QUANTITA' (KG) | D6: QUANTITA' (KG) | E6: PERCENTUALE | F6: RSU+RSA+RD | G6: RSU+RSA | H6: R.D. | I6: ='Dati Generali CER 1 Sem. 2025'!D2 -> ABITANTI al 30/06/2025
C7: R.S.U. (Cod.200301) | D7: RACCOLTA | E7: RACCOLTA | F7: R.T. (Kg.) | G7: 200301 (kg.) | H7: (Kg.)
C8: PRODOTTI | D8: DIFFERENZIATA | E8: DIFFERENZIATA | F8: Pro Capite/g | G8: RI Pro Capite/g | H8: Pro Capite/g
B9: CTRL + "x" per ordinare in % | D9: CTRL + "h" per Alfabetico
A10: 1 | B10: ='Dati Generali CER 1 Sem. 2025'!C3 -> ACQUEDOLCI | C10: =IF('Dati Generali CER 1 Sem. 2025'!E3="","",SUM('Dati Generali CER 1 Sem. 2025'!E3+'Dati Generali CER 1 Sem. 2025'!R3+'Dati Generali CER 1 Sem. 2025'!S3+'Dati Generali CER 1 Sem. 2025'!T3)) -> 170760 | D10: =IF(C10="","",'Dati Generali CER 1 Sem. 2025'!CE3) -> 775149 | E10: ='Dati Generali CER 1 Sem. 2025'!W3 -> 0.8194752349 | F10: =IF('Dati Generali CER 1 Sem. 2025'!CF3="","",'Dati Generali CER 1 Sem. 2025'!CF3) -> 0.9477723204 | G10: =IF('Dati Generali CER 1 Sem. 2025'!CG3="","",'Dati Generali CER 1 Sem. 2025'!CG3) -> 0.1710963755 | H10: =IF('Dati Generali CER 1 Sem. 2025'!CH3="","",'Dati Generali CER 1 Sem. 2025'!CH3) -> 0.7766759449 | I10: ='Dati Generali CER 1 Sem. 2025'!D3 -> 5514 | J10: =IF('Dati Generali CER 1 Sem. 2025'!CJ3="","",'Dati Generali CER 1 Sem. 2025'!CJ3) -> 2025-08-18T12:04:03
A11: 2 | B11: ='Dati Generali CER 1 Sem. 2025'!C4 -> ALCARA LI FUSI | C11: =IF('Dati Generali CER 1 Sem. 2025'!E4="","",SUM('Dati Generali CER 1 Sem. 2025'!E4+'Dati Generali CER 1 Sem. 2025'!R4+'Dati Generali CER 1 Sem. 2025'!S4+'Dati Generali CER 1 Sem. 2025'!T4)) -> 38870 | D11: =IF(C11="","",'Dati Generali CER 1 Sem. 2025'!CE4) -> 143540 | E11: ='Dati Generali CER 1 Sem. 2025'!W4 -> 0.7869086125 | F11: =IF('Dati Generali CER 1 Sem. 2025'!CF4="","",'Dati Generali CER 1 Sem. 2025'!CF4) -> 0.6236324599 | G11: =IF('Dati Generali CER 1 Sem. 2025'!CG4="","",'Dati Generali CER 1 Sem. 2025'!CG4) -> 0.1328907062 | H11: =IF('Dati Generali CER 1 Sem. 2025'!CH4="","",'Dati Generali CER 1 Sem. 2025'!CH4) -> 0.4907417537 | I11: ='Dati Generali CER 1 Sem. 2025'!D4 -> 1616 | J11: =IF('Dati Generali CER 1 Sem. 2025'!CJ4="","",'Dati Generali CER 1 Sem. 2025'!CJ4) -> 2025-10-02T10:18:21
A12: 3 | B12: ='Dati Generali CER 1 Sem. 2025'!C5 -> ALI' | C12: =IF('Dati Generali CER 1 Sem. 2025'!E5="","",SUM('Dati Generali CER 1 Sem. 2025'!E5+'Dati Generali CER 1 Sem. 2025'!R5+'Dati Generali CER 1 Sem. 2025'!S5+'Dati Generali CER 1 Sem. 2025'!T5)) -> 21620 | D12: =IF(C12="","",'Dati Generali CER 1 Sem. 2025'!CE5) -> 41922 | E12: ='Dati Generali CER 1 Sem. 2025'!W5 -> 0.6597526046 | F12: =IF('Dati Generali CER 1 Sem. 2025'!CF5="","",'Dati Generali CER 1 Sem. 2025'!CF5) -> 0.5717602174 | G12: =IF('Dati Generali CER 1 Sem. 2025'!CG5="","",'Dati Generali CER 1 Sem. 2025'!CG5) -> 0.1945399248 | H12: =IF('Dati Generali CER 1 Sem. 2025'!CH5="","",'Dati Generali CER 1 Sem. 2025'!CH5) -> 0.3772202926 | I12: ='Dati Generali CER 1 Sem. 2025'!D5 -> 614 | J12: =IF('Dati Generali CER 1 Sem. 2025'!CJ5="","",'Dati Generali CER 1 Sem. 2025'!CJ5) -> 2025-08-18T12:07:46
A13: 4 | B13: ='Dati Generali CER 1 Sem. 2025'!C6 -> ALI' TERME | C13: =IF('Dati Generali CER 1 Sem. 2025'!E6="","",SUM('Dati Generali CER 1 Sem. 2025'!E6+'Dati Generali CER 1 Sem. 2025'!R6+'Dati Generali CER 1 Sem. 2025'!S6+'Dati Generali CER 1 Sem. 2025'!T6)) -> 103260 | D13: =IF(C13="","",'Dati Generali CER 1 Sem. 2025'!CE6) -> 349980 | E13: ='Dati Generali CER 1 Sem. 2025'!W6 -> 0.7721736828 | F13: =IF('Dati Generali CER 1 Sem. 2025'!CF6="","",'Dati Generali CER 1 Sem. 2025'!CF6) -> 1.087788183 | G13: =IF('Dati Generali CER 1 Sem. 2025'!CG6="","",'Dati Generali CER 1 Sem. 2025'!CG6) -> 0.2478267757 | H13: =IF('Dati Generali CER 1 Sem. 2025'!CH6="","",'Dati Generali CER 1 Sem. 2025'!CH6) -> 0.8399614076 | I13: ='Dati Generali CER 1 Sem. 2025'!D6 -> 2302 | J13: =IF('Dati Generali CER 1 Sem. 2025'!CJ6="","",'Dati Generali CER 1 Sem. 2025'!CJ6) -> 2025-09-08T08:11:23
A14: 5 | B14: ='Dati Generali CER 1 Sem. 2025'!C7 -> ANTILLO | C14: =IF('Dati Generali CER 1 Sem. 2025'!E7="","",SUM('Dati Generali CER 1 Sem. 2025'!E7+'Dati Generali CER 1 Sem. 2025'!R7+'Dati Generali CER 1 Sem. 2025'!S7+'Dati Generali CER 1 Sem. 2025'!T7)) -> 13160 | D14: =IF(C14="","",'Dati Generali CER 1 Sem. 2025'!CE7) -> 78536 | E14: ='Dati Generali CER 1 Sem. 2025'!W7 -> 0.8564822893 | F14: =IF('Dati Generali CER 1 Sem. 2025'!CF7="","",'Dati Generali CER 1 Sem. 2025'!CF7) -> 0.6486654735 | G14: =IF('Dati Generali CER 1 Sem. 2025'!CG7="","",'Dati Generali CER 1 Sem. 2025'!CG7) -> 0.09309498376 | H14: =IF('Dati Generali CER 1 Sem. 2025'!CH7="","",'Dati Generali CER 1 Sem. 2025'!CH7) -> 0.5555704897 | I14: ='Dati Generali CER 1 Sem. 2025'!D7 -> 781 | J14: =IF('Dati Generali CER 1 Sem. 2025'!CJ7="","",'Dati Generali CER 1 Sem. 2025'!CJ7) -> 2025-08-18T12:12:28
A15: 6 | B15: ='Dati Generali CER 1 Sem. 2025'!C8 -> BARCELLONA P.G. | C15: =IF('Dati Generali CER 1 Sem. 2025'!E8="","",SUM('Dati Generali CER 1 Sem. 2025'!E8+'Dati Generali CER 1 Sem. 2025'!R8+'Dati Generali CER 1 Sem. 2025'!S8+'Dati Generali CER 1 Sem. 2025'!T8)) -> 2546560 | D15: =IF(C15="","",'Dati Generali CER 1 Sem. 2025'!CE8) -> 5814685 | E15: ='Dati Generali CER 1 Sem. 2025'!W8 -> 0.695432917 | F15: =IF('Dati Generali CER 1 Sem. 2025'!CF8="","",'Dati Generali CER 1 Sem. 2025'!CF8) -> 1.161313383 | G15: =IF('Dati Generali CER 1 Sem. 2025'!CG8="","",'Dati Generali CER 1 Sem. 2025'!CG8) -> 0.3536978296 | H15: =IF('Dati Generali CER 1 Sem. 2025'!CH8="","",'Dati Generali CER 1 Sem. 2025'!CH8) -> 0.8076155536 | I15: ='Dati Generali CER 1 Sem. 2025'!D8 -> 39778 | J15: =IF('Dati Generali CER 1 Sem. 2025'!CJ8="","",'Dati Generali CER 1 Sem. 2025'!CJ8) -> 2025-08-19T07:43:11
A16: 7 | B16: ='Dati Generali CER 1 Sem. 2025'!C9 -> BASICO' | C16: =IF('Dati Generali CER 1 Sem. 2025'!E9="","",SUM('Dati Generali CER 1 Sem. 2025'!E9+'Dati Generali CER 1 Sem. 2025'!R9+'Dati Generali CER 1 Sem. 2025'!S9+'Dati Generali CER 1 Sem. 2025'!T9)) -> 60660 | D16: =IF(C16="","",'Dati Generali CER 1 Sem. 2025'!CE9) -> 58270 | E16: ='Dati Generali CER 1 Sem. 2025'!W9 -> 0.4899520726 | F16: =IF('Dati Generali CER 1 Sem. 2025'!CF9="","",'Dati Generali CER 1 Sem. 2025'!CF9) -> 1.003163089 | G16: =IF('Dati Generali CER 1 Sem. 2025'!CG9="","",'Dati Generali CER 1 Sem. 2025'!CG9) -> 0.5116612543 | H16: =IF('Dati Generali CER 1 Sem. 2025'!CH9="","",'Dati Generali CER 1 Sem. 2025'!CH9) -> 0.4915018346 | I16: ='Dati Generali CER 1 Sem. 2025'!D9 -> 655 | J16: =IF('Dati Generali CER 1 Sem. 2025'!CJ9="","",'Dati Generali CER 1 Sem. 2025'!CJ9) -> 2025-08-19T07:47:31
A17: 8 | B17: ='Dati Generali CER 1 Sem. 2025'!C10 -> BROLO | C17: =IF('Dati Generali CER 1 Sem. 2025'!E10="","",SUM('Dati Generali CER 1 Sem. 2025'!E10+'Dati Generali CER 1 Sem. 2025'!R10+'Dati Generali CER 1 Sem. 2025'!S10+'Dati Generali CER 1 Sem. 2025'!T10)) -> 358660 | D17: =IF(C17="","",'Dati Generali CER 1 Sem. 2025'!CE10) -> 924720 | E17: ='Dati Generali CER 1 Sem. 2025'!W10 -> 0.7205348377 | F17: =IF('Dati Generali CER 1 Sem. 2025'!CF10="","",'Dati Generali CER 1 Sem. 2025'!CF10) -> 1.236355229 | G17: =IF('Dati Generali CER 1 Sem. 2025'!CG10="","",'Dati Generali CER 1 Sem. 2025'!CG10) -> 0.3455182147 | H17: =IF('Dati Generali CER 1 Sem. 2025'!CH10="","",'Dati Generali CER 1 Sem. 2025'!CH10) -> 0.8908370142 | I17: ='Dati Generali CER 1 Sem. 2025'!D10 -> 5735 | J17: =IF('Dati Generali CER 1 Sem. 2025'!CJ10="","",'Dati Generali CER 1 Sem. 2025'!CJ10) -> 2025-08-19T07:49:54
A18: 9 | B18: ='Dati Generali CER 1 Sem. 2025'!C11 -> CAPIZZI | C18: =IF('Dati Generali CER 1 Sem. 2025'!E11="","",SUM('Dati Generali CER 1 Sem. 2025'!E11+'Dati Generali CER 1 Sem. 2025'!R11+'Dati Generali CER 1 Sem. 2025'!S11+'Dati Generali CER 1 Sem. 2025'!T11)) -> 131430 | D18: =IF(C18="","",'Dati Generali CER 1 Sem. 2025'!CE11) -> 222280 | E18: ='Dati Generali CER 1 Sem. 2025'!W11 -> 0.6284244155 | F18: =IF('Dati Generali CER 1 Sem. 2025'!CF11="","",'Dati Generali CER 1 Sem. 2025'!CF11) -> 0.7059967106 | G18: =IF('Dati Generali CER 1 Sem. 2025'!CG11="","",'Dati Generali CER 1 Sem. 2025'!CG11) -> 0.2623311404 | H18: =IF('Dati Generali CER 1 Sem. 2025'!CH11="","",'Dati Generali CER 1 Sem. 2025'!CH11) -> 0.4436655702 | I18: ='Dati Generali CER 1 Sem. 2025'!D11 -> 2768 | J18: =IF('Dati Generali CER 1 Sem. 2025'!CJ11="","",'Dati Generali CER 1 Sem. 2025'!CJ11) -> 2025-08-19T08:25:56
A19: 10 | B19: ='Dati Generali CER 1 Sem. 2025'!C12 -> CAPO D'ORLANDO | C19: =IF('Dati Generali CER 1 Sem. 2025'!E12="","",SUM('Dati Generali CER 1 Sem. 2025'!E12+'Dati Generali CER 1 Sem. 2025'!R12+'Dati Generali CER 1 Sem. 2025'!S12+'Dati Generali CER 1 Sem. 2025'!T12)) -> 451640 | D19: =IF(C19="","",'Dati Generali CER 1 Sem. 2025'!CE12) -> 2667863 | E19: ='Dati Generali CER 1 Sem. 2025'!W12 -> 0.8552205271 | F19: =IF('Dati Generali CER 1 Sem. 2025'!CF12="","",'Dati Generali CER 1 Sem. 2025'!CF12) -> 1.319563832 | G19: =IF('Dati Generali CER 1 Sem. 2025'!CG12="","",'Dati Generali CER 1 Sem. 2025'!CG12) -> 0.191045756 | H19: =IF('Dati Generali CER 1 Sem. 2025'!CH12="","",'Dati Generali CER 1 Sem. 2025'!CH12) -> 1.128518076 | I19: ='Dati Generali CER 1 Sem. 2025'!D12 -> 13061 | J19: =IF('Dati Generali CER 1 Sem. 2025'!CJ12="","",'Dati Generali CER 1 Sem. 2025'!CJ12) -> 2025-08-19T08:39:01
A20: 11 | B20: ='Dati Generali CER 1 Sem. 2025'!C13 -> CAPRILEONE | C20: =IF('Dati Generali CER 1 Sem. 2025'!E13="","",SUM('Dati Generali CER 1 Sem. 2025'!E13+'Dati Generali CER 1 Sem. 2025'!R13+'Dati Generali CER 1 Sem. 2025'!S13+'Dati Generali CER 1 Sem. 2025'!T13)) -> 143760 | D20: =IF(C20="","",'Dati Generali CER 1 Sem. 2025'!CE13) -> 627680 | E20: ='Dati Generali CER 1 Sem. 2025'!W13 -> 0.8136472052 | F20: =IF('Dati Generali CER 1 Sem. 2025'!CF13="","",'Dati Generali CER 1 Sem. 2025'!CF13) -> 0.9713079871 | G20: =IF('Dati Generali CER 1 Sem. 2025'!CG13="","",'Dati Generali CER 1 Sem. 2025'!CG13) -> 0.181005958 | H20: =IF('Dati Generali CER 1 Sem. 2025'!CH13="","",'Dati Generali CER 1 Sem. 2025'!CH13) -> 0.7903020291 | I20: ='Dati Generali CER 1 Sem. 2025'!D13 -> 4388 | J20: =IF('Dati Generali CER 1 Sem. 2025'!CJ13="","",'Dati Generali CER 1 Sem. 2025'!CJ13) -> 2025-09-25T11:19:27
A21: 12 | B21: ='Dati Generali CER 1 Sem. 2025'!C14 -> CARONIA | C21: =IF('Dati Generali CER 1 Sem. 2025'!E14="","",SUM('Dati Generali CER 1 Sem. 2025'!E14+'Dati Generali CER 1 Sem. 2025'!R14+'Dati Generali CER 1 Sem. 2025'!S14+'Dati Generali CER 1 Sem. 2025'!T14)) -> 245660 | D21: =IF(C21="","",'Dati Generali CER 1 Sem. 2025'!CE14) -> 385304 | E21: ='Dati Generali CER 1 Sem. 2025'!W14 -> 0.6106592452 | F21: =IF('Dati Generali CER 1 Sem. 2025'!CF14="","",'Dati Generali CER 1 Sem. 2025'!CF14) -> 1.186921672 | G21: =IF('Dati Generali CER 1 Sem. 2025'!CG14="","",'Dati Generali CER 1 Sem. 2025'!CG14) -> 0.4621169796 | H21: =IF('Dati Generali CER 1 Sem. 2025'!CH14="","",'Dati Generali CER 1 Sem. 2025'!CH14) -> 0.7248046923 | I21: ='Dati Generali CER 1 Sem. 2025'!D14 -> 2937 | J21: =IF('Dati Generali CER 1 Sem. 2025'!CJ14="","",'Dati Generali CER 1 Sem. 2025'!CJ14) -> 2025-09-09T12:59:12
A22: 13 | B22: ='Dati Generali CER 1 Sem. 2025'!C15 -> CASALVECCHIO SICULO | C22: =IF('Dati Generali CER 1 Sem. 2025'!E15="","",SUM('Dati Generali CER 1 Sem. 2025'!E15+'Dati Generali CER 1 Sem. 2025'!R15+'Dati Generali CER 1 Sem. 2025'!S15+'Dati Generali CER 1 Sem. 2025'!T15)) -> 18120 | D22: =IF(C22="","",'Dati Generali CER 1 Sem. 2025'!CE15) -> 63320 | E22: ='Dati Generali CER 1 Sem. 2025'!W15 -> 0.7775049116 | F22: =IF('Dati Generali CER 1 Sem. 2025'!CF15="","",'Dati Generali CER 1 Sem. 2025'!CF15) -> 0.6418612716 | G22: =IF('Dati Generali CER 1 Sem. 2025'!CG15="","",'Dati Generali CER 1 Sem. 2025'!CG15) -> 0.1428109804 | H22: =IF('Dati Generali CER 1 Sem. 2025'!CH15="","",'Dati Generali CER 1 Sem. 2025'!CH15) -> 0.4990502912 | I22: ='Dati Generali CER 1 Sem. 2025'!D15 -> 701 | J22: =IF('Dati Generali CER 1 Sem. 2025'!CJ15="","",'Dati Generali CER 1 Sem. 2025'!CJ15) -> 2025-08-19T09:03:09
A23: 14 | B23: ='Dati Generali CER 1 Sem. 2025'!C16 -> CASTEL DI LUCIO | C23: =IF('Dati Generali CER 1 Sem. 2025'!E16="","",SUM('Dati Generali CER 1 Sem. 2025'!E16+'Dati Generali CER 1 Sem. 2025'!R16+'Dati Generali CER 1 Sem. 2025'!S16+'Dati Generali CER 1 Sem. 2025'!T16)) -> 13800 | D23: =IF(C23="","",'Dati Generali CER 1 Sem. 2025'!CE16) -> 129618 | E23: ='Dati Generali CER 1 Sem. 2025'!W16 -> 0.9037777685 | F23: =IF('Dati Generali CER 1 Sem. 2025'!CF16="","",'Dati Generali CER 1 Sem. 2025'!CF16) -> 0.5659747435 | G23: =IF('Dati Generali CER 1 Sem. 2025'!CG16="","",'Dati Generali CER 1 Sem. 2025'!CG16) -> 0.0544593528 | H23: =IF('Dati Generali CER 1 Sem. 2025'!CH16="","",'Dati Generali CER 1 Sem. 2025'!CH16) -> 0.5115153907 | I23: ='Dati Generali CER 1 Sem. 2025'!D16 -> 1400 | J23: =IF('Dati Generali CER 1 Sem. 2025'!CJ16="","",'Dati Generali CER 1 Sem. 2025'!CJ16) -> 2025-09-30T09:18:28
A24: 15 | B24: ='Dati Generali CER 1 Sem. 2025'!C17 -> CASTELL'UMBERTO | C24: =IF('Dati Generali CER 1 Sem. 2025'!E17="","",SUM('Dati Generali CER 1 Sem. 2025'!E17+'Dati Generali CER 1 Sem. 2025'!R17+'Dati Generali CER 1 Sem. 2025'!S17+'Dati Generali CER 1 Sem. 2025'!T17)) -> 91120 | D24: =IF(C24="","",'Dati Generali CER 1 Sem. 2025'!CE17) -> 278985 | E24: ='Dati Generali CER 1 Sem. 2025'!W17 -> 0.7537995974 | F24: =IF('Dati Generali CER 1 Sem. 2025'!CF17="","",'Dati Generali CER 1 Sem. 2025'!CF17) -> 0.7365918608 | G24: =IF('Dati Generali CER 1 Sem. 2025'!CG17="","",'Dati Generali CER 1 Sem. 2025'!CG17) -> 0.1813492127 | H24: =IF('Dati Generali CER 1 Sem. 2025'!CH17="","",'Dati Generali CER 1 Sem. 2025'!CH17) -> 0.5552426481 | I24: ='Dati Generali CER 1 Sem. 2025'!D17 -> 2776 | J24: =IF('Dati Generali CER 1 Sem. 2025'!CJ17="","",'Dati Generali CER 1 Sem. 2025'!CJ17) -> 2025-10-14T11:30:15
A25: 16 | B25: ='Dati Generali CER 1 Sem. 2025'!C18 -> CASTELMOLA | C25: =IF('Dati Generali CER 1 Sem. 2025'!E18="","",SUM('Dati Generali CER 1 Sem. 2025'!E18+'Dati Generali CER 1 Sem. 2025'!R18+'Dati Generali CER 1 Sem. 2025'!S18+'Dati Generali CER 1 Sem. 2025'!T18)) -> 49530 | D25: =IF(C25="","",'Dati Generali CER 1 Sem. 2025'!CE18) -> 141570 | E25: ='Dati Generali CER 1 Sem. 2025'!W18 -> 0.7408163265 | F25: =IF('Dati Generali CER 1 Sem. 2025'!CF18="","",'Dati Generali CER 1 Sem. 2025'!CF18) -> 0.9839712069 | G25: =IF('Dati Generali CER 1 Sem. 2025'!CG18="","",'Dati Generali CER 1 Sem. 2025'!CG18) -> 0.255029272 | H25: =IF('Dati Generali CER 1 Sem. 2025'!CH18="","",'Dati Generali CER 1 Sem. 2025'!CH18) -> 0.7289419349 | I25: ='Dati Generali CER 1 Sem. 2025'!D18 -> 1073 | J25: =IF('Dati Generali CER 1 Sem. 2025'!CJ18="","",'Dati Generali CER 1 Sem. 2025'!CJ18) -> 2025-10-17T08:00:42
A26: 17 | B26: ='Dati Generali CER 1 Sem. 2025'!C19 -> CASTROREALE | C26: =IF('Dati Generali CER 1 Sem. 2025'!E19="","",SUM('Dati Generali CER 1 Sem. 2025'!E19+'Dati Generali CER 1 Sem. 2025'!R19+'Dati Generali CER 1 Sem. 2025'!S19+'Dati Generali CER 1 Sem. 2025'!T19)) -> 63330 | D26: =IF(C26="","",'Dati Generali CER 1 Sem. 2025'!CE19) -> 204114 | E26: ='Dati Generali CER 1 Sem. 2025'!W19 -> 0.7632027639 | F26: =IF('Dati Generali CER 1 Sem. 2025'!CF19="","",'Dati Generali CER 1 Sem. 2025'!CF19) -> 0.6543804961 | G26: =IF('Dati Generali CER 1 Sem. 2025'!CG19="","",'Dati Generali CER 1 Sem. 2025'!CG19) -> 0.1549554928 | H26: =IF('Dati Generali CER 1 Sem. 2025'!CH19="","",'Dati Generali CER 1 Sem. 2025'!CH19) -> 0.4994250033 | I26: ='Dati Generali CER 1 Sem. 2025'!D19 -> 2258 | J26: =IF('Dati Generali CER 1 Sem. 2025'!CJ19="","",'Dati Generali CER 1 Sem. 2025'!CJ19) -> 2025-10-02T10:36:39
A27: 18 | B27: ='Dati Generali CER 1 Sem. 2025'!C20 -> CESARO' | C27: =IF('Dati Generali CER 1 Sem. 2025'!E20="","",SUM('Dati Generali CER 1 Sem. 2025'!E20+'Dati Generali CER 1 Sem. 2025'!R20+'Dati Generali CER 1 Sem. 2025'!S20+'Dati Generali CER 1 Sem. 2025'!T20)) -> 112060 | D27: =IF(C27="","",'Dati Generali CER 1 Sem. 2025'!CE20) -> 181809 | E27: ='Dati Generali CER 1 Sem. 2025'!W20 -> 0.6186736267 | F27: =IF('Dati Generali CER 1 Sem. 2025'!CF20="","",'Dati Generali CER 1 Sem. 2025'!CF20) -> 0.7794458163 | G27: =IF('Dati Generali CER 1 Sem. 2025'!CG20="","",'Dati Generali CER 1 Sem. 2025'!CG20) -> 0.2972232463 | H27: =IF('Dati Generali CER 1 Sem. 2025'!CH20="","",'Dati Generali CER 1 Sem. 2025'!CH20) -> 0.48222257 | I27: ='Dati Generali CER 1 Sem. 2025'!D20 -> 2083 | J27: =IF('Dati Generali CER 1 Sem. 2025'!CJ20="","",'Dati Generali CER 1 Sem. 2025'!CJ20) -> 2025-10-30T08:58:50
A28: 19 | B28: ='Dati Generali CER 1 Sem. 2025'!C21 -> CONDRO' | C28: =IF('Dati Generali CER 1 Sem. 2025'!E21="","",SUM('Dati Generali CER 1 Sem. 2025'!E21+'Dati Generali CER 1 Sem. 2025'!R21+'Dati Generali CER 1 Sem. 2025'!S21+'Dati Generali CER 1 Sem. 2025'!T21)) -> 27760 | D28: =IF(C28="","",'Dati Generali CER 1 Sem. 2025'!CE21) -> 40410 | E28: ='Dati Generali CER 1 Sem. 2025'!W21 -> 0.592782749 | F28: =IF('Dati Generali CER 1 Sem. 2025'!CF21="","",'Dati Generali CER 1 Sem. 2025'!CF21) -> 0.7639550391 | G28: =IF('Dati Generali CER 1 Sem. 2025'!CG21="","",'Dati Generali CER 1 Sem. 2025'!CG21) -> 0.3110956709 | H28: =IF('Dati Generali CER 1 Sem. 2025'!CH21="","",'Dati Generali CER 1 Sem. 2025'!CH21) -> 0.4528593682 | I28: ='Dati Generali CER 1 Sem. 2025'!D21 -> 493 | J28: =IF('Dati Generali CER 1 Sem. 2025'!CJ21="","",'Dati Generali CER 1 Sem. 2025'!CJ21) -> 2025-08-19T09:08:12
A29: 20 | B29: ='Dati Generali CER 1 Sem. 2025'!C22 -> FALCONE | C29: =IF('Dati Generali CER 1 Sem. 2025'!E22="","",SUM('Dati Generali CER 1 Sem. 2025'!E22+'Dati Generali CER 1 Sem. 2025'!R22+'Dati Generali CER 1 Sem. 2025'!S22+'Dati Generali CER 1 Sem. 2025'!T22)) -> 190920 | D29: =IF(C29="","",'Dati Generali CER 1 Sem. 2025'!CE22) -> 443042 | E29: ='Dati Generali CER 1 Sem. 2025'!W22 -> 0.6988463031 | F29: =IF('Dati Generali CER 1 Sem. 2025'!CF22="","",'Dati Generali CER 1 Sem. 2025'!CF22) -> 1.249572774 | G29: =IF('Dati Generali CER 1 Sem. 2025'!CG22="","",'Dati Generali CER 1 Sem. 2025'!CG22) -> 0.3763134605 | H29: =IF('Dati Generali CER 1 Sem. 2025'!CH22="","",'Dati Generali CER 1 Sem. 2025'!CH22) -> 0.8732593137 | I29: ='Dati Generali CER 1 Sem. 2025'!D22 -> 2803 | J29: =IF('Dati Generali CER 1 Sem. 2025'!CJ22="","",'Dati Generali CER 1 Sem. 2025'!CJ22) -> 2025-08-19T09:11:56
A30: 21 | B30: ='Dati Generali CER 1 Sem. 2025'!C23 -> FICARRA | C30: =IF('Dati Generali CER 1 Sem. 2025'!E23="","",SUM('Dati Generali CER 1 Sem. 2025'!E23+'Dati Generali CER 1 Sem. 2025'!R23+'Dati Generali CER 1 Sem. 2025'!S23+'Dati Generali CER 1 Sem. 2025'!T23)) -> 43080 | D30: =IF(C30="","",'Dati Generali CER 1 Sem. 2025'!CE23) -> 175336 | E30: ='Dati Generali CER 1 Sem. 2025'!W23 -> 0.8027617024 | F30: =IF('Dati Generali CER 1 Sem. 2025'!CF23="","",'Dati Generali CER 1 Sem. 2025'!CF23) -> 0.9479326253 | G30: =IF('Dati Generali CER 1 Sem. 2025'!CG23="","",'Dati Generali CER 1 Sem. 2025'!CG23) -> 0.1869686172 | H30: =IF('Dati Generali CER 1 Sem. 2025'!CH23="","",'Dati Generali CER 1 Sem. 2025'!CH23) -> 0.7609640081 | I30: ='Dati Generali CER 1 Sem. 2025'!D23 -> 1273 | J30: =IF('Dati Generali CER 1 Sem. 2025'!CJ23="","",'Dati Generali CER 1 Sem. 2025'!CJ23) -> 2025-10-14T11:33:48
A31: 22 | B31: ='Dati Generali CER 1 Sem. 2025'!C24 -> FIUMEDINISI | C31: =IF('Dati Generali CER 1 Sem. 2025'!E24="","",SUM('Dati Generali CER 1 Sem. 2025'!E24+'Dati Generali CER 1 Sem. 2025'!R24+'Dati Generali CER 1 Sem. 2025'!S24+'Dati Generali CER 1 Sem. 2025'!T24)) -> 38069 | D31: =IF(C31="","",'Dati Generali CER 1 Sem. 2025'!CE24) -> 89857 | E31: ='Dati Generali CER 1 Sem. 2025'!W24 -> 0.7024138955 | F31: =IF('Dati Generali CER 1 Sem. 2025'!CF24="","",'Dati Generali CER 1 Sem. 2025'!CF24) -> 0.5227614502 | G31: =IF('Dati Generali CER 1 Sem. 2025'!CG24="","",'Dati Generali CER 1 Sem. 2025'!CG24) -> 0.1555665435 | H31: =IF('Dati Generali CER 1 Sem. 2025'!CH24="","",'Dati Generali CER 1 Sem. 2025'!CH24) -> 0.3671949067 | I31: ='Dati Generali CER 1 Sem. 2025'!D24 -> 1352 | J31: =IF('Dati Generali CER 1 Sem. 2025'!CJ24="","",'Dati Generali CER 1 Sem. 2025'!CJ24) -> 2025-09-16T09:29:39
A32: 23 | B32: ='Dati Generali CER 1 Sem. 2025'!C25 -> FLORESTA | C32: =IF('Dati Generali CER 1 Sem. 2025'!E25="","",SUM('Dati Generali CER 1 Sem. 2025'!E25+'Dati Generali CER 1 Sem. 2025'!R25+'Dati Generali CER 1 Sem. 2025'!S25+'Dati Generali CER 1 Sem. 2025'!T25)) -> 22980 | D32: =IF(C32="","",'Dati Generali CER 1 Sem. 2025'!CE25) -> 47300 | E32: ='Dati Generali CER 1 Sem. 2025'!W25 -> 0.6730221969 | F32: =IF('Dati Generali CER 1 Sem. 2025'!CF25="","",'Dati Generali CER 1 Sem. 2025'!CF25) -> 0.8441028105 | G32: =IF('Dati Generali CER 1 Sem. 2025'!CG25="","",'Dati Generali CER 1 Sem. 2025'!CG25) -> 0.2760028825 | H32: =IF('Dati Generali CER 1 Sem. 2025'!CH25="","",'Dati Generali CER 1 Sem. 2025'!CH25) -> 0.5680999279 | I32: ='Dati Generali CER 1 Sem. 2025'!D25 -> 460 | J32: =IF('Dati Generali CER 1 Sem. 2025'!CJ25="","",'Dati Generali CER 1 Sem. 2025'!CJ25) -> 2025-08-19T09:19:32
A33: 24 | B33: ='Dati Generali CER 1 Sem. 2025'!C26 -> FONDACHELLI FANTINA | C33: =IF('Dati Generali CER 1 Sem. 2025'!E26="","",SUM('Dati Generali CER 1 Sem. 2025'!E26+'Dati Generali CER 1 Sem. 2025'!R26+'Dati Generali CER 1 Sem. 2025'!S26+'Dati Generali CER 1 Sem. 2025'!T26)) -> 71700 | D33: =IF(C33="","",'Dati Generali CER 1 Sem. 2025'!CE26) -> 93799 | E33: ='Dati Generali CER 1 Sem. 2025'!W26 -> 0.5667647539 | F33: =IF('Dati Generali CER 1 Sem. 2025'!CF26="","",'Dati Generali CER 1 Sem. 2025'!CF26) -> 0.7950948835 | G33: =IF('Dati Generali CER 1 Sem. 2025'!CG26="","",'Dati Generali CER 1 Sem. 2025'!CG26) -> 0.3444631276 | H33: =IF('Dati Generali CER 1 Sem. 2025'!CH26="","",'Dati Generali CER 1 Sem. 2025'!CH26) -> 0.4506317559 | I33: ='Dati Generali CER 1 Sem. 2025'!D26 -> 1150 | J33: =IF('Dati Generali CER 1 Sem. 2025'!CJ26="","",'Dati Generali CER 1 Sem. 2025'!CJ26) -> 2025-08-19T09:22:59
A34: 25 | B34: ='Dati Generali CER 1 Sem. 2025'!C27 -> FORZA D'AGRO' | C34: =IF('Dati Generali CER 1 Sem. 2025'!E27="","",SUM('Dati Generali CER 1 Sem. 2025'!E27+'Dati Generali CER 1 Sem. 2025'!R27+'Dati Generali CER 1 Sem. 2025'!S27+'Dati Generali CER 1 Sem. 2025'!T27)) -> 51960 | D34: =IF(C34="","",'Dati Generali CER 1 Sem. 2025'!CE27) -> 167246 | E34: ='Dati Generali CER 1 Sem. 2025'!W27 -> 0.7629626926 | F34: =IF('Dati Generali CER 1 Sem. 2025'!CF27="","",'Dati Generali CER 1 Sem. 2025'!CF27) -> 1.300840895 | G34: =IF('Dati Generali CER 1 Sem. 2025'!CG27="","",'Dati Generali CER 1 Sem. 2025'!CG27) -> 0.308347823 | H34: =IF('Dati Generali CER 1 Sem. 2025'!CH27="","",'Dati Generali CER 1 Sem. 2025'!CH27) -> 0.9924930717 | I34: ='Dati Generali CER 1 Sem. 2025'!D27 -> 931 | J34: =IF('Dati Generali CER 1 Sem. 2025'!CJ27="","",'Dati Generali CER 1 Sem. 2025'!CJ27) -> 2025-09-16T09:36:33
A35: 26 | B35: ='Dati Generali CER 1 Sem. 2025'!C28 -> FRANCAVILLA DI SICILIA | C35: =IF('Dati Generali CER 1 Sem. 2025'!E28="","",SUM('Dati Generali CER 1 Sem. 2025'!E28+'Dati Generali CER 1 Sem. 2025'!R28+'Dati Generali CER 1 Sem. 2025'!S28+'Dati Generali CER 1 Sem. 2025'!T28)) -> 20500 | D35: =IF(C35="","",'Dati Generali CER 1 Sem. 2025'!CE28) -> 120670 | E35: ='Dati Generali CER 1 Sem. 2025'!W28 -> 0.854785011 | F35: =IF('Dati Generali CER 1 Sem. 2025'!CF28="","",'Dati Generali CER 1 Sem. 2025'!CF28) -> 0.2213237092 | G35: =IF('Dati Generali CER 1 Sem. 2025'!CG28="","",'Dati Generali CER 1 Sem. 2025'!CG28) -> 0.03213952001 | H35: =IF('Dati Generali CER 1 Sem. 2025'!CH28="","",'Dati Generali CER 1 Sem. 2025'!CH28) -> 0.1891841892 | I35: ='Dati Generali CER 1 Sem. 2025'!D28 -> 3524 | J35: =IF('Dati Generali CER 1 Sem. 2025'!CJ28="","",'Dati Generali CER 1 Sem. 2025'!CJ28) -> 2025-10-23T08:00:37
A36: 27 | B36: ='Dati Generali CER 1 Sem. 2025'!C29 -> FRAZZANO' | C36: =IF('Dati Generali CER 1 Sem. 2025'!E29="","",SUM('Dati Generali CER 1 Sem. 2025'!E29+'Dati Generali CER 1 Sem. 2025'!R29+'Dati Generali CER 1 Sem. 2025'!S29+'Dati Generali CER 1 Sem. 2025'!T29)) -> 20040 | D36: =IF(C36="","",'Dati Generali CER 1 Sem. 2025'!CE29) -> 42830 | E36: ='Dati Generali CER 1 Sem. 2025'!W29 -> 0.6812470177 | F36: =IF('Dati Generali CER 1 Sem. 2025'!CF29="","",'Dati Generali CER 1 Sem. 2025'!CF29) -> 0.6480374371 | G36: =IF('Dati Generali CER 1 Sem. 2025'!CG29="","",'Dati Generali CER 1 Sem. 2025'!CG29) -> 0.2065638658 | H36: =IF('Dati Generali CER 1 Sem. 2025'!CH29="","",'Dati Generali CER 1 Sem. 2025'!CH29) -> 0.4414735714 | I36: ='Dati Generali CER 1 Sem. 2025'!D29 -> 536 | J36: =IF('Dati Generali CER 1 Sem. 2025'!CJ29="","",'Dati Generali CER 1 Sem. 2025'!CJ29) -> 2025-08-22T08:48:49
A37: 28 | B37: ='Dati Generali CER 1 Sem. 2025'!C30 -> FURCI SICULO | C37: =IF('Dati Generali CER 1 Sem. 2025'!E30="","",SUM('Dati Generali CER 1 Sem. 2025'!E30+'Dati Generali CER 1 Sem. 2025'!R30+'Dati Generali CER 1 Sem. 2025'!S30+'Dati Generali CER 1 Sem. 2025'!T30)) -> 155490 | D37: =IF(C37="","",'Dati Generali CER 1 Sem. 2025'!CE30) -> 535850 | E37: ='Dati Generali CER 1 Sem. 2025'!W30 -> 0.7750889577 | F37: =IF('Dati Generali CER 1 Sem. 2025'!CF30="","",'Dati Generali CER 1 Sem. 2025'!CF30) -> 1.174525834 | G37: =IF('Dati Generali CER 1 Sem. 2025'!CG30="","",'Dati Generali CER 1 Sem. 2025'!CG30) -> 0.2641638295 | H37: =IF('Dati Generali CER 1 Sem. 2025'!CH30="","",'Dati Generali CER 1 Sem. 2025'!CH30) -> 0.9103620042 | I37: ='Dati Generali CER 1 Sem. 2025'!D30 -> 3252 | J37: =IF('Dati Generali CER 1 Sem. 2025'!CJ30="","",'Dati Generali CER 1 Sem. 2025'!CJ30) -> 2025-08-19T09:24:59
A38: 29 | B38: ='Dati Generali CER 1 Sem. 2025'!C31 -> FURNARI | C38: =IF('Dati Generali CER 1 Sem. 2025'!E31="","",SUM('Dati Generali CER 1 Sem. 2025'!E31+'Dati Generali CER 1 Sem. 2025'!R31+'Dati Generali CER 1 Sem. 2025'!S31+'Dati Generali CER 1 Sem. 2025'!T31)) -> 210090 | D38: =IF(C38="","",'Dati Generali CER 1 Sem. 2025'!CE31) -> 864420 | E38: ='Dati Generali CER 1 Sem. 2025'!W31 -> 0.8044783204 | F38: =IF('Dati Generali CER 1 Sem. 2025'!CF31="","",'Dati Generali CER 1 Sem. 2025'!CF31) -> 1.423284425 | G38: =IF('Dati Generali CER 1 Sem. 2025'!CG31="","",'Dati Generali CER 1 Sem. 2025'!CG31) -> 0.2782829614 | H38: =IF('Dati Generali CER 1 Sem. 2025'!CH31="","",'Dati Generali CER 1 Sem. 2025'!CH31) -> 1.145001464 | I38: ='Dati Generali CER 1 Sem. 2025'!D31 -> 4171 | J38: =IF('Dati Generali CER 1 Sem. 2025'!CJ31="","",'Dati Generali CER 1 Sem. 2025'!CJ31) -> 2025-09-30T09:28:27
A39: 30 | B39: ='Dati Generali CER 1 Sem. 2025'!C32 -> GAGGI | C39: =IF('Dati Generali CER 1 Sem. 2025'!E32="","",SUM('Dati Generali CER 1 Sem. 2025'!E32+'Dati Generali CER 1 Sem. 2025'!R32+'Dati Generali CER 1 Sem. 2025'!S32+'Dati Generali CER 1 Sem. 2025'!T32)) -> 149640 | D39: =IF(C39="","",'Dati Generali CER 1 Sem. 2025'!CE32) -> 310659 | E39: ='Dati Generali CER 1 Sem. 2025'!W32 -> 0.6749069626 | F39: =IF('Dati Generali CER 1 Sem. 2025'!CF32="","",'Dati Generali CER 1 Sem. 2025'!CF32) -> 0.8238057654 | G39: =IF('Dati Generali CER 1 Sem. 2025'!CG32="","",'Dati Generali CER 1 Sem. 2025'!CG32) -> 0.2678135185 | H39: =IF('Dati Generali CER 1 Sem. 2025'!CH32="","",'Dati Generali CER 1 Sem. 2025'!CH32) -> 0.5559922469 | I39: ='Dati Generali CER 1 Sem. 2025'!D32 -> 3087 | J39: =IF('Dati Generali CER 1 Sem. 2025'!CJ32="","",'Dati Generali CER 1 Sem. 2025'!CJ32) -> 2025-08-19T10:32:35
A40: 31 | B40: ='Dati Generali CER 1 Sem. 2025'!C33 -> GALATI MAMERTINO | C40: =IF('Dati Generali CER 1 Sem. 2025'!E33="","",SUM('Dati Generali CER 1 Sem. 2025'!E33+'Dati Generali CER 1 Sem. 2025'!R33+'Dati Generali CER 1 Sem. 2025'!S33+'Dati Generali CER 1 Sem. 2025'!T33)) -> 61500 | D40: =IF(C40="","",'Dati Generali CER 1 Sem. 2025'!CE33) -> 232590 | E40: ='Dati Generali CER 1 Sem. 2025'!W33 -> 0.7908803428 | F40: =IF('Dati Generali CER 1 Sem. 2025'!CF33="","",'Dati Generali CER 1 Sem. 2025'!CF33) -> 0.7553726777 | G40: =IF('Dati Generali CER 1 Sem. 2025'!CG33="","",'Dati Generali CER 1 Sem. 2025'!CG33) -> 0.1579632755 | H40: =IF('Dati Generali CER 1 Sem. 2025'!CH33="","",'Dati Generali CER 1 Sem. 2025'!CH33) -> 0.5974094023 | I40: ='Dati Generali CER 1 Sem. 2025'!D33 -> 2151 | J40: =IF('Dati Generali CER 1 Sem. 2025'!CJ33="","",'Dati Generali CER 1 Sem. 2025'!CJ33) -> 2025-08-19T10:35:58
A41: 32 | B41: ='Dati Generali CER 1 Sem. 2025'!C34 -> GALLODORO | C41: =IF('Dati Generali CER 1 Sem. 2025'!E34="","",SUM('Dati Generali CER 1 Sem. 2025'!E34+'Dati Generali CER 1 Sem. 2025'!R34+'Dati Generali CER 1 Sem. 2025'!S34+'Dati Generali CER 1 Sem. 2025'!T34)) -> 15660 | D41: =IF(C41="","",'Dati Generali CER 1 Sem. 2025'!CE34) -> 41750 | E41: ='Dati Generali CER 1 Sem. 2025'!W34 -> 0.7272252221 | F41: =IF('Dati Generali CER 1 Sem. 2025'!CF34="","",'Dati Generali CER 1 Sem. 2025'!CF34) -> 0.9819886082 | G41: =IF('Dati Generali CER 1 Sem. 2025'!CG34="","",'Dati Generali CER 1 Sem. 2025'!CG34) -> 0.2678617245 | H41: =IF('Dati Generali CER 1 Sem. 2025'!CH34="","",'Dati Generali CER 1 Sem. 2025'!CH34) -> 0.7141268837 | I41: ='Dati Generali CER 1 Sem. 2025'!D34 -> 323 | J41: =IF('Dati Generali CER 1 Sem. 2025'!CJ34="","",'Dati Generali CER 1 Sem. 2025'!CJ34) -> 2025-08-19T10:38:35
A42: 33 | B42: ='Dati Generali CER 1 Sem. 2025'!C35 -> GIARDINI NAXOS | C42: =IF('Dati Generali CER 1 Sem. 2025'!E35="","",SUM('Dati Generali CER 1 Sem. 2025'!E35+'Dati Generali CER 1 Sem. 2025'!R35+'Dati Generali CER 1 Sem. 2025'!S35+'Dati Generali CER 1 Sem. 2025'!T35)) -> 700720 | D42: =IF(C42="","",'Dati Generali CER 1 Sem. 2025'!CE35) -> 2564416 | E42: ='Dati Generali CER 1 Sem. 2025'!W35 -> 0.785393319 | F42: =IF('Dati Generali CER 1 Sem. 2025'!CF35="","",'Dati Generali CER 1 Sem. 2025'!CF35) -> 1.923794968 | G42: =IF('Dati Generali CER 1 Sem. 2025'!CG35="","",'Dati Generali CER 1 Sem. 2025'!CG35) -> 0.412859253 | H42: =IF('Dati Generali CER 1 Sem. 2025'!CH35="","",'Dati Generali CER 1 Sem. 2025'!CH35) -> 1.510935715 | I42: ='Dati Generali CER 1 Sem. 2025'!D35 -> 9377 | J42: =IF('Dati Generali CER 1 Sem. 2025'!CJ35="","",'Dati Generali CER 1 Sem. 2025'!CJ35) -> 2025-10-03T08:49:29
A43: 34 | B43: ='Dati Generali CER 1 Sem. 2025'!C36 -> GIOIOSA MAREA | C43: =IF('Dati Generali CER 1 Sem. 2025'!E36="","",SUM('Dati Generali CER 1 Sem. 2025'!E36+'Dati Generali CER 1 Sem. 2025'!R36+'Dati Generali CER 1 Sem. 2025'!S36+'Dati Generali CER 1 Sem. 2025'!T36)) -> 403420 | D43: =IF(C43="","",'Dati Generali CER 1 Sem. 2025'!CE36) -> 865250 | E43: ='Dati Generali CER 1 Sem. 2025'!W36 -> 0.6820134472 | F43: =IF('Dati Generali CER 1 Sem. 2025'!CF36="","",'Dati Generali CER 1 Sem. 2025'!CF36) -> 1.04381631 | G43: =IF('Dati Generali CER 1 Sem. 2025'!CG36="","",'Dati Generali CER 1 Sem. 2025'!CG36) -> 0.3319195501 | H43: =IF('Dati Generali CER 1 Sem. 2025'!CH36="","",'Dati Generali CER 1 Sem. 2025'!CH36) -> 0.7118967595 | I43: ='Dati Generali CER 1 Sem. 2025'!D36 -> 6715 | J43: =IF('Dati Generali CER 1 Sem. 2025'!CJ36="","",'Dati Generali CER 1 Sem. 2025'!CJ36) -> 2025-08-19T10:40:47
A44: 35 | B44: ='Dati Generali CER 1 Sem. 2025'!C37 -> GRANITI | C44: =IF('Dati Generali CER 1 Sem. 2025'!E37="","",SUM('Dati Generali CER 1 Sem. 2025'!E37+'Dati Generali CER 1 Sem. 2025'!R37+'Dati Generali CER 1 Sem. 2025'!S37+'Dati Generali CER 1 Sem. 2025'!T37)) -> 77695 | D44: =IF(C44="","",'Dati Generali CER 1 Sem. 2025'!CE37) -> 143040 | E44: ='Dati Generali CER 1 Sem. 2025'!W37 -> 0.6480168528 | F44: =IF('Dati Generali CER 1 Sem. 2025'!CF37="","",'Dati Generali CER 1 Sem. 2025'!CF37) -> 0.8335819458 | G44: =IF('Dati Generali CER 1 Sem. 2025'!CG37="","",'Dati Generali CER 1 Sem. 2025'!CG37) -> 0.2760542743 | H44: =IF('Dati Generali CER 1 Sem. 2025'!CH37="","",'Dati Generali CER 1 Sem. 2025'!CH37) -> 0.5401751491 | I44: ='Dati Generali CER 1 Sem. 2025'!D37 -> 1463 | J44: =IF('Dati Generali CER 1 Sem. 2025'!CJ37="","",'Dati Generali CER 1 Sem. 2025'!CJ37) -> 2025-08-19T10:44:58
A45: 36 | B45: ='Dati Generali CER 1 Sem. 2025'!C38 -> GUALTIERI SICAMINO | C45: =IF('Dati Generali CER 1 Sem. 2025'!E38="","",SUM('Dati Generali CER 1 Sem. 2025'!E38+'Dati Generali CER 1 Sem. 2025'!R38+'Dati Generali CER 1 Sem. 2025'!S38+'Dati Generali CER 1 Sem. 2025'!T38)) -> 52080 | D45: =IF(C45="","",'Dati Generali CER 1 Sem. 2025'!CE38) -> 198064 | E45: ='Dati Generali CER 1 Sem. 2025'!W38 -> 0.7917999232 | F45: =IF('Dati Generali CER 1 Sem. 2025'!CF38="","",'Dati Generali CER 1 Sem. 2025'!CF38) -> 0.8985767553 | G45: =IF('Dati Generali CER 1 Sem. 2025'!CG38="","",'Dati Generali CER 1 Sem. 2025'!CG38) -> 0.1870837494 | H45: =IF('Dati Generali CER 1 Sem. 2025'!CH38="","",'Dati Generali CER 1 Sem. 2025'!CH38) -> 0.7114930059 | I45: ='Dati Generali CER 1 Sem. 2025'!D38 -> 1538 | J45: =IF('Dati Generali CER 1 Sem. 2025'!CJ38="","",'Dati Generali CER 1 Sem. 2025'!CJ38) -> 2025-09-22T12:32:57
A46: 37 | B46: ='Dati Generali CER 1 Sem. 2025'!C39 -> ITALA | C46: =IF('Dati Generali CER 1 Sem. 2025'!E39="","",SUM('Dati Generali CER 1 Sem. 2025'!E39+'Dati Generali CER 1 Sem. 2025'!R39+'Dati Generali CER 1 Sem. 2025'!S39+'Dati Generali CER 1 Sem. 2025'!T39)) -> 64190 | D46: =IF(C46="","",'Dati Generali CER 1 Sem. 2025'!CE39) -> 178494 | E46: ='Dati Generali CER 1 Sem. 2025'!W39 -> 0.7354996621 | F46: =IF('Dati Generali CER 1 Sem. 2025'!CF39="","",'Dati Generali CER 1 Sem. 2025'!CF39) -> 0.8885325249 | G46: =IF('Dati Generali CER 1 Sem. 2025'!CG39="","",'Dati Generali CER 1 Sem. 2025'!CG39) -> 0.2350171531 | H46: =IF('Dati Generali CER 1 Sem. 2025'!CH39="","",'Dati Generali CER 1 Sem. 2025'!CH39) -> 0.6535153719 | I46: ='Dati Generali CER 1 Sem. 2025'!D39 -> 1509 | J46: =IF('Dati Generali CER 1 Sem. 2025'!CJ39="","",'Dati Generali CER 1 Sem. 2025'!CJ39) -> 2025-10-30T11:19:18
A47: 38 | B47: ='Dati Generali CER 1 Sem. 2025'!C40 -> LENI | C47: =IF('Dati Generali CER 1 Sem. 2025'!E40="","",SUM('Dati Generali CER 1 Sem. 2025'!E40+'Dati Generali CER 1 Sem. 2025'!R40+'Dati Generali CER 1 Sem. 2025'!S40+'Dati Generali CER 1 Sem. 2025'!T40)) -> 45280 | D47: =IF(C47="","",'Dati Generali CER 1 Sem. 2025'!CE40) -> 64200 | E47: ='Dati Generali CER 1 Sem. 2025'!W40 -> 0.5864084764 | F47: =IF('Dati Generali CER 1 Sem. 2025'!CF40="","",'Dati Generali CER 1 Sem. 2025'!CF40) -> 0.8921266644 | G47: =IF('Dati Generali CER 1 Sem. 2025'!CG40="","",'Dati Generali CER 1 Sem. 2025'!CG40) -> 0.3689760263 | H47: =IF('Dati Generali CER 1 Sem. 2025'!CH40="","",'Dati Generali CER 1 Sem. 2025'!CH40) -> 0.523150638 | I47: ='Dati Generali CER 1 Sem. 2025'!D40 -> 678 | J47: =IF('Dati Generali CER 1 Sem. 2025'!CJ40="","",'Dati Generali CER 1 Sem. 2025'!CJ40) -> 2025-08-19T10:47:59
A48: 39 | B48: ='Dati Generali CER 1 Sem. 2025'!C41 -> LETOJANNI | C48: =IF('Dati Generali CER 1 Sem. 2025'!E41="","",SUM('Dati Generali CER 1 Sem. 2025'!E41+'Dati Generali CER 1 Sem. 2025'!R41+'Dati Generali CER 1 Sem. 2025'!S41+'Dati Generali CER 1 Sem. 2025'!T41)) -> 399590 | D48: =IF(C48="","",'Dati Generali CER 1 Sem. 2025'!CE41) -> 505114 | E48: ='Dati Generali CER 1 Sem. 2025'!W41 -> 0.5583196272 | F48: =IF('Dati Generali CER 1 Sem. 2025'!CF41="","",'Dati Generali CER 1 Sem. 2025'!CF41) -> 1.707091749 | G48: =IF('Dati Generali CER 1 Sem. 2025'!CG41="","",'Dati Generali CER 1 Sem. 2025'!CG41) -> 0.7539889201 | H48: =IF('Dati Generali CER 1 Sem. 2025'!CH41="","",'Dati Generali CER 1 Sem. 2025'!CH41) -> 0.9531028289 | I48: ='Dati Generali CER 1 Sem. 2025'!D41 -> 2928 | J48: =IF('Dati Generali CER 1 Sem. 2025'!CJ41="","",'Dati Generali CER 1 Sem. 2025'!CJ41) -> 2025-08-19T10:53:38
A49: 40 | B49: ='Dati Generali CER 1 Sem. 2025'!C42 -> LIBRIZZI | C49: =IF('Dati Generali CER 1 Sem. 2025'!E42="","",SUM('Dati Generali CER 1 Sem. 2025'!E42+'Dati Generali CER 1 Sem. 2025'!R42+'Dati Generali CER 1 Sem. 2025'!S42+'Dati Generali CER 1 Sem. 2025'!T42)) -> 59180 | D49: =IF(C49="","",'Dati Generali CER 1 Sem. 2025'!CE42) -> 177890 | E49: ='Dati Generali CER 1 Sem. 2025'!W42 -> 0.7503690893 | F49: =IF('Dati Generali CER 1 Sem. 2025'!CF42="","",'Dati Generali CER 1 Sem. 2025'!CF42) -> 0.846657405 | G49: =IF('Dati Generali CER 1 Sem. 2025'!CG42="","",'Dati Generali CER 1 Sem. 2025'!CG42) -> 0.2113518591 | H49: =IF('Dati Generali CER 1 Sem. 2025'!CH42="","",'Dati Generali CER 1 Sem. 2025'!CH42) -> 0.6353055459 | I49: ='Dati Generali CER 1 Sem. 2025'!D42 -> 1547 | J49: =IF('Dati Generali CER 1 Sem. 2025'!CJ42="","",'Dati Generali CER 1 Sem. 2025'!CJ42) -> 2025-08-19T10:56:23
A50: 41 | B50: ='Dati Generali CER 1 Sem. 2025'!C43 -> LIMINA | C50: =IF('Dati Generali CER 1 Sem. 2025'!E43="","",SUM('Dati Generali CER 1 Sem. 2025'!E43+'Dati Generali CER 1 Sem. 2025'!R43+'Dati Generali CER 1 Sem. 2025'!S43+'Dati Generali CER 1 Sem. 2025'!T43)) -> 22780 | D50: =IF(C50="","",'Dati Generali CER 1 Sem. 2025'!CE43) -> 61500 | E50: ='Dati Generali CER 1 Sem. 2025'!W43 -> 0.7297104888 | F50: =IF('Dati Generali CER 1 Sem. 2025'!CF43="","",'Dati Generali CER 1 Sem. 2025'!CF43) -> 0.645818806 | G50: =IF('Dati Generali CER 1 Sem. 2025'!CG43="","",'Dati Generali CER 1 Sem. 2025'!CG43) -> 0.1745580494 | H50: =IF('Dati Generali CER 1 Sem. 2025'!CH43="","",'Dati Generali CER 1 Sem. 2025'!CH43) -> 0.4712607566 | I50: ='Dati Generali CER 1 Sem. 2025'!D43 -> 721 | J50: =IF('Dati Generali CER 1 Sem. 2025'!CJ43="","",'Dati Generali CER 1 Sem. 2025'!CJ43) -> 2025-10-27T08:14:27
A51: 42 | B51: ='Dati Generali CER 1 Sem. 2025'!C44 -> LIPARI | C51: =IF('Dati Generali CER 1 Sem. 2025'!E44="","",SUM('Dati Generali CER 1 Sem. 2025'!E44+'Dati Generali CER 1 Sem. 2025'!R44+'Dati Generali CER 1 Sem. 2025'!S44+'Dati Generali CER 1 Sem. 2025'!T44)) -> 1682620 | D51: =IF(C51="","",'Dati Generali CER 1 Sem. 2025'!CE44) -> 1755650 | E51: ='Dati Generali CER 1 Sem. 2025'!W44 -> 0.5106201665 | F51: =IF('Dati Generali CER 1 Sem. 2025'!CF44="","",'Dati Generali CER 1 Sem. 2025'!CF44) -> 1.48487195 | G51: =IF('Dati Generali CER 1 Sem. 2025'!CG44="","",'Dati Generali CER 1 Sem. 2025'!CG44) -> 0.7266663874 | H51: =IF('Dati Generali CER 1 Sem. 2025'!CH44="","",'Dati Generali CER 1 Sem. 2025'!CH44) -> 0.7582055622 | I51: ='Dati Generali CER 1 Sem. 2025'!D44 -> 12793 | J51: =IF('Dati Generali CER 1 Sem. 2025'!CJ44="","",'Dati Generali CER 1 Sem. 2025'!CJ44) -> 2025-08-19T11:03:46
A52: 43 | B52: ='Dati Generali CER 1 Sem. 2025'!C45 -> LONGI | C52: =IF('Dati Generali CER 1 Sem. 2025'!E45="","",SUM('Dati Generali CER 1 Sem. 2025'!E45+'Dati Generali CER 1 Sem. 2025'!R45+'Dati Generali CER 1 Sem. 2025'!S45+'Dati Generali CER 1 Sem. 2025'!T45)) -> 15650 | D52: =IF(C52="","",'Dati Generali CER 1 Sem. 2025'!CE45) -> 156643 | E52: ='Dati Generali CER 1 Sem. 2025'!W45 -> 0.909166362 | F52: =IF('Dati Generali CER 1 Sem. 2025'!CF45="","",'Dati Generali CER 1 Sem. 2025'!CF45) -> 0.747757288 | G52: =IF('Dati Generali CER 1 Sem. 2025'!CG45="","",'Dati Generali CER 1 Sem. 2025'!CG45) -> 0.06792151485 | H52: =IF('Dati Generali CER 1 Sem. 2025'!CH45="","",'Dati Generali CER 1 Sem. 2025'!CH45) -> 0.6798357732 | I52: ='Dati Generali CER 1 Sem. 2025'!D45 -> 1273 | J52: =IF('Dati Generali CER 1 Sem. 2025'!CJ45="","",'Dati Generali CER 1 Sem. 2025'!CJ45) -> 2025-08-19T11:20:13
A53: 44 | B53: ='Dati Generali CER 1 Sem. 2025'!C46 -> MALFA | C53: =IF('Dati Generali CER 1 Sem. 2025'!E46="","",SUM('Dati Generali CER 1 Sem. 2025'!E46+'Dati Generali CER 1 Sem. 2025'!R46+'Dati Generali CER 1 Sem. 2025'!S46+'Dati Generali CER 1 Sem. 2025'!T46)) -> 96640 | D53: =IF(C53="","",'Dati Generali CER 1 Sem. 2025'!CE46) -> 134760 | E53: ='Dati Generali CER 1 Sem. 2025'!W46 -> 0.5823681936 | F53: =IF('Dati Generali CER 1 Sem. 2025'!CF46="","",'Dati Generali CER 1 Sem. 2025'!CF46) -> 1.299240893 | G53: =IF('Dati Generali CER 1 Sem. 2025'!CG46="","",'Dati Generali CER 1 Sem. 2025'!CG46) -> 0.5426043211 | H53: =IF('Dati Generali CER 1 Sem. 2025'!CH46="","",'Dati Generali CER 1 Sem. 2025'!CH46) -> 0.7566365719 | I53: ='Dati Generali CER 1 Sem. 2025'!D46 -> 984 | J53: =IF('Dati Generali CER 1 Sem. 2025'!CJ46="","",'Dati Generali CER 1 Sem. 2025'!CJ46) -> 2025-09-23T10:51:48
A54: 45 | B54: ='Dati Generali CER 1 Sem. 2025'!C47 -> MALVAGNA | C54: =IF('Dati Generali CER 1 Sem. 2025'!E47="","",SUM('Dati Generali CER 1 Sem. 2025'!E47+'Dati Generali CER 1 Sem. 2025'!R47+'Dati Generali CER 1 Sem. 2025'!S47+'Dati Generali CER 1 Sem. 2025'!T47)) -> 52420 | D54: =IF(C54="","",'Dati Generali CER 1 Sem. 2025'!CE47) -> 51530 | E54: ='Dati Generali CER 1 Sem. 2025'!W47 -> 0.4957190957 | F54: =IF('Dati Generali CER 1 Sem. 2025'!CF47="","",'Dati Generali CER 1 Sem. 2025'!CF47) -> 0.9603835991 | G54: =IF('Dati Generali CER 1 Sem. 2025'!CG47="","",'Dati Generali CER 1 Sem. 2025'!CG47) -> 0.4843031098 | H54: =IF('Dati Generali CER 1 Sem. 2025'!CH47="","",'Dati Generali CER 1 Sem. 2025'!CH47) -> 0.4760804893 | I54: ='Dati Generali CER 1 Sem. 2025'!D47 -> 598 | J54: =IF('Dati Generali CER 1 Sem. 2025'!CJ47="","",'Dati Generali CER 1 Sem. 2025'!CJ47) -> 2025-08-19T11:21:52
A55: 46 | B55: ='Dati Generali CER 1 Sem. 2025'!C48 -> MANDANICI | C55: =IF('Dati Generali CER 1 Sem. 2025'!E48="","",SUM('Dati Generali CER 1 Sem. 2025'!E48+'Dati Generali CER 1 Sem. 2025'!R48+'Dati Generali CER 1 Sem. 2025'!S48+'Dati Generali CER 1 Sem. 2025'!T48)) -> 15120 | D55: =IF(C55="","",'Dati Generali CER 1 Sem. 2025'!CE48) -> 57719 | E55: ='Dati Generali CER 1 Sem. 2025'!W48 -> 0.7924188965 | F55: =IF('Dati Generali CER 1 Sem. 2025'!CF48="","",'Dati Generali CER 1 Sem. 2025'!CF48) -> 0.8297431224 | G55: =IF('Dati Generali CER 1 Sem. 2025'!CG48="","",'Dati Generali CER 1 Sem. 2025'!CG48) -> 0.172238993 | H55: =IF('Dati Generali CER 1 Sem. 2025'!CH48="","",'Dati Generali CER 1 Sem. 2025'!CH48) -> 0.6575041294 | I55: ='Dati Generali CER 1 Sem. 2025'!D48 -> 485 | J55: =IF('Dati Generali CER 1 Sem. 2025'!CJ48="","",'Dati Generali CER 1 Sem. 2025'!CJ48) -> 2025-08-19T11:25:42
A56: 47 | B56: ='Dati Generali CER 1 Sem. 2025'!C49 -> MAZZARRA' S. ANDREA | C56: =IF('Dati Generali CER 1 Sem. 2025'!E49="","",SUM('Dati Generali CER 1 Sem. 2025'!E49+'Dati Generali CER 1 Sem. 2025'!R49+'Dati Generali CER 1 Sem. 2025'!S49+'Dati Generali CER 1 Sem. 2025'!T49)) -> 40060 | D56: =IF(C56="","",'Dati Generali CER 1 Sem. 2025'!CE49) -> 138579 | E56: ='Dati Generali CER 1 Sem. 2025'!W49 -> 0.7757488566 | F56: =IF('Dati Generali CER 1 Sem. 2025'!CF49="","",'Dati Generali CER 1 Sem. 2025'!CF49) -> 0.6960196059 | G56: =IF('Dati Generali CER 1 Sem. 2025'!CG49="","",'Dati Generali CER 1 Sem. 2025'!CG49) -> 0.1560831924 | H56: =IF('Dati Generali CER 1 Sem. 2025'!CH49="","",'Dati Generali CER 1 Sem. 2025'!CH49) -> 0.5399364134 | I56: ='Dati Generali CER 1 Sem. 2025'!D49 -> 1418 | J56: =IF('Dati Generali CER 1 Sem. 2025'!CJ49="","",'Dati Generali CER 1 Sem. 2025'!CJ49) -> 2025-08-19T11:29:04
A57: 48 | B57: ='Dati Generali CER 1 Sem. 2025'!C50 -> MERI' | C57: =IF('Dati Generali CER 1 Sem. 2025'!E50="","",SUM('Dati Generali CER 1 Sem. 2025'!E50+'Dati Generali CER 1 Sem. 2025'!R50+'Dati Generali CER 1 Sem. 2025'!S50+'Dati Generali CER 1 Sem. 2025'!T50)) -> 112410 | D57: =IF(C57="","",'Dati Generali CER 1 Sem. 2025'!CE50) -> 235072 | E57: ='Dati Generali CER 1 Sem. 2025'!W50 -> 0.6765012288 | F57: =IF('Dati Generali CER 1 Sem. 2025'!CF50="","",'Dati Generali CER 1 Sem. 2025'!CF50) -> 0.8155437788 | G57: =IF('Dati Generali CER 1 Sem. 2025'!CG50="","",'Dati Generali CER 1 Sem. 2025'!CG50) -> 0.2522566503 | H57: =IF('Dati Generali CER 1 Sem. 2025'!CH50="","",'Dati Generali CER 1 Sem. 2025'!CH50) -> 0.5517163685 | I57: ='Dati Generali CER 1 Sem. 2025'!D50 -> 2354 | J57: =IF('Dati Generali CER 1 Sem. 2025'!CJ50="","",'Dati Generali CER 1 Sem. 2025'!CJ50) -> 2025-10-02T10:45:27
A58: 49 | B58: ='Dati Generali CER 1 Sem. 2025'!C51 -> MESSINA | C58: =IF('Dati Generali CER 1 Sem. 2025'!E51="","",SUM('Dati Generali CER 1 Sem. 2025'!E51+'Dati Generali CER 1 Sem. 2025'!R51+'Dati Generali CER 1 Sem. 2025'!S51+'Dati Generali CER 1 Sem. 2025'!T51)) -> 20042980 | D58: =IF(C58="","",'Dati Generali CER 1 Sem. 2025'!CE51) -> 30689136 | E58: ='Dati Generali CER 1 Sem. 2025'!W51 -> 0.6049252115 | F58: =IF('Dati Generali CER 1 Sem. 2025'!CF51="","",'Dati Generali CER 1 Sem. 2025'!CF51) -> 1.292137737 | G58: =IF('Dati Generali CER 1 Sem. 2025'!CG51="","",'Dati Generali CER 1 Sem. 2025'!CG51) -> 0.5104910433 | H58: =IF('Dati Generali CER 1 Sem. 2025'!CH51="","",'Dati Generali CER 1 Sem. 2025'!CH51) -> 0.781646694 | I58: ='Dati Generali CER 1 Sem. 2025'!D51 -> 216918 | J58: =IF('Dati Generali CER 1 Sem. 2025'!CJ51="","",'Dati Generali CER 1 Sem. 2025'!CJ51) -> 2025-10-31T11:44:38
A59: 50 | B59: ='Dati Generali CER 1 Sem. 2025'!C52 -> MILAZZO | C59: =IF('Dati Generali CER 1 Sem. 2025'!E52="","",SUM('Dati Generali CER 1 Sem. 2025'!E52+'Dati Generali CER 1 Sem. 2025'!R52+'Dati Generali CER 1 Sem. 2025'!S52+'Dati Generali CER 1 Sem. 2025'!T52)) -> 2238440 | D59: =IF(C59="","",'Dati Generali CER 1 Sem. 2025'!CE52) -> 5435184 | E59: ='Dati Generali CER 1 Sem. 2025'!W52 -> 0.7082942818 | F59: =IF('Dati Generali CER 1 Sem. 2025'!CF52="","",'Dati Generali CER 1 Sem. 2025'!CF52) -> 1.42124414 | G59: =IF('Dati Generali CER 1 Sem. 2025'!CG52="","",'Dati Generali CER 1 Sem. 2025'!CG52) -> 0.4145850427 | H59: =IF('Dati Generali CER 1 Sem. 2025'!CH52="","",'Dati Generali CER 1 Sem. 2025'!CH52) -> 1.006659098 | I59: ='Dati Generali CER 1 Sem. 2025'!D52 -> 29830 | J59: =IF('Dati Generali CER 1 Sem. 2025'!CJ52="","",'Dati Generali CER 1 Sem. 2025'!CJ52) -> 2025-09-30T12:59:29
A60: 51 | B60: ='Dati Generali CER 1 Sem. 2025'!C53 -> MILITELLO ROSMARINO | C60: =IF('Dati Generali CER 1 Sem. 2025'!E53="","",SUM('Dati Generali CER 1 Sem. 2025'!E53+'Dati Generali CER 1 Sem. 2025'!R53+'Dati Generali CER 1 Sem. 2025'!S53+'Dati Generali CER 1 Sem. 2025'!T53)) -> 46570 | D60: =IF(C60="","",'Dati Generali CER 1 Sem. 2025'!CE53) -> 90862 | E60: ='Dati Generali CER 1 Sem. 2025'!W53 -> 0.66114151 | F60: =IF('Dati Generali CER 1 Sem. 2025'!CF53="","",'Dati Generali CER 1 Sem. 2025'!CF53) -> 0.6445609658 | G60: =IF('Dati Generali CER 1 Sem. 2025'!CG53="","",'Dati Generali CER 1 Sem. 2025'!CG53) -> 0.2184149556 | H60: =IF('Dati Generali CER 1 Sem. 2025'!CH53="","",'Dati Generali CER 1 Sem. 2025'!CH53) -> 0.4261460102 | I60: ='Dati Generali CER 1 Sem. 2025'!D53 -> 1178 | J60: =IF('Dati Generali CER 1 Sem. 2025'!CJ53="","",'Dati Generali CER 1 Sem. 2025'!CJ53) -> 2025-08-19T11:34:16
A61: 52 | B61: ='Dati Generali CER 1 Sem. 2025'!C54 -> MIRTO | C61: =IF('Dati Generali CER 1 Sem. 2025'!E54="","",SUM('Dati Generali CER 1 Sem. 2025'!E54+'Dati Generali CER 1 Sem. 2025'!R54+'Dati Generali CER 1 Sem. 2025'!S54+'Dati Generali CER 1 Sem. 2025'!T54)) -> 15840 | D61: =IF(C61="","",'Dati Generali CER 1 Sem. 2025'!CE54) -> 134534 | E61: ='Dati Generali CER 1 Sem. 2025'!W54 -> 0.8946626411 | F61: =IF('Dati Generali CER 1 Sem. 2025'!CF54="","",'Dati Generali CER 1 Sem. 2025'!CF54) -> 0.9637999769 | G61: =IF('Dati Generali CER 1 Sem. 2025'!CG54="","",'Dati Generali CER 1 Sem. 2025'!CG54) -> 0.101524144 | H61: =IF('Dati Generali CER 1 Sem. 2025'!CH54="","",'Dati Generali CER 1 Sem. 2025'!CH54) -> 0.8622758329 | I61: ='Dati Generali CER 1 Sem. 2025'!D54 -> 862 | J61: =IF('Dati Generali CER 1 Sem. 2025'!CJ54="","",'Dati Generali CER 1 Sem. 2025'!CJ54) -> 2025-08-19T12:42:38
A62: 53 | B62: ='Dati Generali CER 1 Sem. 2025'!C55 -> MISTRETTA | C62: =IF('Dati Generali CER 1 Sem. 2025'!E55="","",SUM('Dati Generali CER 1 Sem. 2025'!E55+'Dati Generali CER 1 Sem. 2025'!R55+'Dati Generali CER 1 Sem. 2025'!S55+'Dati Generali CER 1 Sem. 2025'!T55)) -> 210710 | D62: =IF(C62="","",'Dati Generali CER 1 Sem. 2025'!CE55) -> 530374 | E62: ='Dati Generali CER 1 Sem. 2025'!W55 -> 0.715673257 | F62: =IF('Dati Generali CER 1 Sem. 2025'!CF55="","",'Dati Generali CER 1 Sem. 2025'!CF55) -> 0.9683979991 | G62: =IF('Dati Generali CER 1 Sem. 2025'!CG55="","",'Dati Generali CER 1 Sem. 2025'!CG55) -> 0.2674095872 | H62: =IF('Dati Generali CER 1 Sem. 2025'!CH55="","",'Dati Generali CER 1 Sem. 2025'!CH55) -> 0.6930565501 | I62: ='Dati Generali CER 1 Sem. 2025'!D55 -> 4228 | J62: =IF('Dati Generali CER 1 Sem. 2025'!CJ55="","",'Dati Generali CER 1 Sem. 2025'!CJ55) -> 2025-08-19T12:45:13
A63: 54 | B63: ='Dati Generali CER 1 Sem. 2025'!C56 -> MOJO ALCANTARA | C63: =IF('Dati Generali CER 1 Sem. 2025'!E56="","",SUM('Dati Generali CER 1 Sem. 2025'!E56+'Dati Generali CER 1 Sem. 2025'!R56+'Dati Generali CER 1 Sem. 2025'!S56+'Dati Generali CER 1 Sem. 2025'!T56)) -> 42320 | D63: =IF(C63="","",'Dati Generali CER 1 Sem. 2025'!CE56) -> 46620 | E63: ='Dati Generali CER 1 Sem. 2025'!W56 -> 0.5241736002 | F63: =IF('Dati Generali CER 1 Sem. 2025'!CF56="","",'Dati Generali CER 1 Sem. 2025'!CF56) -> 0.7152565 | G63: =IF('Dati Generali CER 1 Sem. 2025'!CG56="","",'Dati Generali CER 1 Sem. 2025'!CG56) -> 0.3403379253 | H63: =IF('Dati Generali CER 1 Sem. 2025'!CH56="","",'Dati Generali CER 1 Sem. 2025'!CH56) -> 0.3749185746 | I63: ='Dati Generali CER 1 Sem. 2025'!D56 -> 687 | J63: =IF('Dati Generali CER 1 Sem. 2025'!CJ56="","",'Dati Generali CER 1 Sem. 2025'!CJ56) -> 2025-10-07T13:21:38
A64: 55 | B64: ='Dati Generali CER 1 Sem. 2025'!C57 -> MONFORTE S. GIORGIO | C64: =IF('Dati Generali CER 1 Sem. 2025'!E57="","",SUM('Dati Generali CER 1 Sem. 2025'!E57+'Dati Generali CER 1 Sem. 2025'!R57+'Dati Generali CER 1 Sem. 2025'!S57+'Dati Generali CER 1 Sem. 2025'!T57)) -> 137820 | D64: =IF(C64="","",'Dati Generali CER 1 Sem. 2025'!CE57) -> 288802 | E64: ='Dati Generali CER 1 Sem. 2025'!W57 -> 0.6769505558 | F64: =IF('Dati Generali CER 1 Sem. 2025'!CF57="","",'Dati Generali CER 1 Sem. 2025'!CF57) -> 0.9683761809 | G64: =IF('Dati Generali CER 1 Sem. 2025'!CG57="","",'Dati Generali CER 1 Sem. 2025'!CG57) -> 0.3128333871 | H64: =IF('Dati Generali CER 1 Sem. 2025'!CH57="","",'Dati Generali CER 1 Sem. 2025'!CH57) -> 0.6555427938 | I64: ='Dati Generali CER 1 Sem. 2025'!D57 -> 2434 | J64: =IF('Dati Generali CER 1 Sem. 2025'!CJ57="","",'Dati Generali CER 1 Sem. 2025'!CJ57) -> 2025-10-02T10:51:42
A65: 56 | B65: ='Dati Generali CER 1 Sem. 2025'!C58 -> MONGIUFFI MELIA | C65: =IF('Dati Generali CER 1 Sem. 2025'!E58="","",SUM('Dati Generali CER 1 Sem. 2025'!E58+'Dati Generali CER 1 Sem. 2025'!R58+'Dati Generali CER 1 Sem. 2025'!S58+'Dati Generali CER 1 Sem. 2025'!T58)) -> 23640 | D65: =IF(C65="","",'Dati Generali CER 1 Sem. 2025'!CE58) -> 45400 | E65: ='Dati Generali CER 1 Sem. 2025'!W58 -> 0.657589803 | F65: =IF('Dati Generali CER 1 Sem. 2025'!CF58="","",'Dati Generali CER 1 Sem. 2025'!CF58) -> 0.7435408657 | G65: =IF('Dati Generali CER 1 Sem. 2025'!CG58="","",'Dati Generali CER 1 Sem. 2025'!CG58) -> 0.2545959743 | H65: =IF('Dati Generali CER 1 Sem. 2025'!CH58="","",'Dati Generali CER 1 Sem. 2025'!CH58) -> 0.4889448914 | I65: ='Dati Generali CER 1 Sem. 2025'!D58 -> 513 | J65: =IF('Dati Generali CER 1 Sem. 2025'!CJ58="","",'Dati Generali CER 1 Sem. 2025'!CJ58) -> 2025-10-17T14:28:24
A66: 57 | B66: ='Dati Generali CER 1 Sem. 2025'!C59 -> MONTAGNAREALE | C66: =IF('Dati Generali CER 1 Sem. 2025'!E59="","",SUM('Dati Generali CER 1 Sem. 2025'!E59+'Dati Generali CER 1 Sem. 2025'!R59+'Dati Generali CER 1 Sem. 2025'!S59+'Dati Generali CER 1 Sem. 2025'!T59)) -> 27080 | D66: =IF(C66="","",'Dati Generali CER 1 Sem. 2025'!CE59) -> 122970 | E66: ='Dati Generali CER 1 Sem. 2025'!W59 -> 0.8195268244 | F66: =IF('Dati Generali CER 1 Sem. 2025'!CF59="","",'Dati Generali CER 1 Sem. 2025'!CF59) -> 0.6131697669 | G66: =IF('Dati Generali CER 1 Sem. 2025'!CG59="","",'Dati Generali CER 1 Sem. 2025'!CG59) -> 0.110660695 | H66: =IF('Dati Generali CER 1 Sem. 2025'!CH59="","",'Dati Generali CER 1 Sem. 2025'!CH59) -> 0.5025090719 | I66: ='Dati Generali CER 1 Sem. 2025'!D59 -> 1352 | J66: =IF('Dati Generali CER 1 Sem. 2025'!CJ59="","",'Dati Generali CER 1 Sem. 2025'!CJ59) -> 2025-10-02T11:06:32
A67: 58 | B67: ='Dati Generali CER 1 Sem. 2025'!C60 -> MONTALBANO ELICONA | C67: =IF('Dati Generali CER 1 Sem. 2025'!E60="","",SUM('Dati Generali CER 1 Sem. 2025'!E60+'Dati Generali CER 1 Sem. 2025'!R60+'Dati Generali CER 1 Sem. 2025'!S60+'Dati Generali CER 1 Sem. 2025'!T60)) -> 96200 | D67: =IF(C67="","",'Dati Generali CER 1 Sem. 2025'!CE60) -> 200221 | E67: ='Dati Generali CER 1 Sem. 2025'!W60 -> 0.6754615901 | F67: =IF('Dati Generali CER 1 Sem. 2025'!CF60="","",'Dati Generali CER 1 Sem. 2025'!CF60) -> 0.7735876631 | G67: =IF('Dati Generali CER 1 Sem. 2025'!CG60="","",'Dati Generali CER 1 Sem. 2025'!CG60) -> 0.2510589101 | H67: =IF('Dati Generali CER 1 Sem. 2025'!CH60="","",'Dati Generali CER 1 Sem. 2025'!CH60) -> 0.522528753 | I67: ='Dati Generali CER 1 Sem. 2025'!D60 -> 2117 | J67: =IF('Dati Generali CER 1 Sem. 2025'!CJ60="","",'Dati Generali CER 1 Sem. 2025'!CJ60) -> 2025-08-19T12:47:48
A68: 59 | B68: ='Dati Generali CER 1 Sem. 2025'!C61 -> MOTTA CAMASTRA | C68: =IF('Dati Generali CER 1 Sem. 2025'!E61="","",SUM('Dati Generali CER 1 Sem. 2025'!E61+'Dati Generali CER 1 Sem. 2025'!R61+'Dati Generali CER 1 Sem. 2025'!S61+'Dati Generali CER 1 Sem. 2025'!T61)) -> 37780 | D68: =IF(C68="","",'Dati Generali CER 1 Sem. 2025'!CE61) -> 96500 | E68: ='Dati Generali CER 1 Sem. 2025'!W61 -> 0.718647602 | F68: =IF('Dati Generali CER 1 Sem. 2025'!CF61="","",'Dati Generali CER 1 Sem. 2025'!CF61) -> 0.9659875691 | G68: =IF('Dati Generali CER 1 Sem. 2025'!CG61="","",'Dati Generali CER 1 Sem. 2025'!CG61) -> 0.271782919 | H68: =IF('Dati Generali CER 1 Sem. 2025'!CH61="","",'Dati Generali CER 1 Sem. 2025'!CH61) -> 0.6942046501 | I68: ='Dati Generali CER 1 Sem. 2025'!D61 -> 768 | J68: =IF('Dati Generali CER 1 Sem. 2025'!CJ61="","",'Dati Generali CER 1 Sem. 2025'!CJ61) -> 2025-10-14T11:50:00
A69: 60 | B69: ='Dati Generali CER 1 Sem. 2025'!C62 -> MOTTA D'AFFERMO | C69: =IF('Dati Generali CER 1 Sem. 2025'!E62="","",SUM('Dati Generali CER 1 Sem. 2025'!E62+'Dati Generali CER 1 Sem. 2025'!R62+'Dati Generali CER 1 Sem. 2025'!S62+'Dati Generali CER 1 Sem. 2025'!T62)) -> 0.1 | D69: =IF(C69="","",'Dati Generali CER 1 Sem. 2025'!CE62) -> 61934 | E69: ='Dati Generali CER 1 Sem. 2025'!W62 -> 0.9999983854 | F69: =IF('Dati Generali CER 1 Sem. 2025'!CF62="","",'Dati Generali CER 1 Sem. 2025'!CF62) -> 0.5296862973 | G69: =IF('Dati Generali CER 1 Sem. 2025'!CG62="","",'Dati Generali CER 1 Sem. 2025'!CG62) -> 8.552417769e-07 | H69: =IF('Dati Generali CER 1 Sem. 2025'!CH62="","",'Dati Generali CER 1 Sem. 2025'!CH62) -> 0.5296854421 | I69: ='Dati Generali CER 1 Sem. 2025'!D62 -> 646 | J69: =IF('Dati Generali CER 1 Sem. 2025'!CJ62="","",'Dati Generali CER 1 Sem. 2025'!CJ62) -> 2025-08-19T12:52:00
A70: 61 | B70: ='Dati Generali CER 1 Sem. 2025'!C63 -> NASO | C70: =IF('Dati Generali CER 1 Sem. 2025'!E63="","",SUM('Dati Generali CER 1 Sem. 2025'!E63+'Dati Generali CER 1 Sem. 2025'!R63+'Dati Generali CER 1 Sem. 2025'!S63+'Dati Generali CER 1 Sem. 2025'!T63)) -> 104750 | D70: =IF(C70="","",'Dati Generali CER 1 Sem. 2025'!CE63) -> 416421 | E70: ='Dati Generali CER 1 Sem. 2025'!W63 -> 0.7990103056 | F70: =IF('Dati Generali CER 1 Sem. 2025'!CF63="","",'Dati Generali CER 1 Sem. 2025'!CF63) -> 0.8526496269 | G70: =IF('Dati Generali CER 1 Sem. 2025'!CG63="","",'Dati Generali CER 1 Sem. 2025'!CG63) -> 0.1713737879 | H70: =IF('Dati Generali CER 1 Sem. 2025'!CH63="","",'Dati Generali CER 1 Sem. 2025'!CH63) -> 0.681275839 | I70: ='Dati Generali CER 1 Sem. 2025'!D63 -> 3377 | J70: =IF('Dati Generali CER 1 Sem. 2025'!CJ63="","",'Dati Generali CER 1 Sem. 2025'!CJ63) -> 2025-08-19T12:58:28
A71: 62 | B71: ='Dati Generali CER 1 Sem. 2025'!C64 -> NIZZA DI SICILIA | C71: =IF('Dati Generali CER 1 Sem. 2025'!E64="","",SUM('Dati Generali CER 1 Sem. 2025'!E64+'Dati Generali CER 1 Sem. 2025'!R64+'Dati Generali CER 1 Sem. 2025'!S64+'Dati Generali CER 1 Sem. 2025'!T64)) -> 167380 | D71: =IF(C71="","",'Dati Generali CER 1 Sem. 2025'!CE64) -> 423975 | E71: ='Dati Generali CER 1 Sem. 2025'!W64 -> 0.7169551285 | F71: =IF('Dati Generali CER 1 Sem. 2025'!CF64="","",'Dati Generali CER 1 Sem. 2025'!CF64) -> 0.9380289107 | G71: =IF('Dati Generali CER 1 Sem. 2025'!CG64="","",'Dati Generali CER 1 Sem. 2025'!CG64) -> 0.2655042725 | H71: =IF('Dati Generali CER 1 Sem. 2025'!CH64="","",'Dati Generali CER 1 Sem. 2025'!CH64) -> 0.6725246382 | I71: ='Dati Generali CER 1 Sem. 2025'!D64 -> 3483 | J71: =IF('Dati Generali CER 1 Sem. 2025'!CJ64="","",'Dati Generali CER 1 Sem. 2025'!CJ64) -> 2025-10-30T09:58:51
A72: 63 | B72: ='Dati Generali CER 1 Sem. 2025'!C65 -> NOVARA DI SICILIA | C72: =IF('Dati Generali CER 1 Sem. 2025'!E65="","",SUM('Dati Generali CER 1 Sem. 2025'!E65+'Dati Generali CER 1 Sem. 2025'!R65+'Dati Generali CER 1 Sem. 2025'!S65+'Dati Generali CER 1 Sem. 2025'!T65)) -> 59860 | D72: =IF(C72="","",'Dati Generali CER 1 Sem. 2025'!CE65) -> 163270 | E72: ='Dati Generali CER 1 Sem. 2025'!W65 -> 0.7317258997 | F72: =IF('Dati Generali CER 1 Sem. 2025'!CF65="","",'Dati Generali CER 1 Sem. 2025'!CF65) -> 1.147823492 | G72: =IF('Dati Generali CER 1 Sem. 2025'!CG65="","",'Dati Generali CER 1 Sem. 2025'!CG65) -> 0.3079313148 | H72: =IF('Dati Generali CER 1 Sem. 2025'!CH65="","",'Dati Generali CER 1 Sem. 2025'!CH65) -> 0.8398921777 | I72: ='Dati Generali CER 1 Sem. 2025'!D65 -> 1074 | J72: =IF('Dati Generali CER 1 Sem. 2025'!CJ65="","",'Dati Generali CER 1 Sem. 2025'!CJ65) -> 2025-08-20T07:45:16
A73: 64 | B73: ='Dati Generali CER 1 Sem. 2025'!C66 -> OLIVERI | C73: =IF('Dati Generali CER 1 Sem. 2025'!E66="","",SUM('Dati Generali CER 1 Sem. 2025'!E66+'Dati Generali CER 1 Sem. 2025'!R66+'Dati Generali CER 1 Sem. 2025'!S66+'Dati Generali CER 1 Sem. 2025'!T66)) -> 120660 | D73: =IF(C73="","",'Dati Generali CER 1 Sem. 2025'!CE66) -> 543528 | E73: ='Dati Generali CER 1 Sem. 2025'!W66 -> 0.8183345679 | F73: =IF('Dati Generali CER 1 Sem. 2025'!CF66="","",'Dati Generali CER 1 Sem. 2025'!CF66) -> 1.664948712 | G73: =IF('Dati Generali CER 1 Sem. 2025'!CG66="","",'Dati Generali CER 1 Sem. 2025'!CG66) -> 0.3024636272 | H73: =IF('Dati Generali CER 1 Sem. 2025'!CH66="","",'Dati Generali CER 1 Sem. 2025'!CH66) -> 1.362485085 | I73: ='Dati Generali CER 1 Sem. 2025'!D66 -> 2204 | J73: =IF('Dati Generali CER 1 Sem. 2025'!CJ66="","",'Dati Generali CER 1 Sem. 2025'!CJ66) -> 2025-08-20T07:47:02
A74: 65 | B74: ='Dati Generali CER 1 Sem. 2025'!C67 -> PACE DEL MELA | C74: =IF('Dati Generali CER 1 Sem. 2025'!E67="","",SUM('Dati Generali CER 1 Sem. 2025'!E67+'Dati Generali CER 1 Sem. 2025'!R67+'Dati Generali CER 1 Sem. 2025'!S67+'Dati Generali CER 1 Sem. 2025'!T67)) -> 399900 | D74: =IF(C74="","",'Dati Generali CER 1 Sem. 2025'!CE67) -> 810162 | E74: ='Dati Generali CER 1 Sem. 2025'!W67 -> 0.6695210659 | F74: =IF('Dati Generali CER 1 Sem. 2025'!CF67="","",'Dati Generali CER 1 Sem. 2025'!CF67) -> 1.120024362 | G74: =IF('Dati Generali CER 1 Sem. 2025'!CG67="","",'Dati Generali CER 1 Sem. 2025'!CG67) -> 0.3701444572 | H74: =IF('Dati Generali CER 1 Sem. 2025'!CH67="","",'Dati Generali CER 1 Sem. 2025'!CH67) -> 0.7498799044 | I74: ='Dati Generali CER 1 Sem. 2025'!D67 -> 5969 | J74: =IF('Dati Generali CER 1 Sem. 2025'!CJ67="","",'Dati Generali CER 1 Sem. 2025'!CJ67) -> 2025-11-04T07:48:13
A75: 66 | B75: ='Dati Generali CER 1 Sem. 2025'!C68 -> PAGLIARA | C75: =IF('Dati Generali CER 1 Sem. 2025'!E68="","",SUM('Dati Generali CER 1 Sem. 2025'!E68+'Dati Generali CER 1 Sem. 2025'!R68+'Dati Generali CER 1 Sem. 2025'!S68+'Dati Generali CER 1 Sem. 2025'!T68)) -> 30840 | D75: =IF(C75="","",'Dati Generali CER 1 Sem. 2025'!CE68) -> 105300 | E75: ='Dati Generali CER 1 Sem. 2025'!W68 -> 0.7734684883 | F75: =IF('Dati Generali CER 1 Sem. 2025'!CF68="","",'Dati Generali CER 1 Sem. 2025'!CF68) -> 0.6733703636 | G75: =IF('Dati Generali CER 1 Sem. 2025'!CG68="","",'Dati Generali CER 1 Sem. 2025'!CG68) -> 0.1525396064 | H75: =IF('Dati Generali CER 1 Sem. 2025'!CH68="","",'Dati Generali CER 1 Sem. 2025'!CH68) -> 0.5208307572 | I75: ='Dati Generali CER 1 Sem. 2025'!D68 -> 1117 | J75: =IF('Dati Generali CER 1 Sem. 2025'!CJ68="","",'Dati Generali CER 1 Sem. 2025'!CJ68) -> 2025-08-20T08:01:17
A76: 67 | B76: ='Dati Generali CER 1 Sem. 2025'!C69 -> PATTI | C76: =IF('Dati Generali CER 1 Sem. 2025'!E69="","",SUM('Dati Generali CER 1 Sem. 2025'!E69+'Dati Generali CER 1 Sem. 2025'!R69+'Dati Generali CER 1 Sem. 2025'!S69+'Dati Generali CER 1 Sem. 2025'!T69)) -> 1009060 | D76: =IF(C76="","",'Dati Generali CER 1 Sem. 2025'!CE69) -> 1854887 | E76: ='Dati Generali CER 1 Sem. 2025'!W69 -> 0.6476680609 | F76: =IF('Dati Generali CER 1 Sem. 2025'!CF69="","",'Dati Generali CER 1 Sem. 2025'!CF69) -> 1.248454442 | G76: =IF('Dati Generali CER 1 Sem. 2025'!CG69="","",'Dati Generali CER 1 Sem. 2025'!CG69) -> 0.4398703746 | H76: =IF('Dati Generali CER 1 Sem. 2025'!CH69="","",'Dati Generali CER 1 Sem. 2025'!CH69) -> 0.8085840678 | I76: ='Dati Generali CER 1 Sem. 2025'!D69 -> 12674 | J76: =IF('Dati Generali CER 1 Sem. 2025'!CJ69="","",'Dati Generali CER 1 Sem. 2025'!CJ69) -> 2025-08-26T08:00:20
A77: 68 | B77: ='Dati Generali CER 1 Sem. 2025'!C70 -> PETTINEO | C77: =IF('Dati Generali CER 1 Sem. 2025'!E70="","",SUM('Dati Generali CER 1 Sem. 2025'!E70+'Dati Generali CER 1 Sem. 2025'!R70+'Dati Generali CER 1 Sem. 2025'!S70+'Dati Generali CER 1 Sem. 2025'!T70)) -> 0.1 | D77: =IF(C77="","",'Dati Generali CER 1 Sem. 2025'!CE70) -> 133122 | E77: ='Dati Generali CER 1 Sem. 2025'!W70 -> 0.9999992488 | F77: =IF('Dati Generali CER 1 Sem. 2025'!CF70="","",'Dati Generali CER 1 Sem. 2025'!CF70) -> 0.5940882193 | G77: =IF('Dati Generali CER 1 Sem. 2025'!CG70="","",'Dati Generali CER 1 Sem. 2025'!CG70) -> 4.462731727e-07 | H77: =IF('Dati Generali CER 1 Sem. 2025'!CH70="","",'Dati Generali CER 1 Sem. 2025'!CH70) -> 0.594087773 | I77: ='Dati Generali CER 1 Sem. 2025'!D70 -> 1238 | J77: =IF('Dati Generali CER 1 Sem. 2025'!CJ70="","",'Dati Generali CER 1 Sem. 2025'!CJ70) -> 2025-08-20T07:53:09
A78: 69 | B78: ='Dati Generali CER 1 Sem. 2025'!C71 -> PIRAINO | C78: =IF('Dati Generali CER 1 Sem. 2025'!E71="","",SUM('Dati Generali CER 1 Sem. 2025'!E71+'Dati Generali CER 1 Sem. 2025'!R71+'Dati Generali CER 1 Sem. 2025'!S71+'Dati Generali CER 1 Sem. 2025'!T71)) -> 167980 | D78: =IF(C78="","",'Dati Generali CER 1 Sem. 2025'!CE71) -> 511369 | E78: ='Dati Generali CER 1 Sem. 2025'!W71 -> 0.7527338673 | F78: =IF('Dati Generali CER 1 Sem. 2025'!CF71="","",'Dati Generali CER 1 Sem. 2025'!CF71) -> 1.002218796 | G78: =IF('Dati Generali CER 1 Sem. 2025'!CG71="","",'Dati Generali CER 1 Sem. 2025'!CG71) -> 0.2478147659 | H78: =IF('Dati Generali CER 1 Sem. 2025'!CH71="","",'Dati Generali CER 1 Sem. 2025'!CH71) -> 0.7544040304 | I78: ='Dati Generali CER 1 Sem. 2025'!D71 -> 3745 | J78: =IF('Dati Generali CER 1 Sem. 2025'!CJ71="","",'Dati Generali CER 1 Sem. 2025'!CJ71) -> 2025-08-20T08:05:52
A79: 70 | B79: ='Dati Generali CER 1 Sem. 2025'!C72 -> RACCUJA | C79: =IF('Dati Generali CER 1 Sem. 2025'!E72="","",SUM('Dati Generali CER 1 Sem. 2025'!E72+'Dati Generali CER 1 Sem. 2025'!R72+'Dati Generali CER 1 Sem. 2025'!S72+'Dati Generali CER 1 Sem. 2025'!T72)) -> 31500 | D79: =IF(C79="","",'Dati Generali CER 1 Sem. 2025'!CE72) -> 80754 | E79: ='Dati Generali CER 1 Sem. 2025'!W72 -> 0.7193863916 | F79: =IF('Dati Generali CER 1 Sem. 2025'!CF72="","",'Dati Generali CER 1 Sem. 2025'!CF72) -> 0.7418514896 | G79: =IF('Dati Generali CER 1 Sem. 2025'!CG72="","",'Dati Generali CER 1 Sem. 2025'!CG72) -> 0.2081736234 | H79: =IF('Dati Generali CER 1 Sem. 2025'!CH72="","",'Dati Generali CER 1 Sem. 2025'!CH72) -> 0.5336778662 | I79: ='Dati Generali CER 1 Sem. 2025'!D72 -> 836 | J79: =IF('Dati Generali CER 1 Sem. 2025'!CJ72="","",'Dati Generali CER 1 Sem. 2025'!CJ72) -> 2025-08-20T08:10:53
A80: 71 | B80: ='Dati Generali CER 1 Sem. 2025'!C73 -> REITANO | C80: =IF('Dati Generali CER 1 Sem. 2025'!E73="","",SUM('Dati Generali CER 1 Sem. 2025'!E73+'Dati Generali CER 1 Sem. 2025'!R73+'Dati Generali CER 1 Sem. 2025'!S73+'Dati Generali CER 1 Sem. 2025'!T73)) -> 61020 | D80: =IF(C80="","",'Dati Generali CER 1 Sem. 2025'!CE73) -> 209820 | E80: ='Dati Generali CER 1 Sem. 2025'!W73 -> 0.7747009304 | F80: =IF('Dati Generali CER 1 Sem. 2025'!CF73="","",'Dati Generali CER 1 Sem. 2025'!CF73) -> 2.092802225 | G80: =IF('Dati Generali CER 1 Sem. 2025'!CG73="","",'Dati Generali CER 1 Sem. 2025'!CG73) -> 0.4715063942 | H80: =IF('Dati Generali CER 1 Sem. 2025'!CH73="","",'Dati Generali CER 1 Sem. 2025'!CH73) -> 1.621295831 | I80: ='Dati Generali CER 1 Sem. 2025'!D73 -> 715 | J80: =IF('Dati Generali CER 1 Sem. 2025'!CJ73="","",'Dati Generali CER 1 Sem. 2025'!CJ73) -> 2025-09-16T10:04:27
A81: 72 | B81: ='Dati Generali CER 1 Sem. 2025'!C74 -> ROCCAFIORITA | C81: =IF('Dati Generali CER 1 Sem. 2025'!E74="","",SUM('Dati Generali CER 1 Sem. 2025'!E74+'Dati Generali CER 1 Sem. 2025'!R74+'Dati Generali CER 1 Sem. 2025'!S74+'Dati Generali CER 1 Sem. 2025'!T74)) -> 3000 | D81: =IF(C81="","",'Dati Generali CER 1 Sem. 2025'!CE74) -> 13899 | E81: ='Dati Generali CER 1 Sem. 2025'!W74 -> 0.8224747026 | F81: =IF('Dati Generali CER 1 Sem. 2025'!CF74="","",'Dati Generali CER 1 Sem. 2025'!CF74) -> 0.5835290055 | G81: =IF('Dati Generali CER 1 Sem. 2025'!CG74="","",'Dati Generali CER 1 Sem. 2025'!CG74) -> 0.1035911602 | H81: =IF('Dati Generali CER 1 Sem. 2025'!CH74="","",'Dati Generali CER 1 Sem. 2025'!CH74) -> 0.4799378453 | I81: ='Dati Generali CER 1 Sem. 2025'!D74 -> 160 | J81: =IF('Dati Generali CER 1 Sem. 2025'!CJ74="","",'Dati Generali CER 1 Sem. 2025'!CJ74) -> 2025-08-20T08:12:51
A82: 73 | B82: ='Dati Generali CER 1 Sem. 2025'!C75 -> ROCCALUMERA | C82: =IF('Dati Generali CER 1 Sem. 2025'!E75="","",SUM('Dati Generali CER 1 Sem. 2025'!E75+'Dati Generali CER 1 Sem. 2025'!R75+'Dati Generali CER 1 Sem. 2025'!S75+'Dati Generali CER 1 Sem. 2025'!T75)) -> 200650 | D82: =IF(C82="","",'Dati Generali CER 1 Sem. 2025'!CE75) -> 698475 | E82: ='Dati Generali CER 1 Sem. 2025'!W75 -> 0.7768385931 | F82: =IF('Dati Generali CER 1 Sem. 2025'!CF75="","",'Dati Generali CER 1 Sem. 2025'!CF75) -> 1.196997936 | G82: =IF('Dati Generali CER 1 Sem. 2025'!CG75="","",'Dati Generali CER 1 Sem. 2025'!CG75) -> 0.2671237436 | H82: =IF('Dati Generali CER 1 Sem. 2025'!CH75="","",'Dati Generali CER 1 Sem. 2025'!CH75) -> 0.9298741929 | I82: ='Dati Generali CER 1 Sem. 2025'!D75 -> 4150 | J82: =IF('Dati Generali CER 1 Sem. 2025'!CJ75="","",'Dati Generali CER 1 Sem. 2025'!CJ75) -> 2025-10-14T11:54:24
A83: 74 | B83: ='Dati Generali CER 1 Sem. 2025'!C76 -> ROCCAVALDINA | C83: =IF('Dati Generali CER 1 Sem. 2025'!E76="","",SUM('Dati Generali CER 1 Sem. 2025'!E76+'Dati Generali CER 1 Sem. 2025'!R76+'Dati Generali CER 1 Sem. 2025'!S76+'Dati Generali CER 1 Sem. 2025'!T76)) -> 78400 | D83: =IF(C83="","",'Dati Generali CER 1 Sem. 2025'!CE76) -> 70560 | E83: ='Dati Generali CER 1 Sem. 2025'!W76 -> 0.4736842105 | F83: =IF('Dati Generali CER 1 Sem. 2025'!CF76="","",'Dati Generali CER 1 Sem. 2025'!CF76) -> 0.8304575433 | G83: =IF('Dati Generali CER 1 Sem. 2025'!CG76="","",'Dati Generali CER 1 Sem. 2025'!CG76) -> 0.4370829175 | H83: =IF('Dati Generali CER 1 Sem. 2025'!CH76="","",'Dati Generali CER 1 Sem. 2025'!CH76) -> 0.3933746258 | I83: ='Dati Generali CER 1 Sem. 2025'!D76 -> 991 | J83: =IF('Dati Generali CER 1 Sem. 2025'!CJ76="","",'Dati Generali CER 1 Sem. 2025'!CJ76) -> 2025-08-20T10:36:35
A84: 75 | B84: ='Dati Generali CER 1 Sem. 2025'!C77 -> ROCCELLA VALDEMONE | C84: =IF('Dati Generali CER 1 Sem. 2025'!E77="","",SUM('Dati Generali CER 1 Sem. 2025'!E77+'Dati Generali CER 1 Sem. 2025'!R77+'Dati Generali CER 1 Sem. 2025'!S77+'Dati Generali CER 1 Sem. 2025'!T77)) -> 42740 | D84: =IF(C84="","",'Dati Generali CER 1 Sem. 2025'!CE77) -> 38911 | E84: ='Dati Generali CER 1 Sem. 2025'!W77 -> 0.4765526448 | F84: =IF('Dati Generali CER 1 Sem. 2025'!CF77="","",'Dati Generali CER 1 Sem. 2025'!CF77) -> 0.838495348 | G84: =IF('Dati Generali CER 1 Sem. 2025'!CG77="","",'Dati Generali CER 1 Sem. 2025'!CG77) -> 0.4389081723 | H84: =IF('Dati Generali CER 1 Sem. 2025'!CH77="","",'Dati Generali CER 1 Sem. 2025'!CH77) -> 0.3995871757 | I84: ='Dati Generali CER 1 Sem. 2025'!D77 -> 538 | J84: =IF('Dati Generali CER 1 Sem. 2025'!CJ77="","",'Dati Generali CER 1 Sem. 2025'!CJ77) -> 2025-10-03T10:49:40
A85: 76 | B85: ='Dati Generali CER 1 Sem. 2025'!C78 -> RODI' MILICI | C85: =IF('Dati Generali CER 1 Sem. 2025'!E78="","",SUM('Dati Generali CER 1 Sem. 2025'!E78+'Dati Generali CER 1 Sem. 2025'!R78+'Dati Generali CER 1 Sem. 2025'!S78+'Dati Generali CER 1 Sem. 2025'!T78)) -> 75600 | D85: =IF(C85="","",'Dati Generali CER 1 Sem. 2025'!CE78) -> 220250 | E85: ='Dati Generali CER 1 Sem. 2025'!W78 -> 0.7444651006 | F85: =IF('Dati Generali CER 1 Sem. 2025'!CF78="","",'Dati Generali CER 1 Sem. 2025'!CF78) -> 0.8373618785 | G85: =IF('Dati Generali CER 1 Sem. 2025'!CG78="","",'Dati Generali CER 1 Sem. 2025'!CG78) -> 0.2139751834 | H85: =IF('Dati Generali CER 1 Sem. 2025'!CH78="","",'Dati Generali CER 1 Sem. 2025'!CH78) -> 0.623386695 | I85: ='Dati Generali CER 1 Sem. 2025'!D78 -> 1952 | J85: =IF('Dati Generali CER 1 Sem. 2025'!CJ78="","",'Dati Generali CER 1 Sem. 2025'!CJ78) -> 2025-08-20T10:40:34
A86: 77 | B86: ='Dati Generali CER 1 Sem. 2025'!C79 -> ROMETTA | C86: =IF('Dati Generali CER 1 Sem. 2025'!E79="","",SUM('Dati Generali CER 1 Sem. 2025'!E79+'Dati Generali CER 1 Sem. 2025'!R79+'Dati Generali CER 1 Sem. 2025'!S79+'Dati Generali CER 1 Sem. 2025'!T79)) -> 202260 | D86: =IF(C86="","",'Dati Generali CER 1 Sem. 2025'!CE79) -> 846132 | E86: ='Dati Generali CER 1 Sem. 2025'!W79 -> 0.8070759792 | F86: =IF('Dati Generali CER 1 Sem. 2025'!CF79="","",'Dati Generali CER 1 Sem. 2025'!CF79) -> 0.8851193451 | G86: =IF('Dati Generali CER 1 Sem. 2025'!CG79="","",'Dati Generali CER 1 Sem. 2025'!CG79) -> 0.1707607829 | H86: =IF('Dati Generali CER 1 Sem. 2025'!CH79="","",'Dati Generali CER 1 Sem. 2025'!CH79) -> 0.7143585622 | I86: ='Dati Generali CER 1 Sem. 2025'!D79 -> 6544 | J86: =IF('Dati Generali CER 1 Sem. 2025'!CJ79="","",'Dati Generali CER 1 Sem. 2025'!CJ79) -> 2025-10-03T09:39:04
A87: 78 | B87: ='Dati Generali CER 1 Sem. 2025'!C82 -> S. AGATA DI MILITELLO | C87: =IF('Dati Generali CER 1 Sem. 2025'!E82="","",SUM('Dati Generali CER 1 Sem. 2025'!E82+'Dati Generali CER 1 Sem. 2025'!R82+'Dati Generali CER 1 Sem. 2025'!S82+'Dati Generali CER 1 Sem. 2025'!T82)) -> 782760 | D87: =IF(C87="","",'Dati Generali CER 1 Sem. 2025'!CE82) -> 1902354 | E87: ='Dati Generali CER 1 Sem. 2025'!W82 -> 0.7084816511 | F87: =IF('Dati Generali CER 1 Sem. 2025'!CF82="","",'Dati Generali CER 1 Sem. 2025'!CF82) -> 1.232542703 | G87: =IF('Dati Generali CER 1 Sem. 2025'!CG82="","",'Dati Generali CER 1 Sem. 2025'!CG82) -> 0.3593088139 | H87: =IF('Dati Generali CER 1 Sem. 2025'!CH82="","",'Dati Generali CER 1 Sem. 2025'!CH82) -> 0.8732338895 | I87: ='Dati Generali CER 1 Sem. 2025'!D82 -> 12036 | J87: =IF('Dati Generali CER 1 Sem. 2025'!CJ82="","",'Dati Generali CER 1 Sem. 2025'!CJ82) -> 2025-08-20T10:44:32
A88: 79 | B88: ='Dati Generali CER 1 Sem. 2025'!C93 -> S. ALESSIO SICULO | C88: =IF('Dati Generali CER 1 Sem. 2025'!E93="","",SUM('Dati Generali CER 1 Sem. 2025'!E93+'Dati Generali CER 1 Sem. 2025'!R93+'Dati Generali CER 1 Sem. 2025'!S93+'Dati Generali CER 1 Sem. 2025'!T93)) -> 181620 | D88: =IF(C88="","",'Dati Generali CER 1 Sem. 2025'!CE93) -> 230474 | E88: ='Dati Generali CER 1 Sem. 2025'!W93 -> 0.559275311 | F88: =IF('Dati Generali CER 1 Sem. 2025'!CF93="","",'Dati Generali CER 1 Sem. 2025'!CF93) -> 1.469827263 | G88: =IF('Dati Generali CER 1 Sem. 2025'!CG93="","",'Dati Generali CER 1 Sem. 2025'!CG93) -> 0.6477891636 | H88: =IF('Dati Generali CER 1 Sem. 2025'!CH93="","",'Dati Generali CER 1 Sem. 2025'!CH93) -> 0.8220380998 | I88: ='Dati Generali CER 1 Sem. 2025'!D93 -> 1549 | J88: =IF('Dati Generali CER 1 Sem. 2025'!CJ93="","",'Dati Generali CER 1 Sem. 2025'!CJ93) -> 2025-08-20T12:11:49
A89: 80 | B89: ='Dati Generali CER 1 Sem. 2025'!C92 -> S. ANGELO DI BROLO | C89: =IF('Dati Generali CER 1 Sem. 2025'!E92="","",SUM('Dati Generali CER 1 Sem. 2025'!E92+'Dati Generali CER 1 Sem. 2025'!R92+'Dati Generali CER 1 Sem. 2025'!S92+'Dati Generali CER 1 Sem. 2025'!T92)) -> 71260 | D89: =IF(C89="","",'Dati Generali CER 1 Sem. 2025'!CE92) -> 365879 | E89: ='Dati Generali CER 1 Sem. 2025'!W92 -> 0.8369854897 | F89: =IF('Dati Generali CER 1 Sem. 2025'!CF92="","",'Dati Generali CER 1 Sem. 2025'!CF92) -> 0.9011688794 | G89: =IF('Dati Generali CER 1 Sem. 2025'!CG92="","",'Dati Generali CER 1 Sem. 2025'!CG92) -> 0.1469036035 | H89: =IF('Dati Generali CER 1 Sem. 2025'!CH92="","",'Dati Generali CER 1 Sem. 2025'!CH92) -> 0.7542652758 | I89: ='Dati Generali CER 1 Sem. 2025'!D92 -> 2680 | J89: =IF('Dati Generali CER 1 Sem. 2025'!CJ92="","",'Dati Generali CER 1 Sem. 2025'!CJ92) -> 2025-08-20T12:14:52
A90: 81 | B90: ='Dati Generali CER 1 Sem. 2025'!C80 -> S. DOMENICA VITTORIA | C90: =IF('Dati Generali CER 1 Sem. 2025'!E80="","",SUM('Dati Generali CER 1 Sem. 2025'!E80+'Dati Generali CER 1 Sem. 2025'!R80+'Dati Generali CER 1 Sem. 2025'!S80+'Dati Generali CER 1 Sem. 2025'!T80)) -> 62620 | D90: =IF(C90="","",'Dati Generali CER 1 Sem. 2025'!CE80) -> 78730 | E90: ='Dati Generali CER 1 Sem. 2025'!W80 -> 0.5569862045 | F90: =IF('Dati Generali CER 1 Sem. 2025'!CF80="","",'Dati Generali CER 1 Sem. 2025'!CF80) -> 0.9133792123 | G90: =IF('Dati Generali CER 1 Sem. 2025'!CG80="","",'Dati Generali CER 1 Sem. 2025'!CG80) -> 0.4046395916 | H90: =IF('Dati Generali CER 1 Sem. 2025'!CH80="","",'Dati Generali CER 1 Sem. 2025'!CH80) -> 0.5087396207 | I90: ='Dati Generali CER 1 Sem. 2025'!D80 -> 855 | J90: =IF('Dati Generali CER 1 Sem. 2025'!CJ80="","",'Dati Generali CER 1 Sem. 2025'!CJ80) -> 2025-10-27T08:16:28
A91: 82 | B91: ='Dati Generali CER 1 Sem. 2025'!C85 -> S. FILIPPO DEL MELA | C91: =IF('Dati Generali CER 1 Sem. 2025'!E85="","",SUM('Dati Generali CER 1 Sem. 2025'!E85+'Dati Generali CER 1 Sem. 2025'!R85+'Dati Generali CER 1 Sem. 2025'!S85+'Dati Generali CER 1 Sem. 2025'!T85)) -> 239560 | D91: =IF(C91="","",'Dati Generali CER 1 Sem. 2025'!CE85) -> 973021 | E91: ='Dati Generali CER 1 Sem. 2025'!W85 -> 0.8024379402 | F91: =IF('Dati Generali CER 1 Sem. 2025'!CF85="","",'Dati Generali CER 1 Sem. 2025'!CF85) -> 1.006360604 | G91: =IF('Dati Generali CER 1 Sem. 2025'!CG85="","",'Dati Generali CER 1 Sem. 2025'!CG85) -> 0.1988186738 | H91: =IF('Dati Generali CER 1 Sem. 2025'!CH85="","",'Dati Generali CER 1 Sem. 2025'!CH85) -> 0.8075419303 | I91: ='Dati Generali CER 1 Sem. 2025'!D85 -> 6657 | J91: =IF('Dati Generali CER 1 Sem. 2025'!CJ85="","",'Dati Generali CER 1 Sem. 2025'!CJ85) -> 2025-09-08T08:41:46
A92: 83 | B92: ='Dati Generali CER 1 Sem. 2025'!C90 -> S. SALVAT. DI FITALIA | C92: =IF('Dati Generali CER 1 Sem. 2025'!E90="","",SUM('Dati Generali CER 1 Sem. 2025'!E90+'Dati Generali CER 1 Sem. 2025'!R90+'Dati Generali CER 1 Sem. 2025'!S90+'Dati Generali CER 1 Sem. 2025'!T90)) -> 28150 | D92: =IF(C92="","",'Dati Generali CER 1 Sem. 2025'!CE90) -> 109668 | E92: ='Dati Generali CER 1 Sem. 2025'!W90 -> 0.7957451131 | F92: =IF('Dati Generali CER 1 Sem. 2025'!CF90="","",'Dati Generali CER 1 Sem. 2025'!CF90) -> 0.6847350849 | G92: =IF('Dati Generali CER 1 Sem. 2025'!CG90="","",'Dati Generali CER 1 Sem. 2025'!CG90) -> 0.1398604873 | H92: =IF('Dati Generali CER 1 Sem. 2025'!CH90="","",'Dati Generali CER 1 Sem. 2025'!CH90) -> 0.5448745976 | I92: ='Dati Generali CER 1 Sem. 2025'!D90 -> 1112 | J92: =IF('Dati Generali CER 1 Sem. 2025'!CJ90="","",'Dati Generali CER 1 Sem. 2025'!CJ90) -> 2025-08-22T08:59:16
A93: 84 | B93: ='Dati Generali CER 1 Sem. 2025'!C81 -> S. STEF. DI CAMASTRA | C93: =IF('Dati Generali CER 1 Sem. 2025'!E81="","",SUM('Dati Generali CER 1 Sem. 2025'!E81+'Dati Generali CER 1 Sem. 2025'!R81+'Dati Generali CER 1 Sem. 2025'!S81+'Dati Generali CER 1 Sem. 2025'!T81)) -> 245220 | D93: =IF(C93="","",'Dati Generali CER 1 Sem. 2025'!CE81) -> 723230 | E93: ='Dati Generali CER 1 Sem. 2025'!W81 -> 0.7467912644 | F93: =IF('Dati Generali CER 1 Sem. 2025'!CF81="","",'Dati Generali CER 1 Sem. 2025'!CF81) -> 1.228317834 | G93: =IF('Dati Generali CER 1 Sem. 2025'!CG81="","",'Dati Generali CER 1 Sem. 2025'!CG81) -> 0.3110208057 | H93: =IF('Dati Generali CER 1 Sem. 2025'!CH81="","",'Dati Generali CER 1 Sem. 2025'!CH81) -> 0.9172970285 | I93: ='Dati Generali CER 1 Sem. 2025'!D81 -> 4356 | J93: =IF('Dati Generali CER 1 Sem. 2025'!CJ81="","",'Dati Generali CER 1 Sem. 2025'!CJ81) -> 2025-08-22T10:12:52
A94: 85 | B94: ='Dati Generali CER 1 Sem. 2025'!C84 -> S. TERESA DI RIVA | C94: =IF('Dati Generali CER 1 Sem. 2025'!E84="","",SUM('Dati Generali CER 1 Sem. 2025'!E84+'Dati Generali CER 1 Sem. 2025'!R84+'Dati Generali CER 1 Sem. 2025'!S84+'Dati Generali CER 1 Sem. 2025'!T84)) -> 341300 | D94: =IF(C94="","",'Dati Generali CER 1 Sem. 2025'!CE84) -> 1314027 | E94: ='Dati Generali CER 1 Sem. 2025'!W84 -> 0.7938171733 | F94: =IF('Dati Generali CER 1 Sem. 2025'!CF84="","",'Dati Generali CER 1 Sem. 2025'!CF84) -> 0.9940709825 | G94: =IF('Dati Generali CER 1 Sem. 2025'!CG84="","",'Dati Generali CER 1 Sem. 2025'!CG84) -> 0.2049603651 | H94: =IF('Dati Generali CER 1 Sem. 2025'!CH84="","",'Dati Generali CER 1 Sem. 2025'!CH84) -> 0.7891106173 | I94: ='Dati Generali CER 1 Sem. 2025'!D84 -> 9200 | J94: =IF('Dati Generali CER 1 Sem. 2025'!CJ84="","",'Dati Generali CER 1 Sem. 2025'!CJ84) -> 2025-09-09T14:36:36
A95: 86 | B95: ='Dati Generali CER 1 Sem. 2025'!C86 -> SAN FRATELLO | C95: =IF('Dati Generali CER 1 Sem. 2025'!E86="","",SUM('Dati Generali CER 1 Sem. 2025'!E86+'Dati Generali CER 1 Sem. 2025'!R86+'Dati Generali CER 1 Sem. 2025'!S86+'Dati Generali CER 1 Sem. 2025'!T86)) -> 114780 | D95: =IF(C95="","",'Dati Generali CER 1 Sem. 2025'!CE86) -> 288792 | E95: ='Dati Generali CER 1 Sem. 2025'!W86 -> 0.7155897832 | F95: =IF('Dati Generali CER 1 Sem. 2025'!CF86="","",'Dati Generali CER 1 Sem. 2025'!CF86) -> 0.6991782872 | G95: =IF('Dati Generali CER 1 Sem. 2025'!CG86="","",'Dati Generali CER 1 Sem. 2025'!CG86) -> 0.1988534482 | H95: =IF('Dati Generali CER 1 Sem. 2025'!CH86="","",'Dati Generali CER 1 Sem. 2025'!CH86) -> 0.500324839 | I95: ='Dati Generali CER 1 Sem. 2025'!D86 -> 3189 | J95: =IF('Dati Generali CER 1 Sem. 2025'!CJ86="","",'Dati Generali CER 1 Sem. 2025'!CJ86) -> 2025-08-22T08:50:45
A96: 87 | B96: ='Dati Generali CER 1 Sem. 2025'!C87 -> SAN MARCO D'ALUNZIO | C96: =IF('Dati Generali CER 1 Sem. 2025'!E87="","",SUM('Dati Generali CER 1 Sem. 2025'!E87+'Dati Generali CER 1 Sem. 2025'!R87+'Dati Generali CER 1 Sem. 2025'!S87+'Dati Generali CER 1 Sem. 2025'!T87)) -> 61090 | D96: =IF(C96="","",'Dati Generali CER 1 Sem. 2025'!CE87) -> 205264 | E96: ='Dati Generali CER 1 Sem. 2025'!W87 -> 0.7706435796 | F96: =IF('Dati Generali CER 1 Sem. 2025'!CF87="","",'Dati Generali CER 1 Sem. 2025'!CF87) -> 0.8207300952 | G96: =IF('Dati Generali CER 1 Sem. 2025'!CG87="","",'Dati Generali CER 1 Sem. 2025'!CG87) -> 0.1882397168 | H96: =IF('Dati Generali CER 1 Sem. 2025'!CH87="","",'Dati Generali CER 1 Sem. 2025'!CH87) -> 0.6324903785 | I96: ='Dati Generali CER 1 Sem. 2025'!D87 -> 1793 | J96: =IF('Dati Generali CER 1 Sem. 2025'!CJ87="","",'Dati Generali CER 1 Sem. 2025'!CJ87) -> 2025-08-21T09:26:27
A97: 88 | B97: ='Dati Generali CER 1 Sem. 2025'!C88 -> SAN PIER NICETO | C97: =IF('Dati Generali CER 1 Sem. 2025'!E88="","",SUM('Dati Generali CER 1 Sem. 2025'!E88+'Dati Generali CER 1 Sem. 2025'!R88+'Dati Generali CER 1 Sem. 2025'!S88+'Dati Generali CER 1 Sem. 2025'!T88)) -> 174240 | D97: =IF(C97="","",'Dati Generali CER 1 Sem. 2025'!CE88) -> 273707 | E97: ='Dati Generali CER 1 Sem. 2025'!W88 -> 0.6110254115 | F97: =IF('Dati Generali CER 1 Sem. 2025'!CF88="","",'Dati Generali CER 1 Sem. 2025'!CF88) -> 0.9728165503 | G97: =IF('Dati Generali CER 1 Sem. 2025'!CG88="","",'Dati Generali CER 1 Sem. 2025'!CG88) -> 0.3784009173 | H97: =IF('Dati Generali CER 1 Sem. 2025'!CH88="","",'Dati Generali CER 1 Sem. 2025'!CH88) -> 0.5944156329 | I97: ='Dati Generali CER 1 Sem. 2025'!D88 -> 2544 | J97: =IF('Dati Generali CER 1 Sem. 2025'!CJ88="","",'Dati Generali CER 1 Sem. 2025'!CJ88) -> 2025-08-21T09:47:00
A98: 89 | B98: ='Dati Generali CER 1 Sem. 2025'!C89 -> SAN PIERO PATTI | C98: =IF('Dati Generali CER 1 Sem. 2025'!E89="","",SUM('Dati Generali CER 1 Sem. 2025'!E89+'Dati Generali CER 1 Sem. 2025'!R89+'Dati Generali CER 1 Sem. 2025'!S89+'Dati Generali CER 1 Sem. 2025'!T89)) -> 125800 | D98: =IF(C98="","",'Dati Generali CER 1 Sem. 2025'!CE89) -> 428178 | E98: ='Dati Generali CER 1 Sem. 2025'!W89 -> 0.7729151699 | F98: =IF('Dati Generali CER 1 Sem. 2025'!CF89="","",'Dati Generali CER 1 Sem. 2025'!CF89) -> 1.183546765 | G98: =IF('Dati Generali CER 1 Sem. 2025'!CG89="","",'Dati Generali CER 1 Sem. 2025'!CG89) -> 0.268765516 | H98: =IF('Dati Generali CER 1 Sem. 2025'!CH89="","",'Dati Generali CER 1 Sem. 2025'!CH89) -> 0.9147812488 | I98: ='Dati Generali CER 1 Sem. 2025'!D89 -> 2586 | J98: =IF('Dati Generali CER 1 Sem. 2025'!CJ89="","",'Dati Generali CER 1 Sem. 2025'!CJ89) -> 2025-08-21T09:52:39
A99: 90 | B99: ='Dati Generali CER 1 Sem. 2025'!C91 -> SAN TEODORO | C99: =IF('Dati Generali CER 1 Sem. 2025'!E91="","",SUM('Dati Generali CER 1 Sem. 2025'!E91+'Dati Generali CER 1 Sem. 2025'!R91+'Dati Generali CER 1 Sem. 2025'!S91+'Dati Generali CER 1 Sem. 2025'!T91)) -> 33640 | D99: =IF(C99="","",'Dati Generali CER 1 Sem. 2025'!CE91) -> 102455 | E99: ='Dati Generali CER 1 Sem. 2025'!W91 -> 0.7528197215 | F99: =IF('Dati Generali CER 1 Sem. 2025'!CF91="","",'Dati Generali CER 1 Sem. 2025'!CF91) -> 0.6214099813 | G99: =IF('Dati Generali CER 1 Sem. 2025'!CG91="","",'Dati Generali CER 1 Sem. 2025'!CG91) -> 0.1536002922 | H99: =IF('Dati Generali CER 1 Sem. 2025'!CH91="","",'Dati Generali CER 1 Sem. 2025'!CH91) -> 0.4678096891 | I99: ='Dati Generali CER 1 Sem. 2025'!D91 -> 1210 | J99: =IF('Dati Generali CER 1 Sem. 2025'!CJ91="","",'Dati Generali CER 1 Sem. 2025'!CJ91) -> 2025-08-22T10:17:04
A100: 91 | B100: ='Dati Generali CER 1 Sem. 2025'!C83 -> SANTA LUCIA DEL MELA | C100: =IF('Dati Generali CER 1 Sem. 2025'!E83="","",SUM('Dati Generali CER 1 Sem. 2025'!E83+'Dati Generali CER 1 Sem. 2025'!R83+'Dati Generali CER 1 Sem. 2025'!S83+'Dati Generali CER 1 Sem. 2025'!T83)) -> 214900 | D100: =IF(C100="","",'Dati Generali CER 1 Sem. 2025'!CE83) -> 525975 | E100: ='Dati Generali CER 1 Sem. 2025'!W83 -> 0.7099375738 | F100: =IF('Dati Generali CER 1 Sem. 2025'!CF83="","",'Dati Generali CER 1 Sem. 2025'!CF83) -> 0.934954784 | G100: =IF('Dati Generali CER 1 Sem. 2025'!CG83="","",'Dati Generali CER 1 Sem. 2025'!CG83) -> 0.271195253 | H100: =IF('Dati Generali CER 1 Sem. 2025'!CH83="","",'Dati Generali CER 1 Sem. 2025'!CH83) -> 0.663759531 | I100: ='Dati Generali CER 1 Sem. 2025'!D83 -> 4378 | J100: =IF('Dati Generali CER 1 Sem. 2025'!CJ83="","",'Dati Generali CER 1 Sem. 2025'!CJ83) -> 2025-08-21T08:12:18
A101: 92 | B101: ='Dati Generali CER 1 Sem. 2025'!C94 -> SANTA MARINA SALINA | C101: =IF('Dati Generali CER 1 Sem. 2025'!E94="","",SUM('Dati Generali CER 1 Sem. 2025'!E94+'Dati Generali CER 1 Sem. 2025'!R94+'Dati Generali CER 1 Sem. 2025'!S94+'Dati Generali CER 1 Sem. 2025'!T94)) -> 102880 | D101: =IF(C101="","",'Dati Generali CER 1 Sem. 2025'!CE94) -> 133400 | E101: ='Dati Generali CER 1 Sem. 2025'!W94 -> 0.5645843914 | F101: =IF('Dati Generali CER 1 Sem. 2025'!CF94="","",'Dati Generali CER 1 Sem. 2025'!CF94) -> 1.532176484 | G101: =IF('Dati Generali CER 1 Sem. 2025'!CG94="","",'Dati Generali CER 1 Sem. 2025'!CG94) -> 0.6671335564 | H101: =IF('Dati Generali CER 1 Sem. 2025'!CH94="","",'Dati Generali CER 1 Sem. 2025'!CH94) -> 0.8650429279 | I101: ='Dati Generali CER 1 Sem. 2025'!D94 -> 852 | J101: =IF('Dati Generali CER 1 Sem. 2025'!CJ94="","",'Dati Generali CER 1 Sem. 2025'!CJ94) -> 2025-08-21T09:45:42
A102: 93 | B102: ='Dati Generali CER 1 Sem. 2025'!C95 -> SAPONARA | C102: =IF('Dati Generali CER 1 Sem. 2025'!E95="","",SUM('Dati Generali CER 1 Sem. 2025'!E95+'Dati Generali CER 1 Sem. 2025'!R95+'Dati Generali CER 1 Sem. 2025'!S95+'Dati Generali CER 1 Sem. 2025'!T95)) -> 136120 | D102: =IF(C102="","",'Dati Generali CER 1 Sem. 2025'!CE95) -> 535045 | E102: ='Dati Generali CER 1 Sem. 2025'!W95 -> 0.7971884708 | F102: =IF('Dati Generali CER 1 Sem. 2025'!CF95="","",'Dati Generali CER 1 Sem. 2025'!CF95) -> 1.013694347 | G102: =IF('Dati Generali CER 1 Sem. 2025'!CG95="","",'Dati Generali CER 1 Sem. 2025'!CG95) -> 0.2055889007 | H102: =IF('Dati Generali CER 1 Sem. 2025'!CH95="","",'Dati Generali CER 1 Sem. 2025'!CH95) -> 0.8081054466 | I102: ='Dati Generali CER 1 Sem. 2025'!D95 -> 3658 | J102: =IF('Dati Generali CER 1 Sem. 2025'!CJ95="","",'Dati Generali CER 1 Sem. 2025'!CJ95) -> 2025-08-22T10:19:42
A103: 94 | B103: ='Dati Generali CER 1 Sem. 2025'!C96 -> SAVOCA | C103: =IF('Dati Generali CER 1 Sem. 2025'!E96="","",SUM('Dati Generali CER 1 Sem. 2025'!E96+'Dati Generali CER 1 Sem. 2025'!R96+'Dati Generali CER 1 Sem. 2025'!S96+'Dati Generali CER 1 Sem. 2025'!T96)) -> 89480 | D103: =IF(C103="","",'Dati Generali CER 1 Sem. 2025'!CE96) -> 178310 | E103: ='Dati Generali CER 1 Sem. 2025'!W96 -> 0.665857575 | F103: =IF('Dati Generali CER 1 Sem. 2025'!CF96="","",'Dati Generali CER 1 Sem. 2025'!CF96) -> 0.8449473229 | G103: =IF('Dati Generali CER 1 Sem. 2025'!CG96="","",'Dati Generali CER 1 Sem. 2025'!CG96) -> 0.2823327475 | H103: =IF('Dati Generali CER 1 Sem. 2025'!CH96="","",'Dati Generali CER 1 Sem. 2025'!CH96) -> 0.5626145754 | I103: ='Dati Generali CER 1 Sem. 2025'!D96 -> 1751 | J103: =IF('Dati Generali CER 1 Sem. 2025'!CJ96="","",'Dati Generali CER 1 Sem. 2025'!CJ96) -> 2025-10-27T08:17:36
A104: 95 | B104: ='Dati Generali CER 1 Sem. 2025'!C97 -> SCALETTA ZANCLEA | C104: =IF('Dati Generali CER 1 Sem. 2025'!E97="","",SUM('Dati Generali CER 1 Sem. 2025'!E97+'Dati Generali CER 1 Sem. 2025'!R97+'Dati Generali CER 1 Sem. 2025'!S97+'Dati Generali CER 1 Sem. 2025'!T97)) -> 107800 | D104: =IF(C104="","",'Dati Generali CER 1 Sem. 2025'!CE97) -> 213852 | E104: ='Dati Generali CER 1 Sem. 2025'!W97 -> 0.6648551851 | F104: =IF('Dati Generali CER 1 Sem. 2025'!CF97="","",'Dati Generali CER 1 Sem. 2025'!CF97) -> 0.96475726 | G104: =IF('Dati Generali CER 1 Sem. 2025'!CG97="","",'Dati Generali CER 1 Sem. 2025'!CG97) -> 0.3233333933 | H104: =IF('Dati Generali CER 1 Sem. 2025'!CH97="","",'Dati Generali CER 1 Sem. 2025'!CH97) -> 0.6414238667 | I104: ='Dati Generali CER 1 Sem. 2025'!D97 -> 1842 | J104: =IF('Dati Generali CER 1 Sem. 2025'!CJ97="","",'Dati Generali CER 1 Sem. 2025'!CJ97) -> 2025-08-22T10:23:19
A105: 96 | B105: ='Dati Generali CER 1 Sem. 2025'!C98 -> SINAGRA | C105: =IF('Dati Generali CER 1 Sem. 2025'!E98="","",SUM('Dati Generali CER 1 Sem. 2025'!E98+'Dati Generali CER 1 Sem. 2025'!R98+'Dati Generali CER 1 Sem. 2025'!S98+'Dati Generali CER 1 Sem. 2025'!T98)) -> 17900 | D105: =IF(C105="","",'Dati Generali CER 1 Sem. 2025'!CE98) -> 396130 | E105: ='Dati Generali CER 1 Sem. 2025'!W98 -> 0.9567664179 | F105: =IF('Dati Generali CER 1 Sem. 2025'!CF98="","",'Dati Generali CER 1 Sem. 2025'!CF98) -> 0.9367152185 | G105: =IF('Dati Generali CER 1 Sem. 2025'!CG98="","",'Dati Generali CER 1 Sem. 2025'!CG98) -> 0.04049755431 | H105: =IF('Dati Generali CER 1 Sem. 2025'!CH98="","",'Dati Generali CER 1 Sem. 2025'!CH98) -> 0.8962176642 | I105: ='Dati Generali CER 1 Sem. 2025'!D98 -> 2442 | J105: =IF('Dati Generali CER 1 Sem. 2025'!CJ98="","",'Dati Generali CER 1 Sem. 2025'!CJ98) -> 2025-08-22T10:30:59
A106: 97 | B106: ='Dati Generali CER 1 Sem. 2025'!C99 -> SPADAFORA | C106: =IF('Dati Generali CER 1 Sem. 2025'!E99="","",SUM('Dati Generali CER 1 Sem. 2025'!E99+'Dati Generali CER 1 Sem. 2025'!R99+'Dati Generali CER 1 Sem. 2025'!S99+'Dati Generali CER 1 Sem. 2025'!T99)) -> 296305 | D106: =IF(C106="","",'Dati Generali CER 1 Sem. 2025'!CE99) -> 587967 | E106: ='Dati Generali CER 1 Sem. 2025'!W99 -> 0.664916451 | F106: =IF('Dati Generali CER 1 Sem. 2025'!CF99="","",'Dati Generali CER 1 Sem. 2025'!CF99) -> 1.053586513 | G106: =IF('Dati Generali CER 1 Sem. 2025'!CG99="","",'Dati Generali CER 1 Sem. 2025'!CG99) -> 0.3435494229 | H106: =IF('Dati Generali CER 1 Sem. 2025'!CH99="","",'Dati Generali CER 1 Sem. 2025'!CH99) -> 0.7005470054 | I106: ='Dati Generali CER 1 Sem. 2025'!D99 -> 4637 | J106: =IF('Dati Generali CER 1 Sem. 2025'!CJ99="","",'Dati Generali CER 1 Sem. 2025'!CJ99) -> 2025-09-08T08:57:37
A107: 98 | B107: ='Dati Generali CER 1 Sem. 2025'!C100 -> TAORMINA | C107: =IF('Dati Generali CER 1 Sem. 2025'!E100="","",SUM('Dati Generali CER 1 Sem. 2025'!E100+'Dati Generali CER 1 Sem. 2025'!R100+'Dati Generali CER 1 Sem. 2025'!S100+'Dati Generali CER 1 Sem. 2025'!T100)) -> 1322940 | D107: =IF(C107="","",'Dati Generali CER 1 Sem. 2025'!CE100) -> 3154050 | E107: ='Dati Generali CER 1 Sem. 2025'!W100 -> 0.7045023554 | F107: =IF('Dati Generali CER 1 Sem. 2025'!CF100="","",'Dati Generali CER 1 Sem. 2025'!CF100) -> 2.370818689 | G107: =IF('Dati Generali CER 1 Sem. 2025'!CG100="","",'Dati Generali CER 1 Sem. 2025'!CG100) -> 0.6282762992 | H107: =IF('Dati Generali CER 1 Sem. 2025'!CH100="","",'Dati Generali CER 1 Sem. 2025'!CH100) -> 1.67024735 | I107: ='Dati Generali CER 1 Sem. 2025'!D100 -> 10433 | J107: =IF('Dati Generali CER 1 Sem. 2025'!CJ100="","",'Dati Generali CER 1 Sem. 2025'!CJ100) -> 2025-08-27T12:42:24
A108: 99 | B108: ='Dati Generali CER 1 Sem. 2025'!C101 -> TERME VIGLIATORE | C108: =IF('Dati Generali CER 1 Sem. 2025'!E101="","",SUM('Dati Generali CER 1 Sem. 2025'!E101+'Dati Generali CER 1 Sem. 2025'!R101+'Dati Generali CER 1 Sem. 2025'!S101+'Dati Generali CER 1 Sem. 2025'!T101)) -> 402520 | D108: =IF(C108="","",'Dati Generali CER 1 Sem. 2025'!CE101) -> 925184 | E108: ='Dati Generali CER 1 Sem. 2025'!W101 -> 0.6968300163 | F108: =IF('Dati Generali CER 1 Sem. 2025'!CF101="","",'Dati Generali CER 1 Sem. 2025'!CF101) -> 1.003746745 | G108: =IF('Dati Generali CER 1 Sem. 2025'!CG101="","",'Dati Generali CER 1 Sem. 2025'!CG101) -> 0.3043058844 | H108: =IF('Dati Generali CER 1 Sem. 2025'!CH101="","",'Dati Generali CER 1 Sem. 2025'!CH101) -> 0.699440861 | I108: ='Dati Generali CER 1 Sem. 2025'!D101 -> 7308 | J108: =IF('Dati Generali CER 1 Sem. 2025'!CJ101="","",'Dati Generali CER 1 Sem. 2025'!CJ101) -> 2025-08-22T10:33:54
A109: 100 | B109: ='Dati Generali CER 1 Sem. 2025'!C102 -> TORREGROTTA | C109: =IF('Dati Generali CER 1 Sem. 2025'!E102="","",SUM('Dati Generali CER 1 Sem. 2025'!E102+'Dati Generali CER 1 Sem. 2025'!R102+'Dati Generali CER 1 Sem. 2025'!S102+'Dati Generali CER 1 Sem. 2025'!T102)) -> 526140 | D109: =IF(C109="","",'Dati Generali CER 1 Sem. 2025'!CE102) -> 837118 | E109: ='Dati Generali CER 1 Sem. 2025'!W102 -> 0.6140569137 | F109: =IF('Dati Generali CER 1 Sem. 2025'!CF102="","",'Dati Generali CER 1 Sem. 2025'!CF102) -> 1.039874659 | G109: =IF('Dati Generali CER 1 Sem. 2025'!CG102="","",'Dati Generali CER 1 Sem. 2025'!CG102) -> 0.3926214146 | H109: =IF('Dati Generali CER 1 Sem. 2025'!CH102="","",'Dati Generali CER 1 Sem. 2025'!CH102) -> 0.6385422237 | I109: ='Dati Generali CER 1 Sem. 2025'!D102 -> 7243 | J109: =IF('Dati Generali CER 1 Sem. 2025'!CJ102="","",'Dati Generali CER 1 Sem. 2025'!CJ102) -> 2025-10-07T11:27:12
A110: 101 | B110: ='Dati Generali CER 1 Sem. 2025'!C103 -> TORRENOVA | C110: =IF('Dati Generali CER 1 Sem. 2025'!E103="","",SUM('Dati Generali CER 1 Sem. 2025'!E103+'Dati Generali CER 1 Sem. 2025'!R103+'Dati Generali CER 1 Sem. 2025'!S103+'Dati Generali CER 1 Sem. 2025'!T103)) -> 169940 | D110: =IF(C110="","",'Dati Generali CER 1 Sem. 2025'!CE103) -> 831630 | E110: ='Dati Generali CER 1 Sem. 2025'!W103 -> 0.8303263876 | F110: =IF('Dati Generali CER 1 Sem. 2025'!CF103="","",'Dati Generali CER 1 Sem. 2025'!CF103) -> 1.233512241 | G110: =IF('Dati Generali CER 1 Sem. 2025'!CG103="","",'Dati Generali CER 1 Sem. 2025'!CG103) -> 0.2092944778 | H110: =IF('Dati Generali CER 1 Sem. 2025'!CH103="","",'Dati Generali CER 1 Sem. 2025'!CH103) -> 1.024217763 | I110: ='Dati Generali CER 1 Sem. 2025'!D103 -> 4486 | J110: =IF('Dati Generali CER 1 Sem. 2025'!CJ103="","",'Dati Generali CER 1 Sem. 2025'!CJ103) -> 2025-08-22T10:38:51
A111: 102 | B111: ='Dati Generali CER 1 Sem. 2025'!C104 -> TORTORICI | C111: =IF('Dati Generali CER 1 Sem. 2025'!E104="","",SUM('Dati Generali CER 1 Sem. 2025'!E104+'Dati Generali CER 1 Sem. 2025'!R104+'Dati Generali CER 1 Sem. 2025'!S104+'Dati Generali CER 1 Sem. 2025'!T104)) -> 163680 | D111: =IF(C111="","",'Dati Generali CER 1 Sem. 2025'!CE104) -> 412106 | E111: ='Dati Generali CER 1 Sem. 2025'!W104 -> 0.7157277183 | F111: =IF('Dati Generali CER 1 Sem. 2025'!CF104="","",'Dati Generali CER 1 Sem. 2025'!CF104) -> 0.5759801053 | G111: =IF('Dati Generali CER 1 Sem. 2025'!CG104="","",'Dati Generali CER 1 Sem. 2025'!CG104) -> 0.1637351788 | H111: =IF('Dati Generali CER 1 Sem. 2025'!CH104="","",'Dati Generali CER 1 Sem. 2025'!CH104) -> 0.4122449265 | I111: ='Dati Generali CER 1 Sem. 2025'!D104 -> 5523 | J111: =IF('Dati Generali CER 1 Sem. 2025'!CJ104="","",'Dati Generali CER 1 Sem. 2025'!CJ104) -> 2025-08-22T10:41:54
A112: 103 | B112: ='Dati Generali CER 1 Sem. 2025'!C105 -> TRIPI | C112: =IF('Dati Generali CER 1 Sem. 2025'!E105="","",SUM('Dati Generali CER 1 Sem. 2025'!E105+'Dati Generali CER 1 Sem. 2025'!R105+'Dati Generali CER 1 Sem. 2025'!S105+'Dati Generali CER 1 Sem. 2025'!T105)) -> 20460 | D112: =IF(C112="","",'Dati Generali CER 1 Sem. 2025'!CE105) -> 104849 | E112: ='Dati Generali CER 1 Sem. 2025'!W105 -> 0.8367236192 | F112: =IF('Dati Generali CER 1 Sem. 2025'!CF105="","",'Dati Generali CER 1 Sem. 2025'!CF105) -> 0.9655717115 | G112: =IF('Dati Generali CER 1 Sem. 2025'!CG105="","",'Dati Generali CER 1 Sem. 2025'!CG105) -> 0.1576550544 | H112: =IF('Dati Generali CER 1 Sem. 2025'!CH105="","",'Dati Generali CER 1 Sem. 2025'!CH105) -> 0.807916657 | I112: ='Dati Generali CER 1 Sem. 2025'!D105 -> 717 | J112: =IF('Dati Generali CER 1 Sem. 2025'!CJ105="","",'Dati Generali CER 1 Sem. 2025'!CJ105) -> 2025-09-18T08:46:30
A113: 104 | B113: ='Dati Generali CER 1 Sem. 2025'!C106 -> TUSA | C113: =IF('Dati Generali CER 1 Sem. 2025'!E106="","",SUM('Dati Generali CER 1 Sem. 2025'!E106+'Dati Generali CER 1 Sem. 2025'!R106+'Dati Generali CER 1 Sem. 2025'!S106+'Dati Generali CER 1 Sem. 2025'!T106)) -> 146880 | D113: =IF(C113="","",'Dati Generali CER 1 Sem. 2025'!CE106) -> 323266 | E113: ='Dati Generali CER 1 Sem. 2025'!W106 -> 0.6875864093 | F113: =IF('Dati Generali CER 1 Sem. 2025'!CF106="","",'Dati Generali CER 1 Sem. 2025'!CF106) -> 1.047375691 | G113: =IF('Dati Generali CER 1 Sem. 2025'!CG106="","",'Dati Generali CER 1 Sem. 2025'!CG106) -> 0.3272144003 | H113: =IF('Dati Generali CER 1 Sem. 2025'!CH106="","",'Dati Generali CER 1 Sem. 2025'!CH106) -> 0.7201612903 | I113: ='Dati Generali CER 1 Sem. 2025'!D106 -> 2480 | J113: =IF('Dati Generali CER 1 Sem. 2025'!CJ106="","",'Dati Generali CER 1 Sem. 2025'!CJ106) -> 2025-09-30T09:31:33
A114: 105 | B114: ='Dati Generali CER 1 Sem. 2025'!C107 -> UCRIA | C114: =IF('Dati Generali CER 1 Sem. 2025'!E107="","",SUM('Dati Generali CER 1 Sem. 2025'!E107+'Dati Generali CER 1 Sem. 2025'!R107+'Dati Generali CER 1 Sem. 2025'!S107+'Dati Generali CER 1 Sem. 2025'!T107)) -> 22880 | D114: =IF(C114="","",'Dati Generali CER 1 Sem. 2025'!CE107) -> 114526 | E114: ='Dati Generali CER 1 Sem. 2025'!W107 -> 0.8334861651 | F114: =IF('Dati Generali CER 1 Sem. 2025'!CF107="","",'Dati Generali CER 1 Sem. 2025'!CF107) -> 0.8837592215 | G114: =IF('Dati Generali CER 1 Sem. 2025'!CG107="","",'Dati Generali CER 1 Sem. 2025'!CG107) -> 0.1471581371 | H114: =IF('Dati Generali CER 1 Sem. 2025'!CH107="","",'Dati Generali CER 1 Sem. 2025'!CH107) -> 0.7366010844 | I114: ='Dati Generali CER 1 Sem. 2025'!D107 -> 859 | J114: =IF('Dati Generali CER 1 Sem. 2025'!CJ107="","",'Dati Generali CER 1 Sem. 2025'!CJ107) -> 2025-08-22T10:47:31
A115: 106 | B115: ='Dati Generali CER 1 Sem. 2025'!C108 -> VALDINA | C115: =IF('Dati Generali CER 1 Sem. 2025'!E108="","",SUM('Dati Generali CER 1 Sem. 2025'!E108+'Dati Generali CER 1 Sem. 2025'!R108+'Dati Generali CER 1 Sem. 2025'!S108+'Dati Generali CER 1 Sem. 2025'!T108)) -> 107000 | D115: =IF(C115="","",'Dati Generali CER 1 Sem. 2025'!CE108) -> 105880 | E115: ='Dati Generali CER 1 Sem. 2025'!W108 -> 0.49736941 | F115: =IF('Dati Generali CER 1 Sem. 2025'!CF108="","",'Dati Generali CER 1 Sem. 2025'!CF108) -> 0.953105832 | G115: =IF('Dati Generali CER 1 Sem. 2025'!CG108="","",'Dati Generali CER 1 Sem. 2025'!CG108) -> 0.4790601467 | H115: =IF('Dati Generali CER 1 Sem. 2025'!CH108="","",'Dati Generali CER 1 Sem. 2025'!CH108) -> 0.4740456853 | I115: ='Dati Generali CER 1 Sem. 2025'!D108 -> 1234 | J115: =IF('Dati Generali CER 1 Sem. 2025'!CJ108="","",'Dati Generali CER 1 Sem. 2025'!CJ108) -> 2025-08-22T11:22:36
A116: 107 | B116: ='Dati Generali CER 1 Sem. 2025'!C109 -> VENETICO | C116: =IF('Dati Generali CER 1 Sem. 2025'!E109="","",SUM('Dati Generali CER 1 Sem. 2025'!E109+'Dati Generali CER 1 Sem. 2025'!R109+'Dati Generali CER 1 Sem. 2025'!S109+'Dati Generali CER 1 Sem. 2025'!T109)) -> 325080 | D116: =IF(C116="","",'Dati Generali CER 1 Sem. 2025'!CE109) -> 450238 | E116: ='Dati Generali CER 1 Sem. 2025'!W109 -> 0.580713978 | F116: =IF('Dati Generali CER 1 Sem. 2025'!CF109="","",'Dati Generali CER 1 Sem. 2025'!CF109) -> 1.0921787 | G116: =IF('Dati Generali CER 1 Sem. 2025'!CG109="","",'Dati Generali CER 1 Sem. 2025'!CG109) -> 0.4579352625 | H116: =IF('Dati Generali CER 1 Sem. 2025'!CH109="","",'Dati Generali CER 1 Sem. 2025'!CH109) -> 0.6342434376 | I116: ='Dati Generali CER 1 Sem. 2025'!D109 -> 3922 | J116: =IF('Dati Generali CER 1 Sem. 2025'!CJ109="","",'Dati Generali CER 1 Sem. 2025'!CJ109) -> 2025-08-18T10:23:23
A117: 108 | B117: ='Dati Generali CER 1 Sem. 2025'!C110 -> VILLAFRANCA TIRRENA | C117: =IF('Dati Generali CER 1 Sem. 2025'!E110="","",SUM('Dati Generali CER 1 Sem. 2025'!E110+'Dati Generali CER 1 Sem. 2025'!R110+'Dati Generali CER 1 Sem. 2025'!S110+'Dati Generali CER 1 Sem. 2025'!T110)) -> 500000 | D117: =IF(C117="","",'Dati Generali CER 1 Sem. 2025'!CE110) -> 1318897 | E117: ='Dati Generali CER 1 Sem. 2025'!W110 -> 0.7251081287 | F117: =IF('Dati Generali CER 1 Sem. 2025'!CF110="","",'Dati Generali CER 1 Sem. 2025'!CF110) -> 1.29017264 | G117: =IF('Dati Generali CER 1 Sem. 2025'!CG110="","",'Dati Generali CER 1 Sem. 2025'!CG110) -> 0.3546579714 | H117: =IF('Dati Generali CER 1 Sem. 2025'!CH110="","",'Dati Generali CER 1 Sem. 2025'!CH110) -> 0.935514669 | I117: ='Dati Generali CER 1 Sem. 2025'!D110 -> 7789 | J117: =IF('Dati Generali CER 1 Sem. 2025'!CJ110="","",'Dati Generali CER 1 Sem. 2025'!CJ110) -> 2025-08-22T11:33:37
B118: Percentuale media dei 108 Comuni: | F118: ='Dati Generali CER 1 Sem. 2025'!W111 -> 0.6715365474

Sheet Grafico 1 Semestre 2025

Sheet Dati Generali CER 2 Sem. 2025
A1: Produzione di Rifiuti Urbani e Raccolta Differenziata 2° Semestre 2025.
A2: =COUNTA(E3:E110) -> 108 | B2: ID COMUNE | C2: COMUNE | D2: ABITANTI AL 31/12/2025 | E2: R.S.U. + R.S.A. (Kg/2°Sem.) 200301 | F2: R.S.U. COVID (A+A1) 200301* | G2: Altri oli per motori, ingranaggi e lubrificazione 130208* | H2: Legno da demolizione 170201 | I2: Miscele bituminose (diverse da quelle 170301*) 170302 | J2: Alluminio 170402 | K2: Ferro e acciaio 170405 | L2: Materiali da costruzione contenenti amianto 170605* | M2: percolato di discarica,(diverso dalla voce 190702) 190703 | N2: Residui di vagliatura 190801 | O2: FANGHI DI DEPURAZIONE (Kg/anno) prodotti dal trattamento delle acque reflue urbane 190805 | P2: Altri rifiuti (compresi materiali misti) prodotti dal trattamento meccanico dei rifiuti,(diversi dalla voce 191211) 191212 | Q2: Rifiuti della pulizia delle fognature 200306 | R2: Residui della pulizia stradale 200303 Smaltimento | S2: Ingombranti - 200307 Smaltimento | T2: Rifiuti urbani non specificati altrimenti 200399 | U2: RACCOL. DIFFEREN. (Kg/2°Sem.) | V2: R.S.U. + R.S.A. + RACC. DIFF. (Kg/2°Sem.) | W2: % RACC. DIFF. (2°Sem.) | X2: Compostaggio Domestico | Y2: Toner per stampa esauriti,(diversi dalla voce 080317) 080318 | Z2: Imballaggi Carta e Cartone (Raccolta Selettiva) 150101 | AA2: Imballaggi in Plastica 150102 | AB2: Imballaggi in Legno 150103 | AC2: Imballaaggi in metallo 150104 | AD2: Imballaggi Materiali compositi 150105 | AE2: Imball. in materiali misti 150106 | AF2: Imballaggi in Vetro 150107 | AG2: Imballaggi in Materiale tessile 150109 | AH2: Imballaggi contenenti residui di sostanze pericolose o contaminati da tali sostanze 150110* | AI2: Imballaggi metallici contenenti matrici solide porose pericolose (ad esempio amianto) 150111* | AJ2: Pneumatici usati 160103 | AK2: Filtri dell'olio 160107* | AL2: Apparecchiature fuori uso contenenti PCB o da essi contaminate(diverse dalla voce 160209) 160210* | AM2: Apparecchiature fuori uso, contenenti clorofluorocarburi, HCFC, HFC 160211* | AN2: Apparecchiature fuori uso contenenti amianto in fibre libere 160212* | AO2: App.fuori uso contenete comp.pericolosi(diversi dalle voci da 160209 a 160212) 160213* | AP2: Apparecchiature fuori uso(diverse dalle voci da 160209 a 160213*) 160214* | AQ2: Componenti pericolosi rimossi da apparecchiature fuori uso 160215* | AR2: Componenti rimossi da apparecchiature fuori uso,(diversi dalla voce 160215) 160216 | AS2: Gas in contenitori a pressione limitatamente ad estintori ed aerosol ad uso domenstico 160504* | AT2: Gas in contenitori a pressione(diversi dalla voce 160504*) limitatamente ad estintori ed aerosol ad uso domenstico 160505 | AU2: Miscugli o frazioni separate di cemento, mattoni, mattonelle e ceramiche(diverse dalla voce 170106) 170107 | AV2: Rifiuti misti dell'attività di costruzione e demolizione, (diversi dalle voci 170901, 170902 e 170903) 170904 | AW2: Carta e Cartone (Raccolta Congiunta) 200101 | AX2: Vetro 200102 | AY2: Rifiuti biodegradabili di cucine e mense 200108 | AZ2: Abbigliamento 200110 | BA2: Prodotti tessili 200111 | BB2: Solventi 200113* | BC2: Acidi 200114* | BD2: Sostanze Alcaline 200115* | BE2: Prodotti Fotochimici 200117* | BF2: Pesticidi 200119* | BG2: Tubi fluorescenti ed altri rifiuti contenenti Mercurio 200121* | BH2: Apparec. Fuori uso conten. CFC e mat. peric. 200123* | BI2: Oli e Grassi commestibili 200125 | BJ2: Oli e grassi (diversi dalla voce 200125) 200126* | BK2: Vernici,Inchiostri,Adesivi e Resine contenenti sostanze pericolose 200127* | BL2: Vernici,Inchiostri,Adesivi e Resine (diversi dalla voce 200127*) 200128 | BM2: Detergento contenente sostanze pericolose 200129* | BN2: Detergenti (diversi della voce 200129*) 200130 | BO2: Medicinali citotossici e citostatici 200131* | BP2: Medicinali (diversi dlla voce 200131*) 200132 | BQ2: Batterie ed Accumulatori (diversi dalle voci 160601, 160602 e 160603) 200133* | BR2: Batterie ed accumulatori (diversi dlla voce 200133*) 200134 | BS2: Apparecc. elettr. ed elettroniche fuori uso contenenti Mat. Peric. 200135* | BT2: Apparecc. eletr. ed elettroniche fuori uso(diverse da 200121, 200123 e 200135 200136 | BU2: Legno contenente sostanze pericolose 200137* | BV2: Legno 200138 | BW2: Plastica 200139 | BX2: Metallo 200140 | BY2: Rifiuti prodotti dalla pulizia dei camini provenienti da utenze domestiche 200141 | BZ2: Rifiuti biodegradabili 200201 | CA2: Altri rifiuti non biodegradabili 200203 | CB2: Rifiuti dei Mercati 200302 | CC2: Residui della pulizia stradale - 200303 Recupero | CD2: Ingombranti - 200307 Recupero | CE2: TOTALE RD (Kg/1°Sem.) | CF2: R.S.U. + R.S.A.+ R.D. - (R.T. Kg. pro capite/g) | CG2: R.S.U. + R.S.A. 200301 - (R.I. Kg. pro capite/g) | CH2: R.D. - (Kg. pro capite/g)
A3: 1 | B3: M211 | C3: ='Dati Generali CER 1 Sem. 2025'!C3 -> ACQUEDOLCI | D3: 5511 | E3: 179940 | U3: =IF(CE3=0,"",CE3) -> 908898 | V3: =IF(E3=0,"",SUM(U3,E3,R3,S3,T3)) -> 1088838 | W3: =IFERROR(IF(E3<>0,IF(U3=0,0,(U3/V3*100)/100),IF(U3=0,"","")),0) -> 0.8347412563 | Z3: 32900 | AA3: 102620 | AF3: 151820 | AJ3: 44320 | AW3: 100460 | AY3: 338416 | AZ3: 7682 | BH3: 2880 | BI3: 1100 | BS3: 2400 | BT3: 1000 | BV3: 28640 | BZ3: 32640 | CD3: 62020 | CE3: =IF(SUM(X3:CD3)=0,"",SUM(X3:CD3)) -> 908898 | CF3: =IF(SUM(E3)=0,"",V3/D3/184) -> 1.073779319 | CG3: =IF(E3=0,"",E3/D3/184) -> 0.1774514213 | CH3: =IF(SUM(Y3:CD3)=0,"",CE3/D3/184) -> 0.8963278976 | CJ3: 2026-04-21T12:24:49
A4: 2 | B4: A177 | C4: ='Dati Generali CER 1 Sem. 2025'!C4 -> ALCARA LI FUSI | D4: 1625 | E4: 42740 | U4: =IF(CE4=0,"",CE4) -> 163595 | V4: 206335 | W4: 0.7928611239 | AA4: 20250 | AF4: 37050 | AW4: 23670 | AY4: 65490 | AZ4: 645 | BH4: 1320 | BS4: 2040 | BT4: 520 | CD4: 12610 | CE4: 163595 | CF4: 0.690083612 | CG4: =IF(E4=0,"",E4/D4/184) -> 0.1429431438 | CH4: 0.5471404682 | CJ4: 2026-04-21T12:24:57
A5: 3 | B5: A194 | C5: ='Dati Generali CER 1 Sem. 2025'!C5 -> ALI' | D5: 615 | E5: 18810 | U5: =IF(CE5=0,"",CE5) -> 51338 | V5: 70148 | W5: 0.7318526544 | AE5: 8440 | AF5: 7820 | AW5: 5840 | AY5: 19090 | AZ5: 1418 | BZ5: 1490 | CD5: 7240 | CE5: 51338 | CF5: 0.6199010251 | CG5: 0.1662248144 | CH5: 0.4536762107 | CJ5: 2026-01-20T08:01:59
A6: 4 | B6: A201 | C6: ='Dati Generali CER 1 Sem. 2025'!C6 -> ALI' TERME | D6: 2305 | E6: 132600 | U6: =IF(CE6=0,"",CE6) -> 372902 | V6: 505502 | W6: 0.7376864978 | AE6: 64530 | AF6: 44770 | AW6: 86140 | AY6: 152520 | AZ6: 2392 | BP6: 70 | BZ6: 7890 | CD6: 14590 | CE6: 372902 | CF6: 1.191884372 | CG6: 0.312647364 | CH6: 0.8792370084 | CJ6: 2026-01-27T11:19:30
A7: 5 | B7: A313 | C7: ='Dati Generali CER 1 Sem. 2025'!C7 -> ANTILLO | D7: 782 | E7: 15560 | U7: 85289 | V7: 100849 | W7: 0.8457099228 | X7: 3977 | AE7: 18340 | AF7: 9650 | AW7: 13000 | AY7: 34920 | BA7: 582 | CD7: 4820 | CE7: 85289 | CF7: 0.7008854109 | CG7: 0.1081396642 | CH7: 0.5927457467 | CJ7: 2026-02-10T09:01:36
A8: 6 | B8: A638 | C8: ='Dati Generali CER 1 Sem. 2025'!C8 -> BARCELLONA P.G. | D8: 39763 | E8: 2538160 | U8: 5903742 | V8: 8441902 | W8: 0.699337898 | X8: 177872 | Z8: 484400 | AA8: 713890 | AC8: 14840 | AF8: 588360 | AI8: 1140 | AJ8: 3260 | AR8: 1280 | AW8: 636920 | AY8: 2005700 | AZ8: 32050 | BA8: 37440 | BG8: 865 | BH8: 25240 | BI8: 450 | BP8: 2000 | BQ8: 1770 | BR8: 505 | BS8: 23100 | BT8: 57900 | BV8: 225600 | BW8: 72120 | BX8: 66700 | BZ8: 226430 | CC8: 385990 | CD8: 117920 | CE8: 5903742 | CF8: 1.153834021 | CG8: 0.3469141621 | CH8: 0.8069198589 | CJ8: 2026-02-03T09:10:06
A9: 7 | B9: A698 | C9: ='Dati Generali CER 1 Sem. 2025'!C9 -> BASICO' | D9: 643 | E9: 55240 | U9: 82930 | V9: 138170 | W9: 0.6002026489 | X9: 12090 | AE9: 11260 | AF9: 12760 | AW9: 11800 | AY9: 12600 | BT9: 1520 | BV9: 7000 | BX9: 2600 | CD9: 11300 | CE9: 82930 | CF9: 1.167844344 | CG9: 0.4669010751 | CH9: 0.7009432686 | CJ9: 2026-02-03T09:17:43
A10: 8 | B10: B198 | C10: ='Dati Generali CER 1 Sem. 2025'!C10 -> BROLO | D10: 5731 | E10: 398180 | U10: 917780 | V10: 1315960 | W10: 0.6974224141 | X10: 45570 | AE10: 128140 | AF10: 118630 | AR10: 230 | AW10: 94310 | AY10: 352470 | AZ10: 18340 | BH10: 7380 | BI10: 940 | BP10: 150 | BS10: 7900 | BT10: 14400 | BV10: 30750 | BW10: 3590 | BX10: 5540 | BZ10: 50100 | CC10: 12200 | CD10: 27140 | CE10: 917780 | CF10: 1.24794216 | CG10: 0.3775993263 | CH10: 0.8703428342 | CJ10: 2026-01-27T13:09:06
A11: 9 | B11: B660 | C11: ='Dati Generali CER 1 Sem. 2025'!C11 -> CAPIZZI | D11: 2771 | E11: 56390 | U11: 298820 | V11: 355210 | W11: 0.8412488387 | Z11: 14400 | AA11: 40400 | AF11: 57480 | AW11: 30240 | AY11: 130780 | BH11: 1720 | BS11: 1420 | BT11: 800 | BW11: 4200 | CD11: 17380 | CE11: 298820 | CF11: 0.6966759763 | CG11: 0.1105981203 | CH11: 0.5860778561 | CJ11: 2026-01-27T12:10:31
A12: 10 | B12: B666 | C12: ='Dati Generali CER 1 Sem. 2025'!C12 -> CAPO D'ORLANDO | D12: 13053 | E12: 527460 | U12: 3155580 | V12: 3683040 | W12: 0.8567867848 | X12: 22212 | Y12: 338 | Z12: 295980 | AA12: 410360 | AB12: 16760 | AF12: 456300 | AJ12: 1220 | AW12: 407070 | AY12: 1095170 | AZ12: 39240 | BG12: 240 | BH12: 8540 | BI12: 1800 | BP12: 820 | BQ12: 270 | BS12: 12920 | BT12: 9000 | BX12: 35540 | BZ12: 207260 | CD12: 134540 | CE12: 3155580 | CF12: 1.533480559 | CG12: 0.2196146813 | CH12: 1.313865878 | CJ12: 2026-02-03T11:15:57
A13: 11 | B13: B695 | C13: ='Dati Generali CER 1 Sem. 2025'!C13 -> CAPRILEONE | D13: 4397 | E13: 131140 | U13: 646500 | V13: 777640 | W13: 0.8313615555 | Z13: 22390 | AA13: 113040 | AB13: 280 | AF13: 115380 | AW13: 98990 | AY13: 279640 | BV13: 13880 | BZ13: 2900 | CE13: 646500 | CF13: 0.9611790648 | CG13: 0.1620917424 | CH13: 0.7990873224 | CJ13: 2026-04-02T17:22:14
A14: 12 | B14: B804 | C14: ='Dati Generali CER 1 Sem. 2025'!C14 -> CARONIA | D14: 2954 | E14: 181820 | U14: 300493 | V14: 482313 | W14: 0.6230248822 | X14: 2066 | Z14: 5600 | AA14: 37200 | AF14: 63440 | AW14: 35830 | AY14: 138180 | AZ14: 3618 | BP14: 12 | BR14: 7 | BZ14: 3480 | CD14: 11060 | CE14: 300493 | CF14: 0.8873616467 | CG14: 0.3345132613 | CH14: 0.5528483854 | CJ14: 2026-01-27T09:14:39
A15: 13 | B15: B918 | C15: ='Dati Generali CER 1 Sem. 2025'!C15 -> CASALVECCHIO SICULO | D15: 699 | E15: 20680 | K15: 200 | U15: 70000 | V15: 90680 | W15: 0.7719453022 | AE15: 11800 | AF15: 10700 | AW15: 8440 | AY15: 35360 | CD15: 3700 | CE15: 70000 | CF15: 0.7050444735 | CG15: 0.1607887044 | CH15: 0.5442557691
A16: 14 | B16: C094 | C16: ='Dati Generali CER 1 Sem. 2025'!C16 -> CASTEL DI LUCIO | D16: 1407 | E16: 0.0001 | U16: 134590 | V16: 134590.0001 | W16: 0.9999999993 | Z16: 6590 | AE16: 20540 | AF16: 26640 | AW16: 12550 | AY16: 56720 | AZ16: 3920 | BW16: 2270 | BX16: 1880 | CD16: 3480 | CE16: 134590 | CF16: 0.5198773219 | CG16: 3.862674207e-10 | CH16: 0.5198773215 | CJ16: 2026-01-20T08:28:32
A17: 15 | B17: C051 | C17: ='Dati Generali CER 1 Sem. 2025'!C17 -> CASTELL'UMBERTO | D17: 2784 | E17: 101350 | U17: 306765 | V17: 408115 | W17: 0.7516631342 | AA17: 34970 | AF17: 64000 | AW17: 41820 | AY17: 128920 | AZ17: 9740 | BP17: 15 | BR17: 30 | BT17: 5190 | BW17: 3670 | CC17: 1470 | CD17: 16940 | CE17: 306765 | CF17: 0.7967012587 | CG17: 0.1978502936 | CH17: 0.5988509651 | CJ17: 2026-01-22T13:27:37
A18: 16 | B18: C210 | C18: ='Dati Generali CER 1 Sem. 2025'!C18 -> CASTELMOLA | D18: 1076 | E18: 52930 | U18: 171440 | V18: 224370 | W18: 0.7640950216 | AE18: 31810 | AF18: 38530 | AW18: 27050 | AY18: 54210 | CD18: 19840 | CE18: 171440 | CF18: 1.133273396 | CG18: 0.2673448359 | CH18: 0.8659285599 | CJ18: 2026-03-24T08:02:49
A19: 17 | B19: C347 | C19: ='Dati Generali CER 1 Sem. 2025'!C19 -> CASTROREALE | D19: 2255 | E19: 77320 | U19: 198949 | V19: 276269 | W19: 0.7201278464 | X19: 21438 | AE19: 24500 | AF19: 22450 | AW19: 22550 | AY19: 80660 | AZ19: 8401 | BH19: 1430 | BR19: 20 | BS19: 800 | BT19: 1780 | BZ19: 10620 | CD19: 4300 | CE19: 198949 | CF19: 0.6658367878 | CG19: 0.1863491757 | CH19: 0.4794876121 | CJ19: 2026-01-27T09:17:49
A20: 18 | B20: C568 | C20: ='Dati Generali CER 1 Sem. 2025'!C20 -> CESARO' | D20: 2084 | E20: 123220 | U20: 173033 | V20: 296253 | W20: 0.5840717225 | AA20: 26680 | AF20: 30740 | AW20: 32080 | AY20: 72960 | AZ20: 1213 | BH20: 1920 | CD20: 7440 | CE20: 173033 | CF20: 0.7725866853 | CG20: 0.3213406493 | CH20: 0.4512460361 | CJ20: 2026-01-29T07:53:03
A21: 19 | B21: C956 | C21: ='Dati Generali CER 1 Sem. 2025'!C21 -> CONDRO' | D21: 491 | E21: 25340 | U21: 44284 | V21: 69624 | W21: 0.6360450419 | X21: 2560 | AE21: 6860 | AF21: 5920 | AW21: 5680 | AY21: 16480 | AZ21: 1664 | BH21: 570 | BI21: 270 | BP21: 150 | BS21: 330 | BT21: 440 | CD21: 3360 | CE21: 44284 | CF21: 0.7706543877 | CG21: 0.2804834853 | CH21: 0.4901709023 | CJ21: 2026-01-16T08:25:15
A22: 20 | B22: D474 | C22: ='Dati Generali CER 1 Sem. 2025'!C22 -> FALCONE | D22: 2817 | E22: 215160 | U22: 548928 | V22: 764088 | W22: 0.7184093979 | X22: 21878 | Z22: 19000 | AE22: 52540 | AF22: 61980 | AW22: 86300 | AY22: 183480 | BI22: 450 | BV22: 22180 | BZ22: 66880 | CD22: 34240 | CE22: 548928 | CF22: 1.474139927 | CG22: 0.4151039496 | CH22: 1.059035977 | CJ22: 2026-01-20T14:24:41
A23: 21 | B23: D569 | C23: ='Dati Generali CER 1 Sem. 2025'!C23 -> FICARRA | D23: 1273 | E23: 40380 | U23: 204594 | V23: 244974 | W23: 0.8351661809 | X23: 14400 | Z23: 1600 | AA23: 18080 | AB23: 3040 | AF23: 35200 | AW23: 14900 | AY23: 54040 | AZ23: 2834 | BH23: 1500 | BS23: 300 | BV23: 13000 | CD23: 45700 | CE23: 204594 | CF23: 1.045860514 | CG23: 0.1723931828 | CH23: 0.8734673315 | CJ23: 2026-01-29T08:29:26
A24: 22 | B24: D622 | C24: ='Dati Generali CER 1 Sem. 2025'!C24 -> FIUMEDINISI | D24: 1256 | E24: 55740 | U24: 118319 | V24: 174059 | W24: 0.6797637583 | X24: 202 | AE24: 21420 | AF24: 18310 | AW24: 17160 | AY24: 47060 | AZ24: 5477 | BP24: 20 | BZ24: 1720 | CD24: 6950 | CE24: 118319 | CF24: 0.7531630781 | CG24: 0.2411901135 | CH24: 0.5119729646 | CJ24: 2026-01-27T12:12:52
A25: 23 | B25: D635 | C25: ='Dati Generali CER 1 Sem. 2025'!C25 -> FLORESTA | D25: 459 | E25: 22970 | U25: 59660 | V25: 82630 | W25: 0.7220137964 | AA25: 6960 | AF25: 13220 | AW25: 7520 | AY25: 28060 | CD25: 3900 | CE25: 59660 | CF25: 0.9783792744 | CG25: 0.2719759401 | CH25: 0.7064033343 | CJ25: 2026-01-27T10:00:39
A26: 24 | B26: D661 | C26: ='Dati Generali CER 1 Sem. 2025'!C26 -> FONDACHELLI FANTINA | D26: 1078 | E26: 60800 | K26: 13000 | U26: 153148 | V26: 213948 | W26: 0.7158187971 | X26: 1988 | AE26: 11400 | AF26: 8780 | AW26: 12300 | AY26: 52460 | BT26: 1660 | BV26: 9020 | BX26: 5920 | BZ26: 27520 | CD26: 22100 | CE26: 153148 | CF26: 1.078627894 | CG26: 0.3065257724 | CH26: 0.7721021215 | CJ26: 2026-04-07T08:24:28
A27: 25 | B27: D733 | C27: FORZA D'AGRO' | D27: 930 | E27: 54540 | U27: 209150 | V27: 263690 | W27: 0.7931662179 | AE27: 21500 | AF27: 30650 | AW27: 21780 | AY27: 115920 | CD27: 19300 | CE27: 209150 | CF27: 1.540965404 | CG27: 0.3187237027 | CH27: 1.222241702 | CJ27: 2026-03-05T16:33:40
A28: 26 | B28: D765 | C28: ='Dati Generali CER 1 Sem. 2025'!C28 -> FRANCAVILLA DI SICILIA | D28: 3524 | E28: 154400 | K28: 18800 | U28: 543597 | V28: 697997 | W28: 0.7787956109 | X28: 29048 | AC28: 16200 | AE28: 87780 | AF28: 52700 | AW28: 87560 | AY28: 221400 | AZ28: 6149 | BH28: 2000 | BI28: 740 | BV28: 22840 | BW28: 1600 | CD28: 15580 | CE28: 543597 | CF28: 1.0764648 | CG28: 0.2381187386 | CH28: 0.8383460618 | CJ28: 2026-04-14T16:40:09
A29: 27 | B29: D793 | C29: ='Dati Generali CER 1 Sem. 2025'!C29 -> FRAZZANO' | D29: 536 | E29: 20180 | U29: 44760 | V29: 64940 | W29: 0.6892516169 | AA29: 5220 | AF29: 16230 | AW29: 5840 | AY29: 16170 | CD29: 1300 | CE29: 44760 | CF29: 0.6584604153 | CG29: 0.2046155094 | CH29: 0.4538449059 | CJ29: 2026-01-22T13:30:17
A30: 28 | B30: D824 | C30: ='Dati Generali CER 1 Sem. 2025'!C30 -> FURCI SICULO | D30: 3254 | E30: 176970 | U30: 378860 | V30: 555830 | W30: 0.681611284 | AE30: 78460 | AF30: 57590 | AW30: 95230 | BH30: 3020 | BI30: 140 | BP30: 80 | BS30: 680 | BT30: 200 | BV30: 66380 | CD30: 77080 | CE30: 378860 | CF30: 0.9283390342 | CG30: 0.2955726731 | CH30: 0.6327663611 | CJ30: 2026-01-21T13:17:52
A31: 29 | B31: D825 | C31: ='Dati Generali CER 1 Sem. 2025'!C31 -> FURNARI | D31: 4147 | E31: 309470 | U31: 1315810 | V31: 1625280 | W31: 0.8095897322 | Z31: 49900 | AE31: 147020 | AF31: 158260 | AW31: 78800 | AY31: 499940 | AZ31: 9630 | BT31: 20260 | BV31: 38380 | BZ31: 219980 | CC31: 24880 | CD31: 68760 | CE31: 1315810 | CF31: 2.129983959 | CG31: 0.405570816 | CH31: 1.724413143 | CJ31: 2026-04-02T08:11:19
A32: 30 | B32: D844 | C32: ='Dati Generali CER 1 Sem. 2025'!C32 -> GAGGI | D32: 3084 | E32: 131280 | U32: 342359 | V32: 473639 | W32: 0.7228268787 | AE32: 59330 | AF32: 47476 | AH32: 1423 | AW32: 57720 | AY32: 155060 | AZ32: 1100 | BH32: 1640 | BI32: 270 | CD32: 18340 | CE32: 342359 | CF32: 0.834670882 | CG32: 0.2313483336 | CH32: 0.6033225484 | CJ32: 2026-02-17T09:08:06
A33: 31 | B33: D861 | C33: ='Dati Generali CER 1 Sem. 2025'!C33 -> GALATI MAMERTINO | D33: 2155 | E33: 76500 | U33: 277600 | V33: 354100 | W33: 0.7839593335 | AA33: 32720 | AF33: 62000 | AW33: 38850 | AY33: 114690 | AZ33: 10610 | BT33: 4070 | CD33: 14660 | CE33: 277600 | CF33: 0.8930192676 | CG33: 0.1929284778 | CH33: 0.7000907899 | CJ33: 2026-01-20T12:08:31
A34: 32 | B34: D885 | C34: ='Dati Generali CER 1 Sem. 2025'!C34 -> GALLODORO | D34: 323 | E34: 11730 | U34: 53987 | V34: 65717 | W34: 0.8215073725 | AE34: 7880 | AF34: 6340 | AW34: 6760 | AY34: 17940 | AZ34: 3167 | BI34: 140 | CD34: 11760 | CE34: 53987 | CF34: 1.105751111 | CG34: 0.1973684211 | CH34: 0.9083826895 | CJ34: 2026-01-20T11:37:20
A35: 33 | B35: E014 | C35: ='Dati Generali CER 1 Sem. 2025'!C35 -> GIARDINI NAXOS | D35: 9367 | E35: 907410 | K35: 5340 | R35: 77060 | U35: 2930500 | V35: =IF(E35=0,"",SUM(U35,E35,R35,S35,T35)) -> 3914970 | W35: =IFERROR(IF(E35<>0,IF(U35=0,0,(U35/V35*100)/100),IF(U35=0,"","")),0) -> 0.7485370258 | Z35: 228120 | AA35: 404770 | AF35: 476320 | AW35: 207500 | AY35: 1237000 | AZ35: 14710 | BH35: 2440 | BS35: 760 | BT35: 2320 | BV35: 105560 | BZ35: 74600 | CD35: 176400 | CE35: =IF(SUM(X35:CD35)=0,"",SUM(X35:CD35)) -> 2930500 | CF35: 2.271486161 | CG35: 0.526484049 | CH35: =IF(SUM(Y35:CD35)=0,"",CE35/D35/184) -> 1.700291495 | CJ35: 2026-02-03T09:49:21
A36: 34 | B36: E043 | C36: ='Dati Generali CER 1 Sem. 2025'!C36 -> GIOIOSA MAREA | D36: 6721 | E36: 527400 | U36: 1013030 | V36: 1540430 | W36: 0.6576280649 | Z36: 69100 | AE36: 123220 | AF36: 127940 | AW36: 71440 | AY36: 561140 | AZ36: 5810 | BI36: 650 | BV36: 4060 | BZ36: 7410 | CC36: 23200 | CD36: 19060 | CE36: 1013030 | CF36: 1.245633414 | CG36: 0.4264699223 | CH36: 0.8191634915
A37: 35 | B37: E142 | C37: ='Dati Generali CER 1 Sem. 2025'!C37 -> GRANITI | D37: 1469 | E37: 78580 | S37: 5314 | U37: 127386 | V37: 211280 | W37: 0.6029250284 | Z37: 18520 | AE37: 24560 | AF37: 28080 | AY37: 50720 | AZ37: 1800 | CD37: 3706 | CE37: 127386 | CF37: =IF(E37=0,"",V37/D37/184) -> 0.7816615858 | CG37: 0.2907183236 | CH37: 0.4712833338 | CJ37: 2026-01-29T07:53:47
A38: 36 | B38: E233 | C38: ='Dati Generali CER 1 Sem. 2025'!C38 -> GUALTIERI SICAMINO | D38: 1541 | E38: 52880 | U38: 238136 | V38: 291016 | W38: 0.8182917778 | X38: 10518 | AE38: 31170 | AF38: 24380 | AW38: 34700 | AY38: 84880 | BH38: 1253 | BI38: 300 | BP38: 100 | BS38: 1800 | BT38: 4804 | BV38: 11280 | BW38: 1405 | BX38: 1266 | BZ38: 14260 | CD38: 16020 | CE38: 238136 | CF38: =IF(SUM(E38)=0,"",V38/D38/184) -> 1.026352171 | CG38: 0.1864966284 | CH38: 0.8398555427 | CJ38: 2026-02-17T09:16:33
A39: 37 | B39: E374 | C39: ='Dati Generali CER 1 Sem. 2025'!C39 -> ITALA | D39: 1509 | E39: 99220 | U39: 211695 | V39: 310915 | W39: 0.6808774102 | AE39: 33300 | AF39: 25840 | AH39: 60 | AW39: 44030 | AY39: 86680 | AZ39: 6960 | BH39: 5315 | BI39: 30 | BS39: 1950 | BT39: 2430 | BV39: 3170 | CD39: 1930 | CE39: 211695 | CF39: 1.119784914 | CG39: 0.3573486617 | CH39: 0.7624362521 | CJ39: 2026-03-17T08:08:07
A40: 38 | B40: E523 | C40: ='Dati Generali CER 1 Sem. 2025'!C40 -> LENI | D40: 680 | E40: 89860 | U40: 76520 | V40: 166380 | W40: 0.459911047 | AA40: 12980 | AF40: 28460 | AW40: 17760 | BH40: 2000 | BS40: 1020 | BT40: 2480 | CD40: 11820 | CE40: 76520 | CF40: 1.329763427 | CG40: 0.7181905371 | CH40: 0.61157289 | CJ40: 2026-01-27T12:19:25
A41: 39 | B41: E555 | C41: ='Dati Generali CER 1 Sem. 2025'!C41 -> LETOJANNI | D41: 2936 | E41: 572150 | U41: 756057 | V41: 1328207 | W41: 0.569231302 | X41: 1386 | AE41: 93370 | AF41: 139050 | AW41: 103630 | AY41: 381700 | AZ41: 2101 | BI41: 60 | BZ41: 5080 | CD41: 29680 | CE41: 756057 | CF41: 2.458622719 | CG41: 1.059097708 | CH41: 1.399525012 | CJ41: 2026-02-03T11:30:40
A42: 40 | B42: E571 | C42: ='Dati Generali CER 1 Sem. 2025'!C42 -> LIBRIZZI | D42: 1554 | E42: 69940 | N42: 13750 | O42: 13280 | U42: 181170 | V42: 251110 | W42: 0.7214766437 | X42: 2580 | Y42: 140 | AE42: 27640 | AF42: 34020 | AW42: 25060 | AY42: 72440 | AZ42: 3970 | BI42: 300 | BT42: 640 | BV42: 1760 | CC42: 4740 | CD42: 7880 | CE42: 181170 | CF42: 0.8782035141 | CG42: 0.2446001903 | CH42: 0.6336033238 | CJ42: 2026-03-19T14:49:52
A43: 41 | B43: E594 | C43: ='Dati Generali CER 1 Sem. 2025'!C43 -> LIMINA | D43: 721 | E43: 46766 | U43: 62804 | V43: 109570 | W43: 0.5731860911 | AA43: 12702 | AW43: 8917 | AY43: 23444 | CD43: 17741 | CE43: 62804 | CF43: 0.825921124 | CG43: 0.3525146234 | CH43: 0.4734065006 | CJ43: 2026-04-02T08:13:30
A44: 42 | B44: E606 | C44: ='Dati Generali CER 1 Sem. 2025'!C44 -> LIPARI | D44: 12766 | E44: 2326200 | U44: 2471140 | V44: 4797340 | W44: 0.5151062881 | Z44: 261030 | AA44: 414780 | AF44: 612920 | AJ44: 10980 | AW44: 212900 | AY44: 629030 | BH44: 24160 | BS44: 16240 | BT44: 34980 | BV44: 85340 | BW44: 9760 | BX44: 45200 | BZ44: 57660 | CD44: 56160 | CE44: 2471140 | CF44: 2.042339026 | CG44: 0.9903173511 | CH44: 1.052021674 | CJ44: 2026-01-21T09:08:06
A45: 43 | B45: E674 | C45: ='Dati Generali CER 1 Sem. 2025'!C45 -> LONGI | D45: 1275 | E45: 16620 | U45: 164647 | V45: 181267 | W45: 0.908312048 | AA45: 21930 | AF45: 39560 | AW45: 25330 | AY45: 67270 | AZ45: 1787 | BH45: 960 | BS45: 960 | BT45: 2170 | CD45: 4680 | CE45: 164647 | CF45: 0.7726641091 | CG45: 0.07084398977 | CH45: 0.7018201194 | CJ45: 2026-01-20T14:27:34
A46: 44 | B46: E855 | C46: ='Dati Generali CER 1 Sem. 2025'!C46 -> MALFA | D46: 981 | E46: 133920 | U46: 180340 | V46: 314260 | W46: 0.5738560428 | Z46: 26420 | AA46: 25300 | AC46: 4120 | AF46: 69360 | AW46: 12060 | AY46: 14800 | BH46: 4120 | BT46: 3680 | BV46: 7820 | BW46: 4500 | BX46: 4760 | CD46: 3400 | CE46: 180340 | CF46: 1.74101405 | CG46: 0.7419226167 | CH46: 0.9990914329 | CJ46: 2026-01-21T13:20:07
A47: 45 | B47: E869 | C47: ='Dati Generali CER 1 Sem. 2025'!C47 -> MALVAGNA | D47: 597 | E47: 53300 | U47: 43130 | V47: 96430 | W47: 0.4472674479 | AA47: 8510 | AF47: 9240 | AW47: 6700 | AY47: 18680 | CE47: 43130 | CF47: 0.8778493919 | CG47: 0.4852159347 | CH47: 0.3926334571 | CJ47: 2026-02-18T13:13:38
A48: 46 | B48: E876 | C48: ='Dati Generali CER 1 Sem. 2025'!C48 -> MANDANICI | D48: 485 | E48: 14820 | U48: 60256 | V48: 75076 | W48: 0.802600032 | AE48: 8100 | AF48: 7695 | AW48: 6010 | AY48: 27235 | AZ48: 2526 | BH48: 160 | BI48: 260 | BZ48: 4310 | CD48: 3960 | CE48: 60256 | CF48: 0.8412819364 | CG48: 0.1660690273 | CH48: 0.675212909 | CJ48: 2026-02-04T07:44:54
A49: 47 | B49: F066 | C49: ='Dati Generali CER 1 Sem. 2025'!C49 -> MAZZARRA' S. ANDREA | D49: 1424 | E49: 41640 | U49: 152728 | V49: 194368 | W49: 0.7857672045 | X49: 8468 | AA49: 11060 | AE49: 6760 | AF49: 29480 | AW49: 15860 | AY49: 66900 | AZ49: 4460 | CD49: 9740 | CE49: 152728 | CF49: 0.7418172936 | CG49: 0.1589215926 | CH49: 0.582895701 | CJ49: 2026-01-29T14:29:05
A50: 48 | B50: F147 | C50: ='Dati Generali CER 1 Sem. 2025'!C50 -> MERI' | D50: 2366 | E50: 115710 | U50: 218606 | V50: 334316 | W50: 0.6538903313 | AE50: 37780 | AF50: 28980 | AW50: 39880 | AY50: 109620 | AZ50: 286 | BH50: 540 | BI50: 240 | BS50: 300 | BT50: 980 | CE50: 218606 | CF50: 0.767935242 | CG50: 0.2657898122 | CH50: 0.5021454298
A51: 49 | B51: F158 | C51: ='Dati Generali CER 1 Sem. 2025'!C51 -> MESSINA | D51: 217033 | E51: 18940310 | G51: 200 | U51: 31647501 | V51: 50587811 | W51: 0.625595383 | X51: 946 | Z51: 3175750 | AA51: 34170 | AC51: 730 | AE51: 3647810 | AF51: 2973110 | AJ51: 13780 | AV51: 198980 | AW51: 2979660 | AX51: 31960 | AY51: 13241880 | AZ51: 182180 | BG51: 625 | BH51: 289155 | BI51: 6530 | BJ51: 1795 | BK51: 26280 | BP51: 10660 | BQ51: 15680 | BS51: 88430 | BT51: 701040 | BV51: 1406030 | BX51: 165900 | BZ51: 1387190 | CC51: 202910 | CD51: 864320 | CE51: 31647501 | CF51: 1.266783187 | CG51: 0.4742894739 | CH51: 0.7924937131 | CJ51: 2026-04-09T16:18:53
A52: 50 | B52: F206 | C52: ='Dati Generali CER 1 Sem. 2025'!C52 -> MILAZZO | D52: 29830 | E52: 2448280 | H52: 2640 | U52: 5939619 | V52: 8387899 | W52: 0.7081176109 | Z52: 402880 | AA52: 9730 | AE52: 698250 | AF52: 598920 | AJ52: 180 | AV52: 117060 | AW52: 578360 | AY52: 2454040 | AZ52: 158599 | BG52: 360 | BH52: 17800 | BI52: 100 | BK52: 6320 | BP52: 660 | BS52: 23300 | BT52: 25800 | BV52: 132940 | BW52: 1880 | BX52: 34300 | BZ52: 130620 | CC52: 373280 | CD52: 174240 | CE52: 5939619 | CF52: 1.528206759 | CG52: 0.4460566398 | CH52: 1.082150119 | CJ52: 2026-02-25T08:17:31
A53: 51 | B53: F210 | C53: ='Dati Generali CER 1 Sem. 2025'!C53 -> MILITELLO ROSMARINO | D53: 1181 | E53: 53260 | U53: 102152 | V53: 155412 | W53: 0.6572980207 | AA53: 14810 | AF53: 26750 | AW53: 13160 | AY53: 40970 | AZ53: 2940 | BH53: 250 | BP53: 62 | BS53: 140 | BT53: 160 | CD53: 2910 | CE53: 102152 | CF53: 0.7151824173 | CG53: 0.2450944299 | CH53: 0.4700879873 | CJ53: 2026-02-03T09:31:10
A54: 52 | B54: F242 | C54: ='Dati Generali CER 1 Sem. 2025'!C54 -> MIRTO | D54: 869 | E54: 16040 | U54: 146914 | V54: 162954 | W54: 0.9015673135 | AA54: 21720 | AF54: 33720 | AW54: 23160 | AY54: 63230 | AZ54: 934 | BH54: 500 | BS54: 180 | BT54: 690 | CD54: 2780 | CE54: 146914 | CF54: 1.019124931 | CG54: 0.1003152049 | CH54: 0.9188097263 | CJ54: 2026-01-20T12:53:08
A55: 53 | B55: F251 | C55: ='Dati Generali CER 1 Sem. 2025'!C55 -> MISTRETTA | D55: 4229 | E55: 232320 | U55: 598635 | V55: 830955 | W55: 0.7204180732 | Z55: 52640 | AA55: 62840 | AF55: 98960 | AW55: 59040 | AY55: 227760 | AZ55: 11875 | BH55: 3220 | BS55: 2680 | BZ55: 10360 | CD55: 69260 | CE55: 598635 | CF55: 1.06787888 | CG55: 0.2985596348 | CH55: 0.769319245 | CJ55: 2026-01-22T07:41:39
A56: 54 | B56: F277 | C56: ='Dati Generali CER 1 Sem. 2025'!C56 -> MOJO ALCANTARA | D56: 687 | E56: 42820 | U56: 57270 | V56: 100090 | W56: 0.5721850335 | AA56: 7590 | AF56: 9600 | AW56: 5620 | AY56: 31400 | CD56: 3060 | CE56: 57270 | CF56: 0.7918011518 | CG56: 0.3387443833 | CH56: 0.4530567686 | CJ56: 2026-01-27T10:02:23
A57: 55 | B57: F359 | C57: ='Dati Generali CER 1 Sem. 2025'!C57 -> MONFORTE S. GIORGIO | D57: 2438 | E57: 162000 | U57: 330822 | V57: 492822 | W57: 0.6712809087 | X57: 9402 | AE57: 45620 | AF57: 42060 | AW57: 65780 | AY57: 151220 | AZ57: 7020 | BH57: 1240 | BS57: 770 | BT57: 2370 | CD57: 5340 | CE57: 330822 | CF57: 1.098597389 | CG57: 0.3611299354 | CH57: 0.7374674537 | CJ57: 2026-02-05T10:03:15
A58: 56 | B58: F368 | C58: ='Dati Generali CER 1 Sem. 2025'!C58 -> MONGIUFFI MELIA | D58: 516 | E58: 24990 | U58: 62650 | V58: 87640 | W58: 0.71485623 | AE58: 10470 | AF58: 9660 | AW58: 9470 | AY58: 25810 | CD58: 7240 | CE58: 62650 | CF58: 0.9230704415 | CG58: 0.2632077856 | CH58: 0.6598626559 | CJ58: 2026-04-02T08:15:35
A59: 57 | B59: F395 | C59: ='Dati Generali CER 1 Sem. 2025'!C59 -> MONTAGNAREALE | D59: 1352 | E59: 48380 | U59: 135780 | V59: 184160 | W59: 0.7372936577 | AE59: 22480 | AF59: 22900 | AJ59: 360 | AW59: 21500 | AY59: 47020 | AZ59: 3340 | BP59: 80 | BR59: 120 | BV59: 3880 | CC59: 3020 | CD59: 11080 | CE59: 135780 | CF59: 0.74028814 | CG59: 0.1944783895 | CH59: 0.5458097505 | CJ59: 2026-01-22T07:53:19
A60: 58 | B60: F400 | C60: ='Dati Generali CER 1 Sem. 2025'!C60 -> MONTALBANO ELICONA | D60: 2094 | E60: 117160 | U60: 220165 | V60: 337325 | W60: 0.652679167 | X60: 18000 | Y60: 20 | AE60: 35340 | AF60: 35480 | AW60: 29720 | AY60: 81520 | AZ60: 1835 | BH60: 980 | BP60: 80 | BR60: 20 | BS60: 970 | CD60: 16200 | CE60: 220165 | CF60: 0.8754957228 | CG60: 0.3040779037 | CH60: 0.571417819 | CJ60: 2026-01-29T11:23:24
A61: 59 | B61: F772 | C61: ='Dati Generali CER 1 Sem. 2025'!C61 -> MOTTA CAMASTRA | D61: 769 | E61: 58630 | U61: 95160 | V61: 153790 | W61: 0.6187658495 | Z61: 11400 | AE61: 18580 | AF61: 21400 | AY61: 37900 | CD61: 5880 | CE61: 95160 | CF61: 1.086885848 | CG61: 0.4143580031 | CH61: 0.6725278453 | CJ61: 2026-03-31T12:08:13
A62: 60 | B62: F773 | C62: ='Dati Generali CER 1 Sem. 2025'!C62 -> MOTTA D'AFFERMO | D62: 646 | E62: 14320 | U62: 58736 | V62: 73056 | W62: 0.8039859834 | X62: 3116 | AE62: 8840 | AF62: 14000 | AW62: 6210 | AY62: 22140 | BW62: 630 | CD62: 3800 | CE62: 58736 | CF62: 0.6146183874 | CG62: 0.1204738188 | CH62: 0.4941445686 | CJ62: 2026-02-24T09:35:58
A63: 61 | B63: F848 | C63: ='Dati Generali CER 1 Sem. 2025'!C63 -> NASO | D63: 3385 | E63: 113850 | K63: 2310 | O63: 14230 | Q63: 10000 | U63: 464632 | V63: 578482 | W63: 0.803191802 | X63: 33348 | Y63: 40 | AA63: 66860 | AF63: 85910 | AJ63: 200 | AV63: 3870 | AW63: 69290 | AY63: 159050 | AZ63: 6789 | BP63: 165 | BT63: 8480 | BV63: 720 | BW63: 7460 | CD63: 22450 | CE63: 464632 | CF63: 0.9287810674 | CG63: 0.1827917282 | CH63: 0.7459893392 | CJ63: 2026-01-22T13:32:35
A64: 62 | B64: F901 | C64: ='Dati Generali CER 1 Sem. 2025'!C64 -> NIZZA DI SICILIA | D64: 3495 | E64: 176510 | U64: 463768 | V64: 640278 | W64: 0.7243228723 | Y64: 60 | Z64: 874 | AE64: 65110 | AF64: 63840 | AW64: 66130 | AY64: 223050 | AZ64: 4724 | BI64: 220 | BP64: 90 | BZ64: 16460 | CC64: 3260 | CD64: 19950 | CE64: 463768 | CF64: 0.9956428438 | CG64: 0.2744759594 | CH64: 0.7211668844 | CJ64: 2026-04-08T08:02:40
A65: 63 | B65: F951 | C65: ='Dati Generali CER 1 Sem. 2025'!C65 -> NOVARA DI SICILIA | D65: 1078 | E65: 56200 | U65: 196860 | V65: 253060 | W65: 0.7779182802 | X65: 8040 | AE65: 19120 | AF65: 19940 | AW65: 22220 | AY65: 94700 | AZ65: 3760 | BZ65: 12000 | CD65: 17080 | CE65: 196860 | CF65: 1.275812697 | CG65: 0.2833346777 | CH65: 0.9924780189 | CJ65: 2026-03-24T13:44:48
A66: 64 | B66: G036 | C66: ='Dati Generali CER 1 Sem. 2025'!C66 -> OLIVERI | D66: 2197 | E66: 232260 | N66: 500000 | O66: 11000 | U66: 635258 | V66: 867518 | W66: 0.7322706849 | X66: 12708 | Z66: 23720 | AE66: 59640 | AF66: 59200 | AJ66: 1100 | AV66: 101440 | AW66: 32300 | AY66: 182640 | AZ66: 10680 | BI66: 350 | BT66: 1040 | BV66: 27560 | BZ66: 37780 | CC66: 28980 | CD66: 56120 | CE66: 635258 | CF66: 2.146004433 | CG66: 0.5745482971 | CH66: 1.571456136 | CJ66: 2026-03-31T08:28:07
A67: 65 | B67: G209 | C67: ='Dati Generali CER 1 Sem. 2025'!C67 -> PACE DEL MELA | D67: 5974 | E67: 377640 | U67: 789541 | V67: =IF(E67=0,"",SUM(U67,E67,R67,S67,T67)) -> 1167181 | W67: =IFERROR(IF(E67<>0,IF(U67=0,0,(U67/V67*100)/100),IF(U67=0,"","")),0) -> 0.6764512102 | Y67: 140 | AA67: 3730 | AE67: 106220 | AF67: 95300 | AW67: 140080 | AY67: 312400 | BG67: 110 | BH67: 4507 | BP67: 120 | BS67: 6000 | BT67: 9916 | BV67: 26780 | BW67: 7524 | BX67: 8054 | BZ67: 17180 | CD67: 51480 | CE67: =IF(SUM(X67:CD67)=0,"",SUM(X67:CD67)) -> 789541 | CF67: 1.061830432 | CG67: 0.3435539512 | CH67: =IF(SUM(Y67:CD67)=0,"",CE67/D67/184) -> 0.7182764807 | CJ67: 2026-03-31T08:06:28
A68: 66 | B68: G234 | C68: ='Dati Generali CER 1 Sem. 2025'!C68 -> PAGLIARA | D68: 1117 | E68: 35320 | U68: =IF(CE68=0,"",CE68) -> 114880 | V68: 150200 | W68: 0.7648468708 | AE68: 19320 | AF68: 15145 | AW68: 14880 | AY68: 57845 | BP68: 160 | BZ68: 4750 | CD68: 2780 | CE68: 114880 | CF68: 0.7308006695 | CG68: =IF(E68=0,"",E68/D68/184) -> 0.1718500642 | CH68: 0.5589506053 | CJ68: 2026-01-22T14:06:04
A69: 67 | B69: G377 | C69: ='Dati Generali CER 1 Sem. 2025'!C69 -> PATTI | D69: 12679 | E69: 1128360 | I69: 33600 | U69: 2652823 | V69: 3781183 | W69: 0.7015854562 | X69: 63848 | Z69: 143020 | AA69: 1600 | AE69: 274040 | AF69: 203700 | AV69: 294500 | AW69: 164080 | AY69: 987460 | AZ69: 32020 | BG69: 115 | BH69: 50260 | BP69: 140 | BS69: 18400 | BT69: 88020 | BV69: 65100 | BX69: 29440 | BZ69: 32700 | CC69: 86700 | CD69: 117680 | CE69: 2652823 | CF69: 1.620782996 | CG69: 0.4836652184 | CH69: 1.137117778 | CJ69: 2026-02-05T09:55:38
A70: 68 | B70: G522 | C70: ='Dati Generali CER 1 Sem. 2025'!C70 -> PETTINEO | D70: 1239 | E70: 29340 | U70: 131941 | V70: 161281 | W70: 0.8180814851 | Z70: 2170 | AE70: 24660 | AF70: 24200 | AW70: 8310 | AY70: 59220 | AZ70: 641 | BW70: 2140 | BX70: 6180 | CD70: 4420 | CE70: 131941 | CF70: =IF(SUM(E70)=0,"",V70/D70/184) -> 0.7074472752 | CG70: 0.1286977577 | CH70: 0.5787495175 | CJ70: 2026-02-26T10:09:41
A71: 69 | B71: G699 | C71: ='Dati Generali CER 1 Sem. 2025'!C71 -> PIRAINO | D71: 3758 | E71: 216460 | U71: 650994 | V71: 867454 | W71: 0.7504651543 | X71: 25826 | Z71: 12560 | AA71: 88360 | AF71: 105220 | AW71: 92970 | AY71: 276920 | AZ71: 7318 | BH71: 1840 | BS71: 2190 | BT71: 7280 | BV71: 5640 | BW71: 1490 | CD71: 23380 | CE71: 650994 | CF71: 1.254503436 | CG71: 0.3130423213 | CH71: 0.9414611148 | CJ71: 2026-02-24T09:03:43
A72: 70 | B72: H151 | C72: ='Dati Generali CER 1 Sem. 2025'!C72 -> RACCUJA | D72: 830 | E72: 28740 | U72: 115680 | V72: 144420 | W72: 0.8009970918 | Y72: 20 | Z72: 13060 | AA72: 13360 | AF72: 28300 | AY72: 45480 | AZ72: 3340 | BP72: 40 | BR72: 20 | CD72: 12060 | CE72: 115680 | CF72: 0.9456521739 | CG72: 0.1881875327 | CH72: 0.7574646412 | CJ72: 2026-02-26T10:12:17
A73: 71 | B73: H228 | C73: ='Dati Generali CER 1 Sem. 2025'!C73 -> REITANO | D73: 717 | E73: 64580 | U73: 138760 | V73: 203340 | W73: 0.6824038556 | Z73: 25610 | AA73: 7840 | AE73: 16180 | AF73: 22440 | AY73: 50260 | BH73: 1530 | BS73: 720 | CD73: 14180 | CE73: 138760 | CF73: 1.541295252 | CG73: 0.4895094294 | CH73: 1.051785823 | CJ73: 2026-04-07T08:29:15
A74: 72 | B74: H405 | C74: ='Dati Generali CER 1 Sem. 2025'!C74 -> ROCCAFIORITA | D74: 160 | E74: 4770 | U74: 20072 | V74: 24842 | W74: 0.8079864745 | AA74: 3240 | AF74: 2080 | AW74: 2990 | AY74: 7500 | AZ74: 582 | BZ74: 2680 | CD74: 1000 | CE74: 20072 | CF74: 0.8438179348 | CG74: 0.1620244565 | CH74: 0.6817934783 | CJ74: 2026-02-17T09:20:13
A75: 73 | B75: H418 | C75: ='Dati Generali CER 1 Sem. 2025'!C75 -> ROCCALUMERA | D75: 4163 | E75: 259790 | U75: 858938 | V75: 1118728 | W75: 0.7677809083 | Y75: 280 | AA75: 2360 | AE75: 107360 | AF75: 100040 | AJ75: 2180 | AW75: 168490 | AY75: 297400 | AZ75: 8098 | BH75: 4860 | BI75: 550 | BK75: 2240 | BP75: 220 | BS75: 2280 | BT75: 1060 | BV75: 55200 | BZ75: 27700 | CC75: 4020 | CD75: 74600 | CE75: 858938 | CF75: 1.460495671 | CG75: 0.3391549781 | CH75: 1.121340693 | CJ75: 2026-04-02T11:35:22
A76: 74 | B76: H380 | C76: ='Dati Generali CER 1 Sem. 2025'!C76 -> ROCCAVALDINA | D76: 987 | E76: 89240 | U76: 93691 | V76: 182931 | W76: 0.5121657893 | AE76: 10380 | AF76: 16340 | AW76: 11960 | AY76: 44320 | AZ76: 726 | BH76: 700 | BI76: 50 | BP76: 55 | BS76: 700 | BT76: 1020 | CD76: 7440 | CE76: 93691 | CF76: 1.007284921 | CG76: 0.4913880446 | CH76: 0.5158968768 | CJ76: 2026-01-29T07:57:21
A77: 75 | B77: H455 | C77: ='Dati Generali CER 1 Sem. 2025'!C77 -> ROCCELLA VALDEMONE | D77: 538 | E77: 45480 | U77: 46711 | V77: 92191 | W77: 0.5066763567 | AA77: 5890 | AF77: 9360 | AW77: 7680 | AY77: 19600 | AZ77: 4181 | CE77: 46711 | CF77: 0.9312974786 | CG77: 0.4594310651 | CH77: 0.4718664134 | CJ77: 2026-01-20T08:08:34
A78: 76 | B78: H479 | C78: ='Dati Generali CER 1 Sem. 2025'!C78 -> RODI' MILICI | D78: 1948 | E78: 87820 | R78: 1440 | U78: 213340 | V78: 302600 | W78: 0.7050231328 | X78: 28020 | Y78: 20 | Z78: 560 | AA78: 1940 | AE78: 25900 | AF78: 29420 | AH78: 7760 | AW78: 18600 | AY78: 85180 | AZ78: 7760 | BH78: 160 | BP78: 140 | BS78: 180 | BT78: 260 | BZ78: 1720 | CD78: 5720 | CE78: 213340 | CF78: 0.8442326578 | CG78: 0.2450116061 | CH78: 0.5952035533 | CJ78: 2026-01-27T12:21:21
A79: 77 | B79: H519 | C79: ='Dati Generali CER 1 Sem. 2025'!C79 -> ROMETTA | D79: 6563 | E79: 291560 | U79: 990883 | V79: 1282443 | W79: 0.7726526637 | X79: 83220 | Z79: 20540 | AA79: 107000 | AC79: 10440 | AF79: 106050 | AW79: 116360 | AY79: 471400 | AZ79: 2013 | BH79: 1240 | BS79: 280 | BT79: 920 | BZ79: 19020 | CD79: 52400 | CE79: 990883 | CF79: 1.061983683 | CG79: 0.2414391616 | CH79: 0.8205445217
A80: 78 | B80: I184 | C80: ='Dati Generali CER 1 Sem. 2025'!C80 -> S. DOMENICA VITTORIA | D80: 858 | E80: 59700 | U80: 94460 | V80: 154160 | W80: 0.6127400104 | Z80: 13930 | AE80: 16750 | AF80: 19320 | AY80: 38200 | CD80: 6260 | CE80: 94460 | CF80: 0.9764872808 | CG80: 0.3781544542 | CH80: 0.5983328266 | CJ80: 2026-02-26T08:02:25
A81: 79 | B81: I370 | C81: ='Dati Generali CER 1 Sem. 2025'!C81 -> S. STEF. DI CAMASTRA | D81: 4364 | E81: 418600 | U81: 529208 | V81: 947808 | W81: 0.5583493703 | X81: 8700 | Z81: 100330 | AA81: 39660 | AF81: 93060 | AJ81: 970 | AV81: 27280 | AW81: 16770 | AY81: 167300 | AZ81: 2748 | BH81: 3920 | BI81: 760 | BP81: 300 | BR81: 100 | BS81: 1170 | BZ81: 30280 | CD81: 35860 | CE81: 529208 | CF81: 1.180369027 | CG81: 0.5213107241 | CH81: 0.6590583031 | CJ81: 2026-03-31T08:41:23
A82: 80 | B82: I199 | C82: ='Dati Generali CER 1 Sem. 2025'!C82 -> S. AGATA DI MILITELLO | D82: 12059 | E82: 803080 | U82: 2125646 | V82: 2928726 | W82: 0.7257920338 | X82: 68288 | Z82: 75640 | AA82: 224970 | AB82: 8720 | AF82: 285640 | AW82: 255260 | AY82: 744140 | AZ82: 21968 | BG82: 90 | BH82: 11340 | BI82: 590 | BS82: 8820 | BT82: 7840 | BV82: 181340 | BZ82: 134040 | CD82: 96960 | CE82: 2125646 | CF82: 1.319926124 | CG82: 0.361934258 | CH82: 0.9579918661 | CJ82: 2026-01-22T07:57:49
A83: 81 | B83: I220 | C83: ='Dati Generali CER 1 Sem. 2025'!C83 -> SANTA LUCIA DEL MELA | D83: 4386 | E83: 103660 | U83: 625605 | V83: 729265 | W83: 0.8578568833 | X83: 66078 | Z83: 51780 | AE83: 90860 | AF83: 66880 | AR83: 270 | AW83: 39850 | AY83: 224100 | AZ83: 6427 | BG83: 130 | BH83: 5500 | BI83: 150 | BR83: 90 | BS83: 2570 | BT83: 9110 | BZ83: 5100 | CD83: 56710 | CE83: 625605 | CF83: 0.9036472273 | CG83: 0.1284472333 | CH83: 0.7751999941 | CJ83: 2026-01-21T09:25:34
A84: 82 | B84: I311 | C84: ='Dati Generali CER 1 Sem. 2025'!C84 -> S. TERESA DI RIVA | D84: 9187 | E84: 359560 | U84: 1558382 | V84: 1917942 | W84: 0.8125282204 | X84: 37362 | Z84: 83030 | AA84: 12840 | AE84: 249900 | AF84: 178490 | AW84: 218960 | AY84: 612300 | AZ84: 12380 | BH84: 3340 | BI84: 300 | BK84: 1520 | BS84: 1760 | BT84: 2960 | BV84: 33800 | BW84: 8940 | BX84: 4720 | BZ84: 12140 | CC84: 40260 | CD84: 43380 | CE84: 1558382 | CF84: 1.134603007 | CG84: 0.2127060449 | CH84: 0.9218969622 | CJ84: 2026-02-03T09:38:11
A85: 83 | B85: H842 | C85: ='Dati Generali CER 1 Sem. 2025'!C85 -> S. FILIPPO DEL MELA | D85: 6642 | E85: 224240 | U85: 989684 | V85: 1213924 | W85: 0.8152767389 | X85: 12000 | Z85: 24120 | AE85: 164060 | AF85: 89500 | AW85: 183890 | AY85: 441020 | AZ85: 8224 | BH85: 1070 | BI85: 240 | BP85: 280 | BS85: 1880 | BT85: 3940 | BZ85: 36620 | CD85: 22840 | CE85: 989684 | CF85: 0.9932871189 | CG85: 0.1834832358 | CH85: 0.8098038831 | CJ85: 2026-02-18T08:16:06
A86: 84 | B86: H8450 | C86: ='Dati Generali CER 1 Sem. 2025'!C86 -> SAN FRATELLO | D86: 3199 | E86: 122900 | U86: 285992 | V86: 408892 | W86: 0.6994316348 | AA86: 44500 | AF86: 55420 | AW86: 48140 | AY86: 115740 | AZ86: 10072 | BH86: 1180 | BI86: 200 | BS86: 1100 | BT86: 1360 | CD86: 8280 | CE86: 285992 | CF86: 0.6946668116 | CG86: 0.208794868 | CH86: 0.4858719437 | CJ86: 2026-02-03T09:36:01
A87: 85 | B87: H982 | C87: ='Dati Generali CER 1 Sem. 2025'!C87 -> SAN MARCO D'ALUNZIO | D87: 1799 | E87: 62960 | U87: 216560 | V87: 279520 | W87: 0.7747567258 | AA87: 27540 | AB87: 600 | AE87: 3460 | AF87: 43220 | AJ87: 100 | AW87: 37180 | AY87: 78160 | AZ87: 920 | BT87: 2800 | BX87: 13040 | BZ87: 200 | CD87: 9340 | CE87: 216560 | CF87: 0.8444304807 | CG87: 0.1902022863 | CH87: 0.6542281944 | CJ87: 2026-01-29T08:13:09
A88: 86 | B88: I084 | C88: ='Dati Generali CER 1 Sem. 2025'!C88 -> SAN PIER NICETO | D88: 2551 | E88: 174620 | U88: 288842 | V88: 463462 | W88: 0.6232269312 | X88: 62802 | AE88: 41020 | AF88: 37740 | AW88: 45720 | AY88: 88960 | AZ88: 3700 | BH88: 1930 | BI88: 760 | BP88: 30 | BS88: 540 | BT88: 1200 | CD88: 4440 | CE88: 288842 | CF88: 0.9873834643 | CG88: 0.3720194979 | CH88: 0.6153639664 | CJ88: 2026-01-22T14:12:36
A89: 87 | B89: I086 | C89: ='Dati Generali CER 1 Sem. 2025'!C89 -> SAN PIERO PATTI | D89: 2589 | E89: 128500 | U89: 457142 | V89: 585642 | W89: 0.7805826768 | X89: 160562 | Z89: 11500 | AE89: 46700 | AF89: 44400 | AW89: 29740 | AY89: 105920 | BV89: 12140 | CC89: 1320 | CD89: 44860 | CE89: 457142 | CF89: 1.229369238 | CG89: 0.2697449074 | CH89: 0.9596243304 | CJ89: 2026-02-24T09:14:38
A90: 88 | B90: I147 | C90: ='Dati Generali CER 1 Sem. 2025'!C90 -> S. SALVAT. DI FITALIA | D90: 1111 | E90: 39780 | U90: 112080 | V90: 151860 | W90: 0.7380482023 | AA90: 9440 | AF90: 26380 | AW90: 14800 | AY90: 54670 | AZ90: 3190 | BZ90: 3600 | CE90: 112080 | CF90: 0.742867765 | CG90: 0.1945955465 | CH90: 0.5482722185 | CJ90: 2026-01-20T09:44:42
A91: 89 | B91: I328 | C91: ='Dati Generali CER 1 Sem. 2025'!C91 -> SAN TEODORO | D91: 1209 | E91: 41260 | U91: 144042 | V91: 185302 | W91: 0.7773364562 | AA91: 15280 | AF91: 31140 | AW91: 23280 | AY91: 61580 | AZ91: 1182 | CD91: 11580 | CE91: 144042 | CF91: 0.8329827022 | CG91: 0.1854748804 | CH91: 0.6475078218 | CJ91: 2026-01-20T12:18:47
A92: 90 | B92: I283 | C92: ='Dati Generali CER 1 Sem. 2025'!C92 -> S. ANGELO DI BROLO | D92: 2683 | E92: 92260 | U92: 392046 | V92: 484306 | W92: 0.809500605 | X92: 98400 | Z92: 10020 | AA92: 48830 | AF92: 61490 | AW92: 45600 | AY92: 102180 | AZ92: 7266 | BH92: 1200 | BI92: 430 | BS92: 660 | BT92: 1560 | CD92: 14410 | CE92: 392046 | CF92: 0.981027889 | CG92: 0.1868852193 | CH92: 0.7941426696 | CJ92: 2026-03-05T16:57:44
A93: 91 | B93: I215 | C93: ='Dati Generali CER 1 Sem. 2025'!C93 -> S. ALESSIO SICULO | D93: 1548 | E93: 210760 | U93: 338870 | V93: 549630 | W93: 0.6165420374 | AE93: 50420 | AF93: 54330 | AW93: 54560 | AY93: 124500 | BZ93: 11000 | CD93: 44060 | CE93: 338870 | CF93: 1.929663802 | CG93: 0.73994495 | CH93: 1.189718852 | CJ93: 2026-04-16T13:29:04
A94: 92 | B94: I254 | C94: ='Dati Generali CER 1 Sem. 2025'!C94 -> SANTA MARINA SALINA | D94: 852 | E94: 225960 | U94: 152700 | V94: 378660 | W94: 0.403264142 | AA94: 20740 | AB94: 5160 | AF94: 63580 | AW94: 30560 | BH94: 4100 | BS94: 1400 | BT94: 3400 | CD94: 23760 | CE94: 152700 | CF94: 2.415416412 | CG94: 1.441365585 | CH94: 0.9740508267 | CJ94: 2026-02-18T10:42:21
A95: 93 | B95: I420 | C95: ='Dati Generali CER 1 Sem. 2025'!C95 -> SAPONARA | D95: 3666 | E95: 134620 | U95: =IF(CE95=0,"",CE95) -> 508042 | V95: 642662 | W95: 0.7905275246 | AA95: 72260 | AC95: 5710 | AF95: 26710 | AW95: 121340 | AY95: 230140 | AZ95: 3882 | BH95: 1560 | BV95: 18220 | BZ95: 15380 | CD95: 12840 | CE95: 508042 | CF95: 0.9527354776 | CG95: 0.1995718589 | CH95: 0.7531636187 | CJ95: 2026-01-27T10:04:00
A96: 94 | B96: I477 | C96: ='Dati Generali CER 1 Sem. 2025'!C96 -> SAVOCA | D96: 1756 | E96: 89270 | U96: 206400 | V96: 295670 | W96: 0.6980755572 | AE96: 33550 | AF96: 25820 | AW96: 26450 | AY96: 97580 | CD96: 23000 | CE96: 206400 | CF96: 0.9150923542 | CG96: 0.2762887491 | CH96: 0.638803605 | CJ96: 2026-04-07T12:41:42
A97: 95 | B97: I492 | C97: ='Dati Generali CER 1 Sem. 2025'!C97 -> SCALETTA ZANCLEA | D97: 1846 | E97: 112200 | U97: 234116 | V97: 346316 | W97: 0.676018434 | AE97: 35920 | AF97: 37700 | AW97: 38070 | AY97: 101440 | AZ97: 7472 | BH97: 720 | BI97: 254 | CD97: 12540 | CE97: 234116 | CF97: 1.01958406 | CG97: 0.3303264402 | CH97: 0.6892576193 | CJ97: 2026-02-03T13:16:49
A98: 96 | B98: I747 | C98: ='Dati Generali CER 1 Sem. 2025'!C98 -> SINAGRA | D98: 2444 | E98: 17960 | U98: 392342 | V98: 410302 | W98: 0.9562273642 | Y98: 40 | AA98: 55280 | AB98: 8940 | AF98: 62760 | AW98: 48140 | AY98: 165940 | AZ98: 10882 | BI98: 100 | BP98: 160 | BR98: 20 | CC98: 560 | CD98: 39520 | CE98: 392342 | CF98: 0.9123985982 | CG98: 0.03993809151 | CH98: 0.8724605067 | CJ98: 2026-01-20T15:49:36
A99: 97 | B99: I881 | C99: ='Dati Generali CER 1 Sem. 2025'!C99 -> SPADAFORA | D99: 4652 | E99: 428700 | S99: 5530 | U99: 593462 | V99: =IF(E99=0,"",SUM(U99,E99,R99,S99,T99)) -> 1027692 | W99: =IFERROR(IF(E99<>0,IF(U99=0,0,(U99/V99*100)/100),IF(U99=0,"","")),0) -> 0.5774706819 | Z99: 15590 | AA99: 87210 | AC99: 8360 | AF99: 87660 | AW99: 103680 | AY99: 240100 | AZ99: 8652 | BH99: 200 | BS99: 440 | BT99: 560 | BV99: 6960 | BW99: 5020 | CD99: 29030 | CE99: =IF(SUM(X99:CD99)=0,"",SUM(X99:CD99)) -> 593462 | CF99: 1.200619649 | CG99: 0.5008364799 | CH99: =IF(SUM(Y99:CD99)=0,"",CE99/D99/184) -> 0.6933226476 | CJ99: 2026-01-27T10:07:47
A100: 98 | B100: L042 | C100: ='Dati Generali CER 1 Sem. 2025'!C100 -> TAORMINA | D100: 10480 | E100: 982820 | I100: 18580 | R100: 186860 | U100: 4386122 | V100: 5555802 | W100: 0.7894669392 | Z100: 304850 | AA100: 19850 | AE100: 557160 | AF100: 924940 | AJ100: 680 | AV100: 20760 | AW100: 403340 | AY100: 1740500 | BG100: 360 | BH100: 4980 | BP100: 1390 | BR100: 92 | BS100: 3020 | BT100: 2800 | BV100: 27500 | BW100: 27940 | BZ100: 170400 | CD100: 175560 | CE100: 4386122 | CF100: 2.88116184 | CG100: 0.5096768171 | CH100: 2.27458202 | CJ100: 2026-03-05T17:17:58
A101: 99 | B101: M210 | C101: ='Dati Generali CER 1 Sem. 2025'!C101 -> TERME VIGLIATORE | D101: 7295 | E101: 458880 | U101: 1214790 | V101: 1673670 | W101: 0.7258240872 | X101: 25800 | Z101: 97920 | AE101: 175450 | AF101: 122010 | AW101: 103230 | AY101: 471860 | BH101: 2160 | BS101: 780 | BT101: 1850 | BZ101: 60760 | CC101: 138220 | CD101: 14750 | CE101: 1214790 | CF101: 1.246885896 | CG101: 0.3418660786 | CH101: 0.905019817 | CJ101: 2026-01-22T14:16:12
A102: 100 | B102: L271 | C102: ='Dati Generali CER 1 Sem. 2025'!C102 -> TORREGROTTA | D102: 7260 | E102: 955260 | R102: 11420 | U102: 1736638 | V102: 2703318 | W102: 0.642409809 | X102: 51318 | Z102: 106580 | AE102: 248920 | AF102: 175800 | AW102: 252740 | AY102: 776740 | AZ102: 4700 | BH102: 2540 | BI102: 220 | BS102: 740 | BT102: 2160 | BW102: 160 | BZ102: 78840 | CD102: 35180 | CE102: 1736638 | CF102: =IF(SUM(E102)=0,"",V102/D102/184) -> 2.023683974 | CG102: 0.7151006109 | CH102: 1.300034435 | CJ102: 2026-01-28T08:11:39
A103: 101 | B103: M286 | C103: ='Dati Generali CER 1 Sem. 2025'!C103 -> TORRENOVA | D103: 4501 | E103: 201800 | U103: 775590 | V103: 977390 | W103: 0.7935317529 | Z103: 55200 | AA103: 137800 | AF103: 92300 | AW103: 137880 | AY103: 284420 | AZ103: 8430 | BH103: 8500 | BV103: 300 | CD103: 50760 | CE103: 775590 | CF103: 1.180160447 | CG103: 0.2436656588 | CH103: 0.9364947886 | CJ103: 2026-01-29T11:18:57
A104: 102 | B104: L308 | C104: ='Dati Generali CER 1 Sem. 2025'!C104 -> TORTORICI | D104: 5531 | E104: 180300 | U104: 448495 | V104: 628795 | W104: 0.7132610787 | AA104: 89620 | AF104: 104450 | AW104: 86960 | AY104: 140090 | AZ104: 16945 | BP104: 430 | BT104: 3170 | CD104: 6830 | CE104: 448495 | CF104: 0.6178564691 | CG104: 0.1771634974 | CH104: 0.4406929716 | CJ104: 2026-03-19T14:56:47
A105: 103 | B105: L431 | C105: ='Dati Generali CER 1 Sem. 2025'!C105 -> TRIPI | D105: 718 | E105: 32400 | U105: 161687 | V105: 194087 | W105: 0.8330645535 | X105: 28697 | AE105: 12980 | AF105: 15580 | AW105: 12940 | AY105: 68720 | AZ105: 1610 | BT105: 120 | CD105: 21040 | CE105: 161687 | CF105: 1.469109543 | CG105: 0.2452464576 | CH105: 1.223863086 | CJ105: 2026-03-24T08:04:20
A106: 104 | B106: L478 | C106: ='Dati Generali CER 1 Sem. 2025'!C106 -> TUSA | D106: 2481 | E106: 159880 | U106: 367306 | V106: 527186 | W106: 0.6967294276 | X106: 12226 | AA106: 34580 | AF106: 74520 | AW106: 52920 | AY106: 160520 | BI106: 820 | BZ106: 2820 | CD106: 28900 | CE106: 367306 | CF106: 1.154833254 | CG106: 0.3502269422 | CH106: 0.8046063123 | CJ106: 2026-03-11T15:48:24
A107: 105 | B107: L482 | C107: ='Dati Generali CER 1 Sem. 2025'!C107 -> UCRIA | D107: 865 | E107: 15850 | U107: 135722 | V107: 151572 | W107: 0.895429235 | X107: 33600 | Y107: 20 | AA107: 15170 | AF107: 19330 | AW107: 13680 | AY107: 42590 | AZ107: 3980 | BI107: 120 | BP107: 52 | BR107: 30 | BT107: 2380 | BV107: 100 | BW107: 630 | BZ107: 180 | CD107: 3860 | CE107: 135722 | CF107: 0.9523247047 | CG107: 0.09958532295 | CH107: 0.8527393818 | CJ107: 2026-01-22T14:26:12
A108: 106 | B108: L561 | C108: ='Dati Generali CER 1 Sem. 2025'!C108 -> VALDINA | D108: 1240 | E108: 129600 | U108: 129407 | V108: 259007 | W108: 0.4996274232 | X108: 1782 | Z108: 840 | AA108: 500 | AE108: 14180 | AF108: 20980 | AW108: 17960 | AY108: 63780 | BH108: 540 | BP108: 45 | BS108: 280 | BT108: 500 | CD108: 8020 | CE108: 129407 | CF108: 1.135198983 | CG108: 0.5680224404 | CH108: 0.5671765428 | CJ108: 2026-04-02T15:43:05
A109: 107 | B109: L735 | C109: ='Dati Generali CER 1 Sem. 2025'!C109 -> VENETICO | D109: 3936 | E109: 298240 | U109: 471463 | V109: 769703 | W109: 0.6125258704 | X109: 7398 | Z109: 5520 | AA109: 11820 | AE109: 60240 | AF109: 64500 | AW109: 87660 | AY109: 215440 | BH109: 1460 | BP109: 65 | BS109: 400 | BT109: 1080 | CD109: 15880 | CE109: 471463 | CF109: 1.062796869 | CG109: 0.411806292 | CH109: 0.6509905775 | CJ109: 2026-01-27T16:15:26
A110: 108 | B110: L950 | C110: ='Dati Generali CER 1 Sem. 2025'!C110 -> VILLAFRANCA TIRRENA | D110: 7793 | E110: 496840 | U110: 1387604 | V110: 1884444 | W110: 0.7363466359 | X110: 9487 | Z110: 174580 | AA110: 157340 | AF110: 151780 | AW110: 139120 | AY110: 463110 | AZ110: 6238 | BH110: 9080 | BI110: 1830 | BP110: 320 | BS110: 3879 | BT110: 2840 | BV110: 93700 | BZ110: 88010 | CC110: 14710 | CD110: 71580 | CE110: 1387604 | CF110: 1.314197803 | CG110: 0.3464926718 | CH110: 0.9677051311 | CJ110: 2026-02-17T09:23:40
C111: T O T A L I | D111: =SUM(D3:D110) -> 596147 | E111: =SUM(E3:E110) -> 44314306 | F111: 0 | G111: 200 | H111: 2640 | I111: 52180 | J111: 0 | K111: 39650 | L111: 0 | M111: 0 | N111: 513750 | O111: 38510 | P111: 0 | Q111: 10000 | R111: 276780 | S111: 10844 | T111: 0 | U111: 96560466 | V111: =SUM(V3:V110) -> 141162396 | W111: =IF(CE111=0,"",(U111/V111*100)/100) -> 0.6840381627 | X111: =SUM(X3:X110) -> 1349227 | Y111: =SUM(Y3:Y110) -> 1118 | Z111: =SUM(Z3:Z110) -> 6552164 | AA111: 4052692 | AB111: 43500 | AC111: 60400 | AD111: 0 | AE111: 8216340 | AF111: 12142976 | AG111: 0 | AH111: 9243 | AI111: 1140 | AJ111: 79330 | AK111: 0 | AL111: 0 | AM111: 0 | AN111: 0 | AO111: 0 | AP111: 0 | AQ111: 0 | AR111: 1780 | AS111: 0 | AT111: 0 | AU111: =SUM(AU3:AU110) -> 0 | AV111: =SUM(AV3:AV110) -> 763890 | AW111: 10475377 | AX111: 31960 | AY111: 38029100 | AZ111: 825923 | BA111: 38022 | BB111: 0 | BC111: 0 | BD111: 0 | BE111: 0 | BF111: 0 | BG111: 2895 | BH111: 543670 | BI111: 22714 | BJ111: 1795 | BK111: 36360 | BL111: 0 | BM111: 0 | BN111: 0 | BO111: 0 | BP111: 19161 | BQ111: 17720 | BR111: 1054 | BS111: 251579 | BT111: 1072910 | BU111: 0 | BV111: 2794570 | BW111: 166929 | BX111: 431040 | BY111: 0 | BZ111: 3371760 | CA111: 0 | CB111: 0 | CC111: =SUM(CC3:CC110) -> 1349720 | CD111: 3802407 | CE111: =SUM(CE3:CE110) -> 96560466

Sheet Riep. Dati RSU e RD 2 Sem. 2025
B3: CITTA' METROPOLITANA DI MESSINA
B4: DATI RIFIUTI SOLIDI URBANI E RACCOLTA DIFFERENZIATA
B5: SECONDO SEMESTRE ANNO 2025
A6: ='Dati Generali CER 2 Sem. 2025'!A2 -> 108 | B6: COMUNE | C6: QUANTITA' (KG) | D6: QUANTITA' (KG) | E6: PERCENTUALE | F6: RSU+RSA+RD | G6: RSU+RSA | H6: R.D. | I6: ='Dati Generali CER 2 Sem. 2025'!D2 -> ABITANTI AL 31/12/2025
C7: R.S.U. (Cod.200301) | D7: RACCOLTA | E7: RACCOLTA | F7: R.T. (Kg.) | G7: 200301 (kg.) | H7: (Kg.)
C8: PRODOTTI | D8: DIFFERENZIATA | E8: DIFFERENZIATA | F8: Pro Capite/g | G8: RI Pro Capite/g | H8: Pro Capite/g
B9: CTRL + "q" per ordinare in % | D9: CTRL + "w" per Alfabetico
A10: 1 | B10: ='Dati Generali CER 1 Sem. 2025'!C3 -> ACQUEDOLCI | C10: =IF('Dati Generali CER 2 Sem. 2025'!E3="","",SUM('Dati Generali CER 2 Sem. 2025'!E3+'Dati Generali CER 2 Sem. 2025'!R3+'Dati Generali CER 2 Sem. 2025'!S3+'Dati Generali CER 2 Sem. 2025'!T3)) -> 179940 | D10: =IF(C10="","",'Dati Generali CER 2 Sem. 2025'!CE3) -> 908898 | E10: ='Dati Generali CER 2 Sem. 2025'!W3 -> 0.8347412563 | F10: =IF('Dati Generali CER 2 Sem. 2025'!CF3="","",'Dati Generali CER 2 Sem. 2025'!CF3) -> 1.073779319 | G10: =IF('Dati Generali CER 2 Sem. 2025'!CG3="","",'Dati Generali CER 2 Sem. 2025'!CG3) -> 0.1774514213 | H10: =IF('Dati Generali CER 2 Sem. 2025'!CH3="","",'Dati Generali CER 2 Sem. 2025'!CH3) -> 0.8963278976 | I10: ='Dati Generali CER 2 Sem. 2025'!D3 -> 5511 | J10: =IF('Dati Generali CER 2 Sem. 2025'!CJ3="","",'Dati Generali CER 2 Sem. 2025'!CJ3) -> 2026-04-21T12:24:49
A11: 2 | B11: ='Dati Generali CER 1 Sem. 2025'!C4 -> ALCARA LI FUSI | C11: =IF('Dati Generali CER 2 Sem. 2025'!E4="","",SUM('Dati Generali CER 2 Sem. 2025'!E4+'Dati Generali CER 2 Sem. 2025'!R4+'Dati Generali CER 2 Sem. 2025'!S4+'Dati Generali CER 2 Sem. 2025'!T4)) -> 42740 | D11: =IF(C11="","",'Dati Generali CER 2 Sem. 2025'!CE4) -> 163595 | E11: ='Dati Generali CER 2 Sem. 2025'!W4 -> 0.7928611239 | F11: =IF('Dati Generali CER 2 Sem. 2025'!CF4="","",'Dati Generali CER 2 Sem. 2025'!CF4) -> 0.690083612 | G11: =IF('Dati Generali CER 2 Sem. 2025'!CG4="","",'Dati Generali CER 2 Sem. 2025'!CG4) -> 0.1429431438 | H11: =IF('Dati Generali CER 2 Sem. 2025'!CH4="","",'Dati Generali CER 2 Sem. 2025'!CH4) -> 0.5471404682 | I11: ='Dati Generali CER 2 Sem. 2025'!D4 -> 1625 | J11: =IF('Dati Generali CER 2 Sem. 2025'!CJ4="","",'Dati Generali CER 2 Sem. 2025'!CJ4) -> 2026-04-21T12:24:57
A12: 3 | B12: ='Dati Generali CER 1 Sem. 2025'!C5 -> ALI' | C12: =IF('Dati Generali CER 2 Sem. 2025'!E5="","",SUM('Dati Generali CER 2 Sem. 2025'!E5+'Dati Generali CER 2 Sem. 2025'!R5+'Dati Generali CER 2 Sem. 2025'!S5+'Dati Generali CER 2 Sem. 2025'!T5)) -> 18810 | D12: =IF(C12="","",'Dati Generali CER 2 Sem. 2025'!CE5) -> 51338 | E12: ='Dati Generali CER 2 Sem. 2025'!W5 -> 0.7318526544 | F12: =IF('Dati Generali CER 2 Sem. 2025'!CF5="","",'Dati Generali CER 2 Sem. 2025'!CF5) -> 0.6199010251 | G12: =IF('Dati Generali CER 2 Sem. 2025'!CG5="","",'Dati Generali CER 2 Sem. 2025'!CG5) -> 0.1662248144 | H12: =IF('Dati Generali CER 2 Sem. 2025'!CH5="","",'Dati Generali CER 2 Sem. 2025'!CH5) -> 0.4536762107 | I12: ='Dati Generali CER 2 Sem. 2025'!D5 -> 615 | J12: =IF('Dati Generali CER 2 Sem. 2025'!CJ5="","",'Dati Generali CER 2 Sem. 2025'!CJ5) -> 2026-01-20T08:01:59
A13: 4 | B13: ='Dati Generali CER 1 Sem. 2025'!C6 -> ALI' TERME | C13: =IF('Dati Generali CER 2 Sem. 2025'!E6="","",SUM('Dati Generali CER 2 Sem. 2025'!E6+'Dati Generali CER 2 Sem. 2025'!R6+'Dati Generali CER 2 Sem. 2025'!S6+'Dati Generali CER 2 Sem. 2025'!T6)) -> 132600 | D13: =IF(C13="","",'Dati Generali CER 2 Sem. 2025'!CE6) -> 372902 | E13: ='Dati Generali CER 2 Sem. 2025'!W6 -> 0.7376864978 | F13: =IF('Dati Generali CER 2 Sem. 2025'!CF6="","",'Dati Generali CER 2 Sem. 2025'!CF6) -> 1.191884372 | G13: =IF('Dati Generali CER 2 Sem. 2025'!CG6="","",'Dati Generali CER 2 Sem. 2025'!CG6) -> 0.312647364 | H13: =IF('Dati Generali CER 2 Sem. 2025'!CH6="","",'Dati Generali CER 2 Sem. 2025'!CH6) -> 0.8792370084 | I13: ='Dati Generali CER 2 Sem. 2025'!D6 -> 2305 | J13: =IF('Dati Generali CER 2 Sem. 2025'!CJ6="","",'Dati Generali CER 2 Sem. 2025'!CJ6) -> 2026-01-27T11:19:30
A14: 5 | B14: ='Dati Generali CER 1 Sem. 2025'!C7 -> ANTILLO | C14: =IF('Dati Generali CER 2 Sem. 2025'!E7="","",SUM('Dati Generali CER 2 Sem. 2025'!E7+'Dati Generali CER 2 Sem. 2025'!R7+'Dati Generali CER 2 Sem. 2025'!S7+'Dati Generali CER 2 Sem. 2025'!T7)) -> 15560 | D14: =IF(C14="","",'Dati Generali CER 2 Sem. 2025'!CE7) -> 85289 | E14: ='Dati Generali CER 2 Sem. 2025'!W7 -> 0.8457099228 | F14: =IF('Dati Generali CER 2 Sem. 2025'!CF7="","",'Dati Generali CER 2 Sem. 2025'!CF7) -> 0.7008854109 | G14: =IF('Dati Generali CER 2 Sem. 2025'!CG7="","",'Dati Generali CER 2 Sem. 2025'!CG7) -> 0.1081396642 | H14: =IF('Dati Generali CER 2 Sem. 2025'!CH7="","",'Dati Generali CER 2 Sem. 2025'!CH7) -> 0.5927457467 | I14: ='Dati Generali CER 2 Sem. 2025'!D7 -> 782 | J14: =IF('Dati Generali CER 2 Sem. 2025'!CJ7="","",'Dati Generali CER 2 Sem. 2025'!CJ7) -> 2026-02-10T09:01:36
A15: 6 | B15: ='Dati Generali CER 1 Sem. 2025'!C8 -> BARCELLONA P.G. | C15: =IF('Dati Generali CER 2 Sem. 2025'!E8="","",SUM('Dati Generali CER 2 Sem. 2025'!E8+'Dati Generali CER 2 Sem. 2025'!R8+'Dati Generali CER 2 Sem. 2025'!S8+'Dati Generali CER 2 Sem. 2025'!T8)) -> 2538160 | D15: =IF(C15="","",'Dati Generali CER 2 Sem. 2025'!CE8) -> 5903742 | E15: ='Dati Generali CER 2 Sem. 2025'!W8 -> 0.699337898 | F15: =IF('Dati Generali CER 2 Sem. 2025'!CF8="","",'Dati Generali CER 2 Sem. 2025'!CF8) -> 1.153834021 | G15: =IF('Dati Generali CER 2 Sem. 2025'!CG8="","",'Dati Generali CER 2 Sem. 2025'!CG8) -> 0.3469141621 | H15: =IF('Dati Generali CER 2 Sem. 2025'!CH8="","",'Dati Generali CER 2 Sem. 2025'!CH8) -> 0.8069198589 | I15: ='Dati Generali CER 2 Sem. 2025'!D8 -> 39763 | J15: =IF('Dati Generali CER 2 Sem. 2025'!CJ8="","",'Dati Generali CER 2 Sem. 2025'!CJ8) -> 2026-02-03T09:10:06
A16: 7 | B16: ='Dati Generali CER 1 Sem. 2025'!C9 -> BASICO' | C16: =IF('Dati Generali CER 2 Sem. 2025'!E9="","",SUM('Dati Generali CER 2 Sem. 2025'!E9+'Dati Generali CER 2 Sem. 2025'!R9+'Dati Generali CER 2 Sem. 2025'!S9+'Dati Generali CER 2 Sem. 2025'!T9)) -> 55240 | D16: =IF(C16="","",'Dati Generali CER 2 Sem. 2025'!CE9) -> 82930 | E16: ='Dati Generali CER 2 Sem. 2025'!W9 -> 0.6002026489 | F16: =IF('Dati Generali CER 2 Sem. 2025'!CF9="","",'Dati Generali CER 2 Sem. 2025'!CF9) -> 1.167844344 | G16: =IF('Dati Generali CER 2 Sem. 2025'!CG9="","",'Dati Generali CER 2 Sem. 2025'!CG9) -> 0.4669010751 | H16: =IF('Dati Generali CER 2 Sem. 2025'!CH9="","",'Dati Generali CER 2 Sem. 2025'!CH9) -> 0.7009432686 | I16: ='Dati Generali CER 2 Sem. 2025'!D9 -> 643 | J16: =IF('Dati Generali CER 2 Sem. 2025'!CJ9="","",'Dati Generali CER 2 Sem. 2025'!CJ9) -> 2026-02-03T09:17:43
A17: 8 | B17: ='Dati Generali CER 1 Sem. 2025'!C10 -> BROLO | C17: =IF('Dati Generali CER 2 Sem. 2025'!E10="","",SUM('Dati Generali CER 2 Sem. 2025'!E10+'Dati Generali CER 2 Sem. 2025'!R10+'Dati Generali CER 2 Sem. 2025'!S10+'Dati Generali CER 2 Sem. 2025'!T10)) -> 398180 | D17: =IF(C17="","",'Dati Generali CER 2 Sem. 2025'!CE10) -> 917780 | E17: ='Dati Generali CER 2 Sem. 2025'!W10 -> 0.6974224141 | F17: =IF('Dati Generali CER 2 Sem. 2025'!CF10="","",'Dati Generali CER 2 Sem. 2025'!CF10) -> 1.24794216 | G17: =IF('Dati Generali CER 2 Sem. 2025'!CG10="","",'Dati Generali CER 2 Sem. 2025'!CG10) -> 0.3775993263 | H17: =IF('Dati Generali CER 2 Sem. 2025'!CH10="","",'Dati Generali CER 2 Sem. 2025'!CH10) -> 0.8703428342 | I17: ='Dati Generali CER 2 Sem. 2025'!D10 -> 5731 | J17: =IF('Dati Generali CER 2 Sem. 2025'!CJ10="","",'Dati Generali CER 2 Sem. 2025'!CJ10) -> 2026-01-27T13:09:06
A18: 9 | B18: ='Dati Generali CER 1 Sem. 2025'!C11 -> CAPIZZI | C18: =IF('Dati Generali CER 2 Sem. 2025'!E11="","",SUM('Dati Generali CER 2 Sem. 2025'!E11+'Dati Generali CER 2 Sem. 2025'!R11+'Dati Generali CER 2 Sem. 2025'!S11+'Dati Generali CER 2 Sem. 2025'!T11)) -> 56390 | D18: =IF(C18="","",'Dati Generali CER 2 Sem. 2025'!CE11) -> 298820 | E18: ='Dati Generali CER 2 Sem. 2025'!W11 -> 0.8412488387 | F18: =IF('Dati Generali CER 2 Sem. 2025'!CF11="","",'Dati Generali CER 2 Sem. 2025'!CF11) -> 0.6966759763 | G18: =IF('Dati Generali CER 2 Sem. 2025'!CG11="","",'Dati Generali CER 2 Sem. 2025'!CG11) -> 0.1105981203 | H18: =IF('Dati Generali CER 2 Sem. 2025'!CH11="","",'Dati Generali CER 2 Sem. 2025'!CH11) -> 0.5860778561 | I18: ='Dati Generali CER 2 Sem. 2025'!D11 -> 2771 | J18: =IF('Dati Generali CER 2 Sem. 2025'!CJ11="","",'Dati Generali CER 2 Sem. 2025'!CJ11) -> 2026-01-27T12:10:31
A19: 10 | B19: ='Dati Generali CER 1 Sem. 2025'!C12 -> CAPO D'ORLANDO | C19: =IF('Dati Generali CER 2 Sem. 2025'!E12="","",SUM('Dati Generali CER 2 Sem. 2025'!E12+'Dati Generali CER 2 Sem. 2025'!R12+'Dati Generali CER 2 Sem. 2025'!S12+'Dati Generali CER 2 Sem. 2025'!T12)) -> 527460 | D19: =IF(C19="","",'Dati Generali CER 2 Sem. 2025'!CE12) -> 3155580 | E19: ='Dati Generali CER 2 Sem. 2025'!W12 -> 0.8567867848 | F19: =IF('Dati Generali CER 2 Sem. 2025'!CF12="","",'Dati Generali CER 2 Sem. 2025'!CF12) -> 1.533480559 | G19: =IF('Dati Generali CER 2 Sem. 2025'!CG12="","",'Dati Generali CER 2 Sem. 2025'!CG12) -> 0.2196146813 | H19: =IF('Dati Generali CER 2 Sem. 2025'!CH12="","",'Dati Generali CER 2 Sem. 2025'!CH12) -> 1.313865878 | I19: ='Dati Generali CER 2 Sem. 2025'!D12 -> 13053 | J19: =IF('Dati Generali CER 2 Sem. 2025'!CJ12="","",'Dati Generali CER 2 Sem. 2025'!CJ12) -> 2026-02-03T11:15:57
A20: 11 | B20: ='Dati Generali CER 1 Sem. 2025'!C13 -> CAPRILEONE | C20: =IF('Dati Generali CER 2 Sem. 2025'!E13="","",SUM('Dati Generali CER 2 Sem. 2025'!E13+'Dati Generali CER 2 Sem. 2025'!R13+'Dati Generali CER 2 Sem. 2025'!S13+'Dati Generali CER 2 Sem. 2025'!T13)) -> 131140 | D20: =IF(C20="","",'Dati Generali CER 2 Sem. 2025'!CE13) -> 646500 | E20: ='Dati Generali CER 2 Sem. 2025'!W13 -> 0.8313615555 | F20: =IF('Dati Generali CER 2 Sem. 2025'!CF13="","",'Dati Generali CER 2 Sem. 2025'!CF13) -> 0.9611790648 | G20: =IF('Dati Generali CER 2 Sem. 2025'!CG13="","",'Dati Generali CER 2 Sem. 2025'!CG13) -> 0.1620917424 | H20: =IF('Dati Generali CER 2 Sem. 2025'!CH13="","",'Dati Generali CER 2 Sem. 2025'!CH13) -> 0.7990873224 | I20: ='Dati Generali CER 2 Sem. 2025'!D13 -> 4397 | J20: =IF('Dati Generali CER 2 Sem. 2025'!CJ13="","",'Dati Generali CER 2 Sem. 2025'!CJ13) -> 2026-04-02T17:22:14
A21: 12 | B21: ='Dati Generali CER 1 Sem. 2025'!C14 -> CARONIA | C21: =IF('Dati Generali CER 2 Sem. 2025'!E14="","",SUM('Dati Generali CER 2 Sem. 2025'!E14+'Dati Generali CER 2 Sem. 2025'!R14+'Dati Generali CER 2 Sem. 2025'!S14+'Dati Generali CER 2 Sem. 2025'!T14)) -> 181820 | D21: =IF(C21="","",'Dati Generali CER 2 Sem. 2025'!CE14) -> 300493 | E21: ='Dati Generali CER 2 Sem. 2025'!W14 -> 0.6230248822 | F21: =IF('Dati Generali CER 2 Sem. 2025'!CF14="","",'Dati Generali CER 2 Sem. 2025'!CF14) -> 0.8873616467 | G21: =IF('Dati Generali CER 2 Sem. 2025'!CG14="","",'Dati Generali CER 2 Sem. 2025'!CG14) -> 0.3345132613 | H21: =IF('Dati Generali CER 2 Sem. 2025'!CH14="","",'Dati Generali CER 2 Sem. 2025'!CH14) -> 0.5528483854 | I21: ='Dati Generali CER 2 Sem. 2025'!D14 -> 2954 | J21: =IF('Dati Generali CER 2 Sem. 2025'!CJ14="","",'Dati Generali CER 2 Sem. 2025'!CJ14) -> 2026-01-27T09:14:39
A22: 13 | B22: ='Dati Generali CER 1 Sem. 2025'!C15 -> CASALVECCHIO SICULO | C22: =IF('Dati Generali CER 2 Sem. 2025'!E15="","",SUM('Dati Generali CER 2 Sem. 2025'!E15+'Dati Generali CER 2 Sem. 2025'!R15+'Dati Generali CER 2 Sem. 2025'!S15+'Dati Generali CER 2 Sem. 2025'!T15)) -> 20680 | D22: =IF(C22="","",'Dati Generali CER 2 Sem. 2025'!CE15) -> 70000 | E22: ='Dati Generali CER 2 Sem. 2025'!W15 -> 0.7719453022 | F22: =IF('Dati Generali CER 2 Sem. 2025'!CF15="","",'Dati Generali CER 2 Sem. 2025'!CF15) -> 0.7050444735 | G22: =IF('Dati Generali CER 2 Sem. 2025'!CG15="","",'Dati Generali CER 2 Sem. 2025'!CG15) -> 0.1607887044 | H22: =IF('Dati Generali CER 2 Sem. 2025'!CH15="","",'Dati Generali CER 2 Sem. 2025'!CH15) -> 0.5442557691 | I22: ='Dati Generali CER 2 Sem. 2025'!D15 -> 699 | J22: =IF('Dati Generali CER 2 Sem. 2025'!CJ15="","",'Dati Generali CER 2 Sem. 2025'!CJ15) -> 
A23: 14 | B23: ='Dati Generali CER 1 Sem. 2025'!C16 -> CASTEL DI LUCIO | C23: =IF('Dati Generali CER 2 Sem. 2025'!E16="","",SUM('Dati Generali CER 2 Sem. 2025'!E16+'Dati Generali CER 2 Sem. 2025'!R16+'Dati Generali CER 2 Sem. 2025'!S16+'Dati Generali CER 2 Sem. 2025'!T16)) -> 0.0001 | D23: =IF(C23="","",'Dati Generali CER 2 Sem. 2025'!CE16) -> 134590 | E23: ='Dati Generali CER 2 Sem. 2025'!W16 -> 0.9999999993 | F23: =IF('Dati Generali CER 2 Sem. 2025'!CF16="","",'Dati Generali CER 2 Sem. 2025'!CF16) -> 0.5198773219 | G23: =IF('Dati Generali CER 2 Sem. 2025'!CG16="","",'Dati Generali CER 2 Sem. 2025'!CG16) -> 3.862674207e-10 | H23: =IF('Dati Generali CER 2 Sem. 2025'!CH16="","",'Dati Generali CER 2 Sem. 2025'!CH16) -> 0.5198773215 | I23: ='Dati Generali CER 2 Sem. 2025'!D16 -> 1407 | J23: =IF('Dati Generali CER 2 Sem. 2025'!CJ16="","",'Dati Generali CER 2 Sem. 2025'!CJ16) -> 2026-01-20T08:28:32
A24: 15 | B24: ='Dati Generali CER 1 Sem. 2025'!C17 -> CASTELL'UMBERTO | C24: =IF('Dati Generali CER 2 Sem. 2025'!E17="","",SUM('Dati Generali CER 2 Sem. 2025'!E17+'Dati Generali CER 2 Sem. 2025'!R17+'Dati Generali CER 2 Sem. 2025'!S17+'Dati Generali CER 2 Sem. 2025'!T17)) -> 101350 | D24: =IF(C24="","",'Dati Generali CER 2 Sem. 2025'!CE17) -> 306765 | E24: ='Dati Generali CER 2 Sem. 2025'!W17 -> 0.7516631342 | F24: =IF('Dati Generali CER 2 Sem. 2025'!CF17="","",'Dati Generali CER 2 Sem. 2025'!CF17) -> 0.7967012587 | G24: =IF('Dati Generali CER 2 Sem. 2025'!CG17="","",'Dati Generali CER 2 Sem. 2025'!CG17) -> 0.1978502936 | H24: =IF('Dati Generali CER 2 Sem. 2025'!CH17="","",'Dati Generali CER 2 Sem. 2025'!CH17) -> 0.5988509651 | I24: ='Dati Generali CER 2 Sem. 2025'!D17 -> 2784 | J24: =IF('Dati Generali CER 2 Sem. 2025'!CJ17="","",'Dati Generali CER 2 Sem. 2025'!CJ17) -> 2026-01-22T13:27:37
A25: 16 | B25: ='Dati Generali CER 1 Sem. 2025'!C18 -> CASTELMOLA | C25: =IF('Dati Generali CER 2 Sem. 2025'!E18="","",SUM('Dati Generali CER 2 Sem. 2025'!E18+'Dati Generali CER 2 Sem. 2025'!R18+'Dati Generali CER 2 Sem. 2025'!S18+'Dati Generali CER 2 Sem. 2025'!T18)) -> 52930 | D25: =IF(C25="","",'Dati Generali CER 2 Sem. 2025'!CE18) -> 171440 | E25: ='Dati Generali CER 2 Sem. 2025'!W18 -> 0.7640950216 | F25: =IF('Dati Generali CER 2 Sem. 2025'!CF18="","",'Dati Generali CER 2 Sem. 2025'!CF18) -> 1.133273396 | G25: =IF('Dati Generali CER 2 Sem. 2025'!CG18="","",'Dati Generali CER 2 Sem. 2025'!CG18) -> 0.2673448359 | H25: =IF('Dati Generali CER 2 Sem. 2025'!CH18="","",'Dati Generali CER 2 Sem. 2025'!CH18) -> 0.8659285599 | I25: ='Dati Generali CER 2 Sem. 2025'!D18 -> 1076 | J25: =IF('Dati Generali CER 2 Sem. 2025'!CJ18="","",'Dati Generali CER 2 Sem. 2025'!CJ18) -> 2026-03-24T08:02:49
A26: 17 | B26: ='Dati Generali CER 1 Sem. 2025'!C19 -> CASTROREALE | C26: =IF('Dati Generali CER 2 Sem. 2025'!E19="","",SUM('Dati Generali CER 2 Sem. 2025'!E19+'Dati Generali CER 2 Sem. 2025'!R19+'Dati Generali CER 2 Sem. 2025'!S19+'Dati Generali CER 2 Sem. 2025'!T19)) -> 77320 | D26: =IF(C26="","",'Dati Generali CER 2 Sem. 2025'!CE19) -> 198949 | E26: ='Dati Generali CER 2 Sem. 2025'!W19 -> 0.7201278464 | F26: =IF('Dati Generali CER 2 Sem. 2025'!CF19="","",'Dati Generali CER 2 Sem. 2025'!CF19) -> 0.6658367878 | G26: =IF('Dati Generali CER 2 Sem. 2025'!CG19="","",'Dati Generali CER 2 Sem. 2025'!CG19) -> 0.1863491757 | H26: =IF('Dati Generali CER 2 Sem. 2025'!CH19="","",'Dati Generali CER 2 Sem. 2025'!CH19) -> 0.4794876121 | I26: ='Dati Generali CER 2 Sem. 2025'!D19 -> 2255 | J26: =IF('Dati Generali CER 2 Sem. 2025'!CJ19="","",'Dati Generali CER 2 Sem. 2025'!CJ19) -> 2026-01-27T09:17:49
A27: 18 | B27: ='Dati Generali CER 1 Sem. 2025'!C20 -> CESARO' | C27: =IF('Dati Generali CER 2 Sem. 2025'!E20="","",SUM('Dati Generali CER 2 Sem. 2025'!E20+'Dati Generali CER 2 Sem. 2025'!R20+'Dati Generali CER 2 Sem. 2025'!S20+'Dati Generali CER 2 Sem. 2025'!T20)) -> 123220 | D27: =IF(C27="","",'Dati Generali CER 2 Sem. 2025'!CE20) -> 173033 | E27: ='Dati Generali CER 2 Sem. 2025'!W20 -> 0.5840717225 | F27: =IF('Dati Generali CER 2 Sem. 2025'!CF20="","",'Dati Generali CER 2 Sem. 2025'!CF20) -> 0.7725866853 | G27: =IF('Dati Generali CER 2 Sem. 2025'!CG20="","",'Dati Generali CER 2 Sem. 2025'!CG20) -> 0.3213406493 | H27: =IF('Dati Generali CER 2 Sem. 2025'!CH20="","",'Dati Generali CER 2 Sem. 2025'!CH20) -> 0.4512460361 | I27: ='Dati Generali CER 2 Sem. 2025'!D20 -> 2084 | J27: =IF('Dati Generali CER 2 Sem. 2025'!CJ20="","",'Dati Generali CER 2 Sem. 2025'!CJ20) -> 2026-01-29T07:53:03
A28: 19 | B28: ='Dati Generali CER 1 Sem. 2025'!C21 -> CONDRO' | C28: =IF('Dati Generali CER 2 Sem. 2025'!E21="","",SUM('Dati Generali CER 2 Sem. 2025'!E21+'Dati Generali CER 2 Sem. 2025'!R21+'Dati Generali CER 2 Sem. 2025'!S21+'Dati Generali CER 2 Sem. 2025'!T21)) -> 25340 | D28: =IF(C28="","",'Dati Generali CER 2 Sem. 2025'!CE21) -> 44284 | E28: ='Dati Generali CER 2 Sem. 2025'!W21 -> 0.6360450419 | F28: =IF('Dati Generali CER 2 Sem. 2025'!CF21="","",'Dati Generali CER 2 Sem. 2025'!CF21) -> 0.7706543877 | G28: =IF('Dati Generali CER 2 Sem. 2025'!CG21="","",'Dati Generali CER 2 Sem. 2025'!CG21) -> 0.2804834853 | H28: =IF('Dati Generali CER 2 Sem. 2025'!CH21="","",'Dati Generali CER 2 Sem. 2025'!CH21) -> 0.4901709023 | I28: ='Dati Generali CER 2 Sem. 2025'!D21 -> 491 | J28: =IF('Dati Generali CER 2 Sem. 2025'!CJ21="","",'Dati Generali CER 2 Sem. 2025'!CJ21) -> 2026-01-16T08:25:15
A29: 20 | B29: ='Dati Generali CER 1 Sem. 2025'!C22 -> FALCONE | C29: =IF('Dati Generali CER 2 Sem. 2025'!E22="","",SUM('Dati Generali CER 2 Sem. 2025'!E22+'Dati Generali CER 2 Sem. 2025'!R22+'Dati Generali CER 2 Sem. 2025'!S22+'Dati Generali CER 2 Sem. 2025'!T22)) -> 215160 | D29: =IF(C29="","",'Dati Generali CER 2 Sem. 2025'!CE22) -> 548928 | E29: ='Dati Generali CER 2 Sem. 2025'!W22 -> 0.7184093979 | F29: =IF('Dati Generali CER 2 Sem. 2025'!CF22="","",'Dati Generali CER 2 Sem. 2025'!CF22) -> 1.474139927 | G29: =IF('Dati Generali CER 2 Sem. 2025'!CG22="","",'Dati Generali CER 2 Sem. 2025'!CG22) -> 0.4151039496 | H29: =IF('Dati Generali CER 2 Sem. 2025'!CH22="","",'Dati Generali CER 2 Sem. 2025'!CH22) -> 1.059035977 | I29: ='Dati Generali CER 2 Sem. 2025'!D22 -> 2817 | J29: =IF('Dati Generali CER 2 Sem. 2025'!CJ22="","",'Dati Generali CER 2 Sem. 2025'!CJ22) -> 2026-01-20T14:24:41
A30: 21 | B30: ='Dati Generali CER 1 Sem. 2025'!C23 -> FICARRA | C30: =IF('Dati Generali CER 2 Sem. 2025'!E23="","",SUM('Dati Generali CER 2 Sem. 2025'!E23+'Dati Generali CER 2 Sem. 2025'!R23+'Dati Generali CER 2 Sem. 2025'!S23+'Dati Generali CER 2 Sem. 2025'!T23)) -> 40380 | D30: =IF(C30="","",'Dati Generali CER 2 Sem. 2025'!CE23) -> 204594 | E30: ='Dati Generali CER 2 Sem. 2025'!W23 -> 0.8351661809 | F30: =IF('Dati Generali CER 2 Sem. 2025'!CF23="","",'Dati Generali CER 2 Sem. 2025'!CF23) -> 1.045860514 | G30: =IF('Dati Generali CER 2 Sem. 2025'!CG23="","",'Dati Generali CER 2 Sem. 2025'!CG23) -> 0.1723931828 | H30: =IF('Dati Generali CER 2 Sem. 2025'!CH23="","",'Dati Generali CER 2 Sem. 2025'!CH23) -> 0.8734673315 | I30: ='Dati Generali CER 2 Sem. 2025'!D23 -> 1273 | J30: =IF('Dati Generali CER 2 Sem. 2025'!CJ23="","",'Dati Generali CER 2 Sem. 2025'!CJ23) -> 2026-01-29T08:29:26
A31: 22 | B31: ='Dati Generali CER 1 Sem. 2025'!C24 -> FIUMEDINISI | C31: =IF('Dati Generali CER 2 Sem. 2025'!E24="","",SUM('Dati Generali CER 2 Sem. 2025'!E24+'Dati Generali CER 2 Sem. 2025'!R24+'Dati Generali CER 2 Sem. 2025'!S24+'Dati Generali CER 2 Sem. 2025'!T24)) -> 55740 | D31: =IF(C31="","",'Dati Generali CER 2 Sem. 2025'!CE24) -> 118319 | E31: ='Dati Generali CER 2 Sem. 2025'!W24 -> 0.6797637583 | F31: =IF('Dati Generali CER 2 Sem. 2025'!CF24="","",'Dati Generali CER 2 Sem. 2025'!CF24) -> 0.7531630781 | G31: =IF('Dati Generali CER 2 Sem. 2025'!CG24="","",'Dati Generali CER 2 Sem. 2025'!CG24) -> 0.2411901135 | H31: =IF('Dati Generali CER 2 Sem. 2025'!CH24="","",'Dati Generali CER 2 Sem. 2025'!CH24) -> 0.5119729646 | I31: ='Dati Generali CER 2 Sem. 2025'!D24 -> 1256 | J31: =IF('Dati Generali CER 2 Sem. 2025'!CJ24="","",'Dati Generali CER 2 Sem. 2025'!CJ24) -> 2026-01-27T12:12:52
A32: 23 | B32: ='Dati Generali CER 1 Sem. 2025'!C25 -> FLORESTA | C32: =IF('Dati Generali CER 2 Sem. 2025'!E25="","",SUM('Dati Generali CER 2 Sem. 2025'!E25+'Dati Generali CER 2 Sem. 2025'!R25+'Dati Generali CER 2 Sem. 2025'!S25+'Dati Generali CER 2 Sem. 2025'!T25)) -> 22970 | D32: =IF(C32="","",'Dati Generali CER 2 Sem. 2025'!CE25) -> 59660 | E32: ='Dati Generali CER 2 Sem. 2025'!W25 -> 0.7220137964 | F32: =IF('Dati Generali CER 2 Sem. 2025'!CF25="","",'Dati Generali CER 2 Sem. 2025'!CF25) -> 0.9783792744 | G32: =IF('Dati Generali CER 2 Sem. 2025'!CG25="","",'Dati Generali CER 2 Sem. 2025'!CG25) -> 0.2719759401 | H32: =IF('Dati Generali CER 2 Sem. 2025'!CH25="","",'Dati Generali CER 2 Sem. 2025'!CH25) -> 0.7064033343 | I32: ='Dati Generali CER 2 Sem. 2025'!D25 -> 459 | J32: =IF('Dati Generali CER 2 Sem. 2025'!CJ25="","",'Dati Generali CER 2 Sem. 2025'!CJ25) -> 2026-01-27T10:00:39
A33: 24 | B33: ='Dati Generali CER 1 Sem. 2025'!C26 -> FONDACHELLI FANTINA | C33: =IF('Dati Generali CER 2 Sem. 2025'!E26="","",SUM('Dati Generali CER 2 Sem. 2025'!E26+'Dati Generali CER 2 Sem. 2025'!R26+'Dati Generali CER 2 Sem. 2025'!S26+'Dati Generali CER 2 Sem. 2025'!T26)) -> 60800 | D33: =IF(C33="","",'Dati Generali CER 2 Sem. 2025'!CE26) -> 153148 | E33: ='Dati Generali CER 2 Sem. 2025'!W26 -> 0.7158187971 | F33: =IF('Dati Generali CER 2 Sem. 2025'!CF26="","",'Dati Generali CER 2 Sem. 2025'!CF26) -> 1.078627894 | G33: =IF('Dati Generali CER 2 Sem. 2025'!CG26="","",'Dati Generali CER 2 Sem. 2025'!CG26) -> 0.3065257724 | H33: =IF('Dati Generali CER 2 Sem. 2025'!CH26="","",'Dati Generali CER 2 Sem. 2025'!CH26) -> 0.7721021215 | I33: ='Dati Generali CER 2 Sem. 2025'!D26 -> 1078 | J33: =IF('Dati Generali CER 2 Sem. 2025'!CJ26="","",'Dati Generali CER 2 Sem. 2025'!CJ26) -> 2026-04-07T08:24:28
A34: 25 | B34: ='Dati Generali CER 1 Sem. 2025'!C27 -> FORZA D'AGRO' | C34: =IF('Dati Generali CER 2 Sem. 2025'!E27="","",SUM('Dati Generali CER 2 Sem. 2025'!E27+'Dati Generali CER 2 Sem. 2025'!R27+'Dati Generali CER 2 Sem. 2025'!S27+'Dati Generali CER 2 Sem. 2025'!T27)) -> 54540 | D34: =IF(C34="","",'Dati Generali CER 2 Sem. 2025'!CE27) -> 209150 | E34: ='Dati Generali CER 2 Sem. 2025'!W27 -> 0.7931662179 | F34: =IF('Dati Generali CER 2 Sem. 2025'!CF27="","",'Dati Generali CER 2 Sem. 2025'!CF27) -> 1.540965404 | G34: =IF('Dati Generali CER 2 Sem. 2025'!CG27="","",'Dati Generali CER 2 Sem. 2025'!CG27) -> 0.3187237027 | H34: =IF('Dati Generali CER 2 Sem. 2025'!CH27="","",'Dati Generali CER 2 Sem. 2025'!CH27) -> 1.222241702 | I34: ='Dati Generali CER 2 Sem. 2025'!D27 -> 930 | J34: =IF('Dati Generali CER 2 Sem. 2025'!CJ27="","",'Dati Generali CER 2 Sem. 2025'!CJ27) -> 2026-03-05T16:33:40
A35: 26 | B35: ='Dati Generali CER 1 Sem. 2025'!C28 -> FRANCAVILLA DI SICILIA | C35: =IF('Dati Generali CER 2 Sem. 2025'!E28="","",SUM('Dati Generali CER 2 Sem. 2025'!E28+'Dati Generali CER 2 Sem. 2025'!R28+'Dati Generali CER 2 Sem. 2025'!S28+'Dati Generali CER 2 Sem. 2025'!T28)) -> 154400 | D35: =IF(C35="","",'Dati Generali CER 2 Sem. 2025'!CE28) -> 543597 | E35: ='Dati Generali CER 2 Sem. 2025'!W28 -> 0.7787956109 | F35: =IF('Dati Generali CER 2 Sem. 2025'!CF28="","",'Dati Generali CER 2 Sem. 2025'!CF28) -> 1.0764648 | G35: =IF('Dati Generali CER 2 Sem. 2025'!CG28="","",'Dati Generali CER 2 Sem. 2025'!CG28) -> 0.2381187386 | H35: =IF('Dati Generali CER 2 Sem. 2025'!CH28="","",'Dati Generali CER 2 Sem. 2025'!CH28) -> 0.8383460618 | I35: ='Dati Generali CER 2 Sem. 2025'!D28 -> 3524 | J35: =IF('Dati Generali CER 2 Sem. 2025'!CJ28="","",'Dati Generali CER 2 Sem. 2025'!CJ28) -> 2026-04-14T16:40:09
A36: 27 | B36: ='Dati Generali CER 1 Sem. 2025'!C29 -> FRAZZANO' | C36: =IF('Dati Generali CER 2 Sem. 2025'!E29="","",SUM('Dati Generali CER 2 Sem. 2025'!E29+'Dati Generali CER 2 Sem. 2025'!R29+'Dati Generali CER 2 Sem. 2025'!S29+'Dati Generali CER 2 Sem. 2025'!T29)) -> 20180 | D36: =IF(C36="","",'Dati Generali CER 2 Sem. 2025'!CE29) -> 44760 | E36: ='Dati Generali CER 2 Sem. 2025'!W29 -> 0.6892516169 | F36: =IF('Dati Generali CER 2 Sem. 2025'!CF29="","",'Dati Generali CER 2 Sem. 2025'!CF29) -> 0.6584604153 | G36: =IF('Dati Generali CER 2 Sem. 2025'!CG29="","",'Dati Generali CER 2 Sem. 2025'!CG29) -> 0.2046155094 | H36: =IF('Dati Generali CER 2 Sem. 2025'!CH29="","",'Dati Generali CER 2 Sem. 2025'!CH29) -> 0.4538449059 | I36: ='Dati Generali CER 2 Sem. 2025'!D29 -> 536 | J36: =IF('Dati Generali CER 2 Sem. 2025'!CJ29="","",'Dati Generali CER 2 Sem. 2025'!CJ29) -> 2026-01-22T13:30:17
A37: 28 | B37: ='Dati Generali CER 1 Sem. 2025'!C30 -> FURCI SICULO | C37: =IF('Dati Generali CER 2 Sem. 2025'!E30="","",SUM('Dati Generali CER 2 Sem. 2025'!E30+'Dati Generali CER 2 Sem. 2025'!R30+'Dati Generali CER 2 Sem. 2025'!S30+'Dati Generali CER 2 Sem. 2025'!T30)) -> 176970 | D37: =IF(C37="","",'Dati Generali CER 2 Sem. 2025'!CE30) -> 378860 | E37: ='Dati Generali CER 2 Sem. 2025'!W30 -> 0.681611284 | F37: =IF('Dati Generali CER 2 Sem. 2025'!CF30="","",'Dati Generali CER 2 Sem. 2025'!CF30) -> 0.9283390342 | G37: =IF('Dati Generali CER 2 Sem. 2025'!CG30="","",'Dati Generali CER 2 Sem. 2025'!CG30) -> 0.2955726731 | H37: =IF('Dati Generali CER 2 Sem. 2025'!CH30="","",'Dati Generali CER 2 Sem. 2025'!CH30) -> 0.6327663611 | I37: ='Dati Generali CER 2 Sem. 2025'!D30 -> 3254 | J37: =IF('Dati Generali CER 2 Sem. 2025'!CJ30="","",'Dati Generali CER 2 Sem. 2025'!CJ30) -> 2026-01-21T13:17:52
A38: 29 | B38: ='Dati Generali CER 1 Sem. 2025'!C31 -> FURNARI | C38: =IF('Dati Generali CER 2 Sem. 2025'!E31="","",SUM('Dati Generali CER 2 Sem. 2025'!E31+'Dati Generali CER 2 Sem. 2025'!R31+'Dati Generali CER 2 Sem. 2025'!S31+'Dati Generali CER 2 Sem. 2025'!T31)) -> 309470 | D38: =IF(C38="","",'Dati Generali CER 2 Sem. 2025'!CE31) -> 1315810 | E38: ='Dati Generali CER 2 Sem. 2025'!W31 -> 0.8095897322 | F38: =IF('Dati Generali CER 2 Sem. 2025'!CF31="","",'Dati Generali CER 2 Sem. 2025'!CF31) -> 2.129983959 | G38: =IF('Dati Generali CER 2 Sem. 2025'!CG31="","",'Dati Generali CER 2 Sem. 2025'!CG31) -> 0.405570816 | H38: =IF('Dati Generali CER 2 Sem. 2025'!CH31="","",'Dati Generali CER 2 Sem. 2025'!CH31) -> 1.724413143 | I38: ='Dati Generali CER 2 Sem. 2025'!D31 -> 4147 | J38: =IF('Dati Generali CER 2 Sem. 2025'!CJ31="","",'Dati Generali CER 2 Sem. 2025'!CJ31) -> 2026-04-02T08:11:19
A39: 30 | B39: ='Dati Generali CER 1 Sem. 2025'!C32 -> GAGGI | C39: =IF('Dati Generali CER 2 Sem. 2025'!E32="","",SUM('Dati Generali CER 2 Sem. 2025'!E32+'Dati Generali CER 2 Sem. 2025'!R32+'Dati Generali CER 2 Sem. 2025'!S32+'Dati Generali CER 2 Sem. 2025'!T32)) -> 131280 | D39: =IF(C39="","",'Dati Generali CER 2 Sem. 2025'!CE32) -> 342359 | E39: ='Dati Generali CER 2 Sem. 2025'!W32 -> 0.7228268787 | F39: =IF('Dati Generali CER 2 Sem. 2025'!CF32="","",'Dati Generali CER 2 Sem. 2025'!CF32) -> 0.834670882 | G39: =IF('Dati Generali CER 2 Sem. 2025'!CG32="","",'Dati Generali CER 2 Sem. 2025'!CG32) -> 0.2313483336 | H39: =IF('Dati Generali CER 2 Sem. 2025'!CH32="","",'Dati Generali CER 2 Sem. 2025'!CH32) -> 0.6033225484 | I39: ='Dati Generali CER 2 Sem. 2025'!D32 -> 3084 | J39: =IF('Dati Generali CER 2 Sem. 2025'!CJ32="","",'Dati Generali CER 2 Sem. 2025'!CJ32) -> 2026-02-17T09:08:06
A40: 31 | B40: ='Dati Generali CER 1 Sem. 2025'!C33 -> GALATI MAMERTINO | C40: =IF('Dati Generali CER 2 Sem. 2025'!E33="","",SUM('Dati Generali CER 2 Sem. 2025'!E33+'Dati Generali CER 2 Sem. 2025'!R33+'Dati Generali CER 2 Sem. 2025'!S33+'Dati Generali CER 2 Sem. 2025'!T33)) -> 76500 | D40: =IF(C40="","",'Dati Generali CER 2 Sem. 2025'!CE33) -> 277600 | E40: ='Dati Generali CER 2 Sem. 2025'!W33 -> 0.7839593335 | F40: =IF('Dati Generali CER 2 Sem. 2025'!CF33="","",'Dati Generali CER 2 Sem. 2025'!CF33) -> 0.8930192676 | G40: =IF('Dati Generali CER 2 Sem. 2025'!CG33="","",'Dati Generali CER 2 Sem. 2025'!CG33) -> 0.1929284778 | H40: =IF('Dati Generali CER 2 Sem. 2025'!CH33="","",'Dati Generali CER 2 Sem. 2025'!CH33) -> 0.7000907899 | I40: ='Dati Generali CER 2 Sem. 2025'!D33 -> 2155 | J40: =IF('Dati Generali CER 2 Sem. 2025'!CJ33="","",'Dati Generali CER 2 Sem. 2025'!CJ33) -> 2026-01-20T12:08:31
A41: 32 | B41: ='Dati Generali CER 1 Sem. 2025'!C34 -> GALLODORO | C41: =IF('Dati Generali CER 2 Sem. 2025'!E34="","",SUM('Dati Generali CER 2 Sem. 2025'!E34+'Dati Generali CER 2 Sem. 2025'!R34+'Dati Generali CER 2 Sem. 2025'!S34+'Dati Generali CER 2 Sem. 2025'!T34)) -> 11730 | D41: =IF(C41="","",'Dati Generali CER 2 Sem. 2025'!CE34) -> 53987 | E41: ='Dati Generali CER 2 Sem. 2025'!W34 -> 0.8215073725 | F41: =IF('Dati Generali CER 2 Sem. 2025'!CF34="","",'Dati Generali CER 2 Sem. 2025'!CF34) -> 1.105751111 | G41: =IF('Dati Generali CER 2 Sem. 2025'!CG34="","",'Dati Generali CER 2 Sem. 2025'!CG34) -> 0.1973684211 | H41: =IF('Dati Generali CER 2 Sem. 2025'!CH34="","",'Dati Generali CER 2 Sem. 2025'!CH34) -> 0.9083826895 | I41: ='Dati Generali CER 2 Sem. 2025'!D34 -> 323 | J41: =IF('Dati Generali CER 2 Sem. 2025'!CJ34="","",'Dati Generali CER 2 Sem. 2025'!CJ34) -> 2026-01-20T11:37:20
A42: 33 | B42: ='Dati Generali CER 1 Sem. 2025'!C35 -> GIARDINI NAXOS | C42: =IF('Dati Generali CER 2 Sem. 2025'!E35="","",SUM('Dati Generali CER 2 Sem. 2025'!E35+'Dati Generali CER 2 Sem. 2025'!R35+'Dati Generali CER 2 Sem. 2025'!S35+'Dati Generali CER 2 Sem. 2025'!T35)) -> 984470 | D42: =IF(C42="","",'Dati Generali CER 2 Sem. 2025'!CE35) -> 2930500 | E42: ='Dati Generali CER 2 Sem. 2025'!W35 -> 0.7485370258 | F42: =IF('Dati Generali CER 2 Sem. 2025'!CF35="","",'Dati Generali CER 2 Sem. 2025'!CF35) -> 2.271486161 | G42: =IF('Dati Generali CER 2 Sem. 2025'!CG35="","",'Dati Generali CER 2 Sem. 2025'!CG35) -> 0.526484049 | H42: =IF('Dati Generali CER 2 Sem. 2025'!CH35="","",'Dati Generali CER 2 Sem. 2025'!CH35) -> 1.700291495 | I42: ='Dati Generali CER 2 Sem. 2025'!D35 -> 9367 | J42: =IF('Dati Generali CER 2 Sem. 2025'!CJ35="","",'Dati Generali CER 2 Sem. 2025'!CJ35) -> 2026-02-03T09:49:21
A43: 34 | B43: ='Dati Generali CER 1 Sem. 2025'!C36 -> GIOIOSA MAREA | C43: =IF('Dati Generali CER 2 Sem. 2025'!E36="","",SUM('Dati Generali CER 2 Sem. 2025'!E36+'Dati Generali CER 2 Sem. 2025'!R36+'Dati Generali CER 2 Sem. 2025'!S36+'Dati Generali CER 2 Sem. 2025'!T36)) -> 527400 | D43: =IF(C43="","",'Dati Generali CER 2 Sem. 2025'!CE36) -> 1013030 | E43: ='Dati Generali CER 2 Sem. 2025'!W36 -> 0.6576280649 | F43: =IF('Dati Generali CER 2 Sem. 2025'!CF36="","",'Dati Generali CER 2 Sem. 2025'!CF36) -> 1.245633414 | G43: =IF('Dati Generali CER 2 Sem. 2025'!CG36="","",'Dati Generali CER 2 Sem. 2025'!CG36) -> 0.4264699223 | H43: =IF('Dati Generali CER 2 Sem. 2025'!CH36="","",'Dati Generali CER 2 Sem. 2025'!CH36) -> 0.8191634915 | I43: ='Dati Generali CER 2 Sem. 2025'!D36 -> 6721 | J43: =IF('Dati Generali CER 2 Sem. 2025'!CJ36="","",'Dati Generali CER 2 Sem. 2025'!CJ36) -> 
A44: 35 | B44: ='Dati Generali CER 1 Sem. 2025'!C37 -> GRANITI | C44: =IF('Dati Generali CER 2 Sem. 2025'!E37="","",SUM('Dati Generali CER 2 Sem. 2025'!E37+'Dati Generali CER 2 Sem. 2025'!R37+'Dati Generali CER 2 Sem. 2025'!S37+'Dati Generali CER 2 Sem. 2025'!T37)) -> 83894 | D44: =IF(C44="","",'Dati Generali CER 2 Sem. 2025'!CE37) -> 127386 | E44: ='Dati Generali CER 2 Sem. 2025'!W37 -> 0.6029250284 | F44: =IF('Dati Generali CER 2 Sem. 2025'!CF37="","",'Dati Generali CER 2 Sem. 2025'!CF37) -> 0.7816615858 | G44: =IF('Dati Generali CER 2 Sem. 2025'!CG37="","",'Dati Generali CER 2 Sem. 2025'!CG37) -> 0.2907183236 | H44: =IF('Dati Generali CER 2 Sem. 2025'!CH37="","",'Dati Generali CER 2 Sem. 2025'!CH37) -> 0.4712833338 | I44: ='Dati Generali CER 2 Sem. 2025'!D37 -> 1469 | J44: =IF('Dati Generali CER 2 Sem. 2025'!CJ37="","",'Dati Generali CER 2 Sem. 2025'!CJ37) -> 2026-01-29T07:53:47
A45: 36 | B45: ='Dati Generali CER 1 Sem. 2025'!C38 -> GUALTIERI SICAMINO | C45: =IF('Dati Generali CER 2 Sem. 2025'!E38="","",SUM('Dati Generali CER 2 Sem. 2025'!E38+'Dati Generali CER 2 Sem. 2025'!R38+'Dati Generali CER 2 Sem. 2025'!S38+'Dati Generali CER 2 Sem. 2025'!T38)) -> 52880 | D45: =IF(C45="","",'Dati Generali CER 2 Sem. 2025'!CE38) -> 238136 | E45: ='Dati Generali CER 2 Sem. 2025'!W38 -> 0.8182917778 | F45: =IF('Dati Generali CER 2 Sem. 2025'!CF38="","",'Dati Generali CER 2 Sem. 2025'!CF38) -> 1.026352171 | G45: =IF('Dati Generali CER 2 Sem. 2025'!CG38="","",'Dati Generali CER 2 Sem. 2025'!CG38) -> 0.1864966284 | H45: =IF('Dati Generali CER 2 Sem. 2025'!CH38="","",'Dati Generali CER 2 Sem. 2025'!CH38) -> 0.8398555427 | I45: ='Dati Generali CER 2 Sem. 2025'!D38 -> 1541 | J45: =IF('Dati Generali CER 2 Sem. 2025'!CJ38="","",'Dati Generali CER 2 Sem. 2025'!CJ38) -> 2026-02-17T09:16:33
A46: 37 | B46: ='Dati Generali CER 1 Sem. 2025'!C39 -> ITALA | C46: =IF('Dati Generali CER 2 Sem. 2025'!E39="","",SUM('Dati Generali CER 2 Sem. 2025'!E39+'Dati Generali CER 2 Sem. 2025'!R39+'Dati Generali CER 2 Sem. 2025'!S39+'Dati Generali CER 2 Sem. 2025'!T39)) -> 99220 | D46: =IF(C46="","",'Dati Generali CER 2 Sem. 2025'!CE39) -> 211695 | E46: ='Dati Generali CER 2 Sem. 2025'!W39 -> 0.6808774102 | F46: =IF('Dati Generali CER 2 Sem. 2025'!CF39="","",'Dati Generali CER 2 Sem. 2025'!CF39) -> 1.119784914 | G46: =IF('Dati Generali CER 2 Sem. 2025'!CG39="","",'Dati Generali CER 2 Sem. 2025'!CG39) -> 0.3573486617 | H46: =IF('Dati Generali CER 2 Sem. 2025'!CH39="","",'Dati Generali CER 2 Sem. 2025'!CH39) -> 0.7624362521 | I46: ='Dati Generali CER 2 Sem. 2025'!D39 -> 1509 | J46: =IF('Dati Generali CER 2 Sem. 2025'!CJ39="","",'Dati Generali CER 2 Sem. 2025'!CJ39) -> 2026-03-17T08:08:07
A47: 38 | B47: ='Dati Generali CER 1 Sem. 2025'!C40 -> LENI | C47: =IF('Dati Generali CER 2 Sem. 2025'!E40="","",SUM('Dati Generali CER 2 Sem. 2025'!E40+'Dati Generali CER 2 Sem. 2025'!R40+'Dati Generali CER 2 Sem. 2025'!S40+'Dati Generali CER 2 Sem. 2025'!T40)) -> 89860 | D47: =IF(C47="","",'Dati Generali CER 2 Sem. 2025'!CE40) -> 76520 | E47: ='Dati Generali CER 2 Sem. 2025'!W40 -> 0.459911047 | F47: =IF('Dati Generali CER 2 Sem. 2025'!CF40="","",'Dati Generali CER 2 Sem. 2025'!CF40) -> 1.329763427 | G47: =IF('Dati Generali CER 2 Sem. 2025'!CG40="","",'Dati Generali CER 2 Sem. 2025'!CG40) -> 0.7181905371 | H47: =IF('Dati Generali CER 2 Sem. 2025'!CH40="","",'Dati Generali CER 2 Sem. 2025'!CH40) -> 0.61157289 | I47: ='Dati Generali CER 2 Sem. 2025'!D40 -> 680 | J47: =IF('Dati Generali CER 2 Sem. 2025'!CJ40="","",'Dati Generali CER 2 Sem. 2025'!CJ40) -> 2026-01-27T12:19:25
A48: 39 | B48: ='Dati Generali CER 1 Sem. 2025'!C41 -> LETOJANNI | C48: =IF('Dati Generali CER 2 Sem. 2025'!E41="","",SUM('Dati Generali CER 2 Sem. 2025'!E41+'Dati Generali CER 2 Sem. 2025'!R41+'Dati Generali CER 2 Sem. 2025'!S41+'Dati Generali CER 2 Sem. 2025'!T41)) -> 572150 | D48: =IF(C48="","",'Dati Generali CER 2 Sem. 2025'!CE41) -> 756057 | E48: ='Dati Generali CER 2 Sem. 2025'!W41 -> 0.569231302 | F48: =IF('Dati Generali CER 2 Sem. 2025'!CF41="","",'Dati Generali CER 2 Sem. 2025'!CF41) -> 2.458622719 | G48: =IF('Dati Generali CER 2 Sem. 2025'!CG41="","",'Dati Generali CER 2 Sem. 2025'!CG41) -> 1.059097708 | H48: =IF('Dati Generali CER 2 Sem. 2025'!CH41="","",'Dati Generali CER 2 Sem. 2025'!CH41) -> 1.399525012 | I48: ='Dati Generali CER 2 Sem. 2025'!D41 -> 2936 | J48: =IF('Dati Generali CER 2 Sem. 2025'!CJ41="","",'Dati Generali CER 2 Sem. 2025'!CJ41) -> 2026-02-03T11:30:40
A49: 40 | B49: ='Dati Generali CER 1 Sem. 2025'!C42 -> LIBRIZZI | C49: =IF('Dati Generali CER 2 Sem. 2025'!E42="","",SUM('Dati Generali CER 2 Sem. 2025'!E42+'Dati Generali CER 2 Sem. 2025'!R42+'Dati Generali CER 2 Sem. 2025'!S42+'Dati Generali CER 2 Sem. 2025'!T42)) -> 69940 | D49: =IF(C49="","",'Dati Generali CER 2 Sem. 2025'!CE42) -> 181170 | E49: ='Dati Generali CER 2 Sem. 2025'!W42 -> 0.7214766437 | F49: =IF('Dati Generali CER 2 Sem. 2025'!CF42="","",'Dati Generali CER 2 Sem. 2025'!CF42) -> 0.8782035141 | G49: =IF('Dati Generali CER 2 Sem. 2025'!CG42="","",'Dati Generali CER 2 Sem. 2025'!CG42) -> 0.2446001903 | H49: =IF('Dati Generali CER 2 Sem. 2025'!CH42="","",'Dati Generali CER 2 Sem. 2025'!CH42) -> 0.6336033238 | I49: ='Dati Generali CER 2 Sem. 2025'!D42 -> 1554 | J49: =IF('Dati Generali CER 2 Sem. 2025'!CJ42="","",'Dati Generali CER 2 Sem. 2025'!CJ42) -> 2026-03-19T14:49:52
A50: 41 | B50: ='Dati Generali CER 1 Sem. 2025'!C43 -> LIMINA | C50: =IF('Dati Generali CER 2 Sem. 2025'!E43="","",SUM('Dati Generali CER 2 Sem. 2025'!E43+'Dati Generali CER 2 Sem. 2025'!R43+'Dati Generali CER 2 Sem. 2025'!S43+'Dati Generali CER 2 Sem. 2025'!T43)) -> 46766 | D50: =IF(C50="","",'Dati Generali CER 2 Sem. 2025'!CE43) -> 62804 | E50: ='Dati Generali CER 2 Sem. 2025'!W43 -> 0.5731860911 | F50: =IF('Dati Generali CER 2 Sem. 2025'!CF43="","",'Dati Generali CER 2 Sem. 2025'!CF43) -> 0.825921124 | G50: =IF('Dati Generali CER 2 Sem. 2025'!CG43="","",'Dati Generali CER 2 Sem. 2025'!CG43) -> 0.3525146234 | H50: =IF('Dati Generali CER 2 Sem. 2025'!CH43="","",'Dati Generali CER 2 Sem. 2025'!CH43) -> 0.4734065006 | I50: ='Dati Generali CER 2 Sem. 2025'!D43 -> 721 | J50: =IF('Dati Generali CER 2 Sem. 2025'!CJ43="","",'Dati Generali CER 2 Sem. 2025'!CJ43) -> 2026-04-02T08:13:30
A51: 42 | B51: ='Dati Generali CER 1 Sem. 2025'!C44 -> LIPARI | C51: =IF('Dati Generali CER 2 Sem. 2025'!E44="","",SUM('Dati Generali CER 2 Sem. 2025'!E44+'Dati Generali CER 2 Sem. 2025'!R44+'Dati Generali CER 2 Sem. 2025'!S44+'Dati Generali CER 2 Sem. 2025'!T44)) -> 2326200 | D51: =IF(C51="","",'Dati Generali CER 2 Sem. 2025'!CE44) -> 2471140 | E51: ='Dati Generali CER 2 Sem. 2025'!W44 -> 0.5151062881 | F51: =IF('Dati Generali CER 2 Sem. 2025'!CF44="","",'Dati Generali CER 2 Sem. 2025'!CF44) -> 2.042339026 | G51: =IF('Dati Generali CER 2 Sem. 2025'!CG44="","",'Dati Generali CER 2 Sem. 2025'!CG44) -> 0.9903173511 | H51: =IF('Dati Generali CER 2 Sem. 2025'!CH44="","",'Dati Generali CER 2 Sem. 2025'!CH44) -> 1.052021674 | I51: ='Dati Generali CER 2 Sem. 2025'!D44 -> 12766 | J51: =IF('Dati Generali CER 2 Sem. 2025'!CJ44="","",'Dati Generali CER 2 Sem. 2025'!CJ44) -> 2026-01-21T09:08:06
A52: 43 | B52: ='Dati Generali CER 1 Sem. 2025'!C45 -> LONGI | C52: =IF('Dati Generali CER 2 Sem. 2025'!E45="","",SUM('Dati Generali CER 2 Sem. 2025'!E45+'Dati Generali CER 2 Sem. 2025'!R45+'Dati Generali CER 2 Sem. 2025'!S45+'Dati Generali CER 2 Sem. 2025'!T45)) -> 16620 | D52: =IF(C52="","",'Dati Generali CER 2 Sem. 2025'!CE45) -> 164647 | E52: ='Dati Generali CER 2 Sem. 2025'!W45 -> 0.908312048 | F52: =IF('Dati Generali CER 2 Sem. 2025'!CF45="","",'Dati Generali CER 2 Sem. 2025'!CF45) -> 0.7726641091 | G52: =IF('Dati Generali CER 2 Sem. 2025'!CG45="","",'Dati Generali CER 2 Sem. 2025'!CG45) -> 0.07084398977 | H52: =IF('Dati Generali CER 2 Sem. 2025'!CH45="","",'Dati Generali CER 2 Sem. 2025'!CH45) -> 0.7018201194 | I52: ='Dati Generali CER 2 Sem. 2025'!D45 -> 1275 | J52: =IF('Dati Generali CER 2 Sem. 2025'!CJ45="","",'Dati Generali CER 2 Sem. 2025'!CJ45) -> 2026-01-20T14:27:34
A53: 44 | B53: ='Dati Generali CER 1 Sem. 2025'!C46 -> MALFA | C53: =IF('Dati Generali CER 2 Sem. 2025'!E46="","",SUM('Dati Generali CER 2 Sem. 2025'!E46+'Dati Generali CER 2 Sem. 2025'!R46+'Dati Generali CER 2 Sem. 2025'!S46+'Dati Generali CER 2 Sem. 2025'!T46)) -> 133920 | D53: =IF(C53="","",'Dati Generali CER 2 Sem. 2025'!CE46) -> 180340 | E53: ='Dati Generali CER 2 Sem. 2025'!W46 -> 0.5738560428 | F53: =IF('Dati Generali CER 2 Sem. 2025'!CF46="","",'Dati Generali CER 2 Sem. 2025'!CF46) -> 1.74101405 | G53: =IF('Dati Generali CER 2 Sem. 2025'!CG46="","",'Dati Generali CER 2 Sem. 2025'!CG46) -> 0.7419226167 | H53: =IF('Dati Generali CER 2 Sem. 2025'!CH46="","",'Dati Generali CER 2 Sem. 2025'!CH46) -> 0.9990914329 | I53: ='Dati Generali CER 2 Sem. 2025'!D46 -> 981 | J53: =IF('Dati Generali CER 2 Sem. 2025'!CJ46="","",'Dati Generali CER 2 Sem. 2025'!CJ46) -> 2026-01-21T13:20:07
A54: 45 | B54: ='Dati Generali CER 1 Sem. 2025'!C47 -> MALVAGNA | C54: =IF('Dati Generali CER 2 Sem. 2025'!E47="","",SUM('Dati Generali CER 2 Sem. 2025'!E47+'Dati Generali CER 2 Sem. 2025'!R47+'Dati Generali CER 2 Sem. 2025'!S47+'Dati Generali CER 2 Sem. 2025'!T47)) -> 53300 | D54: =IF(C54="","",'Dati Generali CER 2 Sem. 2025'!CE47) -> 43130 | E54: ='Dati Generali CER 2 Sem. 2025'!W47 -> 0.4472674479 | F54: =IF('Dati Generali CER 2 Sem. 2025'!CF47="","",'Dati Generali CER 2 Sem. 2025'!CF47) -> 0.8778493919 | G54: =IF('Dati Generali CER 2 Sem. 2025'!CG47="","",'Dati Generali CER 2 Sem. 2025'!CG47) -> 0.4852159347 | H54: =IF('Dati Generali CER 2 Sem. 2025'!CH47="","",'Dati Generali CER 2 Sem. 2025'!CH47) -> 0.3926334571 | I54: ='Dati Generali CER 2 Sem. 2025'!D47 -> 597 | J54: =IF('Dati Generali CER 2 Sem. 2025'!CJ47="","",'Dati Generali CER 2 Sem. 2025'!CJ47) -> 2026-02-18T13:13:38
A55: 46 | B55: ='Dati Generali CER 1 Sem. 2025'!C48 -> MANDANICI | C55: =IF('Dati Generali CER 2 Sem. 2025'!E48="","",SUM('Dati Generali CER 2 Sem. 2025'!E48+'Dati Generali CER 2 Sem. 2025'!R48+'Dati Generali CER 2 Sem. 2025'!S48+'Dati Generali CER 2 Sem. 2025'!T48)) -> 14820 | D55: =IF(C55="","",'Dati Generali CER 2 Sem. 2025'!CE48) -> 60256 | E55: ='Dati Generali CER 2 Sem. 2025'!W48 -> 0.802600032 | F55: =IF('Dati Generali CER 2 Sem. 2025'!CF48="","",'Dati Generali CER 2 Sem. 2025'!CF48) -> 0.8412819364 | G55: =IF('Dati Generali CER 2 Sem. 2025'!CG48="","",'Dati Generali CER 2 Sem. 2025'!CG48) -> 0.1660690273 | H55: =IF('Dati Generali CER 2 Sem. 2025'!CH48="","",'Dati Generali CER 2 Sem. 2025'!CH48) -> 0.675212909 | I55: ='Dati Generali CER 2 Sem. 2025'!D48 -> 485 | J55: =IF('Dati Generali CER 2 Sem. 2025'!CJ48="","",'Dati Generali CER 2 Sem. 2025'!CJ48) -> 2026-02-04T07:44:54
A56: 47 | B56: ='Dati Generali CER 1 Sem. 2025'!C49 -> MAZZARRA' S. ANDREA | C56: =IF('Dati Generali CER 2 Sem. 2025'!E49="","",SUM('Dati Generali CER 2 Sem. 2025'!E49+'Dati Generali CER 2 Sem. 2025'!R49+'Dati Generali CER 2 Sem. 2025'!S49+'Dati Generali CER 2 Sem. 2025'!T49)) -> 41640 | D56: =IF(C56="","",'Dati Generali CER 2 Sem. 2025'!CE49) -> 152728 | E56: ='Dati Generali CER 2 Sem. 2025'!W49 -> 0.7857672045 | F56: =IF('Dati Generali CER 2 Sem. 2025'!CF49="","",'Dati Generali CER 2 Sem. 2025'!CF49) -> 0.7418172936 | G56: =IF('Dati Generali CER 2 Sem. 2025'!CG49="","",'Dati Generali CER 2 Sem. 2025'!CG49) -> 0.1589215926 | H56: =IF('Dati Generali CER 2 Sem. 2025'!CH49="","",'Dati Generali CER 2 Sem. 2025'!CH49) -> 0.582895701 | I56: ='Dati Generali CER 2 Sem. 2025'!D49 -> 1424 | J56: =IF('Dati Generali CER 2 Sem. 2025'!CJ49="","",'Dati Generali CER 2 Sem. 2025'!CJ49) -> 2026-01-29T14:29:05
A57: 48 | B57: ='Dati Generali CER 1 Sem. 2025'!C50 -> MERI' | C57: =IF('Dati Generali CER 2 Sem. 2025'!E50="","",SUM('Dati Generali CER 2 Sem. 2025'!E50+'Dati Generali CER 2 Sem. 2025'!R50+'Dati Generali CER 2 Sem. 2025'!S50+'Dati Generali CER 2 Sem. 2025'!T50)) -> 115710 | D57: =IF(C57="","",'Dati Generali CER 2 Sem. 2025'!CE50) -> 218606 | E57: ='Dati Generali CER 2 Sem. 2025'!W50 -> 0.6538903313 | F57: =IF('Dati Generali CER 2 Sem. 2025'!CF50="","",'Dati Generali CER 2 Sem. 2025'!CF50) -> 0.767935242 | G57: =IF('Dati Generali CER 2 Sem. 2025'!CG50="","",'Dati Generali CER 2 Sem. 2025'!CG50) -> 0.2657898122 | H57: =IF('Dati Generali CER 2 Sem. 2025'!CH50="","",'Dati Generali CER 2 Sem. 2025'!CH50) -> 0.5021454298 | I57: ='Dati Generali CER 2 Sem. 2025'!D50 -> 2366 | J57: =IF('Dati Generali CER 2 Sem. 2025'!CJ50="","",'Dati Generali CER 2 Sem. 2025'!CJ50) -> 
A58: 49 | B58: ='Dati Generali CER 1 Sem. 2025'!C51 -> MESSINA | C58: =IF('Dati Generali CER 2 Sem. 2025'!E51="","",SUM('Dati Generali CER 2 Sem. 2025'!E51+'Dati Generali CER 2 Sem. 2025'!R51+'Dati Generali CER 2 Sem. 2025'!S51+'Dati Generali CER 2 Sem. 2025'!T51)) -> 18940310 | D58: =IF(C58="","",'Dati Generali CER 2 Sem. 2025'!CE51) -> 31647501 | E58: ='Dati Generali CER 2 Sem. 2025'!W51 -> 0.625595383 | F58: =IF('Dati Generali CER 2 Sem. 2025'!CF51="","",'Dati Generali CER 2 Sem. 2025'!CF51) -> 1.266783187 | G58: =IF('Dati Generali CER 2 Sem. 2025'!CG51="","",'Dati Generali CER 2 Sem. 2025'!CG51) -> 0.4742894739 | H58: =IF('Dati Generali CER 2 Sem. 2025'!CH51="","",'Dati Generali CER 2 Sem. 2025'!CH51) -> 0.7924937131 | I58: ='Dati Generali CER 2 Sem. 2025'!D51 -> 217033 | J58: =IF('Dati Generali CER 2 Sem. 2025'!CJ51="","",'Dati Generali CER 2 Sem. 2025'!CJ51) -> 2026-04-09T16:18:53
A59: 50 | B59: ='Dati Generali CER 1 Sem. 2025'!C52 -> MILAZZO | C59: =IF('Dati Generali CER 2 Sem. 2025'!E52="","",SUM('Dati Generali CER 2 Sem. 2025'!E52+'Dati Generali CER 2 Sem. 2025'!R52+'Dati Generali CER 2 Sem. 2025'!S52+'Dati Generali CER 2 Sem. 2025'!T52)) -> 2448280 | D59: =IF(C59="","",'Dati Generali CER 2 Sem. 2025'!CE52) -> 5939619 | E59: ='Dati Generali CER 2 Sem. 2025'!W52 -> 0.7081176109 | F59: =IF('Dati Generali CER 2 Sem. 2025'!CF52="","",'Dati Generali CER 2 Sem. 2025'!CF52) -> 1.528206759 | G59: =IF('Dati Generali CER 2 Sem. 2025'!CG52="","",'Dati Generali CER 2 Sem. 2025'!CG52) -> 0.4460566398 | H59: =IF('Dati Generali CER 2 Sem. 2025'!CH52="","",'Dati Generali CER 2 Sem. 2025'!CH52) -> 1.082150119 | I59: ='Dati Generali CER 2 Sem. 2025'!D52 -> 29830 | J59: =IF('Dati Generali CER 2 Sem. 2025'!CJ52="","",'Dati Generali CER 2 Sem. 2025'!CJ52) -> 2026-02-25T08:17:31
A60: 51 | B60: ='Dati Generali CER 1 Sem. 2025'!C53 -> MILITELLO ROSMARINO | C60: =IF('Dati Generali CER 2 Sem. 2025'!E53="","",SUM('Dati Generali CER 2 Sem. 2025'!E53+'Dati Generali CER 2 Sem. 2025'!R53+'Dati Generali CER 2 Sem. 2025'!S53+'Dati Generali CER 2 Sem. 2025'!T53)) -> 53260 | D60: =IF(C60="","",'Dati Generali CER 2 Sem. 2025'!CE53) -> 102152 | E60: ='Dati Generali CER 2 Sem. 2025'!W53 -> 0.6572980207 | F60: =IF('Dati Generali CER 2 Sem. 2025'!CF53="","",'Dati Generali CER 2 Sem. 2025'!CF53) -> 0.7151824173 | G60: =IF('Dati Generali CER 2 Sem. 2025'!CG53="","",'Dati Generali CER 2 Sem. 2025'!CG53) -> 0.2450944299 | H60: =IF('Dati Generali CER 2 Sem. 2025'!CH53="","",'Dati Generali CER 2 Sem. 2025'!CH53) -> 0.4700879873 | I60: ='Dati Generali CER 2 Sem. 2025'!D53 -> 1181 | J60: =IF('Dati Generali CER 2 Sem. 2025'!CJ53="","",'Dati Generali CER 2 Sem. 2025'!CJ53) -> 2026-02-03T09:31:10
A61: 52 | B61: ='Dati Generali CER 1 Sem. 2025'!C54 -> MIRTO | C61: =IF('Dati Generali CER 2 Sem. 2025'!E54="","",SUM('Dati Generali CER 2 Sem. 2025'!E54+'Dati Generali CER 2 Sem. 2025'!R54+'Dati Generali CER 2 Sem. 2025'!S54+'Dati Generali CER 2 Sem. 2025'!T54)) -> 16040 | D61: =IF(C61="","",'Dati Generali CER 2 Sem. 2025'!CE54) -> 146914 | E61: ='Dati Generali CER 2 Sem. 2025'!W54 -> 0.9015673135 | F61: =IF('Dati Generali CER 2 Sem. 2025'!CF54="","",'Dati Generali CER 2 Sem. 2025'!CF54) -> 1.019124931 | G61: =IF('Dati Generali CER 2 Sem. 2025'!CG54="","",'Dati Generali CER 2 Sem. 2025'!CG54) -> 0.1003152049 | H61: =IF('Dati Generali CER 2 Sem. 2025'!CH54="","",'Dati Generali CER 2 Sem. 2025'!CH54) -> 0.9188097263 | I61: ='Dati Generali CER 2 Sem. 2025'!D54 -> 869 | J61: =IF('Dati Generali CER 2 Sem. 2025'!CJ54="","",'Dati Generali CER 2 Sem. 2025'!CJ54) -> 2026-01-20T12:53:08
A62: 53 | B62: ='Dati Generali CER 1 Sem. 2025'!C55 -> MISTRETTA | C62: =IF('Dati Generali CER 2 Sem. 2025'!E55="","",SUM('Dati Generali CER 2 Sem. 2025'!E55+'Dati Generali CER 2 Sem. 2025'!R55+'Dati Generali CER 2 Sem. 2025'!S55+'Dati Generali CER 2 Sem. 2025'!T55)) -> 232320 | D62: =IF(C62="","",'Dati Generali CER 2 Sem. 2025'!CE55) -> 598635 | E62: ='Dati Generali CER 2 Sem. 2025'!W55 -> 0.7204180732 | F62: =IF('Dati Generali CER 2 Sem. 2025'!CF55="","",'Dati Generali CER 2 Sem. 2025'!CF55) -> 1.06787888 | G62: =IF('Dati Generali CER 2 Sem. 2025'!CG55="","",'Dati Generali CER 2 Sem. 2025'!CG55) -> 0.2985596348 | H62: =IF('Dati Generali CER 2 Sem. 2025'!CH55="","",'Dati Generali CER 2 Sem. 2025'!CH55) -> 0.769319245 | I62: ='Dati Generali CER 2 Sem. 2025'!D55 -> 4229 | J62: =IF('Dati Generali CER 2 Sem. 2025'!CJ55="","",'Dati Generali CER 2 Sem. 2025'!CJ55) -> 2026-01-22T07:41:39
A63: 54 | B63: ='Dati Generali CER 1 Sem. 2025'!C56 -> MOJO ALCANTARA | C63: =IF('Dati Generali CER 2 Sem. 2025'!E56="","",SUM('Dati Generali CER 2 Sem. 2025'!E56+'Dati Generali CER 2 Sem. 2025'!R56+'Dati Generali CER 2 Sem. 2025'!S56+'Dati Generali CER 2 Sem. 2025'!T56)) -> 42820 | D63: =IF(C63="","",'Dati Generali CER 2 Sem. 2025'!CE56) -> 57270 | E63: ='Dati Generali CER 2 Sem. 2025'!W56 -> 0.5721850335 | F63: =IF('Dati Generali CER 2 Sem. 2025'!CF56="","",'Dati Generali CER 2 Sem. 2025'!CF56) -> 0.7918011518 | G63: =IF('Dati Generali CER 2 Sem. 2025'!CG56="","",'Dati Generali CER 2 Sem. 2025'!CG56) -> 0.3387443833 | H63: =IF('Dati Generali CER 2 Sem. 2025'!CH56="","",'Dati Generali CER 2 Sem. 2025'!CH56) -> 0.4530567686 | I63: ='Dati Generali CER 2 Sem. 2025'!D56 -> 687 | J63: =IF('Dati Generali CER 2 Sem. 2025'!CJ56="","",'Dati Generali CER 2 Sem. 2025'!CJ56) -> 2026-01-27T10:02:23
A64: 55 | B64: ='Dati Generali CER 1 Sem. 2025'!C57 -> MONFORTE S. GIORGIO | C64: =IF('Dati Generali CER 2 Sem. 2025'!E57="","",SUM('Dati Generali CER 2 Sem. 2025'!E57+'Dati Generali CER 2 Sem. 2025'!R57+'Dati Generali CER 2 Sem. 2025'!S57+'Dati Generali CER 2 Sem. 2025'!T57)) -> 162000 | D64: =IF(C64="","",'Dati Generali CER 2 Sem. 2025'!CE57) -> 330822 | E64: ='Dati Generali CER 2 Sem. 2025'!W57 -> 0.6712809087 | F64: =IF('Dati Generali CER 2 Sem. 2025'!CF57="","",'Dati Generali CER 2 Sem. 2025'!CF57) -> 1.098597389 | G64: =IF('Dati Generali CER 2 Sem. 2025'!CG57="","",'Dati Generali CER 2 Sem. 2025'!CG57) -> 0.3611299354 | H64: =IF('Dati Generali CER 2 Sem. 2025'!CH57="","",'Dati Generali CER 2 Sem. 2025'!CH57) -> 0.7374674537 | I64: ='Dati Generali CER 2 Sem. 2025'!D57 -> 2438 | J64: =IF('Dati Generali CER 2 Sem. 2025'!CJ57="","",'Dati Generali CER 2 Sem. 2025'!CJ57) -> 2026-02-05T10:03:15
A65: 56 | B65: ='Dati Generali CER 1 Sem. 2025'!C58 -> MONGIUFFI MELIA | C65: =IF('Dati Generali CER 2 Sem. 2025'!E58="","",SUM('Dati Generali CER 2 Sem. 2025'!E58+'Dati Generali CER 2 Sem. 2025'!R58+'Dati Generali CER 2 Sem. 2025'!S58+'Dati Generali CER 2 Sem. 2025'!T58)) -> 24990 | D65: =IF(C65="","",'Dati Generali CER 2 Sem. 2025'!CE58) -> 62650 | E65: ='Dati Generali CER 2 Sem. 2025'!W58 -> 0.71485623 | F65: =IF('Dati Generali CER 2 Sem. 2025'!CF58="","",'Dati Generali CER 2 Sem. 2025'!CF58) -> 0.9230704415 | G65: =IF('Dati Generali CER 2 Sem. 2025'!CG58="","",'Dati Generali CER 2 Sem. 2025'!CG58) -> 0.2632077856 | H65: =IF('Dati Generali CER 2 Sem. 2025'!CH58="","",'Dati Generali CER 2 Sem. 2025'!CH58) -> 0.6598626559 | I65: ='Dati Generali CER 2 Sem. 2025'!D58 -> 516 | J65: =IF('Dati Generali CER 2 Sem. 2025'!CJ58="","",'Dati Generali CER 2 Sem. 2025'!CJ58) -> 2026-04-02T08:15:35
A66: 57 | B66: ='Dati Generali CER 1 Sem. 2025'!C59 -> MONTAGNAREALE | C66: =IF('Dati Generali CER 2 Sem. 2025'!E59="","",SUM('Dati Generali CER 2 Sem. 2025'!E59+'Dati Generali CER 2 Sem. 2025'!R59+'Dati Generali CER 2 Sem. 2025'!S59+'Dati Generali CER 2 Sem. 2025'!T59)) -> 48380 | D66: =IF(C66="","",'Dati Generali CER 2 Sem. 2025'!CE59) -> 135780 | E66: ='Dati Generali CER 2 Sem. 2025'!W59 -> 0.7372936577 | F66: =IF('Dati Generali CER 2 Sem. 2025'!CF59="","",'Dati Generali CER 2 Sem. 2025'!CF59) -> 0.74028814 | G66: =IF('Dati Generali CER 2 Sem. 2025'!CG59="","",'Dati Generali CER 2 Sem. 2025'!CG59) -> 0.1944783895 | H66: =IF('Dati Generali CER 2 Sem. 2025'!CH59="","",'Dati Generali CER 2 Sem. 2025'!CH59) -> 0.5458097505 | I66: ='Dati Generali CER 2 Sem. 2025'!D59 -> 1352 | J66: =IF('Dati Generali CER 2 Sem. 2025'!CJ59="","",'Dati Generali CER 2 Sem. 2025'!CJ59) -> 2026-01-22T07:53:19
A67: 58 | B67: ='Dati Generali CER 1 Sem. 2025'!C60 -> MONTALBANO ELICONA | C67: =IF('Dati Generali CER 2 Sem. 2025'!E60="","",SUM('Dati Generali CER 2 Sem. 2025'!E60+'Dati Generali CER 2 Sem. 2025'!R60+'Dati Generali CER 2 Sem. 2025'!S60+'Dati Generali CER 2 Sem. 2025'!T60)) -> 117160 | D67: =IF(C67="","",'Dati Generali CER 2 Sem. 2025'!CE60) -> 220165 | E67: ='Dati Generali CER 2 Sem. 2025'!W60 -> 0.652679167 | F67: =IF('Dati Generali CER 2 Sem. 2025'!CF60="","",'Dati Generali CER 2 Sem. 2025'!CF60) -> 0.8754957228 | G67: =IF('Dati Generali CER 2 Sem. 2025'!CG60="","",'Dati Generali CER 2 Sem. 2025'!CG60) -> 0.3040779037 | H67: =IF('Dati Generali CER 2 Sem. 2025'!CH60="","",'Dati Generali CER 2 Sem. 2025'!CH60) -> 0.571417819 | I67: ='Dati Generali CER 2 Sem. 2025'!D60 -> 2094 | J67: =IF('Dati Generali CER 2 Sem. 2025'!CJ60="","",'Dati Generali CER 2 Sem. 2025'!CJ60) -> 2026-01-29T11:23:24
A68: 59 | B68: ='Dati Generali CER 1 Sem. 2025'!C61 -> MOTTA CAMASTRA | C68: =IF('Dati Generali CER 2 Sem. 2025'!E61="","",SUM('Dati Generali CER 2 Sem. 2025'!E61+'Dati Generali CER 2 Sem. 2025'!R61+'Dati Generali CER 2 Sem. 2025'!S61+'Dati Generali CER 2 Sem. 2025'!T61)) -> 58630 | D68: =IF(C68="","",'Dati Generali CER 2 Sem. 2025'!CE61) -> 95160 | E68: ='Dati Generali CER 2 Sem. 2025'!W61 -> 0.6187658495 | F68: =IF('Dati Generali CER 2 Sem. 2025'!CF61="","",'Dati Generali CER 2 Sem. 2025'!CF61) -> 1.086885848 | G68: =IF('Dati Generali CER 2 Sem. 2025'!CG61="","",'Dati Generali CER 2 Sem. 2025'!CG61) -> 0.4143580031 | H68: =IF('Dati Generali CER 2 Sem. 2025'!CH61="","",'Dati Generali CER 2 Sem. 2025'!CH61) -> 0.6725278453 | I68: ='Dati Generali CER 2 Sem. 2025'!D61 -> 769 | J68: =IF('Dati Generali CER 2 Sem. 2025'!CJ61="","",'Dati Generali CER 2 Sem. 2025'!CJ61) -> 2026-03-31T12:08:13
A69: 60 | B69: ='Dati Generali CER 1 Sem. 2025'!C62 -> MOTTA D'AFFERMO | C69: =IF('Dati Generali CER 2 Sem. 2025'!E62="","",SUM('Dati Generali CER 2 Sem. 2025'!E62+'Dati Generali CER 2 Sem. 2025'!R62+'Dati Generali CER 2 Sem. 2025'!S62+'Dati Generali CER 2 Sem. 2025'!T62)) -> 14320 | D69: =IF(C69="","",'Dati Generali CER 2 Sem. 2025'!CE62) -> 58736 | E69: ='Dati Generali CER 2 Sem. 2025'!W62 -> 0.8039859834 | F69: =IF('Dati Generali CER 2 Sem. 2025'!CF62="","",'Dati Generali CER 2 Sem. 2025'!CF62) -> 0.6146183874 | G69: =IF('Dati Generali CER 2 Sem. 2025'!CG62="","",'Dati Generali CER 2 Sem. 2025'!CG62) -> 0.1204738188 | H69: =IF('Dati Generali CER 2 Sem. 2025'!CH62="","",'Dati Generali CER 2 Sem. 2025'!CH62) -> 0.4941445686 | I69: ='Dati Generali CER 2 Sem. 2025'!D62 -> 646 | J69: =IF('Dati Generali CER 2 Sem. 2025'!CJ62="","",'Dati Generali CER 2 Sem. 2025'!CJ62) -> 2026-02-24T09:35:58
A70: 61 | B70: ='Dati Generali CER 1 Sem. 2025'!C63 -> NASO | C70: =IF('Dati Generali CER 2 Sem. 2025'!E63="","",SUM('Dati Generali CER 2 Sem. 2025'!E63+'Dati Generali CER 2 Sem. 2025'!R63+'Dati Generali CER 2 Sem. 2025'!S63+'Dati Generali CER 2 Sem. 2025'!T63)) -> 113850 | D70: =IF(C70="","",'Dati Generali CER 2 Sem. 2025'!CE63) -> 464632 | E70: ='Dati Generali CER 2 Sem. 2025'!W63 -> 0.803191802 | F70: =IF('Dati Generali CER 2 Sem. 2025'!CF63="","",'Dati Generali CER 2 Sem. 2025'!CF63) -> 0.9287810674 | G70: =IF('Dati Generali CER 2 Sem. 2025'!CG63="","",'Dati Generali CER 2 Sem. 2025'!CG63) -> 0.1827917282 | H70: =IF('Dati Generali CER 2 Sem. 2025'!CH63="","",'Dati Generali CER 2 Sem. 2025'!CH63) -> 0.7459893392 | I70: ='Dati Generali CER 2 Sem. 2025'!D63 -> 3385 | J70: =IF('Dati Generali CER 2 Sem. 2025'!CJ63="","",'Dati Generali CER 2 Sem. 2025'!CJ63) -> 2026-01-22T13:32:35
A71: 62 | B71: ='Dati Generali CER 1 Sem. 2025'!C64 -> NIZZA DI SICILIA | C71: =IF('Dati Generali CER 2 Sem. 2025'!E64="","",SUM('Dati Generali CER 2 Sem. 2025'!E64+'Dati Generali CER 2 Sem. 2025'!R64+'Dati Generali CER 2 Sem. 2025'!S64+'Dati Generali CER 2 Sem. 2025'!T64)) -> 176510 | D71: =IF(C71="","",'Dati Generali CER 2 Sem. 2025'!CE64) -> 463768 | E71: ='Dati Generali CER 2 Sem. 2025'!W64 -> 0.7243228723 | F71: =IF('Dati Generali CER 2 Sem. 2025'!CF64="","",'Dati Generali CER 2 Sem. 2025'!CF64) -> 0.9956428438 | G71: =IF('Dati Generali CER 2 Sem. 2025'!CG64="","",'Dati Generali CER 2 Sem. 2025'!CG64) -> 0.2744759594 | H71: =IF('Dati Generali CER 2 Sem. 2025'!CH64="","",'Dati Generali CER 2 Sem. 2025'!CH64) -> 0.7211668844 | I71: ='Dati Generali CER 2 Sem. 2025'!D64 -> 3495 | J71: =IF('Dati Generali CER 2 Sem. 2025'!CJ64="","",'Dati Generali CER 2 Sem. 2025'!CJ64) -> 2026-04-08T08:02:40
A72: 63 | B72: ='Dati Generali CER 1 Sem. 2025'!C65 -> NOVARA DI SICILIA | C72: =IF('Dati Generali CER 2 Sem. 2025'!E65="","",SUM('Dati Generali CER 2 Sem. 2025'!E65+'Dati Generali CER 2 Sem. 2025'!R65+'Dati Generali CER 2 Sem. 2025'!S65+'Dati Generali CER 2 Sem. 2025'!T65)) -> 56200 | D72: =IF(C72="","",'Dati Generali CER 2 Sem. 2025'!CE65) -> 196860 | E72: ='Dati Generali CER 2 Sem. 2025'!W65 -> 0.7779182802 | F72: =IF('Dati Generali CER 2 Sem. 2025'!CF65="","",'Dati Generali CER 2 Sem. 2025'!CF65) -> 1.275812697 | G72: =IF('Dati Generali CER 2 Sem. 2025'!CG65="","",'Dati Generali CER 2 Sem. 2025'!CG65) -> 0.2833346777 | H72: =IF('Dati Generali CER 2 Sem. 2025'!CH65="","",'Dati Generali CER 2 Sem. 2025'!CH65) -> 0.9924780189 | I72: ='Dati Generali CER 2 Sem. 2025'!D65 -> 1078 | J72: =IF('Dati Generali CER 2 Sem. 2025'!CJ65="","",'Dati Generali CER 2 Sem. 2025'!CJ65) -> 2026-03-24T13:44:48
A73: 64 | B73: ='Dati Generali CER 1 Sem. 2025'!C66 -> OLIVERI | C73: =IF('Dati Generali CER 2 Sem. 2025'!E66="","",SUM('Dati Generali CER 2 Sem. 2025'!E66+'Dati Generali CER 2 Sem. 2025'!R66+'Dati Generali CER 2 Sem. 2025'!S66+'Dati Generali CER 2 Sem. 2025'!T66)) -> 232260 | D73: =IF(C73="","",'Dati Generali CER 2 Sem. 2025'!CE66) -> 635258 | E73: ='Dati Generali CER 2 Sem. 2025'!W66 -> 0.7322706849 | F73: =IF('Dati Generali CER 2 Sem. 2025'!CF66="","",'Dati Generali CER 2 Sem. 2025'!CF66) -> 2.146004433 | G73: =IF('Dati Generali CER 2 Sem. 2025'!CG66="","",'Dati Generali CER 2 Sem. 2025'!CG66) -> 0.5745482971 | H73: =IF('Dati Generali CER 2 Sem. 2025'!CH66="","",'Dati Generali CER 2 Sem. 2025'!CH66) -> 1.571456136 | I73: ='Dati Generali CER 2 Sem. 2025'!D66 -> 2197 | J73: =IF('Dati Generali CER 2 Sem. 2025'!CJ66="","",'Dati Generali CER 2 Sem. 2025'!CJ66) -> 2026-03-31T08:28:07
A74: 65 | B74: ='Dati Generali CER 1 Sem. 2025'!C67 -> PACE DEL MELA | C74: =IF('Dati Generali CER 2 Sem. 2025'!E67="","",SUM('Dati Generali CER 2 Sem. 2025'!E67+'Dati Generali CER 2 Sem. 2025'!R67+'Dati Generali CER 2 Sem. 2025'!S67+'Dati Generali CER 2 Sem. 2025'!T67)) -> 377640 | D74: =IF(C74="","",'Dati Generali CER 2 Sem. 2025'!CE67) -> 789541 | E74: ='Dati Generali CER 2 Sem. 2025'!W67 -> 0.6764512102 | F74: =IF('Dati Generali CER 2 Sem. 2025'!CF67="","",'Dati Generali CER 2 Sem. 2025'!CF67) -> 1.061830432 | G74: =IF('Dati Generali CER 2 Sem. 2025'!CG67="","",'Dati Generali CER 2 Sem. 2025'!CG67) -> 0.3435539512 | H74: =IF('Dati Generali CER 2 Sem. 2025'!CH67="","",'Dati Generali CER 2 Sem. 2025'!CH67) -> 0.7182764807 | I74: ='Dati Generali CER 2 Sem. 2025'!D67 -> 5974 | J74: =IF('Dati Generali CER 2 Sem. 2025'!CJ67="","",'Dati Generali CER 2 Sem. 2025'!CJ67) -> 2026-03-31T08:06:28
A75: 66 | B75: ='Dati Generali CER 1 Sem. 2025'!C68 -> PAGLIARA | C75: =IF('Dati Generali CER 2 Sem. 2025'!E68="","",SUM('Dati Generali CER 2 Sem. 2025'!E68+'Dati Generali CER 2 Sem. 2025'!R68+'Dati Generali CER 2 Sem. 2025'!S68+'Dati Generali CER 2 Sem. 2025'!T68)) -> 35320 | D75: =IF(C75="","",'Dati Generali CER 2 Sem. 2025'!CE68) -> 114880 | E75: ='Dati Generali CER 2 Sem. 2025'!W68 -> 0.7648468708 | F75: =IF('Dati Generali CER 2 Sem. 2025'!CF68="","",'Dati Generali CER 2 Sem. 2025'!CF68) -> 0.7308006695 | G75: =IF('Dati Generali CER 2 Sem. 2025'!CG68="","",'Dati Generali CER 2 Sem. 2025'!CG68) -> 0.1718500642 | H75: =IF('Dati Generali CER 2 Sem. 2025'!CH68="","",'Dati Generali CER 2 Sem. 2025'!CH68) -> 0.5589506053 | I75: ='Dati Generali CER 2 Sem. 2025'!D68 -> 1117 | J75: =IF('Dati Generali CER 2 Sem. 2025'!CJ68="","",'Dati Generali CER 2 Sem. 2025'!CJ68) -> 2026-01-22T14:06:04
A76: 67 | B76: ='Dati Generali CER 1 Sem. 2025'!C69 -> PATTI | C76: =IF('Dati Generali CER 2 Sem. 2025'!E69="","",SUM('Dati Generali CER 2 Sem. 2025'!E69+'Dati Generali CER 2 Sem. 2025'!R69+'Dati Generali CER 2 Sem. 2025'!S69+'Dati Generali CER 2 Sem. 2025'!T69)) -> 1128360 | D76: =IF(C76="","",'Dati Generali CER 2 Sem. 2025'!CE69) -> 2652823 | E76: ='Dati Generali CER 2 Sem. 2025'!W69 -> 0.7015854562 | F76: =IF('Dati Generali CER 2 Sem. 2025'!CF69="","",'Dati Generali CER 2 Sem. 2025'!CF69) -> 1.620782996 | G76: =IF('Dati Generali CER 2 Sem. 2025'!CG69="","",'Dati Generali CER 2 Sem. 2025'!CG69) -> 0.4836652184 | H76: =IF('Dati Generali CER 2 Sem. 2025'!CH69="","",'Dati Generali CER 2 Sem. 2025'!CH69) -> 1.137117778 | I76: ='Dati Generali CER 2 Sem. 2025'!D69 -> 12679 | J76: =IF('Dati Generali CER 2 Sem. 2025'!CJ69="","",'Dati Generali CER 2 Sem. 2025'!CJ69) -> 2026-02-05T09:55:38
A77: 68 | B77: ='Dati Generali CER 1 Sem. 2025'!C70 -> PETTINEO | C77: =IF('Dati Generali CER 2 Sem. 2025'!E70="","",SUM('Dati Generali CER 2 Sem. 2025'!E70+'Dati Generali CER 2 Sem. 2025'!R70+'Dati Generali CER 2 Sem. 2025'!S70+'Dati Generali CER 2 Sem. 2025'!T70)) -> 29340 | D77: =IF(C77="","",'Dati Generali CER 2 Sem. 2025'!CE70) -> 131941 | E77: ='Dati Generali CER 2 Sem. 2025'!W70 -> 0.8180814851 | F77: =IF('Dati Generali CER 2 Sem. 2025'!CF70="","",'Dati Generali CER 2 Sem. 2025'!CF70) -> 0.7074472752 | G77: =IF('Dati Generali CER 2 Sem. 2025'!CG70="","",'Dati Generali CER 2 Sem. 2025'!CG70) -> 0.1286977577 | H77: =IF('Dati Generali CER 2 Sem. 2025'!CH70="","",'Dati Generali CER 2 Sem. 2025'!CH70) -> 0.5787495175 | I77: ='Dati Generali CER 2 Sem. 2025'!D70 -> 1239 | J77: =IF('Dati Generali CER 2 Sem. 2025'!CJ70="","",'Dati Generali CER 2 Sem. 2025'!CJ70) -> 2026-02-26T10:09:41
A78: 69 | B78: ='Dati Generali CER 1 Sem. 2025'!C71 -> PIRAINO | C78: =IF('Dati Generali CER 2 Sem. 2025'!E71="","",SUM('Dati Generali CER 2 Sem. 2025'!E71+'Dati Generali CER 2 Sem. 2025'!R71+'Dati Generali CER 2 Sem. 2025'!S71+'Dati Generali CER 2 Sem. 2025'!T71)) -> 216460 | D78: =IF(C78="","",'Dati Generali CER 2 Sem. 2025'!CE71) -> 650994 | E78: ='Dati Generali CER 2 Sem. 2025'!W71 -> 0.7504651543 | F78: =IF('Dati Generali CER 2 Sem. 2025'!CF71="","",'Dati Generali CER 2 Sem. 2025'!CF71) -> 1.254503436 | G78: =IF('Dati Generali CER 2 Sem. 2025'!CG71="","",'Dati Generali CER 2 Sem. 2025'!CG71) -> 0.3130423213 | H78: =IF('Dati Generali CER 2 Sem. 2025'!CH71="","",'Dati Generali CER 2 Sem. 2025'!CH71) -> 0.9414611148 | I78: ='Dati Generali CER 2 Sem. 2025'!D71 -> 3758 | J78: =IF('Dati Generali CER 2 Sem. 2025'!CJ71="","",'Dati Generali CER 2 Sem. 2025'!CJ71) -> 2026-02-24T09:03:43
A79: 70 | B79: ='Dati Generali CER 1 Sem. 2025'!C72 -> RACCUJA | C79: =IF('Dati Generali CER 2 Sem. 2025'!E72="","",SUM('Dati Generali CER 2 Sem. 2025'!E72+'Dati Generali CER 2 Sem. 2025'!R72+'Dati Generali CER 2 Sem. 2025'!S72+'Dati Generali CER 2 Sem. 2025'!T72)) -> 28740 | D79: =IF(C79="","",'Dati Generali CER 2 Sem. 2025'!CE72) -> 115680 | E79: ='Dati Generali CER 2 Sem. 2025'!W72 -> 0.8009970918 | F79: =IF('Dati Generali CER 2 Sem. 2025'!CF72="","",'Dati Generali CER 2 Sem. 2025'!CF72) -> 0.9456521739 | G79: =IF('Dati Generali CER 2 Sem. 2025'!CG72="","",'Dati Generali CER 2 Sem. 2025'!CG72) -> 0.1881875327 | H79: =IF('Dati Generali CER 2 Sem. 2025'!CH72="","",'Dati Generali CER 2 Sem. 2025'!CH72) -> 0.7574646412 | I79: ='Dati Generali CER 2 Sem. 2025'!D72 -> 830 | J79: =IF('Dati Generali CER 2 Sem. 2025'!CJ72="","",'Dati Generali CER 2 Sem. 2025'!CJ72) -> 2026-02-26T10:12:17
A80: 71 | B80: ='Dati Generali CER 1 Sem. 2025'!C73 -> REITANO | C80: =IF('Dati Generali CER 2 Sem. 2025'!E73="","",SUM('Dati Generali CER 2 Sem. 2025'!E73+'Dati Generali CER 2 Sem. 2025'!R73+'Dati Generali CER 2 Sem. 2025'!S73+'Dati Generali CER 2 Sem. 2025'!T73)) -> 64580 | D80: =IF(C80="","",'Dati Generali CER 2 Sem. 2025'!CE73) -> 138760 | E80: ='Dati Generali CER 2 Sem. 2025'!W73 -> 0.6824038556 | F80: =IF('Dati Generali CER 2 Sem. 2025'!CF73="","",'Dati Generali CER 2 Sem. 2025'!CF73) -> 1.541295252 | G80: =IF('Dati Generali CER 2 Sem. 2025'!CG73="","",'Dati Generali CER 2 Sem. 2025'!CG73) -> 0.4895094294 | H80: =IF('Dati Generali CER 2 Sem. 2025'!CH73="","",'Dati Generali CER 2 Sem. 2025'!CH73) -> 1.051785823 | I80: ='Dati Generali CER 2 Sem. 2025'!D73 -> 717 | J80: =IF('Dati Generali CER 2 Sem. 2025'!CJ73="","",'Dati Generali CER 2 Sem. 2025'!CJ73) -> 2026-04-07T08:29:15
A81: 72 | B81: ='Dati Generali CER 1 Sem. 2025'!C74 -> ROCCAFIORITA | C81: =IF('Dati Generali CER 2 Sem. 2025'!E74="","",SUM('Dati Generali CER 2 Sem. 2025'!E74+'Dati Generali CER 2 Sem. 2025'!R74+'Dati Generali CER 2 Sem. 2025'!S74+'Dati Generali CER 2 Sem. 2025'!T74)) -> 4770 | D81: =IF(C81="","",'Dati Generali CER 2 Sem. 2025'!CE74) -> 20072 | E81: ='Dati Generali CER 2 Sem. 2025'!W74 -> 0.8079864745 | F81: =IF('Dati Generali CER 2 Sem. 2025'!CF74="","",'Dati Generali CER 2 Sem. 2025'!CF74) -> 0.8438179348 | G81: =IF('Dati Generali CER 2 Sem. 2025'!CG74="","",'Dati Generali CER 2 Sem. 2025'!CG74) -> 0.1620244565 | H81: =IF('Dati Generali CER 2 Sem. 2025'!CH74="","",'Dati Generali CER 2 Sem. 2025'!CH74) -> 0.6817934783 | I81: ='Dati Generali CER 2 Sem. 2025'!D74 -> 160 | J81: =IF('Dati Generali CER 2 Sem. 2025'!CJ74="","",'Dati Generali CER 2 Sem. 2025'!CJ74) -> 2026-02-17T09:20:13
A82: 73 | B82: ='Dati Generali CER 1 Sem. 2025'!C75 -> ROCCALUMERA | C82: =IF('Dati Generali CER 2 Sem. 2025'!E75="","",SUM('Dati Generali CER 2 Sem. 2025'!E75+'Dati Generali CER 2 Sem. 2025'!R75+'Dati Generali CER 2 Sem. 2025'!S75+'Dati Generali CER 2 Sem. 2025'!T75)) -> 259790 | D82: =IF(C82="","",'Dati Generali CER 2 Sem. 2025'!CE75) -> 858938 | E82: ='Dati Generali CER 2 Sem. 2025'!W75 -> 0.7677809083 | F82: =IF('Dati Generali CER 2 Sem. 2025'!CF75="","",'Dati Generali CER 2 Sem. 2025'!CF75) -> 1.460495671 | G82: =IF('Dati Generali CER 2 Sem. 2025'!CG75="","",'Dati Generali CER 2 Sem. 2025'!CG75) -> 0.3391549781 | H82: =IF('Dati Generali CER 2 Sem. 2025'!CH75="","",'Dati Generali CER 2 Sem. 2025'!CH75) -> 1.121340693 | I82: ='Dati Generali CER 2 Sem. 2025'!D75 -> 4163 | J82: =IF('Dati Generali CER 2 Sem. 2025'!CJ75="","",'Dati Generali CER 2 Sem. 2025'!CJ75) -> 2026-04-02T11:35:22
A83: 74 | B83: ='Dati Generali CER 1 Sem. 2025'!C76 -> ROCCAVALDINA | C83: =IF('Dati Generali CER 2 Sem. 2025'!E76="","",SUM('Dati Generali CER 2 Sem. 2025'!E76+'Dati Generali CER 2 Sem. 2025'!R76+'Dati Generali CER 2 Sem. 2025'!S76+'Dati Generali CER 2 Sem. 2025'!T76)) -> 89240 | D83: =IF(C83="","",'Dati Generali CER 2 Sem. 2025'!CE76) -> 93691 | E83: ='Dati Generali CER 2 Sem. 2025'!W76 -> 0.5121657893 | F83: =IF('Dati Generali CER 2 Sem. 2025'!CF76="","",'Dati Generali CER 2 Sem. 2025'!CF76) -> 1.007284921 | G83: =IF('Dati Generali CER 2 Sem. 2025'!CG76="","",'Dati Generali CER 2 Sem. 2025'!CG76) -> 0.4913880446 | H83: =IF('Dati Generali CER 2 Sem. 2025'!CH76="","",'Dati Generali CER 2 Sem. 2025'!CH76) -> 0.5158968768 | I83: ='Dati Generali CER 2 Sem. 2025'!D76 -> 987 | J83: =IF('Dati Generali CER 2 Sem. 2025'!CJ76="","",'Dati Generali CER 2 Sem. 2025'!CJ76) -> 2026-01-29T07:57:21
A84: 75 | B84: ='Dati Generali CER 1 Sem. 2025'!C77 -> ROCCELLA VALDEMONE | C84: =IF('Dati Generali CER 2 Sem. 2025'!E77="","",SUM('Dati Generali CER 2 Sem. 2025'!E77+'Dati Generali CER 2 Sem. 2025'!R77+'Dati Generali CER 2 Sem. 2025'!S77+'Dati Generali CER 2 Sem. 2025'!T77)) -> 45480 | D84: =IF(C84="","",'Dati Generali CER 2 Sem. 2025'!CE77) -> 46711 | E84: ='Dati Generali CER 2 Sem. 2025'!W77 -> 0.5066763567 | F84: =IF('Dati Generali CER 2 Sem. 2025'!CF77="","",'Dati Generali CER 2 Sem. 2025'!CF77) -> 0.9312974786 | G84: =IF('Dati Generali CER 2 Sem. 2025'!CG77="","",'Dati Generali CER 2 Sem. 2025'!CG77) -> 0.4594310651 | H84: =IF('Dati Generali CER 2 Sem. 2025'!CH77="","",'Dati Generali CER 2 Sem. 2025'!CH77) -> 0.4718664134 | I84: ='Dati Generali CER 2 Sem. 2025'!D77 -> 538 | J84: =IF('Dati Generali CER 2 Sem. 2025'!CJ77="","",'Dati Generali CER 2 Sem. 2025'!CJ77) -> 2026-01-20T08:08:34
A85: 76 | B85: ='Dati Generali CER 1 Sem. 2025'!C78 -> RODI' MILICI | C85: =IF('Dati Generali CER 2 Sem. 2025'!E78="","",SUM('Dati Generali CER 2 Sem. 2025'!E78+'Dati Generali CER 2 Sem. 2025'!R78+'Dati Generali CER 2 Sem. 2025'!S78+'Dati Generali CER 2 Sem. 2025'!T78)) -> 89260 | D85: =IF(C85="","",'Dati Generali CER 2 Sem. 2025'!CE78) -> 213340 | E85: ='Dati Generali CER 2 Sem. 2025'!W78 -> 0.7050231328 | F85: =IF('Dati Generali CER 2 Sem. 2025'!CF78="","",'Dati Generali CER 2 Sem. 2025'!CF78) -> 0.8442326578 | G85: =IF('Dati Generali CER 2 Sem. 2025'!CG78="","",'Dati Generali CER 2 Sem. 2025'!CG78) -> 0.2450116061 | H85: =IF('Dati Generali CER 2 Sem. 2025'!CH78="","",'Dati Generali CER 2 Sem. 2025'!CH78) -> 0.5952035533 | I85: ='Dati Generali CER 2 Sem. 2025'!D78 -> 1948 | J85: =IF('Dati Generali CER 2 Sem. 2025'!CJ78="","",'Dati Generali CER 2 Sem. 2025'!CJ78) -> 2026-01-27T12:21:21
A86: 77 | B86: ='Dati Generali CER 1 Sem. 2025'!C79 -> ROMETTA | C86: =IF('Dati Generali CER 2 Sem. 2025'!E79="","",SUM('Dati Generali CER 2 Sem. 2025'!E79+'Dati Generali CER 2 Sem. 2025'!R79+'Dati Generali CER 2 Sem. 2025'!S79+'Dati Generali CER 2 Sem. 2025'!T79)) -> 291560 | D86: =IF(C86="","",'Dati Generali CER 2 Sem. 2025'!CE79) -> 990883 | E86: ='Dati Generali CER 2 Sem. 2025'!W79 -> 0.7726526637 | F86: =IF('Dati Generali CER 2 Sem. 2025'!CF79="","",'Dati Generali CER 2 Sem. 2025'!CF79) -> 1.061983683 | G86: =IF('Dati Generali CER 2 Sem. 2025'!CG79="","",'Dati Generali CER 2 Sem. 2025'!CG79) -> 0.2414391616 | H86: =IF('Dati Generali CER 2 Sem. 2025'!CH79="","",'Dati Generali CER 2 Sem. 2025'!CH79) -> 0.8205445217 | I86: ='Dati Generali CER 2 Sem. 2025'!D79 -> 6563 | J86: =IF('Dati Generali CER 2 Sem. 2025'!CJ79="","",'Dati Generali CER 2 Sem. 2025'!CJ79) -> 
A87: 78 | B87: ='Dati Generali CER 1 Sem. 2025'!C82 -> S. AGATA DI MILITELLO | C87: =IF('Dati Generali CER 2 Sem. 2025'!E82="","",SUM('Dati Generali CER 2 Sem. 2025'!E82+'Dati Generali CER 2 Sem. 2025'!R82+'Dati Generali CER 2 Sem. 2025'!S82+'Dati Generali CER 2 Sem. 2025'!T82)) -> 803080 | D87: =IF(C87="","",'Dati Generali CER 2 Sem. 2025'!CE82) -> 2125646 | E87: ='Dati Generali CER 2 Sem. 2025'!W82 -> 0.7257920338 | F87: =IF('Dati Generali CER 2 Sem. 2025'!CF82="","",'Dati Generali CER 2 Sem. 2025'!CF82) -> 1.319926124 | G87: =IF('Dati Generali CER 2 Sem. 2025'!CG82="","",'Dati Generali CER 2 Sem. 2025'!CG82) -> 0.361934258 | H87: =IF('Dati Generali CER 2 Sem. 2025'!CH82="","",'Dati Generali CER 2 Sem. 2025'!CH82) -> 0.9579918661 | I87: ='Dati Generali CER 2 Sem. 2025'!D82 -> 12059 | J87: =IF('Dati Generali CER 2 Sem. 2025'!CJ82="","",'Dati Generali CER 2 Sem. 2025'!CJ82) -> 2026-01-22T07:57:49
A88: 79 | B88: ='Dati Generali CER 1 Sem. 2025'!C93 -> S. ALESSIO SICULO | C88: =IF('Dati Generali CER 2 Sem. 2025'!E93="","",SUM('Dati Generali CER 2 Sem. 2025'!E93+'Dati Generali CER 2 Sem. 2025'!R93+'Dati Generali CER 2 Sem. 2025'!S93+'Dati Generali CER 2 Sem. 2025'!T93)) -> 210760 | D88: =IF(C88="","",'Dati Generali CER 2 Sem. 2025'!CE93) -> 338870 | E88: ='Dati Generali CER 2 Sem. 2025'!W93 -> 0.6165420374 | F88: =IF('Dati Generali CER 2 Sem. 2025'!CF93="","",'Dati Generali CER 2 Sem. 2025'!CF93) -> 1.929663802 | G88: =IF('Dati Generali CER 2 Sem. 2025'!CG93="","",'Dati Generali CER 2 Sem. 2025'!CG93) -> 0.73994495 | H88: =IF('Dati Generali CER 2 Sem. 2025'!CH93="","",'Dati Generali CER 2 Sem. 2025'!CH93) -> 1.189718852 | I88: ='Dati Generali CER 2 Sem. 2025'!D93 -> 1548 | J88: =IF('Dati Generali CER 2 Sem. 2025'!CJ93="","",'Dati Generali CER 2 Sem. 2025'!CJ93) -> 2026-04-16T13:29:04
A89: 80 | B89: ='Dati Generali CER 1 Sem. 2025'!C92 -> S. ANGELO DI BROLO | C89: =IF('Dati Generali CER 2 Sem. 2025'!E92="","",SUM('Dati Generali CER 2 Sem. 2025'!E92+'Dati Generali CER 2 Sem. 2025'!R92+'Dati Generali CER 2 Sem. 2025'!S92+'Dati Generali CER 2 Sem. 2025'!T92)) -> 92260 | D89: =IF(C89="","",'Dati Generali CER 2 Sem. 2025'!CE92) -> 392046 | E89: ='Dati Generali CER 2 Sem. 2025'!W92 -> 0.809500605 | F89: =IF('Dati Generali CER 2 Sem. 2025'!CF92="","",'Dati Generali CER 2 Sem. 2025'!CF92) -> 0.981027889 | G89: =IF('Dati Generali CER 2 Sem. 2025'!CG92="","",'Dati Generali CER 2 Sem. 2025'!CG92) -> 0.1868852193 | H89: =IF('Dati Generali CER 2 Sem. 2025'!CH92="","",'Dati Generali CER 2 Sem. 2025'!CH92) -> 0.7941426696 | I89: ='Dati Generali CER 2 Sem. 2025'!D92 -> 2683 | J89: =IF('Dati Generali CER 2 Sem. 2025'!CJ92="","",'Dati Generali CER 2 Sem. 2025'!CJ92) -> 2026-03-05T16:57:44
A90: 81 | B90: ='Dati Generali CER 1 Sem. 2025'!C80 -> S. DOMENICA VITTORIA | C90: =IF('Dati Generali CER 2 Sem. 2025'!E80="","",SUM('Dati Generali CER 2 Sem. 2025'!E80+'Dati Generali CER 2 Sem. 2025'!R80+'Dati Generali CER 2 Sem. 2025'!S80+'Dati Generali CER 2 Sem. 2025'!T80)) -> 59700 | D90: =IF(C90="","",'Dati Generali CER 2 Sem. 2025'!CE80) -> 94460 | E90: ='Dati Generali CER 2 Sem. 2025'!W80 -> 0.6127400104 | F90: =IF('Dati Generali CER 2 Sem. 2025'!CF80="","",'Dati Generali CER 2 Sem. 2025'!CF80) -> 0.9764872808 | G90: =IF('Dati Generali CER 2 Sem. 2025'!CG80="","",'Dati Generali CER 2 Sem. 2025'!CG80) -> 0.3781544542 | H90: =IF('Dati Generali CER 2 Sem. 2025'!CH80="","",'Dati Generali CER 2 Sem. 2025'!CH80) -> 0.5983328266 | I90: ='Dati Generali CER 2 Sem. 2025'!D80 -> 858 | J90: =IF('Dati Generali CER 2 Sem. 2025'!CJ80="","",'Dati Generali CER 2 Sem. 2025'!CJ80) -> 2026-02-26T08:02:25
A91: 82 | B91: ='Dati Generali CER 1 Sem. 2025'!C85 -> S. FILIPPO DEL MELA | C91: =IF('Dati Generali CER 2 Sem. 2025'!E85="","",SUM('Dati Generali CER 2 Sem. 2025'!E85+'Dati Generali CER 2 Sem. 2025'!R85+'Dati Generali CER 2 Sem. 2025'!S85+'Dati Generali CER 2 Sem. 2025'!T85)) -> 224240 | D91: =IF(C91="","",'Dati Generali CER 2 Sem. 2025'!CE85) -> 989684 | E91: ='Dati Generali CER 2 Sem. 2025'!W85 -> 0.8152767389 | F91: =IF('Dati Generali CER 2 Sem. 2025'!CF85="","",'Dati Generali CER 2 Sem. 2025'!CF85) -> 0.9932871189 | G91: =IF('Dati Generali CER 2 Sem. 2025'!CG85="","",'Dati Generali CER 2 Sem. 2025'!CG85) -> 0.1834832358 | H91: =IF('Dati Generali CER 2 Sem. 2025'!CH85="","",'Dati Generali CER 2 Sem. 2025'!CH85) -> 0.8098038831 | I91: ='Dati Generali CER 2 Sem. 2025'!D85 -> 6642 | J91: =IF('Dati Generali CER 2 Sem. 2025'!CJ85="","",'Dati Generali CER 2 Sem. 2025'!CJ85) -> 2026-02-18T08:16:06
A92: 83 | B92: ='Dati Generali CER 1 Sem. 2025'!C90 -> S. SALVAT. DI FITALIA | C92: =IF('Dati Generali CER 2 Sem. 2025'!E90="","",SUM('Dati Generali CER 2 Sem. 2025'!E90+'Dati Generali CER 2 Sem. 2025'!R90+'Dati Generali CER 2 Sem. 2025'!S90+'Dati Generali CER 2 Sem. 2025'!T90)) -> 39780 | D92: =IF(C92="","",'Dati Generali CER 2 Sem. 2025'!CE90) -> 112080 | E92: ='Dati Generali CER 2 Sem. 2025'!W90 -> 0.7380482023 | F92: =IF('Dati Generali CER 2 Sem. 2025'!CF90="","",'Dati Generali CER 2 Sem. 2025'!CF90) -> 0.742867765 | G92: =IF('Dati Generali CER 2 Sem. 2025'!CG90="","",'Dati Generali CER 2 Sem. 2025'!CG90) -> 0.1945955465 | H92: =IF('Dati Generali CER 2 Sem. 2025'!CH90="","",'Dati Generali CER 2 Sem. 2025'!CH90) -> 0.5482722185 | I92: ='Dati Generali CER 2 Sem. 2025'!D90 -> 1111 | J92: =IF('Dati Generali CER 2 Sem. 2025'!CJ90="","",'Dati Generali CER 2 Sem. 2025'!CJ90) -> 2026-01-20T09:44:42
A93: 84 | B93: ='Dati Generali CER 1 Sem. 2025'!C81 -> S. STEF. DI CAMASTRA | C93: =IF('Dati Generali CER 2 Sem. 2025'!E81="","",SUM('Dati Generali CER 2 Sem. 2025'!E81+'Dati Generali CER 2 Sem. 2025'!R81+'Dati Generali CER 2 Sem. 2025'!S81+'Dati Generali CER 2 Sem. 2025'!T81)) -> 418600 | D93: =IF(C93="","",'Dati Generali CER 2 Sem. 2025'!CE81) -> 529208 | E93: ='Dati Generali CER 2 Sem. 2025'!W81 -> 0.5583493703 | F93: =IF('Dati Generali CER 2 Sem. 2025'!CF81="","",'Dati Generali CER 2 Sem. 2025'!CF81) -> 1.180369027 | G93: =IF('Dati Generali CER 2 Sem. 2025'!CG81="","",'Dati Generali CER 2 Sem. 2025'!CG81) -> 0.5213107241 | H93: =IF('Dati Generali CER 2 Sem. 2025'!CH81="","",'Dati Generali CER 2 Sem. 2025'!CH81) -> 0.6590583031 | I93: ='Dati Generali CER 2 Sem. 2025'!D81 -> 4364 | J93: =IF('Dati Generali CER 2 Sem. 2025'!CJ81="","",'Dati Generali CER 2 Sem. 2025'!CJ81) -> 2026-03-31T08:41:23
A94: 85 | B94: ='Dati Generali CER 1 Sem. 2025'!C84 -> S. TERESA DI RIVA | C94: =IF('Dati Generali CER 2 Sem. 2025'!E84="","",SUM('Dati Generali CER 2 Sem. 2025'!E84+'Dati Generali CER 2 Sem. 2025'!R84+'Dati Generali CER 2 Sem. 2025'!S84+'Dati Generali CER 2 Sem. 2025'!T84)) -> 359560 | D94: =IF(C94="","",'Dati Generali CER 2 Sem. 2025'!CE84) -> 1558382 | E94: ='Dati Generali CER 2 Sem. 2025'!W84 -> 0.8125282204 | F94: =IF('Dati Generali CER 2 Sem. 2025'!CF84="","",'Dati Generali CER 2 Sem. 2025'!CF84) -> 1.134603007 | G94: =IF('Dati Generali CER 2 Sem. 2025'!CG84="","",'Dati Generali CER 2 Sem. 2025'!CG84) -> 0.2127060449 | H94: =IF('Dati Generali CER 2 Sem. 2025'!CH84="","",'Dati Generali CER 2 Sem. 2025'!CH84) -> 0.9218969622 | I94: ='Dati Generali CER 2 Sem. 2025'!D84 -> 9187 | J94: =IF('Dati Generali CER 2 Sem. 2025'!CJ84="","",'Dati Generali CER 2 Sem. 2025'!CJ84) -> 2026-02-03T09:38:11
A95: 86 | B95: ='Dati Generali CER 1 Sem. 2025'!C86 -> SAN FRATELLO | C95: =IF('Dati Generali CER 2 Sem. 2025'!E86="","",SUM('Dati Generali CER 2 Sem. 2025'!E86+'Dati Generali CER 2 Sem. 2025'!R86+'Dati Generali CER 2 Sem. 2025'!S86+'Dati Generali CER 2 Sem. 2025'!T86)) -> 122900 | D95: =IF(C95="","",'Dati Generali CER 2 Sem. 2025'!CE86) -> 285992 | E95: ='Dati Generali CER 2 Sem. 2025'!W86 -> 0.6994316348 | F95: =IF('Dati Generali CER 2 Sem. 2025'!CF86="","",'Dati Generali CER 2 Sem. 2025'!CF86) -> 0.6946668116 | G95: =IF('Dati Generali CER 2 Sem. 2025'!CG86="","",'Dati Generali CER 2 Sem. 2025'!CG86) -> 0.208794868 | H95: =IF('Dati Generali CER 2 Sem. 2025'!CH86="","",'Dati Generali CER 2 Sem. 2025'!CH86) -> 0.4858719437 | I95: ='Dati Generali CER 2 Sem. 2025'!D86 -> 3199 | J95: =IF('Dati Generali CER 2 Sem. 2025'!CJ86="","",'Dati Generali CER 2 Sem. 2025'!CJ86) -> 2026-02-03T09:36:01
A96: 87 | B96: ='Dati Generali CER 1 Sem. 2025'!C87 -> SAN MARCO D'ALUNZIO | C96: =IF('Dati Generali CER 2 Sem. 2025'!E87="","",SUM('Dati Generali CER 2 Sem. 2025'!E87+'Dati Generali CER 2 Sem. 2025'!R87+'Dati Generali CER 2 Sem. 2025'!S87+'Dati Generali CER 2 Sem. 2025'!T87)) -> 62960 | D96: =IF(C96="","",'Dati Generali CER 2 Sem. 2025'!CE87) -> 216560 | E96: ='Dati Generali CER 2 Sem. 2025'!W87 -> 0.7747567258 | F96: =IF('Dati Generali CER 2 Sem. 2025'!CF87="","",'Dati Generali CER 2 Sem. 2025'!CF87) -> 0.8444304807 | G96: =IF('Dati Generali CER 2 Sem. 2025'!CG87="","",'Dati Generali CER 2 Sem. 2025'!CG87) -> 0.1902022863 | H96: =IF('Dati Generali CER 2 Sem. 2025'!CH87="","",'Dati Generali CER 2 Sem. 2025'!CH87) -> 0.6542281944 | I96: ='Dati Generali CER 2 Sem. 2025'!D87 -> 1799 | J96: =IF('Dati Generali CER 2 Sem. 2025'!CJ87="","",'Dati Generali CER 2 Sem. 2025'!CJ87) -> 2026-01-29T08:13:09
A97: 88 | B97: ='Dati Generali CER 1 Sem. 2025'!C88 -> SAN PIER NICETO | C97: =IF('Dati Generali CER 2 Sem. 2025'!E88="","",SUM('Dati Generali CER 2 Sem. 2025'!E88+'Dati Generali CER 2 Sem. 2025'!R88+'Dati Generali CER 2 Sem. 2025'!S88+'Dati Generali CER 2 Sem. 2025'!T88)) -> 174620 | D97: =IF(C97="","",'Dati Generali CER 2 Sem. 2025'!CE88) -> 288842 | E97: ='Dati Generali CER 2 Sem. 2025'!W88 -> 0.6232269312 | F97: =IF('Dati Generali CER 2 Sem. 2025'!CF88="","",'Dati Generali CER 2 Sem. 2025'!CF88) -> 0.9873834643 | G97: =IF('Dati Generali CER 2 Sem. 2025'!CG88="","",'Dati Generali CER 2 Sem. 2025'!CG88) -> 0.3720194979 | H97: =IF('Dati Generali CER 2 Sem. 2025'!CH88="","",'Dati Generali CER 2 Sem. 2025'!CH88) -> 0.6153639664 | I97: ='Dati Generali CER 2 Sem. 2025'!D88 -> 2551 | J97: =IF('Dati Generali CER 2 Sem. 2025'!CJ88="","",'Dati Generali CER 2 Sem. 2025'!CJ88) -> 2026-01-22T14:12:36
A98: 89 | B98: ='Dati Generali CER 1 Sem. 2025'!C89 -> SAN PIERO PATTI | C98: =IF('Dati Generali CER 2 Sem. 2025'!E89="","",'Dati Generali CER 2 Sem. 2025'!E89) -> 128500 | D98: =IF(C98="","",'Dati Generali CER 2 Sem. 2025'!CE89) -> 457142 | E98: ='Dati Generali CER 2 Sem. 2025'!W89 -> 0.7805826768 | F98: =IF('Dati Generali CER 2 Sem. 2025'!CF89="","",'Dati Generali CER 2 Sem. 2025'!CF89) -> 1.229369238 | G98: =IF('Dati Generali CER 2 Sem. 2025'!CG89="","",'Dati Generali CER 2 Sem. 2025'!CG89) -> 0.2697449074 | H98: =IF('Dati Generali CER 2 Sem. 2025'!CH89="","",'Dati Generali CER 2 Sem. 2025'!CH89) -> 0.9596243304 | I98: ='Dati Generali CER 2 Sem. 2025'!D89 -> 2589 | J98: =IF('Dati Generali CER 2 Sem. 2025'!CJ89="","",'Dati Generali CER 2 Sem. 2025'!CJ89) -> 2026-02-24T09:14:38
A99: 90 | B99: ='Dati Generali CER 1 Sem. 2025'!C91 -> SAN TEODORO | C99: =IF('Dati Generali CER 2 Sem. 2025'!E91="","",SUM('Dati Generali CER 2 Sem. 2025'!E91+'Dati Generali CER 2 Sem. 2025'!R91+'Dati Generali CER 2 Sem. 2025'!S91+'Dati Generali CER 2 Sem. 2025'!T91)) -> 41260 | D99: =IF(C99="","",'Dati Generali CER 2 Sem. 2025'!CE91) -> 144042 | E99: ='Dati Generali CER 2 Sem. 2025'!W91 -> 0.7773364562 | F99: =IF('Dati Generali CER 2 Sem. 2025'!CF91="","",'Dati Generali CER 2 Sem. 2025'!CF91) -> 0.8329827022 | G99: =IF('Dati Generali CER 2 Sem. 2025'!CG91="","",'Dati Generali CER 2 Sem. 2025'!CG91) -> 0.1854748804 | H99: =IF('Dati Generali CER 2 Sem. 2025'!CH91="","",'Dati Generali CER 2 Sem. 2025'!CH91) -> 0.6475078218 | I99: ='Dati Generali CER 2 Sem. 2025'!D91 -> 1209 | J99: =IF('Dati Generali CER 2 Sem. 2025'!CJ91="","",'Dati Generali CER 2 Sem. 2025'!CJ91) -> 2026-01-20T12:18:47
A100: 91 | B100: ='Dati Generali CER 1 Sem. 2025'!C83 -> SANTA LUCIA DEL MELA | C100: =IF('Dati Generali CER 2 Sem. 2025'!E83="","",SUM('Dati Generali CER 2 Sem. 2025'!E83+'Dati Generali CER 2 Sem. 2025'!R83+'Dati Generali CER 2 Sem. 2025'!S83+'Dati Generali CER 2 Sem. 2025'!T83)) -> 103660 | D100: =IF(C100="","",'Dati Generali CER 2 Sem. 2025'!CE83) -> 625605 | E100: ='Dati Generali CER 2 Sem. 2025'!W83 -> 0.8578568833 | F100: =IF('Dati Generali CER 2 Sem. 2025'!CF83="","",'Dati Generali CER 2 Sem. 2025'!CF83) -> 0.9036472273 | G100: =IF('Dati Generali CER 2 Sem. 2025'!CG83="","",'Dati Generali CER 2 Sem. 2025'!CG83) -> 0.1284472333 | H100: =IF('Dati Generali CER 2 Sem. 2025'!CH83="","",'Dati Generali CER 2 Sem. 2025'!CH83) -> 0.7751999941 | I100: ='Dati Generali CER 2 Sem. 2025'!D83 -> 4386 | J100: =IF('Dati Generali CER 2 Sem. 2025'!CJ83="","",'Dati Generali CER 2 Sem. 2025'!CJ83) -> 2026-01-21T09:25:34
A101: 92 | B101: ='Dati Generali CER 1 Sem. 2025'!C94 -> SANTA MARINA SALINA | C101: =IF('Dati Generali CER 2 Sem. 2025'!E94="","",SUM('Dati Generali CER 2 Sem. 2025'!E94+'Dati Generali CER 2 Sem. 2025'!R94+'Dati Generali CER 2 Sem. 2025'!S94+'Dati Generali CER 2 Sem. 2025'!T94)) -> 225960 | D101: =IF(C101="","",'Dati Generali CER 2 Sem. 2025'!CE94) -> 152700 | E101: ='Dati Generali CER 2 Sem. 2025'!W94 -> 0.403264142 | F101: =IF('Dati Generali CER 2 Sem. 2025'!CF94="","",'Dati Generali CER 2 Sem. 2025'!CF94) -> 2.415416412 | G101: =IF('Dati Generali CER 2 Sem. 2025'!CG94="","",'Dati Generali CER 2 Sem. 2025'!CG94) -> 1.441365585 | H101: =IF('Dati Generali CER 2 Sem. 2025'!CH94="","",'Dati Generali CER 2 Sem. 2025'!CH94) -> 0.9740508267 | I101: ='Dati Generali CER 2 Sem. 2025'!D94 -> 852 | J101: =IF('Dati Generali CER 2 Sem. 2025'!CJ94="","",'Dati Generali CER 2 Sem. 2025'!CJ94) -> 2026-02-18T10:42:21
A102: 93 | B102: ='Dati Generali CER 1 Sem. 2025'!C95 -> SAPONARA | C102: =IF('Dati Generali CER 2 Sem. 2025'!E95="","",SUM('Dati Generali CER 2 Sem. 2025'!E95+'Dati Generali CER 2 Sem. 2025'!R95+'Dati Generali CER 2 Sem. 2025'!S95+'Dati Generali CER 2 Sem. 2025'!T95)) -> 134620 | D102: =IF(C102="","",'Dati Generali CER 2 Sem. 2025'!CE95) -> 508042 | E102: ='Dati Generali CER 2 Sem. 2025'!W95 -> 0.7905275246 | F102: =IF('Dati Generali CER 2 Sem. 2025'!CF95="","",'Dati Generali CER 2 Sem. 2025'!CF95) -> 0.9527354776 | G102: =IF('Dati Generali CER 2 Sem. 2025'!CG95="","",'Dati Generali CER 2 Sem. 2025'!CG95) -> 0.1995718589 | H102: =IF('Dati Generali CER 2 Sem. 2025'!CH95="","",'Dati Generali CER 2 Sem. 2025'!CH95) -> 0.7531636187 | I102: ='Dati Generali CER 2 Sem. 2025'!D95 -> 3666 | J102: =IF('Dati Generali CER 2 Sem. 2025'!CJ95="","",'Dati Generali CER 2 Sem. 2025'!CJ95) -> 2026-01-27T10:04:00
A103: 94 | B103: ='Dati Generali CER 1 Sem. 2025'!C96 -> SAVOCA | C103: =IF('Dati Generali CER 2 Sem. 2025'!E96="","",SUM('Dati Generali CER 2 Sem. 2025'!E96+'Dati Generali CER 2 Sem. 2025'!R96+'Dati Generali CER 2 Sem. 2025'!S96+'Dati Generali CER 2 Sem. 2025'!T96)) -> 89270 | D103: =IF(C103="","",'Dati Generali CER 2 Sem. 2025'!CE96) -> 206400 | E103: ='Dati Generali CER 2 Sem. 2025'!W96 -> 0.6980755572 | F103: =IF('Dati Generali CER 2 Sem. 2025'!CF96="","",'Dati Generali CER 2 Sem. 2025'!CF96) -> 0.9150923542 | G103: =IF('Dati Generali CER 2 Sem. 2025'!CG96="","",'Dati Generali CER 2 Sem. 2025'!CG96) -> 0.2762887491 | H103: =IF('Dati Generali CER 2 Sem. 2025'!CH96="","",'Dati Generali CER 2 Sem. 2025'!CH96) -> 0.638803605 | I103: ='Dati Generali CER 2 Sem. 2025'!D96 -> 1756 | J103: =IF('Dati Generali CER 2 Sem. 2025'!CJ96="","",'Dati Generali CER 2 Sem. 2025'!CJ96) -> 2026-04-07T12:41:42
A104: 95 | B104: ='Dati Generali CER 1 Sem. 2025'!C97 -> SCALETTA ZANCLEA | C104: =IF('Dati Generali CER 2 Sem. 2025'!E97="","",SUM('Dati Generali CER 2 Sem. 2025'!E97+'Dati Generali CER 2 Sem. 2025'!R97+'Dati Generali CER 2 Sem. 2025'!S97+'Dati Generali CER 2 Sem. 2025'!T97)) -> 112200 | D104: =IF(C104="","",'Dati Generali CER 2 Sem. 2025'!CE97) -> 234116 | E104: ='Dati Generali CER 2 Sem. 2025'!W97 -> 0.676018434 | F104: =IF('Dati Generali CER 2 Sem. 2025'!CF97="","",'Dati Generali CER 2 Sem. 2025'!CF97) -> 1.01958406 | G104: =IF('Dati Generali CER 2 Sem. 2025'!CG97="","",'Dati Generali CER 2 Sem. 2025'!CG97) -> 0.3303264402 | H104: =IF('Dati Generali CER 2 Sem. 2025'!CH97="","",'Dati Generali CER 2 Sem. 2025'!CH97) -> 0.6892576193 | I104: ='Dati Generali CER 2 Sem. 2025'!D97 -> 1846 | J104: =IF('Dati Generali CER 2 Sem. 2025'!CJ97="","",'Dati Generali CER 2 Sem. 2025'!CJ97) -> 2026-02-03T13:16:49
A105: 96 | B105: ='Dati Generali CER 1 Sem. 2025'!C98 -> SINAGRA | C105: =IF('Dati Generali CER 2 Sem. 2025'!E98="","",SUM('Dati Generali CER 2 Sem. 2025'!E98+'Dati Generali CER 2 Sem. 2025'!R98+'Dati Generali CER 2 Sem. 2025'!S98+'Dati Generali CER 2 Sem. 2025'!T98)) -> 17960 | D105: =IF(C105="","",'Dati Generali CER 2 Sem. 2025'!CE98) -> 392342 | E105: ='Dati Generali CER 2 Sem. 2025'!W98 -> 0.9562273642 | F105: =IF('Dati Generali CER 2 Sem. 2025'!CF98="","",'Dati Generali CER 2 Sem. 2025'!CF98) -> 0.9123985982 | G105: =IF('Dati Generali CER 2 Sem. 2025'!CG98="","",'Dati Generali CER 2 Sem. 2025'!CG98) -> 0.03993809151 | H105: =IF('Dati Generali CER 2 Sem. 2025'!CH98="","",'Dati Generali CER 2 Sem. 2025'!CH98) -> 0.8724605067 | I105: ='Dati Generali CER 2 Sem. 2025'!D98 -> 2444 | J105: =IF('Dati Generali CER 2 Sem. 2025'!CJ98="","",'Dati Generali CER 2 Sem. 2025'!CJ98) -> 2026-01-20T15:49:36
A106: 97 | B106: ='Dati Generali CER 1 Sem. 2025'!C99 -> SPADAFORA | C106: =IF('Dati Generali CER 2 Sem. 2025'!E99="","",SUM('Dati Generali CER 2 Sem. 2025'!E99+'Dati Generali CER 2 Sem. 2025'!R99+'Dati Generali CER 2 Sem. 2025'!S99+'Dati Generali CER 2 Sem. 2025'!T99)) -> 434230 | D106: =IF(C106="","",'Dati Generali CER 2 Sem. 2025'!CE99) -> 593462 | E106: ='Dati Generali CER 2 Sem. 2025'!W99 -> 0.5774706819 | F106: =IF('Dati Generali CER 2 Sem. 2025'!CF99="","",'Dati Generali CER 2 Sem. 2025'!CF99) -> 1.200619649 | G106: =IF('Dati Generali CER 2 Sem. 2025'!CG99="","",'Dati Generali CER 2 Sem. 2025'!CG99) -> 0.5008364799 | H106: =IF('Dati Generali CER 2 Sem. 2025'!CH99="","",'Dati Generali CER 2 Sem. 2025'!CH99) -> 0.6933226476 | I106: ='Dati Generali CER 2 Sem. 2025'!D99 -> 4652 | J106: =IF('Dati Generali CER 2 Sem. 2025'!CJ99="","",'Dati Generali CER 2 Sem. 2025'!CJ99) -> 2026-01-27T10:07:47
A107: 98 | B107: ='Dati Generali CER 1 Sem. 2025'!C100 -> TAORMINA | C107: =IF('Dati Generali CER 2 Sem. 2025'!E100="","",SUM('Dati Generali CER 2 Sem. 2025'!E100+'Dati Generali CER 2 Sem. 2025'!R100+'Dati Generali CER 2 Sem. 2025'!S100+'Dati Generali CER 2 Sem. 2025'!T100)) -> 1169680 | D107: =IF(C107="","",'Dati Generali CER 2 Sem. 2025'!CE100) -> 4386122 | E107: ='Dati Generali CER 2 Sem. 2025'!W100 -> 0.7894669392 | F107: =IF('Dati Generali CER 2 Sem. 2025'!CF100="","",'Dati Generali CER 2 Sem. 2025'!CF100) -> 2.88116184 | G107: =IF('Dati Generali CER 2 Sem. 2025'!CG100="","",'Dati Generali CER 2 Sem. 2025'!CG100) -> 0.5096768171 | H107: =IF('Dati Generali CER 2 Sem. 2025'!CH100="","",'Dati Generali CER 2 Sem. 2025'!CH100) -> 2.27458202 | I107: ='Dati Generali CER 2 Sem. 2025'!D100 -> 10480 | J107: =IF('Dati Generali CER 2 Sem. 2025'!CJ100="","",'Dati Generali CER 2 Sem. 2025'!CJ100) -> 2026-03-05T17:17:58
A108: 99 | B108: ='Dati Generali CER 1 Sem. 2025'!C101 -> TERME VIGLIATORE | C108: =IF('Dati Generali CER 2 Sem. 2025'!E101="","",SUM('Dati Generali CER 2 Sem. 2025'!E101+'Dati Generali CER 2 Sem. 2025'!R101+'Dati Generali CER 2 Sem. 2025'!S101+'Dati Generali CER 2 Sem. 2025'!T101)) -> 458880 | D108: =IF(C108="","",'Dati Generali CER 2 Sem. 2025'!CE101) -> 1214790 | E108: ='Dati Generali CER 2 Sem. 2025'!W101 -> 0.7258240872 | F108: =IF('Dati Generali CER 2 Sem. 2025'!CF101="","",'Dati Generali CER 2 Sem. 2025'!CF101) -> 1.246885896 | G108: =IF('Dati Generali CER 2 Sem. 2025'!CG101="","",'Dati Generali CER 2 Sem. 2025'!CG101) -> 0.3418660786 | H108: =IF('Dati Generali CER 2 Sem. 2025'!CH101="","",'Dati Generali CER 2 Sem. 2025'!CH101) -> 0.905019817 | I108: ='Dati Generali CER 2 Sem. 2025'!D101 -> 7295 | J108: =IF('Dati Generali CER 2 Sem. 2025'!CJ101="","",'Dati Generali CER 2 Sem. 2025'!CJ101) -> 2026-01-22T14:16:12
A109: 100 | B109: ='Dati Generali CER 1 Sem. 2025'!C102 -> TORREGROTTA | C109: =IF('Dati Generali CER 2 Sem. 2025'!E102="","",SUM('Dati Generali CER 2 Sem. 2025'!E102+'Dati Generali CER 2 Sem. 2025'!R102+'Dati Generali CER 2 Sem. 2025'!S102+'Dati Generali CER 2 Sem. 2025'!T102)) -> 966680 | D109: =IF(C109="","",'Dati Generali CER 2 Sem. 2025'!CE102) -> 1736638 | E109: ='Dati Generali CER 2 Sem. 2025'!W102 -> 0.642409809 | F109: =IF('Dati Generali CER 2 Sem. 2025'!CF102="","",'Dati Generali CER 2 Sem. 2025'!CF102) -> 2.023683974 | G109: =IF('Dati Generali CER 2 Sem. 2025'!CG102="","",'Dati Generali CER 2 Sem. 2025'!CG102) -> 0.7151006109 | H109: =IF('Dati Generali CER 2 Sem. 2025'!CH102="","",'Dati Generali CER 2 Sem. 2025'!CH102) -> 1.300034435 | I109: ='Dati Generali CER 2 Sem. 2025'!D102 -> 7260 | J109: =IF('Dati Generali CER 2 Sem. 2025'!CJ102="","",'Dati Generali CER 2 Sem. 2025'!CJ102) -> 2026-01-28T08:11:39
A110: 101 | B110: ='Dati Generali CER 1 Sem. 2025'!C103 -> TORRENOVA | C110: =IF('Dati Generali CER 2 Sem. 2025'!E103="","",SUM('Dati Generali CER 2 Sem. 2025'!E103+'Dati Generali CER 2 Sem. 2025'!R103+'Dati Generali CER 2 Sem. 2025'!S103+'Dati Generali CER 2 Sem. 2025'!T103)) -> 201800 | D110: =IF(C110="","",'Dati Generali CER 2 Sem. 2025'!CE103) -> 775590 | E110: ='Dati Generali CER 2 Sem. 2025'!W103 -> 0.7935317529 | F110: =IF('Dati Generali CER 2 Sem. 2025'!CF103="","",'Dati Generali CER 2 Sem. 2025'!CF103) -> 1.180160447 | G110: =IF('Dati Generali CER 2 Sem. 2025'!CG103="","",'Dati Generali CER 2 Sem. 2025'!CG103) -> 0.2436656588 | H110: =IF('Dati Generali CER 2 Sem. 2025'!CH103="","",'Dati Generali CER 2 Sem. 2025'!CH103) -> 0.9364947886 | I110: ='Dati Generali CER 2 Sem. 2025'!D103 -> 4501 | J110: =IF('Dati Generali CER 2 Sem. 2025'!CJ103="","",'Dati Generali CER 2 Sem. 2025'!CJ103) -> 2026-01-29T11:18:57
A111: 102 | B111: ='Dati Generali CER 1 Sem. 2025'!C104 -> TORTORICI | C111: =IF('Dati Generali CER 2 Sem. 2025'!E104="","",SUM('Dati Generali CER 2 Sem. 2025'!E104+'Dati Generali CER 2 Sem. 2025'!R104+'Dati Generali CER 2 Sem. 2025'!S104+'Dati Generali CER 2 Sem. 2025'!T104)) -> 180300 | D111: =IF(C111="","",'Dati Generali CER 2 Sem. 2025'!CE104) -> 448495 | E111: ='Dati Generali CER 2 Sem. 2025'!W104 -> 0.7132610787 | F111: =IF('Dati Generali CER 2 Sem. 2025'!CF104="","",'Dati Generali CER 2 Sem. 2025'!CF104) -> 0.6178564691 | G111: =IF('Dati Generali CER 2 Sem. 2025'!CG104="","",'Dati Generali CER 2 Sem. 2025'!CG104) -> 0.1771634974 | H111: =IF('Dati Generali CER 2 Sem. 2025'!CH104="","",'Dati Generali CER 2 Sem. 2025'!CH104) -> 0.4406929716 | I111: ='Dati Generali CER 2 Sem. 2025'!D104 -> 5531 | J111: =IF('Dati Generali CER 2 Sem. 2025'!CJ104="","",'Dati Generali CER 2 Sem. 2025'!CJ104) -> 2026-03-19T14:56:47
A112: 103 | B112: ='Dati Generali CER 1 Sem. 2025'!C105 -> TRIPI | C112: =IF('Dati Generali CER 2 Sem. 2025'!E105="","",SUM('Dati Generali CER 2 Sem. 2025'!E105+'Dati Generali CER 2 Sem. 2025'!R105+'Dati Generali CER 2 Sem. 2025'!S105+'Dati Generali CER 2 Sem. 2025'!T105)) -> 32400 | D112: =IF(C112="","",'Dati Generali CER 2 Sem. 2025'!CE105) -> 161687 | E112: ='Dati Generali CER 2 Sem. 2025'!W105 -> 0.8330645535 | F112: =IF('Dati Generali CER 2 Sem. 2025'!CF105="","",'Dati Generali CER 2 Sem. 2025'!CF105) -> 1.469109543 | G112: =IF('Dati Generali CER 2 Sem. 2025'!CG105="","",'Dati Generali CER 2 Sem. 2025'!CG105) -> 0.2452464576 | H112: =IF('Dati Generali CER 2 Sem. 2025'!CH105="","",'Dati Generali CER 2 Sem. 2025'!CH105) -> 1.223863086 | I112: ='Dati Generali CER 2 Sem. 2025'!D105 -> 718 | J112: =IF('Dati Generali CER 2 Sem. 2025'!CJ105="","",'Dati Generali CER 2 Sem. 2025'!CJ105) -> 2026-03-24T08:04:20
A113: 104 | B113: ='Dati Generali CER 1 Sem. 2025'!C106 -> TUSA | C113: =IF('Dati Generali CER 2 Sem. 2025'!E106="","",SUM('Dati Generali CER 2 Sem. 2025'!E106+'Dati Generali CER 2 Sem. 2025'!R106+'Dati Generali CER 2 Sem. 2025'!S106+'Dati Generali CER 2 Sem. 2025'!T106)) -> 159880 | D113: =IF(C113="","",'Dati Generali CER 2 Sem. 2025'!CE106) -> 367306 | E113: ='Dati Generali CER 2 Sem. 2025'!W106 -> 0.6967294276 | F113: =IF('Dati Generali CER 2 Sem. 2025'!CF106="","",'Dati Generali CER 2 Sem. 2025'!CF106) -> 1.154833254 | G113: =IF('Dati Generali CER 2 Sem. 2025'!CG106="","",'Dati Generali CER 2 Sem. 2025'!CG106) -> 0.3502269422 | H113: =IF('Dati Generali CER 2 Sem. 2025'!CH106="","",'Dati Generali CER 2 Sem. 2025'!CH106) -> 0.8046063123 | I113: ='Dati Generali CER 2 Sem. 2025'!D106 -> 2481 | J113: =IF('Dati Generali CER 2 Sem. 2025'!CJ106="","",'Dati Generali CER 2 Sem. 2025'!CJ106) -> 2026-03-11T15:48:24
A114: 105 | B114: ='Dati Generali CER 1 Sem. 2025'!C107 -> UCRIA | C114: =IF('Dati Generali CER 2 Sem. 2025'!E107="","",SUM('Dati Generali CER 2 Sem. 2025'!E107+'Dati Generali CER 2 Sem. 2025'!R107+'Dati Generali CER 2 Sem. 2025'!S107+'Dati Generali CER 2 Sem. 2025'!T107)) -> 15850 | D114: =IF(C114="","",'Dati Generali CER 2 Sem. 2025'!CE107) -> 135722 | E114: ='Dati Generali CER 2 Sem. 2025'!W107 -> 0.895429235 | F114: =IF('Dati Generali CER 2 Sem. 2025'!CF107="","",'Dati Generali CER 2 Sem. 2025'!CF107) -> 0.9523247047 | G114: =IF('Dati Generali CER 2 Sem. 2025'!CG107="","",'Dati Generali CER 2 Sem. 2025'!CG107) -> 0.09958532295 | H114: =IF('Dati Generali CER 2 Sem. 2025'!CH107="","",'Dati Generali CER 2 Sem. 2025'!CH107) -> 0.8527393818 | I114: ='Dati Generali CER 2 Sem. 2025'!D107 -> 865 | J114: =IF('Dati Generali CER 2 Sem. 2025'!CJ107="","",'Dati Generali CER 2 Sem. 2025'!CJ107) -> 2026-01-22T14:26:12
A115: 106 | B115: ='Dati Generali CER 1 Sem. 2025'!C108 -> VALDINA | C115: =IF('Dati Generali CER 2 Sem. 2025'!E108="","",SUM('Dati Generali CER 2 Sem. 2025'!E108+'Dati Generali CER 2 Sem. 2025'!R108+'Dati Generali CER 2 Sem. 2025'!S108+'Dati Generali CER 2 Sem. 2025'!T108)) -> 129600 | D115: =IF(C115="","",'Dati Generali CER 2 Sem. 2025'!CE108) -> 129407 | E115: ='Dati Generali CER 2 Sem. 2025'!W108 -> 0.4996274232 | F115: =IF('Dati Generali CER 2 Sem. 2025'!CF108="","",'Dati Generali CER 2 Sem. 2025'!CF108) -> 1.135198983 | G115: =IF('Dati Generali CER 2 Sem. 2025'!CG108="","",'Dati Generali CER 2 Sem. 2025'!CG108) -> 0.5680224404 | H115: =IF('Dati Generali CER 2 Sem. 2025'!CH108="","",'Dati Generali CER 2 Sem. 2025'!CH108) -> 0.5671765428 | I115: ='Dati Generali CER 2 Sem. 2025'!D108 -> 1240 | J115: =IF('Dati Generali CER 2 Sem. 2025'!CJ108="","",'Dati Generali CER 2 Sem. 2025'!CJ108) -> 2026-04-02T15:43:05
A116: 107 | B116: ='Dati Generali CER 1 Sem. 2025'!C109 -> VENETICO | C116: =IF('Dati Generali CER 2 Sem. 2025'!E109="","",SUM('Dati Generali CER 2 Sem. 2025'!E109+'Dati Generali CER 2 Sem. 2025'!R109+'Dati Generali CER 2 Sem. 2025'!S109+'Dati Generali CER 2 Sem. 2025'!T109)) -> 298240 | D116: =IF(C116="","",'Dati Generali CER 2 Sem. 2025'!CE109) -> 471463 | E116: ='Dati Generali CER 2 Sem. 2025'!W109 -> 0.6125258704 | F116: =IF('Dati Generali CER 2 Sem. 2025'!CF109="","",'Dati Generali CER 2 Sem. 2025'!CF109) -> 1.062796869 | G116: =IF('Dati Generali CER 2 Sem. 2025'!CG109="","",'Dati Generali CER 2 Sem. 2025'!CG109) -> 0.411806292 | H116: =IF('Dati Generali CER 2 Sem. 2025'!CH109="","",'Dati Generali CER 2 Sem. 2025'!CH109) -> 0.6509905775 | I116: ='Dati Generali CER 2 Sem. 2025'!D109 -> 3936 | J116: =IF('Dati Generali CER 2 Sem. 2025'!CJ109="","",'Dati Generali CER 2 Sem. 2025'!CJ109) -> 2026-01-27T16:15:26
A117: 108 | B117: ='Dati Generali CER 1 Sem. 2025'!C110 -> VILLAFRANCA TIRRENA | C117: =IF('Dati Generali CER 2 Sem. 2025'!E110="","",SUM('Dati Generali CER 2 Sem. 2025'!E110+'Dati Generali CER 2 Sem. 2025'!R110+'Dati Generali CER 2 Sem. 2025'!S110+'Dati Generali CER 2 Sem. 2025'!T110)) -> 496840 | D117: =IF(C117="","",'Dati Generali CER 2 Sem. 2025'!CE110) -> 1387604 | E117: ='Dati Generali CER 2 Sem. 2025'!W110 -> 0.7363466359 | F117: =IF('Dati Generali CER 2 Sem. 2025'!CF110="","",'Dati Generali CER 2 Sem. 2025'!CF110) -> 1.314197803 | G117: =IF('Dati Generali CER 2 Sem. 2025'!CG110="","",'Dati Generali CER 2 Sem. 2025'!CG110) -> 0.3464926718 | H117: =IF('Dati Generali CER 2 Sem. 2025'!CH110="","",'Dati Generali CER 2 Sem. 2025'!CH110) -> 0.9677051311 | I117: ='Dati Generali CER 2 Sem. 2025'!D110 -> 7793 | J117: =IF('Dati Generali CER 2 Sem. 2025'!CJ110="","",'Dati Generali CER 2 Sem. 2025'!CJ110) -> 2026-02-17T09:23:40
B118: Percentuale media dei 108 Comuni: | F118: ='Dati Generali CER 2 Sem. 2025'!W111 -> 0.6840381627

Sheet Grafico 2 Semestre 2025

Sheet Dati Generali anno 2025
A1: Produzione di Rifiuti Urbani e Raccolta Differenziata ANNO 2025.
A2: =COUNT(E3:E110) -> 108 | B2: ID COMUNE | C2: COMUNE | D2: ABITANTI AL 31/12/2025 | E2: R.S.U. + R.S.A. (Ton/anno) 200301 | F2: R.S.U. COVID (A+A1) 200301* | G2: Altri oli per motori, ingranaggi e lubrificazione (Ton/anno) 130208* | H2: Legno da demolizione (Ton/anno) 170201 | I2: Miscele bituminose (diverse da quelle 170301*) (Ton/anno) 170302 | J2: Alluminio (Ton/anno) 170402 | K2: Ferro e acciaio (Ton/anno) 170405 | L2: Materiali da costruzione contenenti amianto (Ton/anno) 170605* | M2: percolato di discarica,(diverso dalla voce 190702) (Ton/anno) 190703 | N2: Residui di vagliatura (Ton/anno) 190801 | O2: FANGHI DI DEPURAZIONE prodotti dal trattamento delle acque reflue urbane (Ton/anno) 190805 | P2: Altri rifiuti (compresi materiali misti) prodotti dal trattamento meccanico dei rifiuti,(diversi dalla voce 191211) (Ton/anno) 191212 | Q2: Rifiuti della pulizia delle fognature (Ton/anno) 200306 | R2: Residui della pulizia stradale (Ton/anno) 200303 Smaltimento | S2: Ingombranti (Ton/anno) - 200307 Smaltimento | T2: Rifiuti urbani non specificati altrimenti 200399 | U2: RACCOL. DIFFEREN. (Kg/anno) | V2: R.S.U. + R.S.A. + RACC. DIFF. (Kg/anno) | W2: % RACC. DIFF. | X2: Compostaggio Domestico | Y2: Toner per stampa esauriti,(diversi dalla voce 080317) 080318 | Z2: Imballaggi Carta e Cartone (Raccolta Selettiva) 150101 | AA2: Imballaggi in Plastica 150102 | AB2: Imballaggi in Legno 150103 | AC2: Imballaaggi in metallo 150104 | AD2: Imballaggi Materiali compositi 150105 | AE2: Imball. in materiali misti 150106 | AF2: Imballaggi in Vetro 150107 | AG2: Imballaggi in Materiale tessile 150109 | AH2: Imballaggi contenenti residui di sostanze pericolose o contaminati da tali sostanze 150110* | AI2: Imballaggi metallici contenenti matrici solide porose pericolose (ad esempio amianto) 150111* | AJ2: Pneumatici usati 160103 | AK2: Filtri dell'olio 160107* | AL2: Apparecchiature fuori uso contenenti PCB o da essi contaminate(diverse dalla voce 160209) 160210* | AM2: Apparecchiature fuori uso, contenenti clorofluorocarburi, HCFC, HFC 160211* | AN2: Apparecchiature fuori uso contenenti amianto in fibre libere 160212* | AO2: App.fuori uso contenete comp.pericolosi(diversi dalle voci da 160209 a 160212) 160213* | AP2: Apparecchiature fuori uso(diverse dalle voci da 160209 a 160213*) 160214* | AQ2: Componenti pericolosi rimossi da apparecchiature fuori uso 160215* | AR2: Componenti rimossi da apparecchiature fuori uso,(diversi dalla voce 160215) 160216 | AS2: Gas in contenitori a pressione limitatamente ad estintori ed aerosol ad uso domenstico 160504* | AT2: Gas in contenitori a pressione (diversi dalla voce 160504*) limitatamente ad estintori ed aerosol ad uso domenstico 160505 | AU2: Miscugli o frazioni separate di cemento, mattoni, mattonelle e ceramiche(diverse dalla voce 170106) 170107 | AV2: Rifiuti misti dell'attività di costruzione e demolizione, (diversi dalle voci 170901, 170902 e 170903) 170904 | AW2: Carta e Cartone (Raccolta Congiunta) 200101 | AX2: Vetro 200102 | AY2: Rifiuti biodegradabili di cucine e mense 200108 | AZ2: Abbigliamento 200110 | BA2: Prodotti tessili 200111 | BB2: Solventi 200113* | BC2: Acidi 200114* | BD2: Sostanze Alcaline 200115* | BE2: Prodotti Fotochimici 200117* | BF2: Pesticidi 200119* | BG2: Tubi fluorescenti ed altri rifiuti contenenti Mercurio 200121* | BH2: Apparec. Fuori uso conten. CFC e mat. peric. 200123* | BI2: Oli e Grassi commestibili 200125 | BJ2: Oli e grassi (diversi dalla voce 200125) 200126* | BK2: Vernici,Inchiostri,Adesivi e Resine contenenti sostanze pericolose 200127* | BL2: Vernici,Inchiostri,Adesivi e Resine (diversi dalla voce 200127*) 200128 | BM2: Detergento contenente sostanze pericolose 200129* | BN2: Detergenti (diversi della voce 200129*) 200130 | BO2: Medicinali citotossici e citostatici 200131* | BP2: Medicinali (diversi dlla voce 200131*) 200132 | BQ2: Batterie ed Accumulatori (diversi dalle voci 160601, 160602 e 160603) 200133* | BR2: Batterie ed accumulatori (diversi dlla voce 200133*) 200134 | BS2: Apparecc. elettr. ed elettroniche fuori uso contenenti Mat. Peric. 200135* | BT2: Apparecc. eletr. ed elettroniche fuori uso(diverse da 200121, 200123 e 200135 200136 | BU2: Legno contenente sostanze pericolose 200137* | BV2: Legno 200138 | BW2: Plastica 200139 | BX2: Metallo 200140 | BY2: Rifiuti prodotti dalla pulizia dei camini provenienti da utenze domestiche 200141 | BZ2: Rifiuti biodegradabili 200201 | CA2: Altri rifiuti non biodegradabili 200203 | CB2: Rifiuti dei Mercati 200302 | CC2: Residui della pulizia stradale - 200303 Recupero | CD2: Ingombranti - 200307 Recupero | CE2: TOTALE RD | CF2: CER R.D. utilizzati x Comune | CG2: R.S.U. + R.S.A.+ R.D. - (R.T. Kg. pro capite/g) | CH2: R.S.U. + R.S.A. 200301 - (R.I. Kg. pro capite/g) | CI2: R.D. - (Kg. pro capite/g)
